Workbook

Sheet DataInput
A1: 24.20558929 | B1: Please input data on the first column | C1: Number of data
A2: 2.624876976 | C2: =COUNT(A:A) -> 999
A3: 7.036577225
A4: 8.432543755
A5: 89.92723846
A6: 3.390630007
A7: 6.570392132
A8: 0.8777784109
A9: 40.44036102
A10: 0.2408927977
A11: 67.76815796
A12: 96.31665039
A13: 19.66592979
A14: 73.38910675
A15: 6.342309952
A16: 8.061589241
A17: 4.933841228
A18: 79.10005951
A19: 57.25637817
A20: 24.34151077
A21: 561.8007202
A22: 15.70888996
A23: 34.61592102
A24: 13.78590012
A25: 8.689785957
A26: 1.539144993
A27: 20.91443062
A28: 5.359046936
A29: 4.109364986
A30: 95.44806671
A31: 165.7416992
A32: 1510.833008
A33: 38.97639084
A34: 12.02661991
A35: 51.66741943
A36: 2.423371077
A37: 246.8934021
A38: 86.36309814
A39: 26.85707092
A40: 3.060405016
A41: 7.41076088
A42: 0.7574769258
A43: 112.1037979
A44: 8.673171043
A45: 13.19865036
A46: 14.05270958
A47: 129.1826935
A48: 7.680395126
A49: 47.41334915
A50: 4.950713158
A51: 2.713557005
A52: 587.1605225
A53: 2.979104996
A54: 331.3944092
A55: 864.9354858
A56: 2.849905014
A57: 31.93240929
A58: 9.94214344
A59: 66.78690338
A60: 49.5676384
A61: 3.611017942
A62: 19.07037926
A63: 108.802597
A64: 34.16775894
A65: 66.01400757
A66: 52.97079086
A67: 13.37922955
A68: 15.54944992
A69: 410.7791138
A70: 39.05667114
A71: 6.071856976
A72: 21.48250961
A73: 13.56630993
A74: 19.70889091
A75: 7.715097904
A76: 33.21839142
A77: 40.88714981
A78: 284.4512024
A79: 5.605979919
A80: 41.10480881
A81: 34.9361496
A82: 35.0952301
A83: 389.0331116
A84: 3.519464016
A85: 16.17400932
A86: 28.40460968
A87: 34.92855072
A88: 16.85042953
A89: 275.4072876
A90: 122.8803024
A91: 1.898115039
A92: 3.918333054
A93: 438.7396851
A94: 1.579352975
A95: 6.886106014
A96: 10.88910961
A97: 4.743978977
A98: 396.0672913
A99: 3.184124947
A100: 17.46740913
A101: 113.9882965
A102: 5.512081146
A103: 75.3959198
A104: 88.87985229
A105: 478.9689026
A106: 53.3273201
A107: 53.28907013
A108: 944.0734253
A109: 33.80356979
A110: 7.433546066
A111: 3.309555054
A112: 1.411631942
A113: 11.38206005
A114: 394.6978149
A115: 32.02616882
A116: 27.07584
A117: 30.53157997
A118: 47.59838867
A119: 6.290596008
A120: 0.5361623168
A121: 2.664582968
A122: 5.757586956
A123: 4.935586929
A124: 533.1447144
A125: 10.13893986
A126: 46.44710922
A127: 3.702013016
A128: 1140.661011
A129: 21.63087082
A130: 18.01285934
A131: 79.9716568
A132: 24.04589081
A133: 1.853881001
A134: 98.1829071
A135: 110.3282013
A136: 8.408810616
A137: 76.00048828
A138: 3.77206707
A139: 8.573877335
A140: 46.13912964
A141: 356.2930908
A142: 2.910130978
A143: 3.496187925
A144: 226.6620941
A145: 12.53318977
A146: 30.69768906
A147: 21.27154922
A148: 13.83397961
A149: 91.06329346
A150: 7.994650841
A151: 10.3847599
A152: 22.42904091
A153: 14.95411968
A154: 56.95888901
A155: 1.483343959
A156: 7.605913162
A157: 3.00709796
A158: 14.75677967
A159: 102.8475037
A160: 101.8957977
A161: 21.13928986
A162: 20.44492912
A163: 3.015436888
A164: 140.7263947
A165: 47.13999939
A166: 22.07209969
A167: 48.06378937
A168: 1105.405029
A169: 158.3963928
A170: 14.98861027
A171: 8.16672039
A172: 753.8677979
A173: 14.02159023
A174: 62.79175949
A175: 3.837862015
A176: 16.18387985
A177: 35.36199188
A178: 84.35051727
A179: 17.01582909
A180: 93.66705322
A181: 158.2644958
A182: 374.2319031
A183: 20.86455917
A184: 2.690839052
A185: 13.52019978
A186: 11.12314034
A187: 21.74021912
A188: 17.65856934
A189: 1.193717957
A190: 16.03689957
A191: 1528.334961
A192: 13.58664036
A193: 78.49986267
A194: 13.02132988
A195: 16.26231956
A196: 556.4550781
A197: 16.26017952
A198: 236.7288971
A199: 198.832901
A200: 5.833395958
... 799 more rows

Sheet distribution choices (hide me)
A1: Min | B1: =MIN(B$8:B10005) -> 0.2408927977 | D1: =MIN(D$8:INDIRECT("D"&(DataInput!$C$2+7))) -> 0.001667872454 | F1: Parameters | K1: Parameters | P1: Parameters | U1: Parameters | AA1: Parameters | AF1: Parameters
A2: Mean | B2: =AVERAGE(B8:B10005) -> 144.4311867 | C2: =AVERAGE(C8:INDIRECT("C"&(DataInput!$C$2+7))) -> 3.647691249 | D2: =AVERAGE(D8:INDIRECT("D"&(DataInput!$C$2+7))) -> 1 | F2: Gamma | G2: =B3/(B2-B1) -> 1.933610116 | H2: =B3/G2 -> 144.1902939 | I2: =B1*0.999 -> 0.2406519049 | K2: Log-Normal | L2: =C2-N2 -> 3.407039344 | M2: =C3 -> 1.816541917 | N2: =B1*0.999 -> 0.2406519049 | P2: Pareto 1 | Q2: =B2/(B2-R2) -> 1.001668985 | R2: =$B$1*0.999 -> 0.2406519049 | U2: Weibull | V2: =Weibullq(Y8:Y20000, DataInput!C2) -> 0.6076645618 | W2: =Weibullp(Y8:Y20000, DataInput!C2) -> 92.45411086 | AA2: Exponential | AB2: =1/(B2-B1) -> 0.006935279575 | AC2: =$B$1*0.999 -> 0.2406519049 | AF2: GPD | AH2: =GPDsigma(B8:B10000,DataInput!C2,B1) -> 39.99850716 | AI2: =GPDxi(B8:B10000,DataInput!C2,B1) -> 0.9777693377
A3: SD | B3: =STDEV(B8:B10005) -> 278.8078108 | C3: =STDEV(C8:INDIRECT("C"&(DataInput!$C$2+7))) -> 1.816541917 | D3: =STDEV(D8:INDIRECT("D"&(DataInput!$C$2+7))) -> 1.930385101 | V3: p | W3: q | AH3: sigma | AI3: xi
A4: Median | B4: =MEDIAN(B8:B10000) -> 38.40761948 | D4: =MEDIAN(D8:INDIRECT("D"&(DataInput!$C$2+7))) -> 0.2659233117
A6: quantile | B6: Values | C6: ln(Value-Offset) | D6: over Mean | F6: LL Gamma | G6: Quantile | H6: Diff | I6: AD | K6: LL LogNorm | L6: Quantile | M6: Diff | N6: AD | P6: LL Pareto 1 | Q6: Quantile | R6: Diff | S6: AD | U6: LL Weibull | V6: Quantile | W6: Diff | X6: AD | AA6: LL Exponential | AB6: Quantile | AC6: Diff | AD6: AD | AF6: LL GPD | AG6: 6 | AH6: Quantile | AI6: Diff | AJ6: AD
F7: =SUM(F8:INDIRECT("F"&(DataInput!$C$2+7))) -> -3648.548009 | H7: =MAX(H8:INDIRECT("H"&(DataInput!$C$2+7))) -> 0.9983098874 | I7: =ADScore(G8:G1007,DataInput!C2) -> 4.114392589 | K7: =SUM(K8:INDIRECT("K"&(DataInput!$C$2+7))) -> -2013.357308 | M7: =MAX(M8:INDIRECT("M"&(DataInput!$C$2+7))) -> 0.9904904905 | N7: =ADScore(L8:L1006,DataInput!C2) -> 1.922386636 | P7: =SUM(P8:INDIRECT("P"&(DataInput!$C$2+7))) -> -8789.57458 | R7: =MAX(R8:INDIRECT("R"&(DataInput!$C$2+7))) -> 0.8465339347 | S7: =ADScore(Q8:Q1006,DataInput!C2) -> 5.080669664 | U7: =SUM(U8:INDIRECT("T"&(DataInput!$C$2+7))) -> -5673.376966 | W7: =IF(ISERR(MAX(W8:INDIRECT("V"&(DataInput!$C$2+7)))),1,MAX(W8:INDIRECT("W"&(DataInput!$C$2+7)))) -> 0.9903907084 | X7: =ADScore(V8:V1006,DataInput!C2) -> 1.885219291 | AA7: =SUM(AA8:INDIRECT("Y"&(DataInput!$C$2+7))) -> 138080.9632 | AC7: =IF(ISERR(MAX(AC8:INDIRECT("AA"&(DataInput!$C$2+7)))),1,MAX(AC8:INDIRECT("AC"&(DataInput!$C$2+7)))) -> 0.9979328263 | AD7: =ADScore(AB8:AB1006,DataInput!C2) -> 2.57740911 | AF7: =SUM(AF8:INDIRECT("AD"&(DataInput!$C$2+7))) -> -5660.944845 | AG7: 7 | AI7: =IF(ISERR(MAX(AI8:INDIRECT("AG"&(DataInput!$C$2+7)))),1,MAX(AI8:INDIRECT("AI"&(DataInput!$C$2+7)))) -> 0.990484468 | AJ7: =ADScore(AH8:AH1006,DataInput!C2) -> 1.954946712
A8: =1-0.5/COUNT($B$8:INDIRECT("B"&(DataInput!$C$2+AG7))) -> 0.9994994995 | B8: =IF(ISBLANK(DataInput!A1),"",DataInput!A1) -> 24.20558929 | C8: =IF(ISBLANK(B8),"",LN(B8-0.999*$B$1)) -> 3.17659182 | D8: =DataInput!A1/AVERAGE(DataInput!$A$1:$A$1000) -> 0.1675925391 | F8: =LN(IF(ISBLANK(B8),1,GAMMADIST(B8,$G$2,$H$2,TRUE))) -> -4.193224299 | G8: =IF(ISBLANK(B8),0,GAMMADIST(B8-$I$2,$G$2,$H$2,TRUE)) -> 0.0148247015 | H8: =ABS(G8-A8) -> 0.984674798 | K8: =LN(IF(ISBLANK(B8),1,NORMDIST(C8,$C$2,$C$3,FALSE))) -> -1.549501435 | L8: =IF(ISBLANK(B8),0,NORMDIST(C8,$C$2,$C$3,TRUE)) -> 0.3976870016 | M8: =ABS(L8-$A8) -> 0.6018124979 | P8: =LN(IF(ISBLANK(B8),1,$Q$2/$R$2/((B8/$R$2)^($Q$2+1)))) -> -7.803598982 | Q8: =IF(B8<$R$2,0,1-(B8/$R$2)^(-$Q$2)) -> 0.9901342193 | R8: =ABS(Q8-L8) -> 0.5924472177 | U8: =LN(IF(ISBLANK(B8),1,WEIBULL(Y8,$V$2,$W$2,FALSE))) -> -4.935385068 | V8: =WEIBULL(Y8,$V$2,$W$2,TRUE) -> 0.3561207666 | W8: =ABS(V8-$A8) -> 0.6433787329 | Y8: =IF(ISBLANK(DataInput!A1),"",B8-$B$1*0.9999) -> 23.96472059 | AA8: =LN(IF(ISBLANK(B8),1,EXPONDIST(B8-$AC$2,$AB$2,FALSE))) -> -5.137337453 | AB8: =EXPONDIST(B8-$AC$2,$AB$2,TRUE) -> 0.1531261567 | AC8: =ABS(AB8-$A8) -> 0.8463733428 | AF8: =LN(IF(ISBLANK(DataInput!A1),1,GPDpdf(B8,$AH$2,$AI$2,$B$1))) -> -4.621529669 | AG8: 8 | AH8: =IF(ISBLANK(DataInput!A1),0,GPDcdff(B8,$AH$2,$AI$2,$B$1*0.999)) -> 0.375990319 | AI8: =ABS(AH8-$A8) -> 0.6235091805
A9: =MAX(0,A8-1/COUNT($B$8:INDIRECT("B"&(DataInput!$C$2+AG7)))) -> 0.9984984985 | B9: =IF(ISBLANK(DataInput!A2),"",DataInput!A2) -> 2.624876976 | C9: =IF(ISBLANK(DataInput!A2),"",LN(B9-0.999*$B$1)) -> 0.8688741538 | D9: =DataInput!A2/AVERAGE(DataInput!$A$1:$A$10000) -> 0.0181738933 | F9: =LN(IF(ISBLANK(DataInput!A2),1,GAMMADIST(B9,$G$2,$H$2,TRUE))) -> -8.390986242 | G9: =IF(ISBLANK(DataInput!A2),0,GAMMADIST(B9-$I$2,$G$2,$H$2,TRUE)) -> 0.0001886110617 | H9: =ABS(G9-A9) -> 0.9983098874 | K9: =LN(IF(ISBLANK(DataInput!A2),1,NORMDIST(C9,$C$2,$C$3,FALSE))) -> -2.685908794 | L9: =IF(ISBLANK(DataInput!A2),0,NORMDIST(C9,$C$2,$C$3,TRUE)) -> 0.06304189449 | M9: =ABS(L9-$A9) -> 0.935456604 | P9: =LN(IF(ISBLANK(DataInput!A2),1,$Q$2/$R$2/((B9/$R$2)^($Q$2+1)))) -> -3.356792168 | Q9: =IF(ISBLANK(DataInput!A2),0,IF(B9<$R$2,0,1-(B9/$R$2)^(-$Q$2))) -> 0.9086836779 | R9: 0.8456417834 | U9: =LN(IF(ISBLANK(B9),1,WEIBULL(Y9,$V$2,$W$2,FALSE))) -> -3.698015506 | V9: =WEIBULL(Y9,$V$2,$W$2,TRUE) -> 0.1026471111 | W9: =ABS(V9-$A9) -> 0.8958513874 | Y9: =IF(ISBLANK(DataInput!A2),"",B9-$B$1*0.9999) -> 2.384008268 | AA9: =LN(IF(ISBLANK(DataInput!A2),1,EXPONDIST(B9-$AC$2,$AB$2,FALSE))) -> -4.98766918 | AB9: =IF(ISBLANK(DataInput!A2),0,EXPONDIST(B9-$AC$2,$AB$2,TRUE)) -> 0.0163993103 | AC9: =ABS(AB9-$A9) -> 0.9820991882 | AF9: =LN(IF(ISBLANK(DataInput!A2),1,GPDpdf(B9,$AH$2,$AI$2,$B$1))) -> -3.803413877 | AG9: 9 | AH9: =IF(ISBLANK(DataInput!A2),0,GPDcdff(B9,$AH$2,$AI$2,$B$1*0.999)) -> 0.05628915846 | AI9: =ABS(AH9-$A9) -> 0.94220934
A10: =MAX(0,A9-1/COUNT($B$8:INDIRECT("B"&(DataInput!$C$2+AG8)))) -> 0.9974974975 | B10: =IF(ISBLANK(DataInput!A3),"",DataInput!A3) -> 7.036577225 | C10: =IF(ISBLANK(DataInput!A3),"",LN(B10-0.999*$B$1)) -> 1.916323215 | D10: =DataInput!A3/AVERAGE(DataInput!$A$1:$A$10000) -> 0.04871923708 | F10: =LN(IF(ISBLANK(DataInput!A3),1,GAMMADIST(B10,$G$2,$H$2,TRUE))) -> -6.504384925 | G10: =IF(ISBLANK(DataInput!A3),0,GAMMADIST(B10-$I$2,$G$2,$H$2,TRUE)) -> 0.001400989566 | H10: 0.9960965079 | K10: =LN(IF(ISBLANK(DataInput!A3),1,NORMDIST(C10,$C$2,$C$3,FALSE))) -> -1.970084494 | L10: =IF(ISBLANK(DataInput!A3),0,NORMDIST(C10,$C$2,$C$3,TRUE)) -> 0.1702666447 | M10: 0.8272308528 | P10: =LN(IF(ISBLANK(DataInput!A3),1,$Q$2/$R$2/((B10/$R$2)^($Q$2+1)))) -> -5.330613601 | Q10: =IF(ISBLANK(DataInput!A3),0,IF(B10<$R$2,0,1-(B10/$R$2)^(-$Q$2))) -> 0.9659919947 | R10: 0.79572535 | U10: -4.205373609 | V10: 0.1850998101 | W10: 0.8123976874 | Y10: =IF(ISBLANK(DataInput!A3),"",B10-$B$1*0.9999) -> 6.795708516 | AA10: =LN(IF(ISBLANK(DataInput!A3),1,EXPONDIST(B10-$AC$2,$AB$2,FALSE))) -> -5.018265554 | AB10: =IF(ISBLANK(DataInput!A3),0,EXPONDIST(B10-$AC$2,$AB$2,TRUE)) -> 0.04603819218 | AC10: 0.9514593053 | AF10: =LN(IF(ISBLANK(DataInput!A3),1,GPDpdf(B10,$AH$2,$AI$2,$B$1))) -> -3.999702855 | AG10: 10 | AH10: =IF(ISBLANK(DataInput!A3),0,GPDcdff(B10,$AH$2,$AI$2,$B$1*0.999)) -> 0.1454520001 | AI10: 0.8520454974
A11: =MAX(0,A10-1/COUNT($B$8:INDIRECT("B"&(DataInput!$C$2+AG9)))) -> 0.9964964965 | B11: =IF(ISBLANK(DataInput!A4),"",DataInput!A4) -> 8.432543755 | C11: =IF(ISBLANK(DataInput!A4),"",LN(B11-0.999*$B$1)) -> 2.103144866 | D11: =DataInput!A4/AVERAGE(DataInput!$A$1:$A$10000) -> 0.05838450787 | F11: =LN(IF(ISBLANK(DataInput!A4),1,GAMMADIST(B11,$G$2,$H$2,TRUE))) -> -6.160798193 | G11: =IF(ISBLANK(DataInput!A4),0,GAMMADIST(B11-$I$2,$G$2,$H$2,TRUE)) -> 0.001997840095 | H11: 0.9944986564 | K11: =LN(IF(ISBLANK(DataInput!A4),1,NORMDIST(C11,$C$2,$C$3,FALSE))) -> -1.877350512 | L11: =IF(ISBLANK(DataInput!A4),0,NORMDIST(C11,$C$2,$C$3,TRUE)) -> 0.197588217 | M11: 0.7989082795 | P11: =LN(IF(ISBLANK(DataInput!A4),1,$Q$2/$R$2/((B11/$R$2)^($Q$2+1)))) -> -5.692868877 | Q11: =IF(ISBLANK(DataInput!A4),0,IF(B11<$R$2,0,1-(B11/$R$2)^(-$Q$2))) -> 0.9716304245 | R11: 0.7740422076 | U11: -4.303280997 | V11: 0.2049085506 | W11: 0.7915879459 | Y11: =IF(ISBLANK(DataInput!A4),"",B11-$B$1*0.9999) -> 8.191675046 | AA11: =LN(IF(ISBLANK(DataInput!A4),1,EXPONDIST(B11-$AC$2,$AB$2,FALSE))) -> -5.027946973 | AB11: =IF(ISBLANK(DataInput!A4),0,EXPONDIST(B11-$AC$2,$AB$2,TRUE)) -> 0.05522933193 | AC11: 0.9412671646 | AF11: =LN(IF(ISBLANK(DataInput!A4),1,GPDpdf(B11,$AH$2,$AI$2,$B$1))) -> -4.058045317 | AG11: 11 | AH11: =IF(ISBLANK(DataInput!A4),0,GPDcdff(B11,$AH$2,$AI$2,$B$1*0.999)) -> 0.1702921116 | AI11: 0.8262043849
A12: =MAX(0,A11-1/COUNT($B$8:INDIRECT("B"&(DataInput!$C$2+AG10)))) -> 0.9954954955 | B12: =IF(ISBLANK(DataInput!A5),"",DataInput!A5) -> 89.92723846 | C12: =IF(ISBLANK(DataInput!A5),"",LN(B12-0.999*$B$1)) -> 4.496321221 | D12: =DataInput!A5/AVERAGE(DataInput!$A$1:$A$10000) -> 0.6226303373 | F12: =LN(IF(ISBLANK(DataInput!A5),1,GAMMADIST(B12,$G$2,$H$2,TRUE))) -> -1.945366854 | G12: =IF(ISBLANK(DataInput!A5),0,GAMMADIST(B12-$I$2,$G$2,$H$2,TRUE)) -> 0.142343831 | H12: 0.8531516645 | K12: =LN(IF(ISBLANK(DataInput!A5),1,NORMDIST(C12,$C$2,$C$3,FALSE))) -> -1.624996079 | L12: =IF(ISBLANK(DataInput!A5),0,NORMDIST(C12,$C$2,$C$3,TRUE)) -> 0.6798101013 | M12: 0.3156853941 | P12: =LN(IF(ISBLANK(DataInput!A5),1,$Q$2/$R$2/((B12/$R$2)^($Q$2+1)))) -> -10.43062401 | Q12: =IF(ISBLANK(DataInput!A5),0,IF(B12<$R$2,0,1-(B12/$R$2)^(-$Q$2))) -> 0.997350252 | R12: 0.3175401506 | U12: -5.99462057 | V12: 0.6253265319 | W12: 0.3701689636 | Y12: =IF(ISBLANK(DataInput!A5),"",B12-$B$1*0.9999) -> 89.68636976 | AA12: =LN(IF(ISBLANK(DataInput!A5),1,EXPONDIST(B12-$AC$2,$AB$2,FALSE))) -> -5.593135464 | AB12: =IF(ISBLANK(DataInput!A5),0,EXPONDIST(B12-$AC$2,$AB$2,TRUE)) -> 0.4631312093 | AC12: 0.5323642862 | AF12: =LN(IF(ISBLANK(DataInput!A5),1,GPDpdf(B12,$AH$2,$AI$2,$B$1))) -> -6.036776888 | AG12: 12 | AH12: =IF(ISBLANK(DataInput!A5),0,GPDcdff(B12,$AH$2,$AI$2,$B$1*0.999)) -> 0.6949150374 | AI12: 0.3005804581
A13: =MAX(0,A12-1/COUNT($B$8:INDIRECT("B"&(DataInput!$C$2+AG11)))) -> 0.9944944945 | B13: =IF(ISBLANK(DataInput!A6),"",DataInput!A6) -> 3.390630007 | C13: =IF(ISBLANK(DataInput!A6),"",LN(B13-0.999*$B$1)) -> 1.147395501 | D13: =DataInput!A6/AVERAGE(DataInput!$A$1:$A$10000) -> 0.02347574707 | F13: =LN(IF(ISBLANK(DataInput!A6),1,GAMMADIST(B13,$G$2,$H$2,TRUE))) -> -7.899511479 | G13: =IF(ISBLANK(DataInput!A6),0,GAMMADIST(B13-$I$2,$G$2,$H$2,TRUE)) -> 0.0003220620182 | H13: 0.9941724325 | K13: =LN(IF(ISBLANK(DataInput!A6),1,NORMDIST(C13,$C$2,$C$3,FALSE))) -> -2.463117308 | L13: =IF(ISBLANK(DataInput!A6),0,NORMDIST(C13,$C$2,$C$3,TRUE)) -> 0.08434827926 | M13: 0.9101462152 | P13: =LN(IF(ISBLANK(DataInput!A6),1,$Q$2/$R$2/((B13/$R$2)^($Q$2+1)))) -> -3.869182834 | Q13: =IF(ISBLANK(DataInput!A6),0,IF(B13<$R$2,0,1-(B13/$R$2)^(-$Q$2))) -> 0.929337106 | R13: 0.8449888267 | U13: -3.827272781 | V13: 0.1203937287 | W13: 0.8741007658 | Y13: =IF(ISBLANK(DataInput!A6),"",B13-$B$1*0.9999) -> 3.149761298 | AA13: =LN(IF(ISBLANK(DataInput!A6),1,EXPONDIST(B13-$AC$2,$AB$2,FALSE))) -> -4.992979891 | AB13: =IF(ISBLANK(DataInput!A6),0,EXPONDIST(B13-$AC$2,$AB$2,TRUE)) -> 0.0216090836 | AC13: 0.9728854109 | AF13: =LN(IF(ISBLANK(DataInput!A6),1,GPDpdf(B13,$AH$2,$AI$2,$B$1))) -> -3.838879563 | AG13: 13 | AH13: =IF(ISBLANK(DataInput!A6),0,GPDcdff(B13,$AH$2,$AI$2,$B$1*0.999)) -> 0.07306101734 | AI13: 0.9214334772
A14: =MAX(0,A13-1/COUNT($B$8:INDIRECT("B"&(DataInput!$C$2+AG12)))) -> 0.9934934935 | B14: =IF(ISBLANK(DataInput!A7),"",DataInput!A7) -> 6.570392132 | C14: =IF(ISBLANK(DataInput!A7),"",LN(B14-0.999*$B$1)) -> 1.845259197 | D14: =DataInput!A7/AVERAGE(DataInput!$A$1:$A$10000) -> 0.04549150556 | F14: =LN(IF(ISBLANK(DataInput!A7),1,GAMMADIST(B14,$G$2,$H$2,TRUE))) -> -6.634808414 | G14: =IF(ISBLANK(DataInput!A7),0,GAMMADIST(B14-$I$2,$G$2,$H$2,TRUE)) -> 0.001223714999 | H14: 0.9922697785 | K14: =LN(IF(ISBLANK(DataInput!A7),1,NORMDIST(C14,$C$2,$C$3,FALSE))) -> -2.008135916 | L14: =IF(ISBLANK(DataInput!A7),0,NORMDIST(C14,$C$2,$C$3,TRUE)) -> 0.1605420444 | M14: 0.8329514491 | P14: =LN(IF(ISBLANK(DataInput!A7),1,$Q$2/$R$2/((B14/$R$2)^($Q$2+1)))) -> -5.193402502 | Q14: =IF(ISBLANK(DataInput!A7),0,IF(B14<$R$2,0,1-(B14/$R$2)^(-$Q$2))) -> 0.9635748781 | R14: 0.8030328337 | U14: -4.168840477 | V14: 0.1780192989 | W14: 0.8154741946 | Y14: =IF(ISBLANK(DataInput!A7),"",B14-$B$1*0.9999) -> 6.329523423 | AA14: =LN(IF(ISBLANK(DataInput!A7),1,EXPONDIST(B14-$AC$2,$AB$2,FALSE))) -> -5.01503243 | AB14: =IF(ISBLANK(DataInput!A7),0,EXPONDIST(B14-$AC$2,$AB$2,TRUE)) -> 0.0429489241 | AC14: 0.9505445694 | AF14: =LN(IF(ISBLANK(DataInput!A7),1,GPDpdf(B14,$AH$2,$AI$2,$B$1))) -> -3.979838374 | AG14: 14 | AH14: =IF(ISBLANK(DataInput!A7),0,GPDcdff(B14,$AH$2,$AI$2,$B$1*0.999)) -> 0.1368258176 | AI14: 0.8566676759
A15: =MAX(0,A14-1/COUNT($B$8:INDIRECT("B"&(DataInput!$C$2+AG13)))) -> 0.9924924925 | B15: =IF(ISBLANK(DataInput!A8),"",DataInput!A8) -> 0.8777784109 | C15: =IF(ISBLANK(DataInput!A8),"",LN(B15-0.999*$B$1)) -> -0.4507870466 | D15: =DataInput!A8/AVERAGE(DataInput!$A$1:$A$10000) -> 0.00607748528 | F15: =LN(IF(ISBLANK(DataInput!A8),1,GAMMADIST(B15,$G$2,$H$2,TRUE))) -> -10.50107541 | G15: =IF(ISBLANK(DataInput!A8),0,GAMMADIST(B15-$I$2,$G$2,$H$2,TRUE)) -> 1.481967751e-05 | H15: 0.9924776728 | K15: =LN(IF(ISBLANK(DataInput!A8),1,NORMDIST(C15,$C$2,$C$3,FALSE))) -> -4.061087957 | L15: =IF(ISBLANK(DataInput!A8),0,NORMDIST(C15,$C$2,$C$3,TRUE)) -> 0.01202911594 | M15: 0.9804633765 | P15: =LN(IF(ISBLANK(DataInput!A8),1,$Q$2/$R$2/((B15/$R$2)^($Q$2+1)))) -> -1.164173719 | Q15: =IF(ISBLANK(DataInput!A8),0,IF(B15<$R$2,0,1-(B15/$R$2)^(-$Q$2))) -> 0.7264312751 | R15: 0.7144021592 | U15: -3.120426489 | V15: 0.04740436513 | W15: 0.9450881274 | Y15: =IF(ISBLANK(DataInput!A8),"",B15-$B$1*0.9999) -> 0.6369097025 | AA15: =LN(IF(ISBLANK(DataInput!A8),1,EXPONDIST(B15-$AC$2,$AB$2,FALSE))) -> -4.975552563 | AB15: =IF(ISBLANK(DataInput!A8),0,EXPONDIST(B15-$AC$2,$AB$2,TRUE)) -> 0.004408902571 | AC15: 0.9880835899 | AF15: =LN(IF(ISBLANK(DataInput!A8),1,GPDpdf(B15,$AH$2,$AI$2,$B$1))) -> -3.720091002 | AG15: 15 | AH15: =IF(ISBLANK(DataInput!A8),0,GPDcdff(B15,$AH$2,$AI$2,$B$1*0.999)) -> 0.01568172872 | AI15: 0.9768107638
A16: =MAX(0,A15-1/COUNT($B$8:INDIRECT("B"&(DataInput!$C$2+AG14)))) -> 0.9914914915 | B16: =IF(ISBLANK(DataInput!A9),"",DataInput!A9) -> 40.44036102 | C16: =IF(ISBLANK(DataInput!A9),"",LN(B16-0.999*$B$1)) -> 3.69385976 | D16: =DataInput!A9/AVERAGE(DataInput!$A$1:$A$10000) -> 0.2799974296 | F16: =LN(IF(ISBLANK(DataInput!A9),1,GAMMADIST(B16,$G$2,$H$2,TRUE))) -> -3.273559057 | G16: =IF(ISBLANK(DataInput!A9),0,GAMMADIST(B16-$I$2,$G$2,$H$2,TRUE)) -> 0.03747703313 | H16: 0.9540144584 | K16: =LN(IF(ISBLANK(DataInput!A9),1,NORMDIST(C16,$C$2,$C$3,FALSE))) -> -1.516196158 | L16: =IF(ISBLANK(DataInput!A9),0,NORMDIST(C16,$C$2,$C$3,TRUE)) -> 0.5101382678 | M16: 0.4813532237 | P16: =LN(IF(ISBLANK(DataInput!A9),1,$Q$2/$R$2/((B16/$R$2)^($Q$2+1)))) -> -8.830945085 | Q16: =IF(ISBLANK(DataInput!A9),0,IF(B16<$R$2,0,1-(B16/$R$2)^(-$Q$2))) -> 0.9940998904 | R16: 0.4839616227 | U16: -5.300928043 | V16: 0.4527464708 | W16: 0.5387450207 | Y16: =IF(ISBLANK(DataInput!A9),"",B16-$B$1*0.9999) -> 40.19949231 | AA16: =LN(IF(ISBLANK(DataInput!A9),1,EXPONDIST(B16-$AC$2,$AB$2,FALSE))) -> -5.249930134 | AB16: =IF(ISBLANK(DataInput!A9),0,EXPONDIST(B16-$AC$2,$AB$2,TRUE)) -> 0.2433059146 | AC16: 0.7481855769 | AF16: =LN(IF(ISBLANK(DataInput!A9),1,GPDpdf(B16,$AH$2,$AI$2,$B$1))) -> -5.073304672 | AG16: 16 | AH16: =IF(ISBLANK(DataInput!A9),0,GPDcdff(B16,$AH$2,$AI$2,$B$1*0.999)) -> 0.5034222314 | AI16: 0.4880692601
A17: =MAX(0,A16-1/COUNT($B$8:INDIRECT("B"&(DataInput!$C$2+AG15)))) -> 0.9904904905 | B17: =IF(ISBLANK(DataInput!A10),"",DataInput!A10) -> 0.2408927977 | C17: =IF(ISBLANK(DataInput!A10),"",LN(B17-0.999*$B$1)) -> -8.331158546 | D17: =DataInput!A10/AVERAGE(DataInput!$A$1:$A$10000) -> 0.001667872454 | F17: =LN(IF(ISBLANK(DataInput!A10),1,GAMMADIST(B17,$G$2,$H$2,TRUE))) -> -12.99840448 | G17: =IF(ISBLANK(DataInput!A10),0,GAMMADIST(B17-$I$2,$G$2,$H$2,TRUE)) -> 3.585188828e-12 | H17: 0.9904904905 | K17: =LN(IF(ISBLANK(DataInput!A10),1,NORMDIST(C17,$C$2,$C$3,FALSE))) -> -23.258369 | L17: =IF(ISBLANK(DataInput!A10),0,NORMDIST(C17,$C$2,$C$3,TRUE)) -> 2.13611741e-11 | M17: 0.9904904905 | P17: =LN(IF(ISBLANK(DataInput!A10),1,$Q$2/$R$2/((B17/$R$2)^($Q$2+1)))) -> 1.424068691 | Q17: =IF(ISBLANK(DataInput!A10),0,IF(B17<$R$2,0,1-(B17/$R$2)^(-$Q$2))) -> 0.001001668149 | R17: 0.001001668128 | U17: 0.9230397056 | V17: 9.978209667e-05 | W17: 0.9903907084 | Y17: =IF(ISBLANK(DataInput!A10),"",B17-$B$1*0.9999) -> 2.408927977e-05 | AA17: =LN(IF(ISBLANK(DataInput!A10),1,EXPONDIST(B17-$AC$2,$AB$2,FALSE))) -> -4.971135583 | AB17: =IF(ISBLANK(DataInput!A10),0,EXPONDIST(B17-$AC$2,$AB$2,TRUE)) -> 1.670657504e-06 | AC17: 0.9904888198 | AF17: =LN(IF(ISBLANK(DataInput!A10),1,GPDpdf(B17,$AH$2,$AI$2,$B$1))) -> -3.688842132 | AG17: 17 | AH17: =IF(ISBLANK(DataInput!A10),0,GPDcdff(B17,$AH$2,$AI$2,$B$1*0.999)) -> 6.022508842e-06 | AI17: 0.990484468
A18: =MAX(0,A17-1/COUNT($B$8:INDIRECT("B"&(DataInput!$C$2+AG16)))) -> 0.9894894895 | B18: =IF(ISBLANK(DataInput!A11),"",DataInput!A11) -> 67.76815796 | C18: =IF(ISBLANK(DataInput!A11),"",LN(B18-0.999*$B$1)) -> 4.212535012 | D18: =DataInput!A11/AVERAGE(DataInput!$A$1:$A$10000) -> 0.4692072365 | F18: =LN(IF(ISBLANK(DataInput!A11),1,GAMMADIST(B18,$G$2,$H$2,TRUE))) -> -2.396068138 | G18: =IF(ISBLANK(DataInput!A11),0,GAMMADIST(B18-$I$2,$G$2,$H$2,TRUE)) -> 0.09054640881 | H18: 0.8989430807 | K18: =LN(IF(ISBLANK(DataInput!A11),1,NORMDIST(C18,$C$2,$C$3,FALSE))) -> -1.56421643 | L18: =IF(ISBLANK(DataInput!A11),0,NORMDIST(C18,$C$2,$C$3,TRUE)) -> 0.6220786024 | M18: 0.3674108871 | P18: =LN(IF(ISBLANK(DataInput!A11),1,$Q$2/$R$2/((B18/$R$2)^($Q$2+1)))) -> -9.864334955 | Q18: =IF(ISBLANK(DataInput!A11),0,IF(B18<$R$2,0,1-(B18/$R$2)^(-$Q$2))) -> 0.996482167 | R18: 0.3744035646 | U18: -5.727782119 | V18: 0.5622912882 | W18: 0.4271982013 | Y18: =IF(ISBLANK(DataInput!A11),"",B18-$B$1*0.9999) -> 67.52728925 | AA18: =LN(IF(ISBLANK(DataInput!A11),1,EXPONDIST(B18-$AC$2,$AB$2,FALSE))) -> -5.439456046 | AB18: =IF(ISBLANK(DataInput!A11),0,EXPONDIST(B18-$AC$2,$AB$2,TRUE)) -> 0.3739481811 | AC18: 0.6155413084 | AF18: =LN(IF(ISBLANK(DataInput!A11),1,GPDpdf(B18,$AH$2,$AI$2,$B$1))) -> -5.660663897 | AG18: 18 | AH18: =IF(ISBLANK(DataInput!A11),0,GPDcdff(B18,$AH$2,$AI$2,$B$1*0.999)) -> 0.6310134403 | AI18: 0.3584760492
A19: =MAX(0,A18-1/COUNT($B$8:INDIRECT("B"&(DataInput!$C$2+AG17)))) -> 0.9884884885 | B19: =IF(ISBLANK(DataInput!A12),"",DataInput!A12) -> 96.31665039 | C19: =IF(ISBLANK(DataInput!A12),"",LN(B19-0.999*$B$1)) -> 4.565139529 | D19: =DataInput!A12/AVERAGE(DataInput!$A$1:$A$10000) -> 0.6668687879 | F19: =LN(IF(ISBLANK(DataInput!A12),1,GAMMADIST(B19,$G$2,$H$2,TRUE))) -> -1.840152602 | G19: =IF(ISBLANK(DataInput!A12),0,GAMMADIST(B19-$I$2,$G$2,$H$2,TRUE)) -> 0.1581903957 | H19: 0.8302980927 | K19: =LN(IF(ISBLANK(DataInput!A12),1,NORMDIST(C19,$C$2,$C$3,FALSE))) -> -1.643411985 | L19: =IF(ISBLANK(DataInput!A12),0,NORMDIST(C19,$C$2,$C$3,TRUE)) -> 0.6932388726 | M19: 0.2952496159 | P19: =LN(IF(ISBLANK(DataInput!A12),1,$Q$2/$R$2/((B19/$R$2)^($Q$2+1)))) -> -10.56801922 | Q19: =IF(ISBLANK(DataInput!A12),0,IF(B19<$R$2,0,1-(B19/$R$2)^(-$Q$2))) -> 0.9975263132 | R19: 0.3042874406 | U19: -6.063544261 | V19: 0.6407095452 | W19: 0.3477789432 | Y19: =IF(ISBLANK(DataInput!A12),"",B19-$B$1*0.9999) -> 96.07578168 | AA19: =LN(IF(ISBLANK(DataInput!A12),1,EXPONDIST(B19-$AC$2,$AB$2,FALSE))) -> -5.637447822 | AB19: =IF(ISBLANK(DataInput!A12),0,EXPONDIST(B19-$AC$2,$AB$2,TRUE)) -> 0.4864017377 | AC19: 0.5020867508 | AF19: =LN(IF(ISBLANK(DataInput!A12),1,GPDpdf(B19,$AH$2,$AI$2,$B$1))) -> -6.133395851 | AG19: 19 | AH19: =IF(ISBLANK(DataInput!A12),0,GPDcdff(B19,$AH$2,$AI$2,$B$1*0.999)) -> 0.7094609767 | AI19: 0.2790275118
A20: =MAX(0,A19-1/COUNT($B$8:INDIRECT("B"&(DataInput!$C$2+AG18)))) -> 0.9874874875 | B20: =IF(ISBLANK(DataInput!A13),"",DataInput!A13) -> 19.66592979 | C20: =IF(ISBLANK(DataInput!A13),"",LN(B20-0.999*$B$1)) -> 2.966575202 | D20: =DataInput!A13/AVERAGE(DataInput!$A$1:$A$10000) -> 0.1361612422 | F20: =LN(IF(ISBLANK(DataInput!A13),1,GAMMADIST(B20,$G$2,$H$2,TRUE))) -> -4.574351682 | G20: =IF(ISBLANK(DataInput!A13),0,GAMMADIST(B20-$I$2,$G$2,$H$2,TRUE)) -> 0.01008130872 | H20: 0.9774061788 | K20: =LN(IF(ISBLANK(DataInput!A13),1,NORMDIST(C20,$C$2,$C$3,FALSE))) -> -1.586167687 | L20: =IF(ISBLANK(DataInput!A13),0,NORMDIST(C20,$C$2,$C$3,TRUE)) -> 0.3538480781 | M20: 0.6336394094 | P20: =LN(IF(ISBLANK(DataInput!A13),1,$Q$2/$R$2/((B20/$R$2)^($Q$2+1)))) -> -7.387860576 | Q20: =IF(ISBLANK(DataInput!A13),0,IF(B20<$R$2,0,1-(B20/$R$2)^(-$Q$2))) -> 0.9878526044 | R20: 0.6340045263 | U20: -4.800240293 | V20: 0.3212464056 | W20: 0.6662410819 | Y20: =IF(ISBLANK(DataInput!A13),"",B20-$B$1*0.9999) -> 19.42506109 | AA20: =LN(IF(ISBLANK(DataInput!A13),1,EXPONDIST(B20-$AC$2,$AB$2,FALSE))) -> -5.105853645 | AB20: =IF(ISBLANK(DataInput!A13),0,EXPONDIST(B20-$AC$2,$AB$2,TRUE)) -> 0.1260391802 | AC20: 0.8614483072 | AF20: =LN(IF(ISBLANK(DataInput!A13),1,GPDpdf(B20,$AH$2,$AI$2,$B$1))) -> -4.474786033 | AG20: 20 | AH20: =IF(ISBLANK(DataInput!A13),0,GPDcdff(B20,$AH$2,$AI$2,$B$1*0.999)) -> 0.327930247 | AI20: 0.6595572405
A21: =MAX(0,A20-1/COUNT($B$8:INDIRECT("B"&(DataInput!$C$2+AG19)))) -> 0.9864864865 | B21: =IF(ISBLANK(DataInput!A14),"",DataInput!A14) -> 73.38910675 | C21: =IF(ISBLANK(DataInput!A14),"",LN(B21-0.999*$B$1)) -> 4.292491004 | D21: =DataInput!A14/AVERAGE(DataInput!$A$1:$A$10000) -> 0.5081250694 | F21: =LN(IF(ISBLANK(DataInput!A14),1,GAMMADIST(B21,$G$2,$H$2,TRUE))) -> -2.266564093 | G21: =IF(ISBLANK(DataInput!A14),0,GAMMADIST(B21-$I$2,$G$2,$H$2,TRUE)) -> 0.1031196896 | H21: 0.8833667969 | K21: =LN(IF(ISBLANK(DataInput!A14),1,NORMDIST(C21,$C$2,$C$3,FALSE))) -> -1.578871489 | L21: =IF(ISBLANK(DataInput!A14),0,NORMDIST(C21,$C$2,$C$3,TRUE)) -> 0.6386902286 | M21: 0.3477962579 | P21: =LN(IF(ISBLANK(DataInput!A14),1,$Q$2/$R$2/((B21/$R$2)^($Q$2+1)))) -> -10.0238341 | Q21: =IF(ISBLANK(DataInput!A14),0,IF(B21<$R$2,0,1-(B21/$R$2)^(-$Q$2))) -> 0.9967520335 | R21: 0.3580618049 | U21: -5.800285267 | V21: 0.5799305033 | W21: 0.4065559832 | Y21: =IF(ISBLANK(DataInput!A14),"",B21-$B$1*0.9999) -> 73.14823804 | AA21: =LN(IF(ISBLANK(DataInput!A14),1,EXPONDIST(B21-$AC$2,$AB$2,FALSE))) -> -5.478438897 | AB21: =IF(ISBLANK(DataInput!A14),0,EXPONDIST(B21-$AC$2,$AB$2,TRUE)) -> 0.3978838938 | AC21: 0.5886025927 | AF21: =LN(IF(ISBLANK(DataInput!A14),1,GPDpdf(B21,$AH$2,$AI$2,$B$1))) -> -5.762889154 | AG21: 21 | AH21: =IF(ISBLANK(DataInput!A14),0,GPDcdff(B21,$AH$2,$AI$2,$B$1*0.999)) -> 0.6496007624 | AI21: 0.3368857241
A22: =MAX(0,A21-1/COUNT($B$8:INDIRECT("B"&(DataInput!$C$2+AG20)))) -> 0.9854854855 | B22: =IF(ISBLANK(DataInput!A15),"",DataInput!A15) -> 6.342309952 | C22: =IF(ISBLANK(DataInput!A15),"",LN(B22-0.999*$B$1)) -> 1.808560545 | D22: =DataInput!A15/AVERAGE(DataInput!$A$1:$A$10000) -> 0.04391233014 | F22: =LN(IF(ISBLANK(DataInput!A15),1,GAMMADIST(B22,$G$2,$H$2,TRUE))) -> -6.702085212 | G22: =IF(ISBLANK(DataInput!A15),0,GAMMADIST(B22-$I$2,$G$2,$H$2,TRUE)) -> 0.001141073097 | H22: 0.9843444124 | K22: =LN(IF(ISBLANK(DataInput!A15),1,NORMDIST(C22,$C$2,$C$3,FALSE))) -> -2.028385545 | L22: =IF(ISBLANK(DataInput!A15),0,NORMDIST(C22,$C$2,$C$3,TRUE)) -> 0.1556650439 | M22: 0.8298204416 | P22: =LN(IF(ISBLANK(DataInput!A15),1,$Q$2/$R$2/((B22/$R$2)^($Q$2+1)))) -> -5.1226826 | Q22: =IF(ISBLANK(DataInput!A15),0,IF(B22<$R$2,0,1-(B22/$R$2)^(-$Q$2))) -> 0.9622627326 | R22: 0.8065976887 | U22: -4.150118282 | V22: 0.1744577626 | W22: 0.8110277229 | Y22: =IF(ISBLANK(DataInput!A15),"",B22-$B$1*0.9999) -> 6.101441243 | AA22: =LN(IF(ISBLANK(DataInput!A15),1,EXPONDIST(B22-$AC$2,$AB$2,FALSE))) -> -5.013450617 | AB22: =IF(ISBLANK(DataInput!A15),0,EXPONDIST(B22-$AC$2,$AB$2,TRUE)) -> 0.04143384965 | AC22: 0.9440516358 | AF22: =LN(IF(ISBLANK(DataInput!A15),1,GPDpdf(B22,$AH$2,$AI$2,$B$1))) -> -3.970048096 | AG22: 22 | AH22: =IF(ISBLANK(DataInput!A15),0,GPDcdff(B22,$AH$2,$AI$2,$B$1*0.999)) -> 0.1325423945 | AI22: 0.8529430909
A23: =MAX(0,A22-1/COUNT($B$8:INDIRECT("B"&(DataInput!$C$2+AG21)))) -> 0.9844844845 | B23: =IF(ISBLANK(DataInput!A16),"",DataInput!A16) -> 8.061589241 | C23: =IF(ISBLANK(DataInput!A16),"",LN(B23-0.999*$B$1)) -> 2.056804411 | D23: =DataInput!A16/AVERAGE(DataInput!$A$1:$A$10000) -> 0.0558161255 | F23: =LN(IF(ISBLANK(DataInput!A16),1,GAMMADIST(B23,$G$2,$H$2,TRUE))) -> -6.246099715 | G23: =IF(ISBLANK(DataInput!A16),0,GAMMADIST(B23-$I$2,$G$2,$H$2,TRUE)) -> 0.001829695925 | H23: 0.9826547886 | K23: =LN(IF(ISBLANK(DataInput!A16),1,NORMDIST(C23,$C$2,$C$3,FALSE))) -> -1.89936644 | L23: =IF(ISBLANK(DataInput!A16),0,NORMDIST(C23,$C$2,$C$3,TRUE)) -> 0.1905754574 | M23: 0.7939090271 | P23: =LN(IF(ISBLANK(DataInput!A16),1,$Q$2/$R$2/((B23/$R$2)^($Q$2+1)))) -> -5.602818267 | Q23: =IF(ISBLANK(DataInput!A16),0,IF(B23<$R$2,0,1-(B23/$R$2)^(-$Q$2))) -> 0.9703227686 | R23: 0.7797473112 | U23: -4.278732486 | V23: 0.1998300404 | W23: 0.7846544441 | Y23: =IF(ISBLANK(DataInput!A16),"",B23-$B$1*0.9999) -> 7.820720533 | AA23: =LN(IF(ISBLANK(DataInput!A16),1,EXPONDIST(B23-$AC$2,$AB$2,FALSE))) -> -5.025374299 | AB23: =IF(ISBLANK(DataInput!A16),0,EXPONDIST(B23-$AC$2,$AB$2,TRUE)) -> 0.05279561646 | AC23: 0.931688868 | AF23: =LN(IF(ISBLANK(DataInput!A16),1,GPDpdf(B23,$AH$2,$AI$2,$B$1))) -> -4.042705224 | AG23: 23 | AH23: =IF(ISBLANK(DataInput!A16),0,GPDcdff(B23,$AH$2,$AI$2,$B$1*0.999)) -> 0.1638316917 | AI23: 0.8206527928
A24: =MAX(0,A23-1/COUNT($B$8:INDIRECT("B"&(DataInput!$C$2+AG22)))) -> 0.9834834835 | B24: =IF(ISBLANK(DataInput!A17),"",DataInput!A17) -> 4.933841228 | C24: =IF(ISBLANK(DataInput!A17),"",LN(B24-0.999*$B$1)) -> 1.546112378 | D24: =DataInput!A17/AVERAGE(DataInput!$A$1:$A$10000) -> 0.03416049776 | F24: =LN(IF(ISBLANK(DataInput!A17),1,GAMMADIST(B24,$G$2,$H$2,TRUE))) -> -7.181246932 | G24: =IF(ISBLANK(DataInput!A17),0,GAMMADIST(B24-$I$2,$G$2,$H$2,TRUE)) -> 0.0006913660624 | H24: 0.9827921174 | K24: =LN(IF(ISBLANK(DataInput!A17),1,NORMDIST(C24,$C$2,$C$3,FALSE))) -> -2.185095696 | L24: =IF(ISBLANK(DataInput!A17),0,NORMDIST(C24,$C$2,$C$3,TRUE)) -> 0.1236541883 | M24: 0.8598292952 | P24: =LN(IF(ISBLANK(DataInput!A17),1,$Q$2/$R$2/((B24/$R$2)^($Q$2+1)))) -> -4.620013057 | Q24: =IF(ISBLANK(DataInput!A17),0,IF(B24<$R$2,0,1-(B24/$R$2)^(-$Q$2))) -> 0.9514695 | R24: 0.8278153117 | U24: -4.018883991 | V24: 0.1507931311 | W24: 0.8326903524 | Y24: =IF(ISBLANK(DataInput!A17),"",B24-$B$1*0.9999) -> 4.69297252 | AA24: =LN(IF(ISBLANK(DataInput!A17),1,EXPONDIST(B24-$AC$2,$AB$2,FALSE))) -> -5.003682492 | AB24: =IF(ISBLANK(DataInput!A17),0,EXPONDIST(B24-$AC$2,$AB$2,TRUE)) -> 0.03202457561 | AC24: 0.9514589079 | AF24: =LN(IF(ISBLANK(DataInput!A17),1,GPDpdf(B24,$AH$2,$AI$2,$B$1))) -> -3.908517504 | AG24: 24 | AH24: =IF(ISBLANK(DataInput!A17),0,GPDcdff(B24,$AH$2,$AI$2,$B$1*0.999)) -> 0.1051307795 | AI24: 0.878352704
A25: =MAX(0,A24-1/COUNT($B$8:INDIRECT("B"&(DataInput!$C$2+AG23)))) -> 0.9824824825 | B25: =IF(ISBLANK(DataInput!A18),"",DataInput!A18) -> 79.10005951 | C25: =IF(ISBLANK(DataInput!A18),"",LN(B25-0.999*$B$1)) -> 4.367666616 | D25: =DataInput!A18/AVERAGE(DataInput!$A$1:$A$10000) -> 0.5476660639 | F25: =LN(IF(ISBLANK(DataInput!A18),1,GAMMADIST(B25,$G$2,$H$2,TRUE))) -> -2.146534167 | G25: =IF(ISBLANK(DataInput!A18),0,GAMMADIST(B25-$I$2,$G$2,$H$2,TRUE)) -> 0.1163235458 | H25: 0.8661589367 | K25: =LN(IF(ISBLANK(DataInput!A18),1,NORMDIST(C25,$C$2,$C$3,FALSE))) -> -1.594417438 | L25: =IF(ISBLANK(DataInput!A18),0,NORMDIST(C25,$C$2,$C$3,TRUE)) -> 0.6540743393 | M25: 0.3284081432 | P25: =LN(IF(ISBLANK(DataInput!A18),1,$Q$2/$R$2/((B25/$R$2)^($Q$2+1)))) -> -10.17383539 | Q25: =IF(ISBLANK(DataInput!A18),0,IF(B25<$R$2,0,1-(B25/$R$2)^(-$Q$2))) -> 0.9969869106 | R25: 0.3429125714 | U25: -5.870319662 | V25: 0.5966196506 | W25: 0.3858628319 | Y25: =IF(ISBLANK(DataInput!A18),"",B25-$B$1*0.9999) -> 78.8591908 | AA25: =LN(IF(ISBLANK(DataInput!A18),1,EXPONDIST(B25-$AC$2,$AB$2,FALSE))) -> -5.518045951 | AB25: =IF(ISBLANK(DataInput!A18),0,EXPONDIST(B25-$AC$2,$AB$2,TRUE)) -> 0.4212658374 | AC25: 0.561216645 | AF25: =LN(IF(ISBLANK(DataInput!A18),1,GPDpdf(B25,$AH$2,$AI$2,$B$1))) -> -5.861716366 | AG25: 25 | AH25: =IF(ISBLANK(DataInput!A18),0,GPDcdff(B25,$AH$2,$AI$2,$B$1*0.999)) -> 0.6666795771 | AI25: 0.3158029054
A26: =MAX(0,A25-1/COUNT($B$8:INDIRECT("B"&(DataInput!$C$2+AG24)))) -> 0.9814814815 | B26: =IF(ISBLANK(DataInput!A19),"",DataInput!A19) -> 57.25637817 | C26: =IF(ISBLANK(DataInput!A19),"",LN(B26-0.999*$B$1)) -> 4.043327129 | D26: =DataInput!A19/AVERAGE(DataInput!$A$1:$A$10000) -> 0.3964266963 | F26: =LN(IF(ISBLANK(DataInput!A19),1,GAMMADIST(B26,$G$2,$H$2,TRUE))) -> -2.675786781 | G26: =IF(ISBLANK(DataInput!A19),0,GAMMADIST(B26-$I$2,$G$2,$H$2,TRUE)) -> 0.06836668622 | H26: 0.9131147953 | K26: =LN(IF(ISBLANK(DataInput!A19),1,NORMDIST(C26,$C$2,$C$3,FALSE))) -> -1.539590768 | L26: =IF(ISBLANK(DataInput!A19),0,NORMDIST(C26,$C$2,$C$3,TRUE)) -> 0.5862060374 | M26: 0.3952754441 | P26: =LN(IF(ISBLANK(DataInput!A19),1,$Q$2/$R$2/((B26/$R$2)^($Q$2+1)))) -> -9.526946857 | Q26: =IF(ISBLANK(DataInput!A19),0,IF(B26<$R$2,0,1-(B26/$R$2)^(-$Q$2))) -> 0.9958351516 | R26: 0.4096291143 | U26: -5.580665471 | V26: 0.5254894674 | W26: 0.455992014 | Y26: =IF(ISBLANK(DataInput!A19),"",B26-$B$1*0.9999) -> 57.01550947 | AA26: =LN(IF(ISBLANK(DataInput!A19),1,EXPONDIST(B26-$AC$2,$AB$2,FALSE))) -> -5.366553914 | AB26: =IF(ISBLANK(DataInput!A19),0,EXPONDIST(B26-$AC$2,$AB$2,TRUE)) -> 0.3266028482 | AC26: 0.6548786333 | AF26: =LN(IF(ISBLANK(DataInput!A19),1,GPDpdf(B26,$AH$2,$AI$2,$B$1))) -> -5.454411504 | AG26: 26 | AH26: =IF(ISBLANK(DataInput!A19),0,GPDcdff(B26,$AH$2,$AI$2,$B$1*0.999)) -> 0.5904555933 | AI26: 0.3910258882
A27: =MAX(0,A26-1/COUNT($B$8:INDIRECT("B"&(DataInput!$C$2+AG25)))) -> 0.9804804805 | B27: =IF(ISBLANK(DataInput!A20),"",DataInput!A20) -> 24.34151077 | C27: =IF(ISBLANK(DataInput!A20),"",LN(B27-0.999*$B$1)) -> 3.182247478 | D27: =DataInput!A20/AVERAGE(DataInput!$A$1:$A$10000) -> 0.1685336203 | F27: =LN(IF(ISBLANK(DataInput!A20),1,GAMMADIST(B27,$G$2,$H$2,TRUE))) -> -4.183009046 | G27: =IF(ISBLANK(DataInput!A20),0,GAMMADIST(B27-$I$2,$G$2,$H$2,TRUE)) -> 0.01497853821 | H27: 0.9655019423 | K27: =LN(IF(ISBLANK(DataInput!A20),1,NORMDIST(C27,$C$2,$C$3,FALSE))) -> -1.548698852 | L27: =IF(ISBLANK(DataInput!A20),0,NORMDIST(C27,$C$2,$C$3,TRUE)) -> 0.3988884851 | M27: 0.5815919953 | P27: =LN(IF(ISBLANK(DataInput!A20),1,$Q$2/$R$2/((B27/$R$2)^($Q$2+1)))) -> -7.8148075 | Q27: =IF(ISBLANK(DataInput!A20),0,IF(B27<$R$2,0,1-(B27/$R$2)^(-$Q$2))) -> 0.9901894009 | R27: 0.5913009158 | U27: -4.939119625 | V27: 0.3570959051 | W27: 0.6233845754 | Y27: =IF(ISBLANK(DataInput!A20),"",B27-$B$1*0.9999) -> 24.10064206 | AA27: =LN(IF(ISBLANK(DataInput!A20),1,EXPONDIST(B27-$AC$2,$AB$2,FALSE))) -> -5.138280107 | AB27: =IF(ISBLANK(DataInput!A20),0,EXPONDIST(B27-$AC$2,$AB$2,TRUE)) -> 0.1539240891 | AC27: 0.8265563913 | AF27: =LN(IF(ISBLANK(DataInput!A20),1,GPDpdf(B27,$AH$2,$AI$2,$B$1))) -> -4.625763284 | AG27: 27 | AH27: =IF(ISBLANK(DataInput!A20),0,GPDcdff(B27,$AH$2,$AI$2,$B$1*0.999)) -> 0.3773246411 | AI27: 0.6031558394
A28: =MAX(0,A27-1/COUNT($B$8:INDIRECT("B"&(DataInput!$C$2+AG26)))) -> 0.9794794795 | B28: =IF(ISBLANK(DataInput!A21),"",DataInput!A21) -> 561.8007202 | C28: =IF(ISBLANK(DataInput!A21),"",LN(B28-0.999*$B$1)) -> 6.330718747 | D28: =DataInput!A21/AVERAGE(DataInput!$A$1:$A$10000) -> 3.88974662 | F28: =LN(IF(ISBLANK(DataInput!A21),1,GAMMADIST(B28,$G$2,$H$2,TRUE))) -> -0.09632823623 | G28: =IF(ISBLANK(DataInput!A21),0,GAMMADIST(B28-$I$2,$G$2,$H$2,TRUE)) -> 0.9080418209 | H28: 0.07143765861 | K28: =LN(IF(ISBLANK(DataInput!A21),1,NORMDIST(C28,$C$2,$C$3,FALSE))) -> -2.606633686 | L28: =IF(ISBLANK(DataInput!A21),0,NORMDIST(C28,$C$2,$C$3,TRUE)) -> 0.9301618188 | M28: 0.04931766068 | P28: =LN(IF(ISBLANK(DataInput!A21),1,$Q$2/$R$2/((B28/$R$2)^($Q$2+1)))) -> -14.09797447 | Q28: =IF(ISBLANK(DataInput!A21),0,IF(B28<$R$2,0,1-(B28/$R$2)^(-$Q$2))) -> 0.9995771508 | R28: 0.06941533197 | U28: -8.72548321 | V28: 0.9498563338 | W28: 0.02962314564 | Y28: =IF(ISBLANK(DataInput!A21),"",B28-$B$1*0.9999) -> 561.5598515 | AA28: =LN(IF(ISBLANK(DataInput!A21),1,EXPONDIST(B28-$AC$2,$AB$2,FALSE))) -> -8.865709984 | AB28: =IF(ISBLANK(DataInput!A21),0,EXPONDIST(B28-$AC$2,$AB$2,TRUE)) -> 0.9796479996 | AC28: 0.0001685201159 | AF28: =LN(IF(ISBLANK(DataInput!A21),1,GPDpdf(B28,$AH$2,$AI$2,$B$1))) -> -9.129416678 | AG28: 28 | AH28: =IF(ISBLANK(DataInput!A21),0,GPDcdff(B28,$AH$2,$AI$2,$B$1*0.999)) -> 0.9361273771 | AI28: 0.04335210236
A29: =MAX(0,A28-1/COUNT($B$8:INDIRECT("B"&(DataInput!$C$2+AG27)))) -> 0.9784784785 | B29: =IF(ISBLANK(DataInput!A22),"",DataInput!A22) -> 15.70888996 | C29: =IF(ISBLANK(DataInput!A22),"",LN(B29-0.999*$B$1)) -> 2.738788764 | D29: =DataInput!A22/AVERAGE(DataInput!$A$1:$A$10000) -> 0.1087638364 | F29: =LN(IF(ISBLANK(DataInput!A22),1,GAMMADIST(B29,$G$2,$H$2,TRUE))) -> -4.990863619 | G29: =IF(ISBLANK(DataInput!A22),0,GAMMADIST(B29-$I$2,$G$2,$H$2,TRUE)) -> 0.006607003514 | H29: 0.971871475 | K29: =LN(IF(ISBLANK(DataInput!A22),1,NORMDIST(C29,$C$2,$C$3,FALSE))) -> -1.641047068 | L29: =IF(ISBLANK(DataInput!A22),0,NORMDIST(C29,$C$2,$C$3,TRUE)) -> 0.3084151528 | M29: 0.6700633257 | P29: =LN(IF(ISBLANK(DataInput!A22),1,$Q$2/$R$2/((B29/$R$2)^($Q$2+1)))) -> -6.93816383 | Q29: =IF(ISBLANK(DataInput!A22),0,IF(B29<$R$2,0,1-(B29/$R$2)^(-$Q$2))) -> 0.9847869951 | R29: 0.6763718423 | U29: -4.66078003 | V29: 0.2863814207 | W29: 0.6920970578 | Y29: =IF(ISBLANK(DataInput!A22),"",B29-$B$1*0.9999) -> 15.46802125 | AA29: =LN(IF(ISBLANK(DataInput!A22),1,EXPONDIST(B29-$AC$2,$AB$2,FALSE))) -> -5.078410468 | AB29: =IF(ISBLANK(DataInput!A22),0,EXPONDIST(B29-$AC$2,$AB$2,TRUE)) -> 0.1017227848 | AC29: 0.8767556937 | AF29: =LN(IF(ISBLANK(DataInput!A22),1,GPDpdf(B29,$AH$2,$AI$2,$B$1))) -> -4.337570814 | AG29: 29 | AH29: =IF(ISBLANK(DataInput!A22),0,GPDcdff(B29,$AH$2,$AI$2,$B$1*0.999)) -> 0.2796475362 | AI29: 0.6988309423
A30: =MAX(0,A29-1/COUNT($B$8:INDIRECT("B"&(DataInput!$C$2+AG28)))) -> 0.9774774775 | B30: =IF(ISBLANK(DataInput!A23),"",DataInput!A23) -> 34.61592102 | C30: =IF(ISBLANK(DataInput!A23),"",LN(B30-0.999*$B$1)) -> 3.537337385 | D30: =DataInput!A23/AVERAGE(DataInput!$A$1:$A$10000) -> 0.2396706821 | F30: =LN(IF(ISBLANK(DataInput!A23),1,GAMMADIST(B30,$G$2,$H$2,TRUE))) -> -3.548249298 | G30: =IF(ISBLANK(DataInput!A23),0,GAMMADIST(B30-$I$2,$G$2,$H$2,TRUE)) -> 0.02842000747 | H30: 0.94905747 | K30: =LN(IF(ISBLANK(DataInput!A23),1,NORMDIST(C30,$C$2,$C$3,FALSE))) -> -1.517718427 | L30: =IF(ISBLANK(DataInput!A23),0,NORMDIST(C30,$C$2,$C$3,TRUE)) -> 0.4757793873 | M30: 0.5016980902 | P30: =LN(IF(ISBLANK(DataInput!A23),1,$Q$2/$R$2/((B30/$R$2)^($Q$2+1)))) -> -8.519656333 | Q30: =IF(ISBLANK(DataInput!A23),0,IF(B30<$R$2,0,1-(B30/$R$2)^(-$Q$2))) -> 0.9931053547 | R30: 0.5173259674 | U30: -5.184822205 | V30: 0.4219800466 | W30: 0.5554974308 | Y30: =IF(ISBLANK(DataInput!A23),"",B30-$B$1*0.9999) -> 34.37505231 | AA30: =LN(IF(ISBLANK(DataInput!A23),1,EXPONDIST(B30-$AC$2,$AB$2,FALSE))) -> -5.209536014 | AB30: =IF(ISBLANK(DataInput!A23),0,EXPONDIST(B30-$AC$2,$AB$2,TRUE)) -> 0.2121141829 | AC30: 0.7653632946 | AF30: =LN(IF(ISBLANK(DataInput!A23),1,GPDpdf(B30,$AH$2,$AI$2,$B$1))) -> -4.922569565 | AG30: 30 | AH30: =IF(ISBLANK(DataInput!A23),0,GPDcdff(B30,$AH$2,$AI$2,$B$1*0.999)) -> 0.4640962494 | AI30: 0.513381228
A31: =MAX(0,A30-1/COUNT($B$8:INDIRECT("B"&(DataInput!$C$2+AG29)))) -> 0.9764764765 | B31: =IF(ISBLANK(DataInput!A24),"",DataInput!A24) -> 13.78590012 | C31: =IF(ISBLANK(DataInput!A24),"",LN(B31-0.999*$B$1)) -> 2.6060358 | D31: =DataInput!A24/AVERAGE(DataInput!$A$1:$A$10000) -> 0.09544960776 | F31: =LN(IF(ISBLANK(DataInput!A24),1,GAMMADIST(B31,$G$2,$H$2,TRUE))) -> -5.234643349 | G31: =IF(ISBLANK(DataInput!A24),0,GAMMADIST(B31-$I$2,$G$2,$H$2,TRUE)) -> 0.005155947968 | H31: 0.9713205285 | K31: =LN(IF(ISBLANK(DataInput!A24),1,NORMDIST(C31,$C$2,$C$3,FALSE))) -> -1.680282843 | L31: =IF(ISBLANK(DataInput!A24),0,NORMDIST(C31,$C$2,$C$3,TRUE)) -> 0.2831775707 | M31: 0.6932989058 | P31: =LN(IF(ISBLANK(DataInput!A24),1,$Q$2/$R$2/((B31/$R$2)^($Q$2+1)))) -> -6.676784988 | Q31: =IF(ISBLANK(DataInput!A24),0,IF(B31<$R$2,0,1-(B31/$R$2)^(-$Q$2))) -> 0.9826611606 | R31: 0.6994835899 | U31: -4.582545739 | V31: 0.2674742927 | W31: 0.7090021837 | Y31: =IF(ISBLANK(DataInput!A24),"",B31-$B$1*0.9999) -> 13.54503141 | AA31: =LN(IF(ISBLANK(DataInput!A24),1,EXPONDIST(B31-$AC$2,$AB$2,FALSE))) -> -5.065073996 | AB31: =IF(ISBLANK(DataInput!A24),0,EXPONDIST(B31-$AC$2,$AB$2,TRUE)) -> 0.08966269495 | AC31: 0.8868137815 | AF31: =LN(IF(ISBLANK(DataInput!A24),1,GPDpdf(B31,$AH$2,$AI$2,$B$1))) -> -4.267370829 | AG31: 31 | AH31: =IF(ISBLANK(DataInput!A24),0,GPDcdff(B31,$AH$2,$AI$2,$B$1*0.999)) -> 0.2536198935 | AI31: 0.722856583
A32: =MAX(0,A31-1/COUNT($B$8:INDIRECT("B"&(DataInput!$C$2+AG30)))) -> 0.9754754755 | B32: =IF(ISBLANK(DataInput!A25),"",DataInput!A25) -> 8.689785957 | C32: =IF(ISBLANK(DataInput!A25),"",LN(B32-0.999*$B$1)) -> 2.134063957 | D32: =DataInput!A25/AVERAGE(DataInput!$A$1:$A$10000) -> 0.0601655789 | F32: =LN(IF(ISBLANK(DataInput!A25),1,GAMMADIST(B32,$G$2,$H$2,TRUE))) -> -6.103863368 | G32: =IF(ISBLANK(DataInput!A25),0,GAMMADIST(B32-$I$2,$G$2,$H$2,TRUE)) -> 0.00211844453 | H32: 0.9733570309 | K32: =LN(IF(ISBLANK(DataInput!A25),1,NORMDIST(C32,$C$2,$C$3,FALSE))) -> -1.863023091 | L32: =IF(ISBLANK(DataInput!A25),0,NORMDIST(C32,$C$2,$C$3,TRUE)) -> 0.2023528462 | M32: 0.7731226293 | P32: =LN(IF(ISBLANK(DataInput!A25),1,$Q$2/$R$2/((B32/$R$2)^($Q$2+1)))) -> -5.753018693 | Q32: =IF(ISBLANK(DataInput!A25),0,IF(B32<$R$2,0,1-(B32/$R$2)^(-$Q$2))) -> 0.9724716247 | R32: 0.7701187786 | U32: -4.319760962 | V32: 0.2083588905 | W32: 0.767116585 | Y32: =IF(ISBLANK(DataInput!A25),"",B32-$B$1*0.9999) -> 8.448917249 | AA32: =LN(IF(ISBLANK(DataInput!A25),1,EXPONDIST(B32-$AC$2,$AB$2,FALSE))) -> -5.029731019 | AB32: =IF(ISBLANK(DataInput!A25),0,EXPONDIST(B32-$AC$2,$AB$2,TRUE)) -> 0.05691334419 | AC32: 0.9185621313 | AF32: =LN(IF(ISBLANK(DataInput!A25),1,GPDpdf(B32,$AH$2,$AI$2,$B$1))) -> -4.068615161 | AG32: 32 | AH32: =IF(ISBLANK(DataInput!A25),0,GPDcdff(B32,$AH$2,$AI$2,$B$1*0.999)) -> 0.1747144915 | AI32: 0.800760984
A33: =MAX(0,A32-1/COUNT($B$8:INDIRECT("B"&(DataInput!$C$2+AG31)))) -> 0.9744744745 | B33: =IF(ISBLANK(DataInput!A26),"",DataInput!A26) -> 1.539144993 | C33: =IF(ISBLANK(DataInput!A26),"",LN(B33-0.999*$B$1)) -> 0.261204429 | D33: =DataInput!A26/AVERAGE(DataInput!$A$1:$A$10000) -> 0.01065659729 | F33: =LN(IF(ISBLANK(DataInput!A26),1,GAMMADIST(B33,$G$2,$H$2,TRUE))) -> -9.418203906 | G33: =IF(ISBLANK(DataInput!A26),0,GAMMADIST(B33-$I$2,$G$2,$H$2,TRUE)) -> 5.853637157e-05 | H33: 0.9744159381 | K33: =LN(IF(ISBLANK(DataInput!A26),1,NORMDIST(C33,$C$2,$C$3,FALSE))) -> -3.253585725 | L33: =IF(ISBLANK(DataInput!A26),0,NORMDIST(C33,$C$2,$C$3,TRUE)) -> 0.0311433584 | M33: 0.9433311161 | P33: =LN(IF(ISBLANK(DataInput!A26),1,$Q$2/$R$2/((B33/$R$2)^($Q$2+1)))) -> -2.28828732 | Q33: =IF(ISBLANK(DataInput!A26),0,IF(B33<$R$2,0,1-(B33/$R$2)^(-$Q$2))) -> 0.8441292049 | R33: 0.8129858465 | U33: -3.426131919 | V33: 0.0721291255 | W33: 0.902345349 | Y33: =IF(ISBLANK(DataInput!A26),"",B33-$B$1*0.9999) -> 1.298276284 | AA33: =LN(IF(ISBLANK(DataInput!A26),1,EXPONDIST(B33-$AC$2,$AB$2,FALSE))) -> -4.980139325 | AB33: =IF(ISBLANK(DataInput!A26),0,EXPONDIST(B33-$AC$2,$AB$2,TRUE)) -> 0.008964985309 | AC33: 0.9655094892 | AF33: =LN(IF(ISBLANK(DataInput!A26),1,GPDpdf(B33,$AH$2,$AI$2,$B$1))) -> -3.752038043 | AG33: 33 | AH33: =IF(ISBLANK(DataInput!A26),0,GPDcdff(B33,$AH$2,$AI$2,$B$1*0.999)) -> 0.03145367156 | AI33: 0.9430208029
A34: =MAX(0,A33-1/COUNT($B$8:INDIRECT("B"&(DataInput!$C$2+AG32)))) -> 0.9734734735 | B34: =IF(ISBLANK(DataInput!A27),"",DataInput!A27) -> 20.91443062 | C34: =IF(ISBLANK(DataInput!A27),"",LN(B34-0.999*$B$1)) -> 3.028866168 | D34: =DataInput!A27/AVERAGE(DataInput!$A$1:$A$10000) -> 0.1448055029 | F34: =LN(IF(ISBLANK(DataInput!A27),1,GAMMADIST(B34,$G$2,$H$2,TRUE))) -> -4.460971636 | G34: =IF(ISBLANK(DataInput!A27),0,GAMMADIST(B34-$I$2,$G$2,$H$2,TRUE)) -> 0.01130778874 | H34: 0.9621656847 | K34: =LN(IF(ISBLANK(DataInput!A27),1,NORMDIST(C34,$C$2,$C$3,FALSE))) -> -1.573898158 | L34: =IF(ISBLANK(DataInput!A27),0,NORMDIST(C34,$C$2,$C$3,TRUE)) -> 0.3666793814 | M34: 0.6067940921 | P34: =LN(IF(ISBLANK(DataInput!A27),1,$Q$2/$R$2/((B34/$R$2)^($Q$2+1)))) -> -7.511066693 | Q34: =IF(ISBLANK(DataInput!A27),0,IF(B34<$R$2,0,1-(B34/$R$2)^(-$Q$2))) -> 0.9885789246 | R34: 0.6218995432 | U34: -4.839628355 | V34: 0.3313175242 | W34: 0.6421559492 | Y34: =IF(ISBLANK(DataInput!A27),"",B34-$B$1*0.9999) -> 20.67356191 | AA34: =LN(IF(ISBLANK(DataInput!A27),1,EXPONDIST(B34-$AC$2,$AB$2,FALSE))) -> -5.114512348 | AB34: =IF(ISBLANK(DataInput!A27),0,EXPONDIST(B34-$AC$2,$AB$2,TRUE)) -> 0.1335738793 | AC34: 0.8398995941 | AF34: =LN(IF(ISBLANK(DataInput!A27),1,GPDpdf(B34,$AH$2,$AI$2,$B$1))) -> -4.516216344 | AG34: 34 | AH34: =IF(ISBLANK(DataInput!A27),0,GPDcdff(B34,$AH$2,$AI$2,$B$1*0.999)) -> 0.3418622754 | AI34: 0.6316111981
A35: =MAX(0,A34-1/COUNT($B$8:INDIRECT("B"&(DataInput!$C$2+AG33)))) -> 0.9724724725 | B35: =IF(ISBLANK(DataInput!A28),"",DataInput!A28) -> 5.359046936 | C35: =IF(ISBLANK(DataInput!A28),"",LN(B35-0.999*$B$1)) -> 1.632840919 | D35: =DataInput!A28/AVERAGE(DataInput!$A$1:$A$10000) -> 0.03710449979 | F35: =LN(IF(ISBLANK(DataInput!A28),1,GAMMADIST(B35,$G$2,$H$2,TRUE))) -> -7.023336326 | G35: =IF(ISBLANK(DataInput!A28),0,GAMMADIST(B35-$I$2,$G$2,$H$2,TRUE)) -> 0.0008160133118 | H35: 0.9716564592 | K35: =LN(IF(ISBLANK(DataInput!A28),1,NORMDIST(C35,$C$2,$C$3,FALSE))) -> -2.131000108 | L35: =IF(ISBLANK(DataInput!A28),0,NORMDIST(C35,$C$2,$C$3,TRUE)) -> 0.1336788378 | M35: 0.8387936347 | P35: =LN(IF(ISBLANK(DataInput!A28),1,$Q$2/$R$2/((B35/$R$2)^($Q$2+1)))) -> -4.78548765 | Q35: =IF(ISBLANK(DataInput!A28),0,IF(B35<$R$2,0,1-(B35/$R$2)^(-$Q$2))) -> 0.9553262454 | R35: 0.8216474076 | U35: -4.061757862 | V35: 0.1582718217 | W35: 0.8142006508 | Y35: =IF(ISBLANK(DataInput!A28),"",B35-$B$1*0.9999) -> 5.118178228 | AA35: =LN(IF(ISBLANK(DataInput!A28),1,EXPONDIST(B35-$AC$2,$AB$2,FALSE))) -> -5.006631413 | AB35: =IF(ISBLANK(DataInput!A28),0,EXPONDIST(B35-$AC$2,$AB$2,TRUE)) -> 0.03487485346 | AC35: 0.937597619 | AF35: =LN(IF(ISBLANK(DataInput!A28),1,GPDpdf(B35,$AH$2,$AI$2,$B$1))) -> -3.927291134 | AG35: 35 | AH35: =IF(ISBLANK(DataInput!A28),0,GPDcdff(B35,$AH$2,$AI$2,$B$1*0.999)) -> 0.1135849366 | AI35: 0.8588875359
A36: =MAX(0,A35-1/COUNT($B$8:INDIRECT("B"&(DataInput!$C$2+AG34)))) -> 0.9714714715 | B36: =IF(ISBLANK(DataInput!A29),"",DataInput!A29) -> 4.109364986 | C36: =IF(ISBLANK(DataInput!A29),"",LN(B36-0.999*$B$1)) -> 1.352921915 | D36: =DataInput!A29/AVERAGE(DataInput!$A$1:$A$10000) -> 0.02845206137 | F36: =LN(IF(ISBLANK(DataInput!A29),1,GAMMADIST(B36,$G$2,$H$2,TRUE))) -> -7.531047653 | G36: =IF(ISBLANK(DataInput!A29),0,GAMMADIST(B36-$I$2,$G$2,$H$2,TRUE)) -> 0.000477647752 | H36: 0.9709938237 | K36: =LN(IF(ISBLANK(DataInput!A29),1,NORMDIST(C36,$C$2,$C$3,FALSE))) -> -2.313789288 | L36: =IF(ISBLANK(DataInput!A29),0,NORMDIST(C36,$C$2,$C$3,TRUE)) -> 0.1032474241 | M36: 0.8682240473 | P36: =LN(IF(ISBLANK(DataInput!A29),1,$Q$2/$R$2/((B36/$R$2)^($Q$2+1)))) -> -4.254009231 | Q36: =IF(ISBLANK(DataInput!A29),0,IF(B36<$R$2,0,1-(B36/$R$2)^(-$Q$2))) -> 0.9417148721 | R36: 0.8384674479 | U36: -3.924978798 | V36: 0.135277468 | W36: 0.8361940034 | Y36: =IF(ISBLANK(DataInput!A29),"",B36-$B$1*0.9999) -> 3.868496278 | AA36: =LN(IF(ISBLANK(DataInput!A29),1,EXPONDIST(B36-$AC$2,$AB$2,FALSE))) -> -4.997964519 | AB36: =IF(ISBLANK(DataInput!A29),0,EXPONDIST(B36-$AC$2,$AB$2,TRUE)) -> 0.02647386375 | AC36: 0.9449976077 | AF36: =LN(IF(ISBLANK(DataInput!A29),1,GPDpdf(B36,$AH$2,$AI$2,$B$1))) -> -3.871611224 | AG36: 36 | AH36: =IF(ISBLANK(DataInput!A29),0,GPDcdff(B36,$AH$2,$AI$2,$B$1*0.999)) -> 0.08827533341 | AI36: 0.8831961381
A37: =MAX(0,A36-1/COUNT($B$8:INDIRECT("B"&(DataInput!$C$2+AG35)))) -> 0.9704704705 | B37: =IF(ISBLANK(DataInput!A30),"",DataInput!A30) -> 95.44806671 | C37: =IF(ISBLANK(DataInput!A30),"",LN(B37-0.999*$B$1)) -> 4.556057825 | D37: =DataInput!A30/AVERAGE(DataInput!$A$1:$A$10000) -> 0.6608549643 | F37: =LN(IF(ISBLANK(DataInput!A30),1,GAMMADIST(B37,$G$2,$H$2,TRUE))) -> -1.853936426 | G37: =IF(ISBLANK(DataInput!A30),0,GAMMADIST(B37-$I$2,$G$2,$H$2,TRUE)) -> 0.1560181057 | H37: 0.8144523647 | K37: =LN(IF(ISBLANK(DataInput!A30),1,NORMDIST(C37,$C$2,$C$3,FALSE))) -> -1.640899502 | L37: =IF(ISBLANK(DataInput!A30),0,NORMDIST(C37,$C$2,$C$3,TRUE)) -> 0.6914809928 | M37: 0.2789894776 | P37: =LN(IF(ISBLANK(DataInput!A30),1,$Q$2/$R$2/((B37/$R$2)^($Q$2+1)))) -> -10.54988628 | Q37: =IF(ISBLANK(DataInput!A30),0,IF(B37<$R$2,0,1-(B37/$R$2)^(-$Q$2))) -> 0.9975037647 | R37: 0.3060227719 | U37: -6.054347722 | V37: 0.6386797862 | W37: 0.3317906843 | Y37: =IF(ISBLANK(DataInput!A30),"",B37-$B$1*0.9999) -> 95.207198 | AA37: =LN(IF(ISBLANK(DataInput!A30),1,EXPONDIST(B37-$AC$2,$AB$2,FALSE))) -> -5.631423952 | AB37: =IF(ISBLANK(DataInput!A30),0,EXPONDIST(B37-$AC$2,$AB$2,TRUE)) -> 0.483298551 | AC37: 0.4871719195 | AF37: =LN(IF(ISBLANK(DataInput!A30),1,GPDpdf(B37,$AH$2,$AI$2,$B$1))) -> -6.120529286 | AG37: 37 | AH37: =IF(ISBLANK(DataInput!A30),0,GPDcdff(B37,$AH$2,$AI$2,$B$1*0.999)) -> 0.7075646895 | AI37: 0.2629057809
A38: =MAX(0,A37-1/COUNT($B$8:INDIRECT("B"&(DataInput!$C$2+AG36)))) -> 0.9694694695 | B38: =IF(ISBLANK(DataInput!A31),"",DataInput!A31) -> 165.7416992 | C38: =IF(ISBLANK(DataInput!A31),"",LN(B38-0.999*$B$1)) -> 5.108977523 | D38: =DataInput!A31/AVERAGE(DataInput!$A$1:$A$10000) -> 1.14754786 | F38: =LN(IF(ISBLANK(DataInput!A31),1,GAMMADIST(B38,$G$2,$H$2,TRUE))) -> -1.081639731 | G38: =IF(ISBLANK(DataInput!A31),0,GAMMADIST(B38-$I$2,$G$2,$H$2,TRUE)) -> 0.3384206103 | H38: 0.6310488592 | K38: =LN(IF(ISBLANK(DataInput!A31),1,NORMDIST(C38,$C$2,$C$3,FALSE))) -> -1.839429412 | L38: =IF(ISBLANK(DataInput!A31),0,NORMDIST(C38,$C$2,$C$3,TRUE)) -> 0.789426527 | M38: 0.1800429425 | P38: =LN(IF(ISBLANK(DataInput!A31),1,$Q$2/$R$2/((B38/$R$2)^($Q$2+1)))) -> -11.65450381 | Q38: =IF(ISBLANK(DataInput!A31),0,IF(B38<$R$2,0,1-(B38/$R$2)^(-$Q$2))) -> 0.9985637803 | R38: 0.2091372533 | U38: -6.677787678 | V38: 0.7593713197 | W38: 0.2100981498 | Y38: =IF(ISBLANK(DataInput!A31),"",B38-$B$1*0.9999) -> 165.5008305 | AA38: =LN(IF(ISBLANK(DataInput!A31),1,EXPONDIST(B38-$AC$2,$AB$2,FALSE))) -> -6.118929945 | AB38: =IF(ISBLANK(DataInput!A31),0,EXPONDIST(B38-$AC$2,$AB$2,TRUE)) -> 0.6826646041 | AC38: 0.2868048654 | AF38: =LN(IF(ISBLANK(DataInput!A31),1,GPDpdf(B38,$AH$2,$AI$2,$B$1))) -> -6.962710657 | AG38: 38 | AH38: =IF(ISBLANK(DataInput!A31),0,GPDcdff(B38,$AH$2,$AI$2,$B$1*0.999)) -> 0.808971957 | AI38: 0.1604975125
A39: =MAX(0,A38-1/COUNT($B$8:INDIRECT("B"&(DataInput!$C$2+AG37)))) -> 0.9684684685 | B39: =IF(ISBLANK(DataInput!A32),"",DataInput!A32) -> 1510.833008 | C39: =IF(ISBLANK(DataInput!A32),"",LN(B39-0.999*$B$1)) -> 7.320257142 | D39: =DataInput!A32/AVERAGE(DataInput!$A$1:$A$10000) -> 10.46057325 | F39: =LN(IF(ISBLANK(DataInput!A32),1,GAMMADIST(B39,$G$2,$H$2,TRUE))) -> -0.0002821454162 | G39: =IF(ISBLANK(DataInput!A32),0,GAMMADIST(B39-$I$2,$G$2,$H$2,TRUE)) -> 0.9997174615 | H39: 0.03124899307 | K39: =LN(IF(ISBLANK(DataInput!A32),1,NORMDIST(C39,$C$2,$C$3,FALSE))) -> -3.559578852 | L39: =IF(ISBLANK(DataInput!A32),0,NORMDIST(C39,$C$2,$C$3,TRUE)) -> 0.9783981183 | M39: 0.009929649856 | P39: =LN(IF(ISBLANK(DataInput!A32),1,$Q$2/$R$2/((B39/$R$2)^($Q$2+1)))) -> -16.07816403 | Q39: =IF(ISBLANK(DataInput!A32),0,IF(B39<$R$2,0,1-(B39/$R$2)^(-$Q$2))) -> 0.9998430236 | R39: 0.02144490529 | U39: -11.58133854 | V39: 0.9957485166 | W39: 0.02728004817 | Y39: =IF(ISBLANK(DataInput!A32),"",B39-$B$1*0.9999) -> 1510.592139 | AA39: =LN(IF(ISBLANK(DataInput!A32),1,EXPONDIST(B39-$AC$2,$AB$2,FALSE))) -> -15.44751422 | AB39: =IF(ISBLANK(DataInput!A32),0,EXPONDIST(B39-$AC$2,$AB$2,TRUE)) -> 0.9999718054 | AC39: 0.03150333694 | AF39: =LN(IF(ISBLANK(DataInput!A32),1,GPDpdf(B39,$AH$2,$AI$2,$B$1))) -> -11.04281049 | AG39: 39 | AH39: =IF(ISBLANK(DataInput!A32),0,GPDcdff(B39,$AH$2,$AI$2,$B$1*0.999)) -> 0.9757251547 | AI39: 0.007256686211
A40: =MAX(0,A39-1/COUNT($B$8:INDIRECT("B"&(DataInput!$C$2+AG38)))) -> 0.9674674675 | B40: =IF(ISBLANK(DataInput!A33),"",DataInput!A33) -> 38.97639084 | C40: =IF(ISBLANK(DataInput!A33),"",LN(B40-0.999*$B$1)) -> 3.656762661 | D40: =DataInput!A33/AVERAGE(DataInput!$A$1:$A$10000) -> 0.2698613211 | F40: =LN(IF(ISBLANK(DataInput!A33),1,GAMMADIST(B40,$G$2,$H$2,TRUE))) -> -3.338325915 | G40: =IF(ISBLANK(DataInput!A33),0,GAMMADIST(B40-$I$2,$G$2,$H$2,TRUE)) -> 0.0351114614 | H40: 0.9323560061 | K40: =LN(IF(ISBLANK(DataInput!A33),1,NORMDIST(C40,$C$2,$C$3,FALSE))) -> -1.51588565 | L40: =IF(ISBLANK(DataInput!A33),0,NORMDIST(C40,$C$2,$C$3,TRUE)) -> 0.501992222 | M40: 0.4654752455 | P40: =LN(IF(ISBLANK(DataInput!A33),1,$Q$2/$R$2/((B40/$R$2)^($Q$2+1)))) -> -8.757139102 | Q40: =IF(ISBLANK(DataInput!A33),0,IF(B40<$R$2,0,1-(B40/$R$2)^(-$Q$2))) -> 0.993877903 | R40: 0.4918856811 | U40: -5.272935765 | V40: 0.4453430158 | W40: 0.5221244516 | Y40: =IF(ISBLANK(DataInput!A33),"",B40-$B$1*0.9999) -> 38.73552213 | AA40: =LN(IF(ISBLANK(DataInput!A33),1,EXPONDIST(B40-$AC$2,$AB$2,FALSE))) -> -5.239777091 | AB40: =IF(ISBLANK(DataInput!A33),0,EXPONDIST(B40-$AC$2,$AB$2,TRUE)) -> 0.2355840334 | AC40: 0.7318834341 | AF40: =LN(IF(ISBLANK(DataInput!A33),1,GPDpdf(B40,$AH$2,$AI$2,$B$1))) -> -5.03646122 | AG40: 40 | AH40: =IF(ISBLANK(DataInput!A33),0,GPDcdff(B40,$AH$2,$AI$2,$B$1*0.999)) -> 0.4940849143 | AI40: 0.4733825531
A41: =MAX(0,A40-1/COUNT($B$8:INDIRECT("B"&(DataInput!$C$2+AG39)))) -> 0.9664664665 | B41: =IF(ISBLANK(DataInput!A34),"",DataInput!A34) -> 12.02661991 | C41: =IF(ISBLANK(DataInput!A34),"",LN(B41-0.999*$B$1)) -> 2.466909672 | D41: =DataInput!A34/AVERAGE(DataInput!$A$1:$A$10000) -> 0.08326885757 | F41: =LN(IF(ISBLANK(DataInput!A34),1,GAMMADIST(B41,$G$2,$H$2,TRUE))) -> -5.490647897 | G41: =IF(ISBLANK(DataInput!A34),0,GAMMADIST(B41-$I$2,$G$2,$H$2,TRUE)) -> 0.003971388463 | H41: 0.962495078 | K41: =LN(IF(ISBLANK(DataInput!A34),1,NORMDIST(C41,$C$2,$C$3,FALSE))) -> -1.727133677 | L41: =IF(ISBLANK(DataInput!A34),0,NORMDIST(C41,$C$2,$C$3,TRUE)) -> 0.257840896 | M41: 0.7086255705 | P41: =LN(IF(ISBLANK(DataInput!A34),1,$Q$2/$R$2/((B41/$R$2)^($Q$2+1)))) -> -6.403509492 | Q41: =IF(ISBLANK(DataInput!A34),0,IF(B41<$R$2,0,1-(B41/$R$2)^(-$Q$2))) -> 0.9801202682 | R41: 0.7222793722 | U41: -4.502727631 | V41: 0.2487552512 | W41: 0.7177112153 | Y41: =IF(ISBLANK(DataInput!A34),"",B41-$B$1*0.9999) -> 11.7857512 | AA41: =LN(IF(ISBLANK(DataInput!A34),1,EXPONDIST(B41-$AC$2,$AB$2,FALSE))) -> -5.052872896 | AB41: =IF(ISBLANK(DataInput!A34),0,EXPONDIST(B41-$AC$2,$AB$2,TRUE)) -> 0.07848754245 | AC41: 0.887978924 | AF41: =LN(IF(ISBLANK(DataInput!A34),1,GPDpdf(B41,$AH$2,$AI$2,$B$1))) -> -4.200940715 | AG41: 41 | AH41: =IF(ISBLANK(DataInput!A34),0,GPDcdff(B41,$AH$2,$AI$2,$B$1*0.999)) -> 0.2281245143 | AI41: 0.7383419522
A42: =MAX(0,A41-1/COUNT($B$8:INDIRECT("B"&(DataInput!$C$2+AG40)))) -> 0.9654654655 | B42: =IF(ISBLANK(DataInput!A35),"",DataInput!A35) -> 51.66741943 | C42: =IF(ISBLANK(DataInput!A35),"",LN(B42-0.999*$B$1)) -> 3.940158806 | D42: =DataInput!A35/AVERAGE(DataInput!$A$1:$A$10000) -> 0.3577303533 | F42: =LN(IF(ISBLANK(DataInput!A35),1,GAMMADIST(B42,$G$2,$H$2,TRUE))) -> -2.849698615 | G42: =IF(ISBLANK(DataInput!A35),0,GAMMADIST(B42-$I$2,$G$2,$H$2,TRUE)) -> 0.05740289052 | H42: 0.9080625749 | K42: =LN(IF(ISBLANK(DataInput!A35),1,NORMDIST(C42,$C$2,$C$3,FALSE))) -> -1.528834063 | L42: =IF(ISBLANK(DataInput!A35),0,NORMDIST(C42,$C$2,$C$3,TRUE)) -> 0.5639542337 | M42: 0.4015112317 | P42: =LN(IF(ISBLANK(DataInput!A35),1,$Q$2/$R$2/((B42/$R$2)^($Q$2+1)))) -> -9.321352138 | Q42: =IF(ISBLANK(DataInput!A35),0,IF(B42<$R$2,0,1-(B42/$R$2)^(-$Q$2))) -> 0.9953838411 | R42: 0.4314296074 | U42: -5.494888451 | V42: 0.5034997023 | W42: 0.4619657632 | Y42: =IF(ISBLANK(DataInput!A35),"",B42-$B$1*0.9999) -> 51.42655073 | AA42: =LN(IF(ISBLANK(DataInput!A35),1,EXPONDIST(B42-$AC$2,$AB$2,FALSE))) -> -5.327792923 | AB42: =IF(ISBLANK(DataInput!A35),0,EXPONDIST(B42-$AC$2,$AB$2,TRUE)) -> 0.2999888465 | AC42: 0.665476619 | AF42: =LN(IF(ISBLANK(DataInput!A35),1,GPDpdf(B42,$AH$2,$AI$2,$B$1))) -> -5.335538697 | AG42: 42 | AH42: =IF(ISBLANK(DataInput!A35),0,GPDcdff(B42,$AH$2,$AI$2,$B$1*0.999)) -> 0.5650854082 | AI42: 0.4003800572
A43: =MAX(0,A42-1/COUNT($B$8:INDIRECT("B"&(DataInput!$C$2+AG41)))) -> 0.9644644645 | B43: =IF(ISBLANK(DataInput!A36),"",DataInput!A36) -> 2.423371077 | C43: =IF(ISBLANK(DataInput!A36),"",LN(B43-0.999*$B$1)) -> 0.780571426 | D43: =DataInput!A36/AVERAGE(DataInput!$A$1:$A$10000) -> 0.01677872441 | F43: =LN(IF(ISBLANK(DataInput!A36),1,GAMMADIST(B43,$G$2,$H$2,TRUE))) -> -8.544512563 | G43: =IF(ISBLANK(DataInput!A36),0,GAMMADIST(B43-$I$2,$G$2,$H$2,TRUE)) -> 0.0001591526543 | H43: 0.9643053118 | K43: =LN(IF(ISBLANK(DataInput!A36),1,NORMDIST(C43,$C$2,$C$3,FALSE))) -> -2.761450936 | L43: =IF(ISBLANK(DataInput!A36),0,NORMDIST(C43,$C$2,$C$3,TRUE)) -> 0.05724382047 | M43: 0.907220644 | P43: =LN(IF(ISBLANK(DataInput!A36),1,$Q$2/$R$2/((B43/$R$2)^($Q$2+1)))) -> -3.196909956 | Q43: =IF(ISBLANK(DataInput!A36),0,IF(B43<$R$2,0,1-(B43/$R$2)^(-$Q$2))) -> 0.9010774416 | R43: 0.8438336211 | U43: -3.657709031 | V43: 0.09755469304 | W43: 0.8669097714 | Y43: =IF(ISBLANK(DataInput!A36),"",B43-$B$1*0.9999) -> 2.182502368 | AA43: =LN(IF(ISBLANK(DataInput!A36),1,EXPONDIST(B43-$AC$2,$AB$2,FALSE))) -> -4.98627168 | AB43: =IF(ISBLANK(DataInput!A36),0,EXPONDIST(B43-$AC$2,$AB$2,TRUE)) -> 0.01502376764 | AC43: 0.9494406968 | AF43: =LN(IF(ISBLANK(DataInput!A36),1,GPDpdf(B43,$AH$2,$AI$2,$B$1))) -> -3.793976897 | AG43: 43 | AH43: =IF(ISBLANK(DataInput!A36),0,GPDcdff(B43,$AH$2,$AI$2,$B$1*0.999)) -> 0.05177548186 | AI43: 0.9126889826
A44: =MAX(0,A43-1/COUNT($B$8:INDIRECT("B"&(DataInput!$C$2+AG42)))) -> 0.9634634635 | B44: =IF(ISBLANK(DataInput!A37),"",DataInput!A37) -> 246.8934021 | C44: =IF(ISBLANK(DataInput!A37),"",LN(B44-0.999*$B$1)) -> 5.507981478 | D44: =DataInput!A37/AVERAGE(DataInput!$A$1:$A$10000) -> 1.709418913 | F44: =LN(IF(ISBLANK(DataInput!A37),1,GAMMADIST(B44,$G$2,$H$2,TRUE))) -> -0.6324983302 | G44: =IF(ISBLANK(DataInput!A37),0,GAMMADIST(B44-$I$2,$G$2,$H$2,TRUE)) -> 0.5307516407 | H44: 0.4327118228 | K44: =LN(IF(ISBLANK(DataInput!A37),1,NORMDIST(C44,$C$2,$C$3,FALSE))) -> -2.040246477 | L44: =IF(ISBLANK(DataInput!A37),0,NORMDIST(C44,$C$2,$C$3,TRUE)) -> 0.8471020326 | M44: 0.1163614308 | P44: =LN(IF(ISBLANK(DataInput!A37),1,$Q$2/$R$2/((B44/$R$2)^($Q$2+1)))) -> -12.4522212 | Q44: =IF(ISBLANK(DataInput!A37),0,IF(B44<$R$2,0,1-(B44/$R$2)^(-$Q$2))) -> 0.9990364943 | R44: 0.1519344616 | U44: -7.225187512 | V44: 0.8372201416 | W44: 0.1262433219 | Y44: =IF(ISBLANK(DataInput!A37),"",B44-$B$1*0.9999) -> 246.6525334 | AA44: =LN(IF(ISBLANK(DataInput!A37),1,EXPONDIST(B44-$AC$2,$AB$2,FALSE))) -> -6.681739693 | AB44: =IF(ISBLANK(DataInput!A37),0,EXPONDIST(B44-$AC$2,$AB$2,TRUE)) -> 0.8192437392 | AC44: 0.1442197243 | AF44: =LN(IF(ISBLANK(DataInput!A37),1,GPDpdf(B44,$AH$2,$AI$2,$B$1))) -> -7.633398811 | AG44: 44 | AH44: =IF(ISBLANK(DataInput!A37),0,GPDcdff(B44,$AH$2,$AI$2,$B$1*0.999)) -> 0.8639112644 | AI44: 0.09955219911
A45: =MAX(0,A44-1/COUNT($B$8:INDIRECT("B"&(DataInput!$C$2+AG43)))) -> 0.9624624625 | B45: =IF(ISBLANK(DataInput!A38),"",DataInput!A38) -> 86.36309814 | C45: =IF(ISBLANK(DataInput!A38),"",LN(B45-0.999*$B$1)) -> 4.455770077 | D45: =DataInput!A38/AVERAGE(DataInput!$A$1:$A$10000) -> 0.5979532547 | F45: =LN(IF(ISBLANK(DataInput!A38),1,GAMMADIST(B45,$G$2,$H$2,TRUE))) -> -2.008165285 | G45: =IF(ISBLANK(DataInput!A38),0,GAMMADIST(B45-$I$2,$G$2,$H$2,TRUE)) -> 0.1336514693 | H45: 0.8288109932 | K45: =LN(IF(ISBLANK(DataInput!A38),1,NORMDIST(C45,$C$2,$C$3,FALSE))) -> -1.614816532 | L45: =IF(ISBLANK(DataInput!A38),0,NORMDIST(C45,$C$2,$C$3,TRUE)) -> 0.6717839628 | M45: 0.2906784997 | P45: =LN(IF(ISBLANK(DataInput!A38),1,$Q$2/$R$2/((B45/$R$2)^($Q$2+1)))) -> -10.34967571 | Q45: =IF(ISBLANK(DataInput!A38),0,IF(B45<$R$2,0,1-(B45/$R$2)^(-$Q$2))) -> 0.9972407126 | R45: 0.3254567498 | U45: -5.954815871 | V45: 0.6162658851 | W45: 0.3461965774 | Y45: =IF(ISBLANK(DataInput!A38),"",B45-$B$1*0.9999) -> 86.12222944 | AA45: =LN(IF(ISBLANK(DataInput!A38),1,EXPONDIST(B45-$AC$2,$AB$2,FALSE))) -> -5.568417155 | AB45: =IF(ISBLANK(DataInput!A38),0,EXPONDIST(B45-$AC$2,$AB$2,TRUE)) -> 0.4496953485 | AC45: 0.5127671139 | AF45: =LN(IF(ISBLANK(DataInput!A38),1,GPDpdf(B45,$AH$2,$AI$2,$B$1))) -> -5.98080567 | AG45: 45 | AH45: =IF(ISBLANK(DataInput!A38),0,GPDcdff(B45,$AH$2,$AI$2,$B$1*0.999)) -> 0.6861577643 | AI45: 0.2763046981
A46: =MAX(0,A45-1/COUNT($B$8:INDIRECT("B"&(DataInput!$C$2+AG44)))) -> 0.9614614615 | B46: =IF(ISBLANK(DataInput!A39),"",DataInput!A39) -> 26.85707092 | C46: =IF(ISBLANK(DataInput!A39),"",LN(B46-0.999*$B$1)) -> 3.281528282 | D46: =DataInput!A39/AVERAGE(DataInput!$A$1:$A$10000) -> 0.1859506353 | F46: =LN(IF(ISBLANK(DataInput!A39),1,GAMMADIST(B46,$G$2,$H$2,TRUE))) -> -4.004166494 | G46: =IF(ISBLANK(DataInput!A39),0,GAMMADIST(B46-$I$2,$G$2,$H$2,TRUE)) -> 0.01794419793 | H46: 0.9435172635 | K46: =LN(IF(ISBLANK(DataInput!A39),1,NORMDIST(C46,$C$2,$C$3,FALSE))) -> -1.536188704 | L46: =IF(ISBLANK(DataInput!A39),0,NORMDIST(C46,$C$2,$C$3,TRUE)) -> 0.4201258879 | M46: 0.5413355736 | P46: =LN(IF(ISBLANK(DataInput!A39),1,$Q$2/$R$2/((B46/$R$2)^($Q$2+1)))) -> -8.011663598 | Q46: =IF(ISBLANK(DataInput!A39),0,IF(B46<$R$2,0,1-(B46/$R$2)^(-$Q$2))) -> 0.9911097673 | R46: 0.5709838794 | U46: -5.005543026 | V46: 0.3745171753 | W46: 0.5869442862 | Y46: =IF(ISBLANK(DataInput!A39),"",B46-$B$1*0.9999) -> 26.61620221 | AA46: =LN(IF(ISBLANK(DataInput!A39),1,EXPONDIST(B46-$AC$2,$AB$2,FALSE))) -> -5.15572622 | AB46: =IF(ISBLANK(DataInput!A39),0,EXPONDIST(B46-$AC$2,$AB$2,TRUE)) -> 0.1685568118 | AC46: 0.7929046496 | AF46: =LN(IF(ISBLANK(DataInput!A39),1,GPDpdf(B46,$AH$2,$AI$2,$B$1))) -> -4.702558342 | AG46: 46 | AH46: =IF(ISBLANK(DataInput!A39),0,GPDcdff(B46,$AH$2,$AI$2,$B$1*0.999)) -> 0.4010391102 | AI46: 0.5604223512
A47: =MAX(0,A46-1/COUNT($B$8:INDIRECT("B"&(DataInput!$C$2+AG45)))) -> 0.9604604605 | B47: =IF(ISBLANK(DataInput!A40),"",DataInput!A40) -> 3.060405016 | C47: =IF(ISBLANK(DataInput!A40),"",LN(B47-0.999*$B$1)) -> 1.036649332 | D47: =DataInput!A40/AVERAGE(DataInput!$A$1:$A$10000) -> 0.0211893642 | F47: =LN(IF(ISBLANK(DataInput!A40),1,GAMMADIST(B47,$G$2,$H$2,TRUE))) -> -8.096138977 | G47: =IF(ISBLANK(DataInput!A40),0,GAMMADIST(B47-$I$2,$G$2,$H$2,TRUE)) -> 0.0002603719098 | H47: 0.9602000886 | K47: =LN(IF(ISBLANK(DataInput!A40),1,NORMDIST(C47,$C$2,$C$3,FALSE))) -> -2.548888697 | L47: =IF(ISBLANK(DataInput!A40),0,NORMDIST(C47,$C$2,$C$3,TRUE)) -> 0.07530651759 | M47: 0.8851539429 | P47: =LN(IF(ISBLANK(DataInput!A40),1,$Q$2/$R$2/((B47/$R$2)^($Q$2+1)))) -> -3.664074852 | Q47: =IF(ISBLANK(DataInput!A40),0,IF(B47<$R$2,0,1-(B47/$R$2)^(-$Q$2))) -> 0.9216990217 | R47: 0.8463925041 | U47: -3.775470599 | V47: 0.1130188231 | W47: 0.8474416373 | Y47: =IF(ISBLANK(DataInput!A40),"",B47-$B$1*0.9999) -> 2.819536308 | AA47: =LN(IF(ISBLANK(DataInput!A40),1,EXPONDIST(B47-$AC$2,$AB$2,FALSE))) -> -4.990689689 | AB47: =IF(ISBLANK(DataInput!A40),0,EXPONDIST(B47-$AC$2,$AB$2,TRUE)) -> 0.01936580234 | AC47: 0.9410946581 | AF47: =LN(IF(ISBLANK(DataInput!A40),1,GPDpdf(B47,$AH$2,$AI$2,$B$1))) -> -3.823661462 | AG47: 47 | AH47: =IF(ISBLANK(DataInput!A40),0,GPDcdff(B47,$AH$2,$AI$2,$B$1*0.999)) -> 0.06590114102 | AI47: 0.8945593194
A48: =MAX(0,A47-1/COUNT($B$8:INDIRECT("B"&(DataInput!$C$2+AG46)))) -> 0.9594594595 | B48: =IF(ISBLANK(DataInput!A41),"",DataInput!A41) -> 7.41076088 | C48: =IF(ISBLANK(DataInput!A41),"",LN(B48-0.999*$B$1)) -> 1.969920853 | D48: =DataInput!A41/AVERAGE(DataInput!$A$1:$A$10000) -> 0.05130997709 | F48: =LN(IF(ISBLANK(DataInput!A41),1,GAMMADIST(B48,$G$2,$H$2,TRUE))) -> -6.405905178 | G48: =IF(ISBLANK(DataInput!A41),0,GAMMADIST(B48-$I$2,$G$2,$H$2,TRUE)) -> 0.001551329782 | H48: 0.9579081297 | K48: =LN(IF(ISBLANK(DataInput!A41),1,NORMDIST(C48,$C$2,$C$3,FALSE))) -> -1.942397905 | L48: =IF(ISBLANK(DataInput!A41),0,NORMDIST(C48,$C$2,$C$3,TRUE)) -> 0.1778455464 | M48: 0.7816139131 | P48: =LN(IF(ISBLANK(DataInput!A41),1,$Q$2/$R$2/((B48/$R$2)^($Q$2+1)))) -> -5.434322582 | Q48: =IF(ISBLANK(DataInput!A41),0,IF(B48<$R$2,0,1-(B48/$R$2)^(-$Q$2))) -> 0.9677119169 | R48: 0.7898663705 | U48: -4.233179097 | V48: 0.1906033791 | W48: 0.7688560803 | Y48: =IF(ISBLANK(DataInput!A41),"",B48-$B$1*0.9999) -> 7.169892171 | AA48: =LN(IF(ISBLANK(DataInput!A41),1,EXPONDIST(B48-$AC$2,$AB$2,FALSE))) -> -5.020860623 | AB48: =IF(ISBLANK(DataInput!A41),0,EXPONDIST(B48-$AC$2,$AB$2,TRUE)) -> 0.04851057879 | AC48: 0.9109488807 | AF48: =LN(IF(ISBLANK(DataInput!A41),1,GPDpdf(B48,$AH$2,$AI$2,$B$1))) -> -4.015507149 | AG48: 48 | AH48: =IF(ISBLANK(DataInput!A41),0,GPDcdff(B48,$AH$2,$AI$2,$B$1*0.999)) -> 0.1522534219 | AI48: 0.8072060376
A49: =MAX(0,A48-1/COUNT($B$8:INDIRECT("B"&(DataInput!$C$2+AG47)))) -> 0.9584584585 | B49: =IF(ISBLANK(DataInput!A42),"",DataInput!A42) -> 0.7574769258 | C49: =IF(ISBLANK(DataInput!A42),"",LN(B49-0.999*$B$1)) -> -0.6600509126 | D49: =DataInput!A42/AVERAGE(DataInput!$A$1:$A$10000) -> 0.005244552394 | F49: =LN(IF(ISBLANK(DataInput!A42),1,GAMMADIST(B49,$G$2,$H$2,TRUE))) -> -10.78554203 | G49: =IF(ISBLANK(DataInput!A42),0,GAMMADIST(B49-$I$2,$G$2,$H$2,TRUE)) -> 9.893429627e-06 | H49: 0.958448565 | K49: =LN(IF(ISBLANK(DataInput!A42),1,NORMDIST(C49,$C$2,$C$3,FALSE))) -> -4.327635188 | L49: =IF(ISBLANK(DataInput!A42),0,NORMDIST(C49,$C$2,$C$3,TRUE)) -> 0.00886049115 | M49: 0.9495979673 | P49: =LN(IF(ISBLANK(DataInput!A42),1,$Q$2/$R$2/((B49/$R$2)^($Q$2+1)))) -> -0.8691254954 | Q49: =IF(ISBLANK(DataInput!A42),0,IF(B49<$R$2,0,1-(B49/$R$2)^(-$Q$2))) -> 0.6829054526 | R49: 0.6740449614 | U49: -3.032492631 | V49: 0.04186216458 | W49: 0.9165962939 | Y49: =IF(ISBLANK(DataInput!A42),"",B49-$B$1*0.9999) -> 0.5166082174 | AA49: =LN(IF(ISBLANK(DataInput!A42),1,EXPONDIST(B49-$AC$2,$AB$2,FALSE))) -> -4.974718238 | AB49: =IF(ISBLANK(DataInput!A42),0,EXPONDIST(B49-$AC$2,$AB$2,TRUE)) -> 0.003577909983 | AC49: 0.9548805485 | AF49: =LN(IF(ISBLANK(DataInput!A42),1,GPDpdf(B49,$AH$2,$AI$2,$B$1))) -> -3.714225258 | AG49: 49 | AH49: =IF(ISBLANK(DataInput!A42),0,GPDcdff(B49,$AH$2,$AI$2,$B$1*0.999)) -> 0.01275808377 | AI49: 0.9457003747
A50: =MAX(0,A49-1/COUNT($B$8:INDIRECT("B"&(DataInput!$C$2+AG48)))) -> 0.9574574575 | B50: =IF(ISBLANK(DataInput!A43),"",DataInput!A43) -> 112.1037979 | C50: =IF(ISBLANK(DataInput!A43),"",LN(B50-0.999*$B$1)) -> 4.717276214 | D50: =DataInput!A43/AVERAGE(DataInput!$A$1:$A$10000) -> 0.7761744572 | F50: =LN(IF(ISBLANK(DataInput!A43),1,GAMMADIST(B50,$G$2,$H$2,TRUE))) -> -1.614113823 | G50: =IF(ISBLANK(DataInput!A43),0,GAMMADIST(B50-$I$2,$G$2,$H$2,TRUE)) -> 0.1984443645 | H50: 0.7590130929 | K50: =LN(IF(ISBLANK(DataInput!A43),1,NORMDIST(C50,$C$2,$C$3,FALSE))) -> -1.689217549 | L50: =IF(ISBLANK(DataInput!A43),0,NORMDIST(C50,$C$2,$C$3,TRUE)) -> 0.7220032159 | M50: 0.2354542416 | P50: =LN(IF(ISBLANK(DataInput!A43),1,$Q$2/$R$2/((B50/$R$2)^($Q$2+1)))) -> -10.87184055 | Q50: =IF(ISBLANK(DataInput!A43),0,IF(B50<$R$2,0,1-(B50/$R$2)^(-$Q$2))) -> 0.9978752113 | R50: 0.2758719955 | U50: -6.222377543 | V50: 0.6746223255 | W50: 0.282835132 | Y50: =IF(ISBLANK(DataInput!A43),"",B50-$B$1*0.9999) -> 111.8629292 | AA50: =LN(IF(ISBLANK(DataInput!A43),1,EXPONDIST(B50-$AC$2,$AB$2,FALSE))) -> -5.746936104 | AB50: =IF(ISBLANK(DataInput!A43),0,EXPONDIST(B50-$AC$2,$AB$2,TRUE)) -> 0.5396656436 | AC50: 0.4177918139 | AF50: =LN(IF(ISBLANK(DataInput!A43),1,GPDpdf(B50,$AH$2,$AI$2,$B$1))) -> -6.354030137 | AG50: 50 | AH50: =IF(ISBLANK(DataInput!A43),0,GPDcdff(B50,$AH$2,$AI$2,$B$1*0.999)) -> 0.7401301452 | AI50: 0.2173273122
A51: =MAX(0,A50-1/COUNT($B$8:INDIRECT("B"&(DataInput!$C$2+AG49)))) -> 0.9564564565 | B51: =IF(ISBLANK(DataInput!A44),"",DataInput!A44) -> 8.673171043 | C51: =IF(ISBLANK(DataInput!A44),"",LN(B51-0.999*$B$1)) -> 2.132095558 | D51: =DataInput!A44/AVERAGE(DataInput!$A$1:$A$10000) -> 0.06005054202 | F51: =LN(IF(ISBLANK(DataInput!A44),1,GAMMADIST(B51,$G$2,$H$2,TRUE))) -> -6.107488427 | G51: =IF(ISBLANK(DataInput!A44),0,GAMMADIST(B51-$I$2,$G$2,$H$2,TRUE)) -> 0.002110556281 | H51: 0.9543459002 | K51: =LN(IF(ISBLANK(DataInput!A44),1,NORMDIST(C51,$C$2,$C$3,FALSE))) -> -1.863926581 | L51: =IF(ISBLANK(DataInput!A44),0,NORMDIST(C51,$C$2,$C$3,TRUE)) -> 0.2020474831 | M51: 0.7544089733 | P51: =LN(IF(ISBLANK(DataInput!A44),1,$Q$2/$R$2/((B51/$R$2)^($Q$2+1)))) -> -5.749187828 | Q51: =IF(ISBLANK(DataInput!A44),0,IF(B51<$R$2,0,1-(B51/$R$2)^(-$Q$2))) -> 0.9724188014 | R51: 0.7703713183 | U51: -4.318709358 | V51: 0.208137745 | W51: 0.7483187114 | Y51: =IF(ISBLANK(DataInput!A44),"",B51-$B$1*0.9999) -> 8.432302335 | AA51: =LN(IF(ISBLANK(DataInput!A44),1,EXPONDIST(B51-$AC$2,$AB$2,FALSE))) -> -5.02961579 | AB51: =IF(ISBLANK(DataInput!A44),0,EXPONDIST(B51-$AC$2,$AB$2,TRUE)) -> 0.05680466693 | AC51: 0.8996517895 | AF51: =LN(IF(ISBLANK(DataInput!A44),1,GPDpdf(B51,$AH$2,$AI$2,$B$1))) -> -4.067934135 | AG51: 51 | AH51: =IF(ISBLANK(DataInput!A44),0,GPDcdff(B51,$AH$2,$AI$2,$B$1*0.999)) -> 0.174430265 | AI51: 0.7820261915
A52: =MAX(0,A51-1/COUNT($B$8:INDIRECT("B"&(DataInput!$C$2+AG50)))) -> 0.9554554555 | B52: =IF(ISBLANK(DataInput!A45),"",DataInput!A45) -> 13.19865036 | C52: =IF(ISBLANK(DataInput!A45),"",LN(B52-0.999*$B$1)) -> 2.561713239 | D52: =DataInput!A45/AVERAGE(DataInput!$A$1:$A$10000) -> 0.09138365934 | F52: =LN(IF(ISBLANK(DataInput!A45),1,GAMMADIST(B52,$G$2,$H$2,TRUE))) -> -5.31615426 | G52: =IF(ISBLANK(DataInput!A45),0,GAMMADIST(B52-$I$2,$G$2,$H$2,TRUE)) -> 0.004745094624 | H52: 0.9507103608 | K52: =LN(IF(ISBLANK(DataInput!A45),1,NORMDIST(C52,$C$2,$C$3,FALSE))) -> -1.69457181 | L52: =IF(ISBLANK(DataInput!A45),0,NORMDIST(C52,$C$2,$C$3,TRUE)) -> 0.2749776488 | M52: 0.6804778066 | P52: =LN(IF(ISBLANK(DataInput!A45),1,$Q$2/$R$2/((B52/$R$2)^($Q$2+1)))) -> -6.589648814 | Q52: =IF(ISBLANK(DataInput!A45),0,IF(B52<$R$2,0,1-(B52/$R$2)^(-$Q$2))) -> 0.9818883849 | R52: 0.7069107361 | U52: -4.556884737 | V52: 0.2613901478 | W52: 0.6940653076 | Y52: =IF(ISBLANK(DataInput!A45),"",B52-$B$1*0.9999) -> 12.95778165 | AA52: =LN(IF(ISBLANK(DataInput!A45),1,EXPONDIST(B52-$AC$2,$AB$2,FALSE))) -> -5.061001254 | AB52: =IF(ISBLANK(DataInput!A45),0,EXPONDIST(B52-$AC$2,$AB$2,TRUE)) -> 0.08594756642 | AC52: 0.869507889 | AF52: =LN(IF(ISBLANK(DataInput!A45),1,GPDpdf(B52,$AH$2,$AI$2,$B$1))) -> -4.245438069 | AG52: 52 | AH52: =IF(ISBLANK(DataInput!A45),0,GPDcdff(B52,$AH$2,$AI$2,$B$1*0.999)) -> 0.2452967751 | AI52: 0.7101586803
A53: =MAX(0,A52-1/COUNT($B$8:INDIRECT("B"&(DataInput!$C$2+AG51)))) -> 0.9544544545 | B53: =IF(ISBLANK(DataInput!A46),"",DataInput!A46) -> 14.05270958 | C53: =IF(ISBLANK(DataInput!A46),"",LN(B53-0.999*$B$1)) -> 2.625541955 | D53: =DataInput!A46/AVERAGE(DataInput!$A$1:$A$10000) -> 0.09729691976 | F53: =LN(IF(ISBLANK(DataInput!A46),1,GAMMADIST(B53,$G$2,$H$2,TRUE))) -> -5.198787563 | G53: =IF(ISBLANK(DataInput!A46),0,GAMMADIST(B53-$I$2,$G$2,$H$2,TRUE)) -> 0.005347658163 | H53: 0.9491067963 | K53: =LN(IF(ISBLANK(DataInput!A46),1,NORMDIST(C53,$C$2,$C$3,FALSE))) -> -1.67418299 | L53: =IF(ISBLANK(DataInput!A46),0,NORMDIST(C53,$C$2,$C$3,TRUE)) -> 0.2868231245 | M53: 0.6676313299 | P53: =LN(IF(ISBLANK(DataInput!A46),1,$Q$2/$R$2/((B53/$R$2)^($Q$2+1)))) -> -6.715154762 | Q53: =IF(ISBLANK(DataInput!A46),0,IF(B53<$R$2,0,1-(B53/$R$2)^(-$Q$2))) -> 0.9829909058 | R53: 0.6961677813 | U53: -4.593910217 | V53: 0.2701879503 | W53: 0.6842665041 | Y53: =IF(ISBLANK(DataInput!A46),"",B53-$B$1*0.9999) -> 13.81184087 | AA53: =LN(IF(ISBLANK(DataInput!A46),1,EXPONDIST(B53-$AC$2,$AB$2,FALSE))) -> -5.066924394 | AB53: =IF(ISBLANK(DataInput!A46),0,EXPONDIST(B53-$AC$2,$AB$2,TRUE)) -> 0.09134562395 | AC53: 0.8631088305 | AF53: =LN(IF(ISBLANK(DataInput!A46),1,GPDpdf(B53,$AH$2,$AI$2,$B$1))) -> -4.277257667 | AG53: 53 | AH53: =IF(ISBLANK(DataInput!A46),0,GPDcdff(B53,$AH$2,$AI$2,$B$1*0.999)) -> 0.2573417092 | AI53: 0.6971127452
A54: =MAX(0,A53-1/COUNT($B$8:INDIRECT("B"&(DataInput!$C$2+AG52)))) -> 0.9534534535 | B54: =IF(ISBLANK(DataInput!A47),"",DataInput!A47) -> 129.1826935 | C54: =IF(ISBLANK(DataInput!A47),"",LN(B54-0.999*$B$1)) -> 4.859363013 | D54: =DataInput!A47/AVERAGE(DataInput!$A$1:$A$10000) -> 0.8944238184 | F54: =LN(IF(ISBLANK(DataInput!A47),1,GAMMADIST(B54,$G$2,$H$2,TRUE))) -> -1.412056691 | G54: =IF(ISBLANK(DataInput!A47),0,GAMMADIST(B54-$I$2,$G$2,$H$2,TRUE)) -> 0.2430102106 | H54: 0.7104432429 | K54: =LN(IF(ISBLANK(DataInput!A47),1,NORMDIST(C54,$C$2,$C$3,FALSE))) -> -1.738331747 | L54: =IF(ISBLANK(DataInput!A47),0,NORMDIST(C54,$C$2,$C$3,TRUE)) -> 0.747620668 | M54: 0.2058327855 | P54: =LN(IF(ISBLANK(DataInput!A47),1,$Q$2/$R$2/((B54/$R$2)^($Q$2+1)))) -> -11.15568206 | Q54: =IF(ISBLANK(DataInput!A47),0,IF(B54<$R$2,0,1-(B54/$R$2)^(-$Q$2))) -> 0.9981565603 | R54: 0.2505358923 | U54: -6.379372713 | V54: 0.7059537109 | W54: 0.2474997426 | Y54: =IF(ISBLANK(DataInput!A47),"",B54-$B$1*0.9999) -> 128.9418248 | AA54: =LN(IF(ISBLANK(DataInput!A47),1,EXPONDIST(B54-$AC$2,$AB$2,FALSE))) -> -5.86538302 | AB54: =IF(ISBLANK(DataInput!A47),0,EXPONDIST(B54-$AC$2,$AB$2,TRUE)) -> 0.5910854657 | AC54: 0.3623679878 | AF54: =LN(IF(ISBLANK(DataInput!A47),1,GPDpdf(B54,$AH$2,$AI$2,$B$1))) -> -6.568389855 | AG54: 54 | AH54: =IF(ISBLANK(DataInput!A47),0,GPDcdff(B54,$AH$2,$AI$2,$B$1*0.999)) -> 0.7668233037 | AI54: 0.1866301498
A55: =MAX(0,A54-1/COUNT($B$8:INDIRECT("B"&(DataInput!$C$2+AG53)))) -> 0.9524524525 | B55: =IF(ISBLANK(DataInput!A48),"",DataInput!A48) -> 7.680395126 | C55: =IF(ISBLANK(DataInput!A48),"",LN(B55-0.999*$B$1)) -> 2.006836335 | D55: =DataInput!A48/AVERAGE(DataInput!$A$1:$A$10000) -> 0.05317684708 | F55: =LN(IF(ISBLANK(DataInput!A48),1,GAMMADIST(B55,$G$2,$H$2,TRUE))) -> -6.338029001 | G55: =IF(ISBLANK(DataInput!A48),0,GAMMADIST(B55-$I$2,$G$2,$H$2,TRUE)) -> 0.001664068507 | H55: 0.9507883839 | K55: =LN(IF(ISBLANK(DataInput!A48),1,NORMDIST(C55,$C$2,$C$3,FALSE))) -> -1.923835001 | L55: =IF(ISBLANK(DataInput!A48),0,NORMDIST(C55,$C$2,$C$3,TRUE)) -> 0.1831873499 | M55: 0.7692651025 | P55: =LN(IF(ISBLANK(DataInput!A48),1,$Q$2/$R$2/((B55/$R$2)^($Q$2+1)))) -> -5.505857984 | Q55: =IF(ISBLANK(DataInput!A48),0,IF(B55<$R$2,0,1-(B55/$R$2)^(-$Q$2))) -> 0.968847307 | R55: 0.785659957 | U55: -4.252460187 | V55: 0.194477086 | W55: 0.7579753665 | Y55: =IF(ISBLANK(DataInput!A48),"",B55-$B$1*0.9999) -> 7.439526418 | AA55: =LN(IF(ISBLANK(DataInput!A48),1,EXPONDIST(B55-$AC$2,$AB$2,FALSE))) -> -5.022730612 | AB55: =IF(ISBLANK(DataInput!A48),0,EXPONDIST(B55-$AC$2,$AB$2,TRUE)) -> 0.05028819086 | AC55: 0.9021642616 | AF55: =LN(IF(ISBLANK(DataInput!A48),1,GPDpdf(B55,$AH$2,$AI$2,$B$1))) -> -4.026819551 | AG55: 55 | AH55: =IF(ISBLANK(DataInput!A48),0,GPDcdff(B55,$AH$2,$AI$2,$B$1*0.999)) -> 0.1570884793 | AI55: 0.7953639732
A56: =MAX(0,A55-1/COUNT($B$8:INDIRECT("B"&(DataInput!$C$2+AG54)))) -> 0.9514514515 | B56: =IF(ISBLANK(DataInput!A49),"",DataInput!A49) -> 47.41334915 | C56: =IF(ISBLANK(DataInput!A49),"",LN(B56-0.999*$B$1)) -> 3.853815277 | D56: =DataInput!A49/AVERAGE(DataInput!$A$1:$A$10000) -> 0.3282763941 | F56: =LN(IF(ISBLANK(DataInput!A49),1,GAMMADIST(B56,$G$2,$H$2,TRUE))) -> -2.996986468 | G56: =IF(ISBLANK(DataInput!A49),0,GAMMADIST(B56-$I$2,$G$2,$H$2,TRUE)) -> 0.04950124007 | H56: 0.9019502114 | K56: =LN(IF(ISBLANK(DataInput!A49),1,NORMDIST(C56,$C$2,$C$3,FALSE))) -> -1.522310966 | L56: =IF(ISBLANK(DataInput!A49),0,NORMDIST(C56,$C$2,$C$3,TRUE)) -> 0.5451712489 | M56: 0.4062802025 | P56: =LN(IF(ISBLANK(DataInput!A49),1,$Q$2/$R$2/((B56/$R$2)^($Q$2+1)))) -> -9.14936157 | Q56: =IF(ISBLANK(DataInput!A49),0,IF(B56<$R$2,0,1-(B56/$R$2)^(-$Q$2))) -> 0.9949689439 | R56: 0.4497976949 | U56: -5.425223116 | V56: 0.4854083656 | W56: 0.4660430858 | Y56: =IF(ISBLANK(DataInput!A49),"",B56-$B$1*0.9999) -> 47.17248044 | AA56: =LN(IF(ISBLANK(DataInput!A49),1,EXPONDIST(B56-$AC$2,$AB$2,FALSE))) -> -5.298289756 | AB56: =IF(ISBLANK(DataInput!A49),0,EXPONDIST(B56-$AC$2,$AB$2,TRUE)) -> 0.2790286246 | AC56: 0.6724228269 | AF56: =LN(IF(ISBLANK(DataInput!A49),1,GPDpdf(B56,$AH$2,$AI$2,$B$1))) -> -5.24013127 | AG56: 56 | AH56: =IF(ISBLANK(DataInput!A49),0,GPDcdff(B56,$AH$2,$AI$2,$B$1*0.999)) -> 0.5435909447 | AI56: 0.4078605068
A57: =MAX(0,A56-1/COUNT($B$8:INDIRECT("B"&(DataInput!$C$2+AG55)))) -> 0.9504504505 | B57: =IF(ISBLANK(DataInput!A50),"",DataInput!A50) -> 4.950713158 | C57: =IF(ISBLANK(DataInput!A50),"",LN(B57-0.999*$B$1)) -> 1.549700913 | D57: =DataInput!A50/AVERAGE(DataInput!$A$1:$A$10000) -> 0.03427731414 | F57: =LN(IF(ISBLANK(DataInput!A50),1,GAMMADIST(B57,$G$2,$H$2,TRUE))) -> -7.174722869 | G57: =IF(ISBLANK(DataInput!A50),0,GAMMADIST(B57-$I$2,$G$2,$H$2,TRUE)) -> 0.0006961264759 | H57: 0.949754324 | K57: =LN(IF(ISBLANK(DataInput!A50),1,NORMDIST(C57,$C$2,$C$3,FALSE))) -> -2.182812196 | L57: =IF(ISBLANK(DataInput!A50),0,NORMDIST(C57,$C$2,$C$3,TRUE)) -> 0.1240582413 | M57: 0.8263922092 | P57: =LN(IF(ISBLANK(DataInput!A50),1,$Q$2/$R$2/((B57/$R$2)^($Q$2+1)))) -> -4.626846354 | Q57: =IF(ISBLANK(DataInput!A50),0,IF(B57<$R$2,0,1-(B57/$R$2)^(-$Q$2))) -> 0.9516351665 | R57: 0.8275769253 | U57: -4.020648799 | V57: 0.1510961029 | W57: 0.7993543475 | Y57: =IF(ISBLANK(DataInput!A50),"",B57-$B$1*0.9999) -> 4.709844449 | AA57: =LN(IF(ISBLANK(DataInput!A50),1,EXPONDIST(B57-$AC$2,$AB$2,FALSE))) -> -5.003799504 | AB57: =IF(ISBLANK(DataInput!A50),0,EXPONDIST(B57-$AC$2,$AB$2,TRUE)) -> 0.03213783329 | AC57: 0.9183126172 | AF57: =LN(IF(ISBLANK(DataInput!A50),1,GPDpdf(B57,$AH$2,$AI$2,$B$1))) -> -3.909265761 | AG57: 57 | AH57: =IF(ISBLANK(DataInput!A50),0,GPDcdff(B57,$AH$2,$AI$2,$B$1*0.999)) -> 0.1054692728 | AI57: 0.8449811776
A58: =MAX(0,A57-1/COUNT($B$8:INDIRECT("B"&(DataInput!$C$2+AG56)))) -> 0.9494494494 | B58: =IF(ISBLANK(DataInput!A51),"",DataInput!A51) -> 2.713557005 | C58: =IF(ISBLANK(DataInput!A51),"",LN(B58-0.999*$B$1)) -> 0.9053936134 | D58: =DataInput!A51/AVERAGE(DataInput!$A$1:$A$10000) -> 0.01878788832 | F58: =LN(IF(ISBLANK(DataInput!A51),1,GAMMADIST(B58,$G$2,$H$2,TRUE))) -> -8.327144268 | G58: =IF(ISBLANK(DataInput!A51),0,GAMMADIST(B58-$I$2,$G$2,$H$2,TRUE)) -> 0.0002023293134 | H58: 0.9492471201 | K58: =LN(IF(ISBLANK(DataInput!A51),1,NORMDIST(C58,$C$2,$C$3,FALSE))) -> -2.655357453 | L58: =IF(ISBLANK(DataInput!A51),0,NORMDIST(C58,$C$2,$C$3,TRUE)) -> 0.06556953106 | M58: 0.8838799184 | P58: =LN(IF(ISBLANK(DataInput!A51),1,$Q$2/$R$2/((B58/$R$2)^($Q$2+1)))) -> -3.423300209 | Q58: =IF(ISBLANK(DataInput!A51),0,IF(B58<$R$2,0,1-(B58/$R$2)^(-$Q$2))) -> 0.9116728268 | R58: 0.8461032957 | U58: -3.714775233 | V58: 0.1048255413 | W58: 0.8446239081 | Y58: =IF(ISBLANK(DataInput!A51),"",B58-$B$1*0.9999) -> 2.472688296 | AA58: =LN(IF(ISBLANK(DataInput!A51),1,EXPONDIST(B58-$AC$2,$AB$2,FALSE))) -> -4.988284201 | AB58: =IF(ISBLANK(DataInput!A51),0,EXPONDIST(B58-$AC$2,$AB$2,TRUE)) -> 0.01700405919 | AC58: 0.9324453903 | AF58: =LN(IF(ISBLANK(DataInput!A51),1,GPDpdf(B58,$AH$2,$AI$2,$B$1))) -> -3.807553053 | AG58: 58 | AH58: =IF(ISBLANK(DataInput!A51),0,GPDcdff(B58,$AH$2,$AI$2,$B$1*0.999)) -> 0.05826212844 | AI58: 0.891187321
A59: =MAX(0,A58-1/COUNT($B$8:INDIRECT("B"&(DataInput!$C$2+AG57)))) -> 0.9484484484 | B59: =IF(ISBLANK(DataInput!A52),"",DataInput!A52) -> 587.1605225 | C59: =IF(ISBLANK(DataInput!A52),"",LN(B59-0.999*$B$1)) -> 6.374888304 | D59: =DataInput!A52/AVERAGE(DataInput!$A$1:$A$10000) -> 4.065330598 | F59: =LN(IF(ISBLANK(DataInput!A52),1,GAMMADIST(B59,$G$2,$H$2,TRUE))) -> -0.08295702035 | G59: =IF(ISBLANK(DataInput!A52),0,GAMMADIST(B59-$I$2,$G$2,$H$2,TRUE)) -> 0.920282279 | H59: 0.02816616946 | K59: =LN(IF(ISBLANK(DataInput!A52),1,NORMDIST(C59,$C$2,$C$3,FALSE))) -> -2.642842766 | L59: =IF(ISBLANK(DataInput!A52),0,NORMDIST(C59,$C$2,$C$3,TRUE)) -> 0.933362621 | M59: 0.01508582744 | P59: =LN(IF(ISBLANK(DataInput!A52),1,$Q$2/$R$2/((B59/$R$2)^($Q$2+1)))) -> -14.18635025 | Q59: =IF(ISBLANK(DataInput!A52),0,IF(B59<$R$2,0,1-(B59/$R$2)^(-$Q$2))) -> 0.9995954437 | R59: 0.06623282268 | U59: -8.824229536 | V59: 0.9537771081 | W59: 0.005328659639 | Y59: =IF(ISBLANK(DataInput!A52),"",B59-$B$1*0.9999) -> 586.9196538 | AA59: =LN(IF(ISBLANK(DataInput!A52),1,EXPONDIST(B59-$AC$2,$AB$2,FALSE))) -> -9.041587303 | AB59: =IF(ISBLANK(DataInput!A52),0,EXPONDIST(B59-$AC$2,$AB$2,TRUE)) -> 0.9829303525 | AC59: 0.03448190401 | AF59: =LN(IF(ISBLANK(DataInput!A52),1,GPDpdf(B59,$AH$2,$AI$2,$B$1))) -> -9.212816906 | AG59: 59 | AH59: =IF(ISBLANK(DataInput!A52),0,GPDcdff(B59,$AH$2,$AI$2,$B$1*0.999)) -> 0.9387648106 | AI59: 0.009683637834
A60: =MAX(0,A59-1/COUNT($B$8:INDIRECT("B"&(DataInput!$C$2+AG58)))) -> 0.9474474474 | B60: =IF(ISBLANK(DataInput!A53),"",DataInput!A53) -> 2.979104996 | C60: =IF(ISBLANK(DataInput!A53),"",LN(B60-0.999*$B$1)) -> 1.007393196 | D60: =DataInput!A53/AVERAGE(DataInput!$A$1:$A$10000) -> 0.02062646624 | F60: =LN(IF(ISBLANK(DataInput!A53),1,GAMMADIST(B60,$G$2,$H$2,TRUE))) -> -8.147829203 | G60: =IF(ISBLANK(DataInput!A53),0,GAMMADIST(B60-$I$2,$G$2,$H$2,TRUE)) -> 0.0002461428572 | H60: 0.9472013046 | K60: =LN(IF(ISBLANK(DataInput!A53),1,NORMDIST(C60,$C$2,$C$3,FALSE))) -> -2.572167801 | L60: =IF(ISBLANK(DataInput!A53),0,NORMDIST(C60,$C$2,$C$3,TRUE)) -> 0.07304597406 | M60: 0.8744014734 | P60: =LN(IF(ISBLANK(DataInput!A53),1,$Q$2/$R$2/((B60/$R$2)^($Q$2+1)))) -> -3.610181222 | Q60: =IF(ISBLANK(DataInput!A53),0,IF(B60<$R$2,0,1-(B60/$R$2)^(-$Q$2))) -> 0.9195585669 | R60: 0.8465125928 | U60: -3.761878029 | V60: 0.1111422456 | W60: 0.8363052018 | Y60: =IF(ISBLANK(DataInput!A53),"",B60-$B$1*0.9999) -> 2.738236287 | AA60: =LN(IF(ISBLANK(DataInput!A53),1,EXPONDIST(B60-$AC$2,$AB$2,FALSE))) -> -4.99012585 | AB60: =IF(ISBLANK(DataInput!A53),0,EXPONDIST(B60-$AC$2,$AB$2,TRUE)) -> 0.01881272725 | AC60: 0.9286347202 | AF60: =LN(IF(ISBLANK(DataInput!A53),1,GPDpdf(B60,$AH$2,$AI$2,$B$1))) -> -3.819897198 | AG60: 60 | AH60: =IF(ISBLANK(DataInput!A53),0,GPDcdff(B60,$AH$2,$AI$2,$B$1*0.999)) -> 0.06412159945 | AI60: 0.883325848
A61: =MAX(0,A60-1/COUNT($B$8:INDIRECT("B"&(DataInput!$C$2+AG59)))) -> 0.9464464464 | B61: =IF(ISBLANK(DataInput!A54),"",DataInput!A54) -> 331.3944092 | C61: =IF(ISBLANK(DataInput!A54),"",LN(B61-0.999*$B$1)) -> 5.802582791 | D61: =DataInput!A54/AVERAGE(DataInput!$A$1:$A$10000) -> 2.294479585 | F61: =LN(IF(ISBLANK(DataInput!A54),1,GAMMADIST(B61,$G$2,$H$2,TRUE))) -> -0.3761344073 | G61: =IF(ISBLANK(DataInput!A54),0,GAMMADIST(B61-$I$2,$G$2,$H$2,TRUE)) -> 0.6861355109 | H61: 0.2603109356 | K61: =LN(IF(ISBLANK(DataInput!A54),1,NORMDIST(C61,$C$2,$C$3,FALSE))) -> -2.21947992 | L61: =IF(ISBLANK(DataInput!A54),0,NORMDIST(C61,$C$2,$C$3,TRUE)) -> 0.8822402383 | M61: 0.0642062081 | P61: =LN(IF(ISBLANK(DataInput!A54),1,$Q$2/$R$2/((B61/$R$2)^($Q$2+1)))) -> -13.04141759 | Q61: =IF(ISBLANK(DataInput!A54),0,IF(B61<$R$2,0,1-(B61/$R$2)^(-$Q$2))) -> 0.9992825275 | R61: 0.1170422892 | U61: -7.696658745 | V61: 0.8859644643 | W61: 0.06048198217 | Y61: =IF(ISBLANK(DataInput!A54),"",B61-$B$1*0.9999) -> 331.1535405 | AA61: =LN(IF(ISBLANK(DataInput!A54),1,EXPONDIST(B61-$AC$2,$AB$2,FALSE))) -> -7.267777801 | AB61: =IF(ISBLANK(DataInput!A54),0,EXPONDIST(B61-$AC$2,$AB$2,TRUE)) -> 0.8994041112 | AC61: 0.04704233524 | AF61: =LN(IF(ISBLANK(DataInput!A54),1,GPDpdf(B61,$AH$2,$AI$2,$B$1))) -> -8.154508156 | AG61: 61 | AH61: =IF(ISBLANK(DataInput!A54),0,GPDcdff(B61,$AH$2,$AI$2,$B$1*0.999)) -> 0.8954334241 | AI61: 0.05101302232
A62: =MAX(0,A61-1/COUNT($B$8:INDIRECT("B"&(DataInput!$C$2+AG60)))) -> 0.9454454454 | B62: =IF(ISBLANK(DataInput!A55),"",DataInput!A55) -> 864.9354858 | C62: =IF(ISBLANK(DataInput!A55),"",LN(B62-0.999*$B$1)) -> 6.762376652 | D62: =DataInput!A55/AVERAGE(DataInput!$A$1:$A$10000) -> 5.98856456 | F62: =LN(IF(ISBLANK(DataInput!A55),1,GAMMADIST(B62,$G$2,$H$2,TRUE))) -> -0.01579425558 | G62: =IF(ISBLANK(DataInput!A55),0,GAMMADIST(B62-$I$2,$G$2,$H$2,TRUE)) -> 0.9843071434 | H62: 0.03886169791 | K62: =LN(IF(ISBLANK(DataInput!A55),1,NORMDIST(C62,$C$2,$C$3,FALSE))) -> -2.985840001 | L62: =IF(ISBLANK(DataInput!A55),0,NORMDIST(C62,$C$2,$C$3,TRUE)) -> 0.9567928584 | M62: 0.01134741298 | P62: =LN(IF(ISBLANK(DataInput!A55),1,$Q$2/$R$2/((B62/$R$2)^($Q$2+1)))) -> -14.9617101 | Q62: =IF(ISBLANK(DataInput!A55),0,IF(B62<$R$2,0,1-(B62/$R$2)^(-$Q$2))) -> 0.9997255449 | R62: 0.04293268645 | U62: -9.792459665 | V62: 0.979564563 | W62: 0.03411911759 | Y62: =IF(ISBLANK(DataInput!A55),"",B62-$B$1*0.9999) -> 864.6946171 | AA62: =LN(IF(ISBLANK(DataInput!A55),1,EXPONDIST(B62-$AC$2,$AB$2,FALSE))) -> -10.96803433 | AB62: =IF(ISBLANK(DataInput!A55),0,EXPONDIST(B62-$AC$2,$AB$2,TRUE)) -> 0.9975135528 | AC62: 0.05206810737 | AF62: =LN(IF(ISBLANK(DataInput!A55),1,GPDpdf(B62,$AH$2,$AI$2,$B$1))) -> -9.95381585 | AG62: 62 | AH62: =IF(ISBLANK(DataInput!A55),0,GPDcdff(B62,$AH$2,$AI$2,$B$1*0.999)) -> 0.9578995618 | AI62: 0.01245411638
A63: =MAX(0,A62-1/COUNT($B$8:INDIRECT("B"&(DataInput!$C$2+AG61)))) -> 0.9444444444 | B63: =IF(ISBLANK(DataInput!A56),"",DataInput!A56) -> 2.849905014 | C63: =IF(ISBLANK(DataInput!A56),"",LN(B63-0.999*$B$1)) -> 0.9590640153 | D63: =DataInput!A56/AVERAGE(DataInput!$A$1:$A$10000) -> 0.01973192272 | F63: =LN(IF(ISBLANK(DataInput!A56),1,GAMMADIST(B63,$G$2,$H$2,TRUE))) -> -8.2329706 | G63: =IF(ISBLANK(DataInput!A56),0,GAMMADIST(B63-$I$2,$G$2,$H$2,TRUE)) -> 0.0002243151415 | H63: 0.9442201293 | K63: =LN(IF(ISBLANK(DataInput!A56),1,NORMDIST(C63,$C$2,$C$3,FALSE))) -> -2.611191481 | L63: =IF(ISBLANK(DataInput!A56),0,NORMDIST(C63,$C$2,$C$3,TRUE)) -> 0.06942595852 | M63: 0.8750184859 | P63: =LN(IF(ISBLANK(DataInput!A56),1,$Q$2/$R$2/((B63/$R$2)^($Q$2+1)))) -> -3.521432718 | Q63: =IF(ISBLANK(DataInput!A56),0,IF(B63<$R$2,0,1-(B63/$R$2)^(-$Q$2))) -> 0.9159055449 | R63: 0.8464795864 | U63: -3.739505209 | V63: 0.108106039 | W63: 0.8363384055 | Y63: =IF(ISBLANK(DataInput!A56),"",B63-$B$1*0.9999) -> 2.609036306 | AA63: =LN(IF(ISBLANK(DataInput!A56),1,EXPONDIST(B63-$AC$2,$AB$2,FALSE))) -> -4.989229812 | AB63: =IF(ISBLANK(DataInput!A56),0,EXPONDIST(B63-$AC$2,$AB$2,TRUE)) -> 0.01793315217 | AC63: 0.9265112923 | AF63: =LN(IF(ISBLANK(DataInput!A56),1,GPDpdf(B63,$AH$2,$AI$2,$B$1))) -> -3.813900675 | AG63: 63 | AH63: =IF(ISBLANK(DataInput!A56),0,GPDcdff(B63,$AH$2,$AI$2,$B$1*0.999)) -> 0.06127976053 | AI63: 0.8831646839
A64: =MAX(0,A63-1/COUNT($B$8:INDIRECT("B"&(DataInput!$C$2+AG62)))) -> 0.9434434434 | B64: =IF(ISBLANK(DataInput!A57),"",DataInput!A57) -> 31.93240929 | C64: =IF(ISBLANK(DataInput!A57),"",LN(B64-0.999*$B$1)) -> 3.456056628 | D64: =DataInput!A57/AVERAGE(DataInput!$A$1:$A$10000) -> 0.2210908186 | F64: =LN(IF(ISBLANK(DataInput!A57),1,GAMMADIST(B64,$G$2,$H$2,TRUE))) -> -3.692258678 | G64: =IF(ISBLANK(DataInput!A57),0,GAMMADIST(B64-$I$2,$G$2,$H$2,TRUE)) -> 0.02458036393 | H64: 0.9188630795 | K64: =LN(IF(ISBLANK(DataInput!A57),1,NORMDIST(C64,$C$2,$C$3,FALSE))) -> -1.521437694 | L64: =IF(ISBLANK(DataInput!A57),0,NORMDIST(C64,$C$2,$C$3,TRUE)) -> 0.4579918393 | M64: 0.4854516041 | P64: =LN(IF(ISBLANK(DataInput!A57),1,$Q$2/$R$2/((B64/$R$2)^($Q$2+1)))) -> -8.358137135 | Q64: =IF(ISBLANK(DataInput!A57),0,IF(B64<$R$2,0,1-(B64/$R$2)^(-$Q$2))) -> 0.992524941 | R64: 0.5345331017 | U64: -5.126516476 | V64: 0.4065074936 | W64: 0.5369359498 | Y64: =IF(ISBLANK(DataInput!A57),"",B64-$B$1*0.9999) -> 31.69154058 | AA64: =LN(IF(ISBLANK(DataInput!A57),1,EXPONDIST(B64-$AC$2,$AB$2,FALSE))) -> -5.19092511 | AB64: =IF(ISBLANK(DataInput!A57),0,EXPONDIST(B64-$AC$2,$AB$2,TRUE)) -> 0.1973136167 | AC64: 0.7461298267 | AF64: =LN(IF(ISBLANK(DataInput!A57),1,GPDpdf(B64,$AH$2,$AI$2,$B$1))) -> -4.849151325 | AG64: 64 | AH64: =IF(ISBLANK(DataInput!A57),0,GPDcdff(B64,$AH$2,$AI$2,$B$1*0.999)) -> 0.4438287812 | AI64: 0.4996146623
A65: =MAX(0,A64-1/COUNT($B$8:INDIRECT("B"&(DataInput!$C$2+AG63)))) -> 0.9424424424 | B65: =IF(ISBLANK(DataInput!A58),"",DataInput!A58) -> 9.94214344 | C65: =IF(ISBLANK(DataInput!A58),"",LN(B65-0.999*$B$1)) -> 2.27227964 | D65: =DataInput!A58/AVERAGE(DataInput!$A$1:$A$10000) -> 0.06883654195 | F65: =LN(IF(ISBLANK(DataInput!A58),1,GAMMADIST(B65,$G$2,$H$2,TRUE))) -> -5.849225667 | G65: =IF(ISBLANK(DataInput!A58),0,GAMMADIST(B65-$I$2,$G$2,$H$2,TRUE)) -> 0.002751768842 | H65: 0.9396906736 | K65: =LN(IF(ISBLANK(DataInput!A58),1,NORMDIST(C65,$C$2,$C$3,FALSE))) -> -1.802518285 | L65: =IF(ISBLANK(DataInput!A58),0,NORMDIST(C65,$C$2,$C$3,TRUE)) -> 0.224477215 | M65: 0.7179652275 | P65: =LN(IF(ISBLANK(DataInput!A58),1,$Q$2/$R$2/((B65/$R$2)^($Q$2+1)))) -> -6.02251205 | Q65: =IF(ISBLANK(DataInput!A58),0,IF(B65<$R$2,0,1-(B65/$R$2)^(-$Q$2))) -> 0.9759446297 | R65: 0.7514674147 | U65: -4.394461071 | V65: 0.2244005252 | W65: 0.7180419172 | Y65: =IF(ISBLANK(DataInput!A58),"",B65-$B$1*0.9999) -> 9.701274732 | AA65: =LN(IF(ISBLANK(DataInput!A58),1,EXPONDIST(B65-$AC$2,$AB$2,FALSE))) -> -5.038416468 | AB65: =IF(ISBLANK(DataInput!A58),0,EXPONDIST(B65-$AC$2,$AB$2,TRUE)) -> 0.06506900644 | AC65: 0.877373436 | AF65: =LN(IF(ISBLANK(DataInput!A58),1,GPDpdf(B65,$AH$2,$AI$2,$B$1))) -> -4.119298829 | AG65: 65 | AH65: =IF(ISBLANK(DataInput!A58),0,GPDcdff(B65,$AH$2,$AI$2,$B$1*0.999)) -> 0.1955950289 | AI65: 0.7468474136
A66: =MAX(0,A65-1/COUNT($B$8:INDIRECT("B"&(DataInput!$C$2+AG64)))) -> 0.9414414414 | B66: =IF(ISBLANK(DataInput!A59),"",DataInput!A59) -> 66.78690338 | C66: =IF(ISBLANK(DataInput!A59),"",LN(B66-0.999*$B$1)) -> 4.197897217 | D66: =DataInput!A59/AVERAGE(DataInput!$A$1:$A$10000) -> 0.462413312 | F66: =LN(IF(ISBLANK(DataInput!A59),1,GAMMADIST(B66,$G$2,$H$2,TRUE))) -> -2.419971722 | G66: =IF(ISBLANK(DataInput!A59),0,GAMMADIST(B66-$I$2,$G$2,$H$2,TRUE)) -> 0.08839879855 | H66: 0.8530426429 | K66: =LN(IF(ISBLANK(DataInput!A59),1,NORMDIST(C66,$C$2,$C$3,FALSE))) -> -1.561743288 | L66: =IF(ISBLANK(DataInput!A59),0,NORMDIST(C66,$C$2,$C$3,TRUE)) -> 0.6190118085 | M66: 0.322429633 | P66: =LN(IF(ISBLANK(DataInput!A59),1,$Q$2/$R$2/((B66/$R$2)^($Q$2+1)))) -> -9.835139745 | Q66: =IF(ISBLANK(DataInput!A59),0,IF(B66<$R$2,0,1-(B66/$R$2)^(-$Q$2))) -> 0.996430395 | R66: 0.3774185865 | U66: -5.714722783 | V66: 0.5590770959 | W66: 0.3823643455 | Y66: =IF(ISBLANK(DataInput!A59),"",B66-$B$1*0.9999) -> 66.54603467 | AA66: =LN(IF(ISBLANK(DataInput!A59),1,EXPONDIST(B66-$AC$2,$AB$2,FALSE))) -> -5.432650771 | AB66: =IF(ISBLANK(DataInput!A59),0,EXPONDIST(B66-$AC$2,$AB$2,TRUE)) -> 0.3696731967 | AC66: 0.5717682448 | AF66: =LN(IF(ISBLANK(DataInput!A59),1,GPDpdf(B66,$AH$2,$AI$2,$B$1))) -> -5.642276376 | AG66: 66 | AH66: =IF(ISBLANK(DataInput!A59),0,GPDcdff(B66,$AH$2,$AI$2,$B$1*0.999)) -> 0.6275669464 | AI66: 0.313874495
A67: =MAX(0,A66-1/COUNT($B$8:INDIRECT("B"&(DataInput!$C$2+AG65)))) -> 0.9404404404 | B67: =IF(ISBLANK(DataInput!A60),"",DataInput!A60) -> 49.5676384 | C67: =IF(ISBLANK(DataInput!A60),"",LN(B67-0.999*$B$1)) -> 3.898471325 | D67: =DataInput!A60/AVERAGE(DataInput!$A$1:$A$10000) -> 0.3431920733 | F67: =LN(IF(ISBLANK(DataInput!A60),1,GAMMADIST(B67,$G$2,$H$2,TRUE))) -> -2.920622451 | G67: =IF(ISBLANK(DataInput!A60),0,GAMMADIST(B67-$I$2,$G$2,$H$2,TRUE)) -> 0.05345226048 | H67: 0.88698818 | K67: =LN(IF(ISBLANK(DataInput!A60),1,NORMDIST(C67,$C$2,$C$3,FALSE))) -> -1.525402574 | L67: =IF(ISBLANK(DataInput!A60),0,NORMDIST(C67,$C$2,$C$3,TRUE)) -> 0.5549009554 | M67: 0.385539485 | P67: =LN(IF(ISBLANK(DataInput!A60),1,$Q$2/$R$2/((B67/$R$2)^($Q$2+1)))) -> -9.238304435 | Q67: =IF(ISBLANK(DataInput!A60),0,IF(B67<$R$2,0,1-(B67/$R$2)^(-$Q$2))) -> 0.9951879585 | R67: 0.4402870031 | U67: -5.461018858 | V67: 0.494727378 | W67: 0.4457130625 | Y67: =IF(ISBLANK(DataInput!A60),"",B67-$B$1*0.9999) -> 49.32676969 | AA67: =LN(IF(ISBLANK(DataInput!A60),1,EXPONDIST(B67-$AC$2,$AB$2,FALSE))) -> -5.313230354 | AB67: =IF(ISBLANK(DataInput!A60),0,EXPONDIST(B67-$AC$2,$AB$2,TRUE)) -> 0.2897202993 | AC67: 0.6507201411 | AF67: =LN(IF(ISBLANK(DataInput!A60),1,GPDpdf(B67,$AH$2,$AI$2,$B$1))) -> -5.289008479 | AG67: 67 | AH67: =IF(ISBLANK(DataInput!A60),0,GPDcdff(B67,$AH$2,$AI$2,$B$1*0.999)) -> 0.5547320551 | AI67: 0.3857083853
A68: =MAX(0,A67-1/COUNT($B$8:INDIRECT("B"&(DataInput!$C$2+AG66)))) -> 0.9394394394 | B68: =IF(ISBLANK(DataInput!A61),"",DataInput!A61) -> 3.611017942 | C68: =IF(ISBLANK(DataInput!A61),"",LN(B68-0.999*$B$1)) -> 1.215021355 | D68: =DataInput!A61/AVERAGE(DataInput!$A$1:$A$10000) -> 0.02500164975 | F68: =LN(IF(ISBLANK(DataInput!A61),1,GAMMADIST(B68,$G$2,$H$2,TRUE))) -> -7.7787497 | G68: =IF(ISBLANK(DataInput!A61),0,GAMMADIST(B68-$I$2,$G$2,$H$2,TRUE)) -> 0.0003666840962 | H68: 0.9390727553 | K68: =LN(IF(ISBLANK(DataInput!A61),1,NORMDIST(C68,$C$2,$C$3,FALSE))) -> -2.41256977 | L68: =IF(ISBLANK(DataInput!A61),0,NORMDIST(C68,$C$2,$C$3,TRUE)) -> 0.09025664207 | M68: 0.8491827974 | P68: =LN(IF(ISBLANK(DataInput!A61),1,$Q$2/$R$2/((B68/$R$2)^($Q$2+1)))) -> -3.995235865 | Q68: =IF(ISBLANK(DataInput!A61),0,IF(B68<$R$2,0,1-(B68/$R$2)^(-$Q$2))) -> 0.9336567826 | R68: 0.8434001405 | U68: -3.859188298 | V68: 0.1251148192 | W68: 0.8143246203 | Y68: =IF(ISBLANK(DataInput!A61),"",B68-$B$1*0.9999) -> 3.370149234 | AA68: =LN(IF(ISBLANK(DataInput!A61),1,EXPONDIST(B68-$AC$2,$AB$2,FALSE))) -> -4.994508343 | AB68: =IF(ISBLANK(DataInput!A61),0,EXPONDIST(B68-$AC$2,$AB$2,TRUE)) -> 0.02310336485 | AC68: 0.9163360746 | AF68: =LN(IF(ISBLANK(DataInput!A61),1,GPDpdf(B68,$AH$2,$AI$2,$B$1))) -> -3.848972596 | AG68: 68 | AH68: =IF(ISBLANK(DataInput!A61),0,GPDcdff(B68,$AH$2,$AI$2,$B$1*0.999)) -> 0.07777933484 | AI68: 0.8616601046
A69: =MAX(0,A68-1/COUNT($B$8:INDIRECT("B"&(DataInput!$C$2+AG67)))) -> 0.9384384384 | B69: =IF(ISBLANK(DataInput!A62),"",DataInput!A62) -> 19.07037926 | C69: =IF(ISBLANK(DataInput!A62),"",LN(B69-0.999*$B$1)) -> 2.935436863 | D69: =DataInput!A62/AVERAGE(DataInput!$A$1:$A$10000) -> 0.1320378216 | F69: =LN(IF(ISBLANK(DataInput!A62),1,GAMMADIST(B69,$G$2,$H$2,TRUE))) -> -4.631122438 | G69: =IF(ISBLANK(DataInput!A62),0,GAMMADIST(B69-$I$2,$G$2,$H$2,TRUE)) -> 0.009517807364 | H69: 0.9289206311 | K69: =LN(IF(ISBLANK(DataInput!A62),1,NORMDIST(C69,$C$2,$C$3,FALSE))) -> -1.592741861 | L69: =IF(ISBLANK(DataInput!A62),0,NORMDIST(C69,$C$2,$C$3,TRUE)) -> 0.3474945432 | M69: 0.5909438952 | P69: =LN(IF(ISBLANK(DataInput!A62),1,$Q$2/$R$2/((B69/$R$2)^($Q$2+1)))) -> -7.326306493 | Q69: =IF(ISBLANK(DataInput!A62),0,IF(B69<$R$2,0,1-(B69/$R$2)^(-$Q$2))) -> 0.9874726094 | R69: 0.6399780662 | U69: -4.78076024 | V69: 0.3162985083 | W69: 0.6221399301 | Y69: =IF(ISBLANK(DataInput!A62),"",B69-$B$1*0.9999) -> 18.82951055 | AA69: =LN(IF(ISBLANK(DataInput!A62),1,EXPONDIST(B69-$AC$2,$AB$2,FALSE))) -> -5.101723336 | AB69: =IF(ISBLANK(DataInput!A62),0,EXPONDIST(B69-$AC$2,$AB$2,TRUE)) -> 0.1224219867 | AC69: 0.8160164518 | AF69: =LN(IF(ISBLANK(DataInput!A62),1,GPDpdf(B69,$AH$2,$AI$2,$B$1))) -> -4.454720274 | AG69: 69 | AH69: =IF(ISBLANK(DataInput!A62),0,GPDcdff(B69,$AH$2,$AI$2,$B$1*0.999)) -> 0.3210769821 | AI69: 0.6173614564
A70: =MAX(0,A69-1/COUNT($B$8:INDIRECT("B"&(DataInput!$C$2+AG68)))) -> 0.9374374374 | B70: =IF(ISBLANK(DataInput!A63),"",DataInput!A63) -> 108.802597 | C70: =IF(ISBLANK(DataInput!A63),"",LN(B70-0.999*$B$1)) -> 4.687320933 | D70: =DataInput!A63/AVERAGE(DataInput!$A$1:$A$10000) -> 0.7533178918 | F70: =LN(IF(ISBLANK(DataInput!A63),1,GAMMADIST(B70,$G$2,$H$2,TRUE))) -> -1.657865988 | G70: =IF(ISBLANK(DataInput!A63),0,GAMMADIST(B70-$I$2,$G$2,$H$2,TRUE)) -> 0.1899256667 | H70: 0.7475117707 | K70: =LN(IF(ISBLANK(DataInput!A63),1,NORMDIST(C70,$C$2,$C$3,FALSE))) -> -1.679643992 | L70: =IF(ISBLANK(DataInput!A63),0,NORMDIST(C70,$C$2,$C$3,TRUE)) -> 0.7164448657 | M70: 0.2209925717 | P70: =LN(IF(ISBLANK(DataInput!A63),1,$Q$2/$R$2/((B70/$R$2)^($Q$2+1)))) -> -10.81201066 | Q70: =IF(ISBLANK(DataInput!A63),0,IF(B70<$R$2,0,1-(B70/$R$2)^(-$Q$2))) -> 0.9978106335 | R70: 0.2813657678 | U70: -6.190372357 | V70: 0.667965384 | W70: 0.2694720534 | Y70: =IF(ISBLANK(DataInput!A63),"",B70-$B$1*0.9999) -> 108.5617283 | AA70: =LN(IF(ISBLANK(DataInput!A63),1,EXPONDIST(B70-$AC$2,$AB$2,FALSE))) -> -5.724041353 | AB70: =IF(ISBLANK(DataInput!A63),0,EXPONDIST(B70-$AC$2,$AB$2,TRUE)) -> 0.5290048305 | AC70: 0.408432607 | AF70: =LN(IF(ISBLANK(DataInput!A63),1,GPDpdf(B70,$AH$2,$AI$2,$B$1))) -> -6.309841982 | AG70: 70 | AH70: =IF(ISBLANK(DataInput!A63),0,GPDcdff(B70,$AH$2,$AI$2,$B$1*0.999)) -> 0.7342586859 | AI70: 0.2031787515
A71: =MAX(0,A70-1/COUNT($B$8:INDIRECT("B"&(DataInput!$C$2+AG69)))) -> 0.9364364364 | B71: =IF(ISBLANK(DataInput!A64),"",DataInput!A64) -> 34.16775894 | C71: =IF(ISBLANK(DataInput!A64),"",LN(B71-0.999*$B$1)) -> 3.524214312 | D71: =DataInput!A64/AVERAGE(DataInput!$A$1:$A$10000) -> 0.2365677367 | F71: =LN(IF(ISBLANK(DataInput!A64),1,GAMMADIST(B71,$G$2,$H$2,TRUE))) -> -3.57144099 | G71: =IF(ISBLANK(DataInput!A64),0,GAMMADIST(B71-$I$2,$G$2,$H$2,TRUE)) -> 0.02776356186 | H71: 0.9086728746 | K71: =LN(IF(ISBLANK(DataInput!A64),1,NORMDIST(C71,$C$2,$C$3,FALSE))) -> -1.518183388 | L71: =IF(ISBLANK(DataInput!A64),0,NORMDIST(C71,$C$2,$C$3,TRUE)) -> 0.4729033156 | M71: 0.4635331209 | P71: =LN(IF(ISBLANK(DataInput!A64),1,$Q$2/$R$2/((B71/$R$2)^($Q$2+1)))) -> -8.493572098 | Q71: =IF(ISBLANK(DataInput!A64),0,IF(B71<$R$2,0,1-(B71/$R$2)^(-$Q$2))) -> 0.993014769 | R71: 0.5201114534 | U71: -5.175319725 | V71: 0.419457976 | W71: 0.5169784604 | Y71: =IF(ISBLANK(DataInput!A64),"",B71-$B$1*0.9999) -> 33.92689023 | AA71: =LN(IF(ISBLANK(DataInput!A64),1,EXPONDIST(B71-$AC$2,$AB$2,FALSE))) -> -5.206427885 | AB71: =IF(ISBLANK(DataInput!A64),0,EXPONDIST(B71-$AC$2,$AB$2,TRUE)) -> 0.2096615223 | AC71: 0.7267749142 | AF71: =LN(IF(ISBLANK(DataInput!A64),1,GPDpdf(B71,$AH$2,$AI$2,$B$1))) -> -4.91049216 | AG71: 71 | AH71: =IF(ISBLANK(DataInput!A64),0,GPDcdff(B71,$AH$2,$AI$2,$B$1*0.999)) -> 0.4608137089 | AI71: 0.4756227275
A72: =MAX(0,A71-1/COUNT($B$8:INDIRECT("B"&(DataInput!$C$2+AG70)))) -> 0.9354354354 | B72: =IF(ISBLANK(DataInput!A65),"",DataInput!A65) -> 66.01400757 | C72: =IF(ISBLANK(DataInput!A65),"",LN(B72-0.999*$B$1)) -> 4.186214827 | D72: =DataInput!A65/AVERAGE(DataInput!$A$1:$A$10000) -> 0.4570620037 | F72: =LN(IF(ISBLANK(DataInput!A65),1,GAMMADIST(B72,$G$2,$H$2,TRUE))) -> -2.439090951 | G72: =IF(ISBLANK(DataInput!A65),0,GAMMADIST(B72-$I$2,$G$2,$H$2,TRUE)) -> 0.08671768285 | H72: 0.8487177526 | K72: =LN(IF(ISBLANK(DataInput!A65),1,NORMDIST(C72,$C$2,$C$3,FALSE))) -> -1.55981607 | L72: =IF(ISBLANK(DataInput!A65),0,NORMDIST(C72,$C$2,$C$3,TRUE)) -> 0.6165588215 | M72: 0.318876614 | P72: =LN(IF(ISBLANK(DataInput!A65),1,$Q$2/$R$2/((B72/$R$2)^($Q$2+1)))) -> -9.81184022 | Q72: =IF(ISBLANK(DataInput!A65),0,IF(B72<$R$2,0,1-(B72/$R$2)^(-$Q$2))) -> 0.9963885317 | R72: =ABS(Q72-L72) -> 0.3798297102 | U72: -5.704346674 | V72: 0.5565155592 | W72: 0.3789198762 | Y72: =IF(ISBLANK(DataInput!A65),"",B72-$B$1*0.9999) -> 65.77313886 | AA72: =LN(IF(ISBLANK(DataInput!A65),1,EXPONDIST(B72-$AC$2,$AB$2,FALSE))) -> -5.427290523 | AB72: =IF(ISBLANK(DataInput!A65),0,EXPONDIST(B72-$AC$2,$AB$2,TRUE)) -> 0.3662854168 | AC72: 0.5691500186 | AF72: =LN(IF(ISBLANK(DataInput!A65),1,GPDpdf(B72,$AH$2,$AI$2,$B$1))) -> -5.62767464 | AG72: 72 | AH72: =IF(ISBLANK(DataInput!A65),0,GPDcdff(B72,$AH$2,$AI$2,$B$1*0.999)) -> 0.6248071296 | AI72: 0.3106283058
A73: =MAX(0,A72-1/COUNT($B$8:INDIRECT("B"&(DataInput!$C$2+AG71)))) -> 0.9344344344 | B73: =IF(ISBLANK(DataInput!A66),"",DataInput!A66) -> 52.97079086 | C73: =IF(ISBLANK(DataInput!A66),"",LN(B73-0.999*$B$1)) -> 3.965187189 | D73: =DataInput!A66/AVERAGE(DataInput!$A$1:$A$10000) -> 0.3667545222 | F73: =LN(IF(ISBLANK(DataInput!A66),1,GAMMADIST(B73,$G$2,$H$2,TRUE))) -> -2.807292522 | G73: =IF(ISBLANK(DataInput!A66),0,GAMMADIST(B73-$I$2,$G$2,$H$2,TRUE)) -> 0.05990275388 | H73: =ABS(G73-A73) -> 0.8745316806 | K73: =LN(IF(ISBLANK(DataInput!A66),1,NORMDIST(C73,$C$2,$C$3,FALSE))) -> -1.531147277 | L73: =IF(ISBLANK(DataInput!A66),0,NORMDIST(C73,$C$2,$C$3,TRUE)) -> 0.5693739088 | M73: =ABS(L73-$A73) -> 0.3650605256 | P73: =LN(IF(ISBLANK(DataInput!A66),1,$Q$2/$R$2/((B73/$R$2)^($Q$2+1)))) -> -9.371220214 | Q73: =IF(ISBLANK(DataInput!A66),0,IF(B73<$R$2,0,1-(B73/$R$2)^(-$Q$2))) -> 0.9954976111 | R73: 0.4261237023 | U73: =LN(IF(ISBLANK(B73),1,WEIBULL(Y73,$V$2,$W$2,FALSE))) -> -5.515438255 | V73: =WEIBULL(Y73,$V$2,$W$2,TRUE) -> 0.5087987895 | W73: =ABS(V73-$A73) -> 0.4256356449 | Y73: =IF(ISBLANK(DataInput!A66),"",B73-$B$1*0.9999) -> 52.72992215 | AA73: =LN(IF(ISBLANK(DataInput!A66),1,EXPONDIST(B73-$AC$2,$AB$2,FALSE))) -> -5.336832168 | AB73: =IF(ISBLANK(DataInput!A66),0,EXPONDIST(B73-$AC$2,$AB$2,TRUE)) -> 0.3062879067 | AC73: =ABS(AB73-$A73) -> 0.6281465277 | AF73: =LN(IF(ISBLANK(DataInput!A66),1,GPDpdf(B73,$AH$2,$AI$2,$B$1))) -> -5.363891524 | AG73: 73 | AH73: =IF(ISBLANK(DataInput!A66),0,GPDcdff(B73,$AH$2,$AI$2,$B$1*0.999)) -> 0.5712757458 | AI73: =ABS(AH73-$A73) -> 0.3631586886
A74: =MAX(0,A73-1/COUNT($B$8:INDIRECT("B"&(DataInput!$C$2+AG72)))) -> 0.9334334334 | B74: =IF(ISBLANK(DataInput!A67),"",DataInput!A67) -> 13.37922955 | C74: =IF(ISBLANK(DataInput!A67),"",LN(B74-0.999*$B$1)) -> 2.575552761 | D74: =DataInput!A67/AVERAGE(DataInput!$A$1:$A$10000) -> 0.09263393769 | F74: =LN(IF(ISBLANK(DataInput!A67),1,GAMMADIST(B74,$G$2,$H$2,TRUE))) -> -5.290697475 | G74: =IF(ISBLANK(DataInput!A67),0,GAMMADIST(B74-$I$2,$G$2,$H$2,TRUE)) -> 0.004869798982 | H74: 0.9285636345 | K74: =LN(IF(ISBLANK(DataInput!A67),1,NORMDIST(C74,$C$2,$C$3,FALSE))) -> -1.690046221 | L74: =IF(ISBLANK(DataInput!A67),0,NORMDIST(C74,$C$2,$C$3,TRUE)) -> 0.2775254357 | M74: 0.6559079978 | P74: =LN(IF(ISBLANK(DataInput!A67),1,$Q$2/$R$2/((B74/$R$2)^($Q$2+1)))) -> -6.616849277 | Q74: =IF(ISBLANK(DataInput!A67),0,IF(B74<$R$2,0,1-(B74/$R$2)^(-$Q$2))) -> 0.9821332422 | R74: 0.7046078066 | U74: -4.564873392 | V74: 0.2632777089 | W74: 0.6701557245 | Y74: =IF(ISBLANK(DataInput!A67),"",B74-$B$1*0.9999) -> 13.13836084 | AA74: =LN(IF(ISBLANK(DataInput!A67),1,EXPONDIST(B74-$AC$2,$AB$2,FALSE))) -> -5.062253622 | AB74: =IF(ISBLANK(DataInput!A67),0,EXPONDIST(B74-$AC$2,$AB$2,TRUE)) -> 0.08709157914 | AC74: 0.8463418543 | AF74: =LN(IF(ISBLANK(DataInput!A67),1,GPDpdf(B74,$AH$2,$AI$2,$B$1))) -> -4.252207745 | AG74: 74 | AH74: =IF(ISBLANK(DataInput!A67),0,GPDcdff(B74,$AH$2,$AI$2,$B$1*0.999)) -> 0.2478756094 | AI74: 0.685557824
A75: =MAX(0,A74-1/COUNT($B$8:INDIRECT("B"&(DataInput!$C$2+AG73)))) -> 0.9324324324 | B75: =IF(ISBLANK(DataInput!A68),"",DataInput!A68) -> 15.54944992 | C75: =IF(ISBLANK(DataInput!A68),"",LN(B75-0.999*$B$1)) -> 2.728427697 | D75: =DataInput!A68/AVERAGE(DataInput!$A$1:$A$10000) -> 0.1076599194 | F75: =LN(IF(ISBLANK(DataInput!A68),1,GAMMADIST(B75,$G$2,$H$2,TRUE))) -> -5.009867458 | G75: =IF(ISBLANK(DataInput!A68),0,GAMMADIST(B75-$I$2,$G$2,$H$2,TRUE)) -> 0.006480631811 | H75: 0.9259518006 | K75: =LN(IF(ISBLANK(DataInput!A68),1,NORMDIST(C75,$C$2,$C$3,FALSE))) -> -1.643917183 | L75: =IF(ISBLANK(DataInput!A68),0,NORMDIST(C75,$C$2,$C$3,TRUE)) -> 0.306410289 | M75: 0.6260221435 | P75: =LN(IF(ISBLANK(DataInput!A68),1,$Q$2/$R$2/((B75/$R$2)^($Q$2+1)))) -> -6.917743747 | Q75: =IF(ISBLANK(DataInput!A68),0,IF(B75<$R$2,0,1-(B75/$R$2)^(-$Q$2))) -> 0.9846307432 | R75: 0.6782204543 | U75: -4.654597273 | V75: 0.2848685989 | W75: 0.6475638335 | Y75: =IF(ISBLANK(DataInput!A68),"",B75-$B$1*0.9999) -> 15.30858121 | AA75: =LN(IF(ISBLANK(DataInput!A68),1,EXPONDIST(B75-$AC$2,$AB$2,FALSE))) -> -5.077304707 | AB75: =IF(ISBLANK(DataInput!A68),0,EXPONDIST(B75-$AC$2,$AB$2,TRUE)) -> 0.1007289553 | AC75: 0.8317034771 | AF75: =LN(IF(ISBLANK(DataInput!A68),1,GPDpdf(B75,$AH$2,$AI$2,$B$1))) -> -4.33184209 | AG75: 75 | AH75: =IF(ISBLANK(DataInput!A68),0,GPDcdff(B75,$AH$2,$AI$2,$B$1*0.999)) -> 0.2775579776 | AI75: 0.6548744548
A76: =MAX(0,A75-1/COUNT($B$8:INDIRECT("B"&(DataInput!$C$2+AG74)))) -> 0.9314314314 | B76: =IF(ISBLANK(DataInput!A69),"",DataInput!A69) -> 410.7791138 | C76: =IF(ISBLANK(DataInput!A69),"",LN(B76-0.999*$B$1)) -> 6.01746962 | D76: =DataInput!A69/AVERAGE(DataInput!$A$1:$A$10000) -> 2.844116449 | F76: =LN(IF(ISBLANK(DataInput!A69),1,GAMMADIST(B76,$G$2,$H$2,TRUE))) -> -0.2343603723 | G76: =IF(ISBLANK(DataInput!A69),0,GAMMADIST(B76-$I$2,$G$2,$H$2,TRUE)) -> 0.7908127456 | H76: 0.1406186858 | K76: =LN(IF(ISBLANK(DataInput!A69),1,NORMDIST(C76,$C$2,$C$3,FALSE))) -> -2.366804718 | L76: =IF(ISBLANK(DataInput!A69),0,NORMDIST(C76,$C$2,$C$3,TRUE)) -> 0.903977746 | M76: 0.02745368541 | P76: =LN(IF(ISBLANK(DataInput!A69),1,$Q$2/$R$2/((B76/$R$2)^($Q$2+1)))) -> -13.4712688 | Q76: =IF(ISBLANK(DataInput!A69),0,IF(B76<$R$2,0,1-(B76/$R$2)^(-$Q$2))) -> 0.9994213893 | R76: 0.09544364333 | U76: -8.083829526 | V76: 0.9157619177 | W76: 0.01566951377 | Y76: =IF(ISBLANK(DataInput!A69),"",B76-$B$1*0.9999) -> 410.5382451 | AA76: =LN(IF(ISBLANK(DataInput!A69),1,EXPONDIST(B76-$AC$2,$AB$2,FALSE))) -> -7.818332922 | AB76: =IF(ISBLANK(DataInput!A69),0,EXPONDIST(B76-$AC$2,$AB$2,TRUE)) -> 0.9419934306 | AC76: 0.01056199917 | AF76: =LN(IF(ISBLANK(DataInput!A69),1,GPDpdf(B76,$AH$2,$AI$2,$B$1))) -> -8.545699423 | AG76: 76 | AH76: =IF(ISBLANK(DataInput!A69),0,GPDcdff(B76,$AH$2,$AI$2,$B$1*0.999)) -> 0.9141990659 | AI76: 0.01723236552
A77: =MAX(0,A76-1/COUNT($B$8:INDIRECT("B"&(DataInput!$C$2+AG75)))) -> 0.9304304304 | B77: =IF(ISBLANK(DataInput!A70),"",DataInput!A70) -> 39.05667114 | C77: =IF(ISBLANK(DataInput!A70),"",LN(B77-0.999*$B$1)) -> 3.658833028 | D77: =DataInput!A70/AVERAGE(DataInput!$A$1:$A$10000) -> 0.2704171588 | F77: =LN(IF(ISBLANK(DataInput!A70),1,GAMMADIST(B77,$G$2,$H$2,TRUE))) -> -3.334705549 | G77: =IF(ISBLANK(DataInput!A70),0,GAMMADIST(B77-$I$2,$G$2,$H$2,TRUE)) -> 0.03523967631 | H77: 0.8951907541 | K77: =LN(IF(ISBLANK(DataInput!A70),1,NORMDIST(C77,$C$2,$C$3,FALSE))) -> -1.515891992 | L77: =IF(ISBLANK(DataInput!A70),0,NORMDIST(C77,$C$2,$C$3,TRUE)) -> 0.5024469015 | M77: 0.4279835289 | P77: =LN(IF(ISBLANK(DataInput!A70),1,$Q$2/$R$2/((B77/$R$2)^($Q$2+1)))) -> -8.761257732 | Q77: =IF(ISBLANK(DataInput!A70),0,IF(B77<$R$2,0,1-(B77/$R$2)^(-$Q$2))) -> 0.9938905079 | R77: 0.4914436064 | U77: -5.274490044 | V77: 0.4457544161 | W77: 0.4846760144 | Y77: =IF(ISBLANK(DataInput!A70),"",B77-$B$1*0.9999) -> 38.81580243 | AA77: =LN(IF(ISBLANK(DataInput!A70),1,EXPONDIST(B77-$AC$2,$AB$2,FALSE))) -> -5.240333858 | AB77: =IF(ISBLANK(DataInput!A70),0,EXPONDIST(B77-$AC$2,$AB$2,TRUE)) -> 0.236009516 | AC77: 0.6944209144 | AF77: =LN(IF(ISBLANK(DataInput!A70),1,GPDpdf(B77,$AH$2,$AI$2,$B$1))) -> -5.038499104 | AG77: 77 | AH77: =IF(ISBLANK(DataInput!A70),0,GPDcdff(B77,$AH$2,$AI$2,$B$1*0.999)) -> 0.4946059369 | AI77: 0.4358244935
A78: =MAX(0,A77-1/COUNT($B$8:INDIRECT("B"&(DataInput!$C$2+AG76)))) -> 0.9294294294 | B78: =IF(ISBLANK(DataInput!A71),"",DataInput!A71) -> 6.071856976 | C78: =IF(ISBLANK(DataInput!A71),"",LN(B78-0.999*$B$1)) -> 1.763223681 | D78: =DataInput!A71/AVERAGE(DataInput!$A$1:$A$10000) -> 0.04203979151 | F78: =LN(IF(ISBLANK(DataInput!A71),1,GAMMADIST(B78,$G$2,$H$2,TRUE))) -> -6.785117491 | G78: =IF(ISBLANK(DataInput!A71),0,GAMMADIST(B78-$I$2,$G$2,$H$2,TRUE)) -> 0.001046589899 | H78: 0.9283828395 | K78: =LN(IF(ISBLANK(DataInput!A71),1,NORMDIST(C78,$C$2,$C$3,FALSE))) -> -2.053965128 | L78: =IF(ISBLANK(DataInput!A71),0,NORMDIST(C78,$C$2,$C$3,TRUE)) -> 0.1497764083 | M78: 0.7796530212 | P78: =LN(IF(ISBLANK(DataInput!A71),1,$Q$2/$R$2/((B78/$R$2)^($Q$2+1)))) -> -5.035452742 | Q78: =IF(ISBLANK(DataInput!A71),0,IF(B78<$R$2,0,1-(B78/$R$2)^(-$Q$2))) -> 0.9605789701 | R78: 0.8108025618 | U78: -4.127120612 | V78: 0.1701456588 | W78: 0.7592837706 | Y78: =IF(ISBLANK(DataInput!A71),"",B78-$B$1*0.9999) -> 5.830988267 | AA78: =LN(IF(ISBLANK(DataInput!A71),1,EXPONDIST(B78-$AC$2,$AB$2,FALSE))) -> -5.01157495 | AB78: =IF(ISBLANK(DataInput!A71),0,EXPONDIST(B78-$AC$2,$AB$2,TRUE)) -> 0.03963421152 | AC78: 0.8897952179 | AF78: =LN(IF(ISBLANK(DataInput!A71),1,GPDpdf(B78,$AH$2,$AI$2,$B$1))) -> -3.958377335 | AG78: 78 | AH78: =IF(ISBLANK(DataInput!A71),0,GPDcdff(B78,$AH$2,$AI$2,$B$1*0.999)) -> 0.1274084453 | AI78: 0.8020209841
A79: =MAX(0,A78-1/COUNT($B$8:INDIRECT("B"&(DataInput!$C$2+AG77)))) -> 0.9284284284 | B79: =IF(ISBLANK(DataInput!A72),"",DataInput!A72) -> 21.48250961 | C79: =IF(ISBLANK(DataInput!A72),"",LN(B79-0.999*$B$1)) -> 3.055973655 | D79: =DataInput!A72/AVERAGE(DataInput!$A$1:$A$10000) -> 0.1487387185 | F79: =LN(IF(ISBLANK(DataInput!A72),1,GAMMADIST(B79,$G$2,$H$2,TRUE))) -> -4.411714844 | G79: =IF(ISBLANK(DataInput!A72),0,GAMMADIST(B79-$I$2,$G$2,$H$2,TRUE)) -> 0.0118857865 | H79: 0.9165426419 | K79: =LN(IF(ISBLANK(DataInput!A72),1,NORMDIST(C79,$C$2,$C$3,FALSE))) -> -1.568925958 | L79: =IF(ISBLANK(DataInput!A72),0,NORMDIST(C79,$C$2,$C$3,TRUE)) -> 0.3723111159 | M79: 0.5561173125 | P79: =LN(IF(ISBLANK(DataInput!A72),1,$Q$2/$R$2/((B79/$R$2)^($Q$2+1)))) -> -7.564710855 | Q79: =IF(ISBLANK(DataInput!A72),0,IF(B79<$R$2,0,1-(B79/$R$2)^(-$Q$2))) -> 0.9888814384 | R79: 0.6165703225 | U79: -4.856947857 | V79: 0.3357722029 | W79: 0.5926562255 | Y79: =IF(ISBLANK(DataInput!A72),"",B79-$B$1*0.9999) -> 21.2416409 | AA79: =LN(IF(ISBLANK(DataInput!A72),1,EXPONDIST(B79-$AC$2,$AB$2,FALSE))) -> -5.118452134 | AB79: =IF(ISBLANK(DataInput!A72),0,EXPONDIST(B79-$AC$2,$AB$2,TRUE)) -> 0.1369806979 | AC79: 0.7914477305 | AF79: =LN(IF(ISBLANK(DataInput!A72),1,GPDpdf(B79,$AH$2,$AI$2,$B$1))) -> -4.534790219 | AG79: 79 | AH79: =IF(ISBLANK(DataInput!A72),0,GPDcdff(B79,$AH$2,$AI$2,$B$1*0.999)) -> 0.3480141047 | AI79: 0.5804143237
A80: =MAX(0,A79-1/COUNT($B$8:INDIRECT("B"&(DataInput!$C$2+AG78)))) -> 0.9274274274 | B80: =IF(ISBLANK(DataInput!A73),"",DataInput!A73) -> 13.56630993 | C80: =IF(ISBLANK(DataInput!A73),"",LN(B80-0.999*$B$1)) -> 2.589691351 | D80: =DataInput!A73/AVERAGE(DataInput!$A$1:$A$10000) -> 0.09392922846 | F80: =LN(IF(ISBLANK(DataInput!A73),1,GAMMADIST(B80,$G$2,$H$2,TRUE))) -> -5.264695508 | G80: =IF(ISBLANK(DataInput!A73),0,GAMMADIST(B80-$I$2,$G$2,$H$2,TRUE)) -> 0.005000524665 | H80: 0.9224269028 | K80: =LN(IF(ISBLANK(DataInput!A73),1,NORMDIST(C80,$C$2,$C$3,FALSE))) -> -1.685482773 | L80: =IF(ISBLANK(DataInput!A73),0,NORMDIST(C80,$C$2,$C$3,TRUE)) -> 0.2801401358 | M80: 0.6472872916 | P80: =LN(IF(ISBLANK(DataInput!A73),1,$Q$2/$R$2/((B80/$R$2)^($Q$2+1)))) -> -6.644644528 | Q80: =IF(ISBLANK(DataInput!A73),0,IF(B80<$R$2,0,1-(B80/$R$2)^(-$Q$2))) -> 0.9823800345 | R80: 0.7022398987 | U80: -4.573056996 | V80: 0.2652174766 | W80: 0.6622099508 | Y80: =IF(ISBLANK(DataInput!A73),"",B80-$B$1*0.9999) -> 13.32544122 | AA80: =LN(IF(ISBLANK(DataInput!A73),1,EXPONDIST(B80-$AC$2,$AB$2,FALSE))) -> -5.063551076 | AB80: =IF(ISBLANK(DataInput!A73),0,EXPONDIST(B80-$AC$2,$AB$2,TRUE)) -> 0.08827526846 | AC80: 0.839152159 | AF80: =LN(IF(ISBLANK(DataInput!A73),1,GPDpdf(B80,$AH$2,$AI$2,$B$1))) -> -4.259197329 | AG80: 80 | AH80: =IF(ISBLANK(DataInput!A73),0,GPDcdff(B80,$AH$2,$AI$2,$B$1*0.999)) -> 0.2505289697 | AI80: 0.6768984578
A81: =MAX(0,A80-1/COUNT($B$8:INDIRECT("B"&(DataInput!$C$2+AG79)))) -> 0.9264264264 | B81: =IF(ISBLANK(DataInput!A74),"",DataInput!A74) -> 19.70889091 | C81: =IF(ISBLANK(DataInput!A74),"",LN(B81-0.999*$B$1)) -> 2.968784369 | D81: =DataInput!A74/AVERAGE(DataInput!$A$1:$A$10000) -> 0.1364586927 | F81: =LN(IF(ISBLANK(DataInput!A74),1,GAMMADIST(B81,$G$2,$H$2,TRUE))) -> -4.57032627 | G81: =IF(ISBLANK(DataInput!A74),0,GAMMADIST(B81-$I$2,$G$2,$H$2,TRUE)) -> 0.01012250017 | H81: 0.9163039263 | K81: =LN(IF(ISBLANK(DataInput!A74),1,NORMDIST(C81,$C$2,$C$3,FALSE))) -> -1.585712433 | L81: =IF(ISBLANK(DataInput!A74),0,NORMDIST(C81,$C$2,$C$3,TRUE)) -> 0.3543004166 | M81: 0.5721260098 | P81: =LN(IF(ISBLANK(DataInput!A74),1,$Q$2/$R$2/((B81/$R$2)^($Q$2+1)))) -> -7.392228544 | Q81: =IF(ISBLANK(DataInput!A74),0,IF(B81<$R$2,0,1-(B81/$R$2)^(-$Q$2))) -> 0.9878791272 | R81: 0.6335787106 | U81: -4.801627581 | V81: 0.3215996347 | W81: 0.6048267917 | Y81: =IF(ISBLANK(DataInput!A74),"",B81-$B$1*0.9999) -> 19.46802221 | AA81: =LN(IF(ISBLANK(DataInput!A74),1,EXPONDIST(B81-$AC$2,$AB$2,FALSE))) -> -5.106151593 | AB81: =IF(ISBLANK(DataInput!A74),0,EXPONDIST(B81-$AC$2,$AB$2,TRUE)) -> 0.1262995358 | AC81: 0.8001268906 | AF81: =LN(IF(ISBLANK(DataInput!A74),1,GPDpdf(B81,$AH$2,$AI$2,$B$1))) -> -4.476225844 | AG81: 81 | AH81: =IF(ISBLANK(DataInput!A74),0,GPDcdff(B81,$AH$2,$AI$2,$B$1*0.999)) -> 0.3284193322 | AI81: 0.5980070942
A82: =MAX(0,A81-1/COUNT($B$8:INDIRECT("B"&(DataInput!$C$2+AG80)))) -> 0.9254254254 | B82: =IF(ISBLANK(DataInput!A75),"",DataInput!A75) -> 7.715097904 | C82: =IF(ISBLANK(DataInput!A75),"",LN(B82-0.999*$B$1)) -> 2.011490003 | D82: =DataInput!A75/AVERAGE(DataInput!$A$1:$A$10000) -> 0.05341711913 | F82: =LN(IF(ISBLANK(DataInput!A75),1,GAMMADIST(B82,$G$2,$H$2,TRUE))) -> -6.329469833 | G82: =IF(ISBLANK(DataInput!A75),0,GAMMADIST(B82-$I$2,$G$2,$H$2,TRUE)) -> 0.001678844855 | H82: 0.9237465806 | K82: =LN(IF(ISBLANK(DataInput!A75),1,NORMDIST(C82,$C$2,$C$3,FALSE))) -> -1.921524222 | L82: =IF(ISBLANK(DataInput!A75),0,NORMDIST(C82,$C$2,$C$3,TRUE)) -> 0.1838677848 | M82: 0.7415576406 | P82: =LN(IF(ISBLANK(DataInput!A75),1,$Q$2/$R$2/((B82/$R$2)^($Q$2+1)))) -> -5.514881871 | Q82: =IF(ISBLANK(DataInput!A75),0,IF(B82<$R$2,0,1-(B82/$R$2)^(-$Q$2))) -> 0.9689876662 | R82: 0.7851198814 | U82: -4.254898487 | V82: 0.1949702763 | W82: 0.7304551491 | Y82: =IF(ISBLANK(DataInput!A75),"",B82-$B$1*0.9999) -> 7.474229196 | AA82: =LN(IF(ISBLANK(DataInput!A75),1,EXPONDIST(B82-$AC$2,$AB$2,FALSE))) -> -5.022971285 | AB82: =IF(ISBLANK(DataInput!A75),0,EXPONDIST(B82-$AC$2,$AB$2,TRUE)) -> 0.05051673379 | AC82: 0.8749086916 | AF82: =LN(IF(ISBLANK(DataInput!A75),1,GPDpdf(B82,$AH$2,$AI$2,$B$1))) -> -4.028270909 | AG82: 82 | AH82: =IF(ISBLANK(DataInput!A75),0,GPDcdff(B82,$AH$2,$AI$2,$B$1*0.999)) -> 0.1577068077 | AI82: 0.7677186177
A83: =MAX(0,A82-1/COUNT($B$8:INDIRECT("B"&(DataInput!$C$2+AG81)))) -> 0.9244244244 | B83: =IF(ISBLANK(DataInput!A76),"",DataInput!A76) -> 33.21839142 | C83: =IF(ISBLANK(DataInput!A76),"",LN(B83-0.999*$B$1)) -> 3.495832774 | D83: =DataInput!A76/AVERAGE(DataInput!$A$1:$A$10000) -> 0.229994589 | F83: =LN(IF(ISBLANK(DataInput!A76),1,GAMMADIST(B83,$G$2,$H$2,TRUE))) -> -3.621677215 | G83: =IF(ISBLANK(DataInput!A76),0,GAMMADIST(B83-$I$2,$G$2,$H$2,TRUE)) -> 0.02639294749 | H83: 0.8980314769 | K83: =LN(IF(ISBLANK(DataInput!A76),1,NORMDIST(C83,$C$2,$C$3,FALSE))) -> -1.519367458 | L83: =IF(ISBLANK(DataInput!A76),0,NORMDIST(C83,$C$2,$C$3,TRUE)) -> 0.4666882028 | M83: 0.4577362216 | P83: =LN(IF(ISBLANK(DataInput!A76),1,$Q$2/$R$2/((B83/$R$2)^($Q$2+1)))) -> -8.437167473 | Q83: =IF(ISBLANK(DataInput!A76),0,IF(B83<$R$2,0,1-(B83/$R$2)^(-$Q$2))) -> 0.9928147961 | R83: 0.5261265933 | U83: -5.154886416 | V83: 0.414034834 | W83: 0.5103895905 | Y83: =IF(ISBLANK(DataInput!A76),"",B83-$B$1*0.9999) -> 32.97752271 | AA83: =LN(IF(ISBLANK(DataInput!A76),1,EXPONDIST(B83-$AC$2,$AB$2,FALSE))) -> -5.199843756 | AB83: =IF(ISBLANK(DataInput!A76),0,EXPONDIST(B83-$AC$2,$AB$2,TRUE)) -> 0.2044406631 | AC83: 0.7199837613 | AF83: =LN(IF(ISBLANK(DataInput!A76),1,GPDpdf(B83,$AH$2,$AI$2,$B$1))) -> -4.884667207 | AG83: 83 | AH83: =IF(ISBLANK(DataInput!A76),0,GPDcdff(B83,$AH$2,$AI$2,$B$1*0.999)) -> 0.4537270778 | AI83: 0.4706973466
A84: =MAX(0,A83-1/COUNT($B$8:INDIRECT("B"&(DataInput!$C$2+AG82)))) -> 0.9234234234 | B84: =IF(ISBLANK(DataInput!A77),"",DataInput!A77) -> 40.88714981 | C84: =IF(ISBLANK(DataInput!A77),"",LN(B84-0.999*$B$1)) -> 3.70491268 | D84: =DataInput!A77/AVERAGE(DataInput!$A$1:$A$10000) -> 0.2830908667 | F84: =LN(IF(ISBLANK(DataInput!A77),1,GAMMADIST(B84,$G$2,$H$2,TRUE))) -> -3.25430507 | G84: =IF(ISBLANK(DataInput!A77),0,GAMMADIST(B84-$I$2,$G$2,$H$2,TRUE)) -> 0.03821042791 | H84: 0.8852129955 | K84: =LN(IF(ISBLANK(DataInput!A77),1,NORMDIST(C84,$C$2,$C$3,FALSE))) -> -1.516369313 | L84: =IF(ISBLANK(DataInput!A77),0,NORMDIST(C84,$C$2,$C$3,TRUE)) -> 0.5125646831 | M84: 0.4108587403 | P84: =LN(IF(ISBLANK(DataInput!A77),1,$Q$2/$R$2/((B84/$R$2)^($Q$2+1)))) -> -8.852938436 | Q84: =IF(ISBLANK(DataInput!A77),0,IF(B84<$R$2,0,1-(B84/$R$2)^(-$Q$2))) -> 0.9941644701 | R84: 0.481599787 | U84: -5.309327144 | V84: 0.4549652472 | W84: 0.4684581763 | Y84: =IF(ISBLANK(DataInput!A77),"",B84-$B$1*0.9999) -> 40.6462811 | AA84: =LN(IF(ISBLANK(DataInput!A77),1,EXPONDIST(B84-$AC$2,$AB$2,FALSE))) -> -5.253028739 | AB84: =IF(ISBLANK(DataInput!A77),0,EXPONDIST(B84-$AC$2,$AB$2,TRUE)) -> 0.2456469819 | AC84: 0.6777764416 | AF84: =LN(IF(ISBLANK(DataInput!A77),1,GPDpdf(B84,$AH$2,$AI$2,$B$1))) -> -5.084416555 | AG84: 84 | AH84: =IF(ISBLANK(DataInput!A77),0,GPDcdff(B84,$AH$2,$AI$2,$B$1*0.999)) -> 0.5062043686 | AI84: 0.4172190548
A85: =MAX(0,A84-1/COUNT($B$8:INDIRECT("B"&(DataInput!$C$2+AG83)))) -> 0.9224224224 | B85: =IF(ISBLANK(DataInput!A78),"",DataInput!A78) -> 284.4512024 | C85: =IF(ISBLANK(DataInput!A78),"",LN(B85-0.999*$B$1)) -> 5.649715338 | D85: =DataInput!A78/AVERAGE(DataInput!$A$1:$A$10000) -> 1.969458321 | F85: =LN(IF(ISBLANK(DataInput!A78),1,GAMMADIST(B85,$G$2,$H$2,TRUE))) -> -0.5004917009 | G85: =IF(ISBLANK(DataInput!A78),0,GAMMADIST(B85-$I$2,$G$2,$H$2,TRUE)) -> 0.6057827878 | H85: 0.3166396347 | K85: =LN(IF(ISBLANK(DataInput!A78),1,NORMDIST(C85,$C$2,$C$3,FALSE))) -> -2.123193421 | L85: =IF(ISBLANK(DataInput!A78),0,NORMDIST(C85,$C$2,$C$3,TRUE)) -> 0.8647924848 | M85: 0.05762993766 | P85: =LN(IF(ISBLANK(DataInput!A78),1,$Q$2/$R$2/((B85/$R$2)^($Q$2+1)))) -> -12.73566762 | Q85: =IF(ISBLANK(DataInput!A78),0,IF(B85<$R$2,0,1-(B85/$R$2)^(-$Q$2))) -> 0.9991639093 | R85: 0.1343714246 | U85: -7.444075988 | V85: 0.861742552 | W85: 0.06067987044 | Y85: =IF(ISBLANK(DataInput!A78),"",B85-$B$1*0.9999) -> 284.2103337 | AA85: =LN(IF(ISBLANK(DataInput!A78),1,EXPONDIST(B85-$AC$2,$AB$2,FALSE))) -> -6.942213538 | AB85: =IF(ISBLANK(DataInput!A78),0,EXPONDIST(B85-$AC$2,$AB$2,TRUE)) -> 0.8606936238 | AC85: 0.06172879866 | AF85: =LN(IF(ISBLANK(DataInput!A78),1,GPDpdf(B85,$AH$2,$AI$2,$B$1))) -> -7.881701548 | AG85: 85 | AH85: =IF(ISBLANK(DataInput!A78),0,GPDcdff(B85,$AH$2,$AI$2,$B$1*0.999)) -> 0.8799677596 | AI85: 0.04245466278
A86: =MAX(0,A85-1/COUNT($B$8:INDIRECT("B"&(DataInput!$C$2+AG84)))) -> 0.9214214214 | B86: =IF(ISBLANK(DataInput!A79),"",DataInput!A79) -> 5.605979919 | C86: =IF(ISBLANK(DataInput!A79),"",LN(B86-0.999*$B$1)) -> 1.679957514 | D86: =DataInput!A79/AVERAGE(DataInput!$A$1:$A$10000) -> 0.03881419276 | F86: =LN(IF(ISBLANK(DataInput!A79),1,GAMMADIST(B86,$G$2,$H$2,TRUE))) -> -6.937356648 | G86: =IF(ISBLANK(DataInput!A79),0,GAMMADIST(B86-$I$2,$G$2,$H$2,TRUE)) -> 0.0008928428411 | H86: 0.9205285786 | K86: =LN(IF(ISBLANK(DataInput!A79),1,NORMDIST(C86,$C$2,$C$3,FALSE))) -> -2.102567414 | L86: =IF(ISBLANK(DataInput!A79),0,NORMDIST(C86,$C$2,$C$3,TRUE)) -> 0.1393530472 | M86: 0.7820683742 | P86: =LN(IF(ISBLANK(DataInput!A79),1,$Q$2/$R$2/((B86/$R$2)^($Q$2+1)))) -> -4.875658278 | Q86: =IF(ISBLANK(DataInput!A79),0,IF(B86<$R$2,0,1-(B86/$R$2)^(-$Q$2))) -> 0.9572972518 | R86: 0.8179442046 | U86: -4.085248728 | V86: 0.162473804 | W86: 0.7589476175 | Y86: =IF(ISBLANK(DataInput!A79),"",B86-$B$1*0.9999) -> 5.365111211 | AA86: =LN(IF(ISBLANK(DataInput!A79),1,EXPONDIST(B86-$AC$2,$AB$2,FALSE))) -> -5.008343962 | AB86: =IF(ISBLANK(DataInput!A79),0,EXPONDIST(B86-$AC$2,$AB$2,TRUE)) -> 0.03652626337 | AC86: 0.8848951581 | AF86: =LN(IF(ISBLANK(DataInput!A79),1,GPDpdf(B86,$AH$2,$AI$2,$B$1))) -> -3.938114242 | AG86: 86 | AH86: =IF(ISBLANK(DataInput!A79),0,GPDcdff(B86,$AH$2,$AI$2,$B$1*0.999)) -> 0.1184224643 | AI86: 0.8029989571
A87: =MAX(0,A86-1/COUNT($B$8:INDIRECT("B"&(DataInput!$C$2+AG85)))) -> 0.9204204204 | B87: =IF(ISBLANK(DataInput!A80),"",DataInput!A80) -> 41.10480881 | C87: =IF(ISBLANK(DataInput!A80),"",LN(B87-0.999*$B$1)) -> 3.710253319 | D87: =DataInput!A80/AVERAGE(DataInput!$A$1:$A$10000) -> 0.284597875 | F87: =LN(IF(ISBLANK(DataInput!A80),1,GAMMADIST(B87,$G$2,$H$2,TRUE))) -> -3.245008988 | G87: =IF(ISBLANK(DataInput!A80),0,GAMMADIST(B87-$I$2,$G$2,$H$2,TRUE)) -> 0.03856962361 | H87: 0.8818507968 | K87: =LN(IF(ISBLANK(DataInput!A80),1,NORMDIST(C87,$C$2,$C$3,FALSE))) -> -1.516466245 | L87: =IF(ISBLANK(DataInput!A80),0,NORMDIST(C87,$C$2,$C$3,TRUE)) -> 0.5137369371 | M87: 0.4066834833 | P87: =LN(IF(ISBLANK(DataInput!A80),1,$Q$2/$R$2/((B87/$R$2)^($Q$2+1)))) -> -8.863565876 | Q87: =IF(ISBLANK(DataInput!A80),0,IF(B87<$R$2,0,1-(B87/$R$2)^(-$Q$2))) -> 0.9941954219 | R87: 0.4804584849 | U87: -5.313395289 | V87: 0.4560394381 | W87: 0.4643809823 | Y87: =IF(ISBLANK(DataInput!A80),"",B87-$B$1*0.9999) -> 40.8639401 | AA87: =LN(IF(ISBLANK(DataInput!A80),1,EXPONDIST(B87-$AC$2,$AB$2,FALSE))) -> -5.254538265 | AB87: =IF(ISBLANK(DataInput!A80),0,EXPONDIST(B87-$AC$2,$AB$2,TRUE)) -> 0.2467848383 | AC87: 0.6736355821 | AF87: =LN(IF(ISBLANK(DataInput!A80),1,GPDpdf(B87,$AH$2,$AI$2,$B$1))) -> -5.089807821 | AG87: 87 | AH87: =IF(ISBLANK(DataInput!A80),0,GPDcdff(B87,$AH$2,$AI$2,$B$1*0.999)) -> 0.5075485853 | AI87: 0.4128718351
A88: =MAX(0,A87-1/COUNT($B$8:INDIRECT("B"&(DataInput!$C$2+AG86)))) -> 0.9194194194 | B88: =IF(ISBLANK(DataInput!A81),"",DataInput!A81) -> 34.9361496 | C88: =IF(ISBLANK(DataInput!A81),"",LN(B88-0.999*$B$1)) -> 3.546609929 | D88: =DataInput!A81/AVERAGE(DataInput!$A$1:$A$10000) -> 0.2418878526 | F88: =LN(IF(ISBLANK(DataInput!A81),1,GAMMADIST(B88,$G$2,$H$2,TRUE))) -> -3.531876658 | G88: =IF(ISBLANK(DataInput!A81),0,GAMMADIST(B88-$I$2,$G$2,$H$2,TRUE)) -> 0.0288927264 | H88: 0.890526693 | K88: =LN(IF(ISBLANK(DataInput!A81),1,NORMDIST(C88,$C$2,$C$3,FALSE))) -> -1.51742136 | L88: =IF(ISBLANK(DataInput!A81),0,NORMDIST(C88,$C$2,$C$3,TRUE)) -> 0.4778123417 | M88: 0.4416070778 | P88: =LN(IF(ISBLANK(DataInput!A81),1,$Q$2/$R$2/((B88/$R$2)^($Q$2+1)))) -> -8.538088456 | Q88: =IF(ISBLANK(DataInput!A81),0,IF(B88<$R$2,0,1-(B88/$R$2)^(-$Q$2))) -> 0.9931686567 | R88: 0.5153563151 | U88: -5.1915575 | V88: 0.4237675919 | W88: 0.4956518275 | Y88: =IF(ISBLANK(DataInput!A81),"",B88-$B$1*0.9999) -> 34.69528089 | AA88: =LN(IF(ISBLANK(DataInput!A81),1,EXPONDIST(B88-$AC$2,$AB$2,FALSE))) -> -5.211756889 | AB88: =IF(ISBLANK(DataInput!A81),0,EXPONDIST(B88-$AC$2,$AB$2,TRUE)) -> 0.213862037 | AC88: 0.7055573824 | AF88: =LN(IF(ISBLANK(DataInput!A81),1,GPDpdf(B88,$AH$2,$AI$2,$B$1))) -> -4.931155363 | AG88: 88 | AH88: =IF(ISBLANK(DataInput!A81),0,GPDcdff(B88,$AH$2,$AI$2,$B$1*0.999)) -> 0.4664176395 | AI88: 0.45300178
A89: =MAX(0,A88-1/COUNT($B$8:INDIRECT("B"&(DataInput!$C$2+AG87)))) -> 0.9184184184 | B89: =IF(ISBLANK(DataInput!A82),"",DataInput!A82) -> 35.0952301 | C89: =IF(ISBLANK(DataInput!A82),"",LN(B89-0.999*$B$1)) -> 3.551184497 | D89: =DataInput!A82/AVERAGE(DataInput!$A$1:$A$10000) -> 0.2429892803 | F89: =LN(IF(ISBLANK(DataInput!A82),1,GAMMADIST(B89,$G$2,$H$2,TRUE))) -> -3.523803671 | G89: =IF(ISBLANK(DataInput!A82),0,GAMMADIST(B89-$I$2,$G$2,$H$2,TRUE)) -> 0.02912868864 | H89: 0.8892897298 | K89: =LN(IF(ISBLANK(DataInput!A82),1,NORMDIST(C89,$C$2,$C$3,FALSE))) -> -1.517284401 | L89: =IF(ISBLANK(DataInput!A82),0,NORMDIST(C89,$C$2,$C$3,TRUE)) -> 0.4788155066 | M89: 0.4396029118 | P89: =LN(IF(ISBLANK(DataInput!A82),1,$Q$2/$R$2/((B89/$R$2)^($Q$2+1)))) -> -8.547182295 | Q89: =IF(ISBLANK(DataInput!A82),0,IF(B89<$R$2,0,1-(B89/$R$2)^(-$Q$2))) -> 0.9931996736 | R89: 0.5143841669 | U89: -5.194886768 | V89: 0.4246511377 | W89: 0.4937672807 | Y89: =IF(ISBLANK(DataInput!A82),"",B89-$B$1*0.9999) -> 34.85436139 | AA89: =LN(IF(ISBLANK(DataInput!A82),1,EXPONDIST(B89-$AC$2,$AB$2,FALSE))) -> -5.212860157 | AB89: =IF(ISBLANK(DataInput!A82),0,EXPONDIST(B89-$AC$2,$AB$2,TRUE)) -> 0.2147288794 | AC89: 0.703689539 | AF89: =LN(IF(ISBLANK(DataInput!A82),1,GPDpdf(B89,$AH$2,$AI$2,$B$1))) -> -4.935407034 | AG89: 89 | AH89: =IF(ISBLANK(DataInput!A82),0,GPDcdff(B89,$AH$2,$AI$2,$B$1*0.999)) -> 0.467563462 | AI89: 0.4508549564
A90: =MAX(0,A89-1/COUNT($B$8:INDIRECT("B"&(DataInput!$C$2+AG88)))) -> 0.9174174174 | B90: =IF(ISBLANK(DataInput!A83),"",DataInput!A83) -> 389.0331116 | C90: =IF(ISBLANK(DataInput!A83),"",LN(B90-0.999*$B$1)) -> 5.963045679 | D90: =DataInput!A83/AVERAGE(DataInput!$A$1:$A$10000) -> 2.693553384 | F90: =LN(IF(ISBLANK(DataInput!A83),1,GAMMADIST(B90,$G$2,$H$2,TRUE))) -> -0.2665715681 | G90: =IF(ISBLANK(DataInput!A83),0,GAMMADIST(B90-$I$2,$G$2,$H$2,TRUE)) -> 0.7657094797 | H90: 0.1517079378 | K90: =LN(IF(ISBLANK(DataInput!A83),1,NORMDIST(C90,$C$2,$C$3,FALSE))) -> -2.328168816 | L90: =IF(ISBLANK(DataInput!A83),0,NORMDIST(C90,$C$2,$C$3,TRUE)) -> 0.8987736065 | M90: 0.01864381097 | P90: =LN(IF(ISBLANK(DataInput!A83),1,$Q$2/$R$2/((B90/$R$2)^($Q$2+1)))) -> -13.36239567 | Q90: =IF(ISBLANK(DataInput!A83),0,IF(B90<$R$2,0,1-(B90/$R$2)^(-$Q$2))) -> 0.999388991 | R90: 0.1006153845 | U90: -7.981992765 | V90: 0.9087017689 | W90: 0.008715648484 | Y90: =IF(ISBLANK(DataInput!A83),"",B90-$B$1*0.9999) -> 388.7922429 | AA90: =LN(IF(ISBLANK(DataInput!A83),1,EXPONDIST(B90-$AC$2,$AB$2,FALSE))) -> -7.667518317 | AB90: =IF(ISBLANK(DataInput!A83),0,EXPONDIST(B90-$AC$2,$AB$2,TRUE)) -> 0.9325510595 | AC90: 0.01513364209 | AF90: =LN(IF(ISBLANK(DataInput!A83),1,GPDpdf(B90,$AH$2,$AI$2,$B$1))) -> -8.44584005 | AG90: 90 | AH90: =IF(ISBLANK(DataInput!A83),0,GPDcdff(B90,$AH$2,$AI$2,$B$1*0.999)) -> 0.9097556695 | AI90: 0.00766174791
A91: =MAX(0,A90-1/COUNT($B$8:INDIRECT("B"&(DataInput!$C$2+AG89)))) -> 0.9164164164 | B91: =IF(ISBLANK(DataInput!A84),"",DataInput!A84) -> 3.519464016 | C91: =IF(ISBLANK(DataInput!A84),"",LN(B91-0.999*$B$1)) -> 1.187481196 | D91: =DataInput!A84/AVERAGE(DataInput!$A$1:$A$10000) -> 0.0243677567 | F91: =LN(IF(ISBLANK(DataInput!A84),1,GAMMADIST(B91,$G$2,$H$2,TRUE))) -> -7.827989131 | G91: =IF(ISBLANK(DataInput!A84),0,GAMMADIST(B91-$I$2,$G$2,$H$2,TRUE)) -> 0.0003478135107 | H91: 0.9160686029 | K91: =LN(IF(ISBLANK(DataInput!A84),1,NORMDIST(C91,$C$2,$C$3,FALSE))) -> -2.432987628 | L91: =IF(ISBLANK(DataInput!A84),0,NORMDIST(C91,$C$2,$C$3,TRUE)) -> 0.08781443271 | M91: 0.8286019837 | P91: =LN(IF(ISBLANK(DataInput!A84),1,$Q$2/$R$2/((B91/$R$2)^($Q$2+1)))) -> -3.943831001 | Q91: =IF(ISBLANK(DataInput!A84),0,IF(B91<$R$2,0,1-(B91/$R$2)^(-$Q$2))) -> 0.9319280391 | R91: 0.8441136064 | U91: -3.846164215 | V91: 0.1231718211 | W91: 0.7932445953 | Y91: =IF(ISBLANK(DataInput!A84),"",B91-$B$1*0.9999) -> 3.278595308 | AA91: =LN(IF(ISBLANK(DataInput!A84),1,EXPONDIST(B91-$AC$2,$AB$2,FALSE))) -> -4.993873391 | AB91: =IF(ISBLANK(DataInput!A84),0,EXPONDIST(B91-$AC$2,$AB$2,TRUE)) -> 0.02248288533 | AC91: 0.8939335311 | AF91: =LN(IF(ISBLANK(DataInput!A84),1,GPDpdf(B91,$AH$2,$AI$2,$B$1))) -> -3.844785845 | AG91: 91 | AH91: =IF(ISBLANK(DataInput!A84),0,GPDcdff(B91,$AH$2,$AI$2,$B$1*0.999)) -> 0.07582502339 | AI91: 0.840591393
A92: =MAX(0,A91-1/COUNT($B$8:INDIRECT("B"&(DataInput!$C$2+AG90)))) -> 0.9154154154 | B92: =IF(ISBLANK(DataInput!A85),"",DataInput!A85) -> 16.17400932 | C92: =IF(ISBLANK(DataInput!A85),"",LN(B92-0.999*$B$1)) -> 2.768414862 | D92: =DataInput!A85/AVERAGE(DataInput!$A$1:$A$10000) -> 0.1119841891 | F92: =LN(IF(ISBLANK(DataInput!A85),1,GAMMADIST(B92,$G$2,$H$2,TRUE))) -> -4.936548838 | G92: =IF(ISBLANK(DataInput!A85),0,GAMMADIST(B92-$I$2,$G$2,$H$2,TRUE)) -> 0.006981819777 | H92: 0.9084335956 | K92: =LN(IF(ISBLANK(DataInput!A85),1,NORMDIST(C92,$C$2,$C$3,FALSE))) -> -1.633019859 | L92: =IF(ISBLANK(DataInput!A85),0,NORMDIST(C92,$C$2,$C$3,TRUE)) -> 0.3141792415 | M92: 0.6012361739 | P92: =LN(IF(ISBLANK(DataInput!A85),1,$Q$2/$R$2/((B92/$R$2)^($Q$2+1)))) -> -6.996570128 | Q92: =IF(ISBLANK(DataInput!A85),0,IF(B92<$R$2,0,1-(B92/$R$2)^(-$Q$2))) -> 0.9852251982 | R92: 0.6710459567 | U92: -4.678532892 | V92: 0.2907420488 | W92: 0.6246733666 | Y92: =IF(ISBLANK(DataInput!A85),"",B92-$B$1*0.9999) -> 15.93314061 | AA92: =LN(IF(ISBLANK(DataInput!A85),1,EXPONDIST(B92-$AC$2,$AB$2,FALSE))) -> -5.081636201 | AB92: =IF(ISBLANK(DataInput!A85),0,EXPONDIST(B92-$AC$2,$AB$2,TRUE)) -> 0.1046157187 | AC92: 0.8107996967 | AF92: =LN(IF(ISBLANK(DataInput!A85),1,GPDpdf(B92,$AH$2,$AI$2,$B$1))) -> -4.35419057 | AG92: 92 | AH92: =IF(ISBLANK(DataInput!A85),0,GPDcdff(B92,$AH$2,$AI$2,$B$1*0.999)) -> 0.2856754736 | AI92: 0.6297399418
A93: =MAX(0,A92-1/COUNT($B$8:INDIRECT("B"&(DataInput!$C$2+AG91)))) -> 0.9144144144 | B93: =IF(ISBLANK(DataInput!A86),"",DataInput!A86) -> 28.40460968 | C93: =IF(ISBLANK(DataInput!A86),"",LN(B93-0.999*$B$1)) -> 3.338043067 | D93: =DataInput!A86/AVERAGE(DataInput!$A$1:$A$10000) -> 0.1966653486 | F93: =LN(IF(ISBLANK(DataInput!A86),1,GAMMADIST(B93,$G$2,$H$2,TRUE))) -> -3.902796407 | G93: =IF(ISBLANK(DataInput!A86),0,GAMMADIST(B93-$I$2,$G$2,$H$2,TRUE)) -> 0.01987749376 | H93: 0.8945369207 | K93: =LN(IF(ISBLANK(DataInput!A86),1,NORMDIST(C93,$C$2,$C$3,FALSE))) -> -1.530401529 | L93: =IF(ISBLANK(DataInput!A86),0,NORMDIST(C93,$C$2,$C$3,TRUE)) -> 0.4323240981 | M93: 0.4820903163 | P93: =LN(IF(ISBLANK(DataInput!A86),1,$Q$2/$R$2/((B93/$R$2)^($Q$2+1)))) -> -8.123801718 | Q93: =IF(ISBLANK(DataInput!A86),0,IF(B93<$R$2,0,1-(B93/$R$2)^(-$Q$2))) -> 0.9915949105 | R93: 0.5592708124 | U93: -5.044110342 | V93: 0.384687983 | W93: 0.5297264314 | Y93: =IF(ISBLANK(DataInput!A86),"",B93-$B$1*0.9999) -> 28.16374097 | AA93: =LN(IF(ISBLANK(DataInput!A86),1,EXPONDIST(B93-$AC$2,$AB$2,FALSE))) -> -5.166458833 | AB93: =IF(ISBLANK(DataInput!A86),0,EXPONDIST(B93-$AC$2,$AB$2,TRUE)) -> 0.1774326549 | AC93: 0.7369817595 | AF93: =LN(IF(ISBLANK(DataInput!A86),1,GPDpdf(B93,$AH$2,$AI$2,$B$1))) -> -4.748392812 | AG93: 93 | AH93: =IF(ISBLANK(DataInput!A86),0,GPDcdff(B93,$AH$2,$AI$2,$B$1*0.999)) -> 0.4147602723 | AI93: 0.4996541421
A94: =MAX(0,A93-1/COUNT($B$8:INDIRECT("B"&(DataInput!$C$2+AG92)))) -> 0.9134134134 | B94: =IF(ISBLANK(DataInput!A87),"",DataInput!A87) -> 34.92855072 | C94: =IF(ISBLANK(DataInput!A87),"",LN(B94-0.999*$B$1)) -> 3.546390889 | D94: =DataInput!A87/AVERAGE(DataInput!$A$1:$A$10000) -> 0.2418352402 | F94: =LN(IF(ISBLANK(DataInput!A87),1,GAMMADIST(B94,$G$2,$H$2,TRUE))) -> -3.532263283 | G94: =IF(ISBLANK(DataInput!A87),0,GAMMADIST(B94-$I$2,$G$2,$H$2,TRUE)) -> 0.02888147379 | H94: 0.8845319396 | K94: =LN(IF(ISBLANK(DataInput!A87),1,NORMDIST(C94,$C$2,$C$3,FALSE))) -> -1.517428077 | L94: =IF(ISBLANK(DataInput!A87),0,NORMDIST(C94,$C$2,$C$3,TRUE)) -> 0.4777643114 | M94: 0.435649102 | P94: =LN(IF(ISBLANK(DataInput!A87),1,$Q$2/$R$2/((B94/$R$2)^($Q$2+1)))) -> -8.53765303 | Q94: =IF(ISBLANK(DataInput!A87),0,IF(B94<$R$2,0,1-(B94/$R$2)^(-$Q$2))) -> 0.993167168 | R94: 0.5154028566 | U94: -5.191398194 | V94: 0.4237253135 | W94: 0.4896881 | Y94: =IF(ISBLANK(DataInput!A87),"",B94-$B$1*0.9999) -> 34.68768201 | AA94: =LN(IF(ISBLANK(DataInput!A87),1,EXPONDIST(B94-$AC$2,$AB$2,FALSE))) -> -5.211704189 | AB94: =IF(ISBLANK(DataInput!A87),0,EXPONDIST(B94-$AC$2,$AB$2,TRUE)) -> 0.2138206062 | AC94: 0.6995928073 | AF94: =LN(IF(ISBLANK(DataInput!A87),1,GPDpdf(B94,$AH$2,$AI$2,$B$1))) -> -4.930952048 | AG94: 94 | AH94: =IF(ISBLANK(DataInput!A87),0,GPDcdff(B94,$AH$2,$AI$2,$B$1*0.999)) -> 0.4663627843 | AI94: 0.4470506291
A95: =MAX(0,A94-1/COUNT($B$8:INDIRECT("B"&(DataInput!$C$2+AG93)))) -> 0.9124124124 | B95: =IF(ISBLANK(DataInput!A88),"",DataInput!A88) -> 16.85042953 | C95: =IF(ISBLANK(DataInput!A88),"",LN(B95-0.999*$B$1)) -> 2.809991536 | D95: =DataInput!A88/AVERAGE(DataInput!$A$1:$A$10000) -> 0.1166675281 | F95: =LN(IF(ISBLANK(DataInput!A88),1,GAMMADIST(B95,$G$2,$H$2,TRUE))) -> -4.8603889 | G95: =IF(ISBLANK(DataInput!A88),0,GAMMADIST(B95-$I$2,$G$2,$H$2,TRUE)) -> 0.007543159103 | H95: 0.9048692533 | K95: =LN(IF(ISBLANK(DataInput!A88),1,NORMDIST(C95,$C$2,$C$3,FALSE))) -> -1.6222032 | L95: =IF(ISBLANK(DataInput!A88),0,NORMDIST(C95,$C$2,$C$3,TRUE)) -> 0.3223452177 | M95: 0.5900671947 | P95: =LN(IF(ISBLANK(DataInput!A88),1,$Q$2/$R$2/((B95/$R$2)^($Q$2+1)))) -> -7.078579622 | Q95: =IF(ISBLANK(DataInput!A88),0,IF(B95<$R$2,0,1-(B95/$R$2)^(-$Q$2))) -> 0.985819267 | R95: 0.6634740493 | U95: -4.703635123 | V95: 0.2969491145 | W95: 0.6154632979 | Y95: =IF(ISBLANK(DataInput!A88),"",B95-$B$1*0.9999) -> 16.60956083 | AA95: =LN(IF(ISBLANK(DataInput!A88),1,EXPONDIST(B95-$AC$2,$AB$2,FALSE))) -> -5.086327364 | AB95: =IF(ISBLANK(DataInput!A88),0,EXPONDIST(B95-$AC$2,$AB$2,TRUE)) -> 0.1088062756 | AC95: 0.8036061368 | AF95: =LN(IF(ISBLANK(DataInput!A88),1,GPDpdf(B95,$AH$2,$AI$2,$B$1))) -> -4.378119454 | AG95: 95 | AH95: =IF(ISBLANK(DataInput!A88),0,GPDcdff(B95,$AH$2,$AI$2,$B$1*0.999)) -> 0.2942659246 | AI95: 0.6181464879
A96: =MAX(0,A95-1/COUNT($B$8:INDIRECT("B"&(DataInput!$C$2+AG94)))) -> 0.9114114114 | B96: =IF(ISBLANK(DataInput!A89),"",DataInput!A89) -> 275.4072876 | C96: =IF(ISBLANK(DataInput!A89),"",LN(B96-0.999*$B$1)) -> 5.617376862 | D96: =DataInput!A89/AVERAGE(DataInput!$A$1:$A$10000) -> 1.906840856 | F96: =LN(IF(ISBLANK(DataInput!A89),1,GAMMADIST(B96,$G$2,$H$2,TRUE))) -> -0.5292275487 | G96: =IF(ISBLANK(DataInput!A89),0,GAMMADIST(B96-$I$2,$G$2,$H$2,TRUE)) -> 0.5885952243 | H96: 0.3228161871 | K96: =LN(IF(ISBLANK(DataInput!A89),1,NORMDIST(C96,$C$2,$C$3,FALSE))) -> -2.103731925 | L96: =IF(ISBLANK(DataInput!A89),0,NORMDIST(C96,$C$2,$C$3,TRUE)) -> 0.8608852213 | M96: 0.05052619015 | P96: =LN(IF(ISBLANK(DataInput!A89),1,$Q$2/$R$2/((B96/$R$2)^($Q$2+1)))) -> -12.67099236 | Q96: =IF(ISBLANK(DataInput!A89),0,IF(B96<$R$2,0,1-(B96/$R$2)^(-$Q$2))) -> 0.9991364069 | R96: 0.1382511857 | U96: -7.392885859 | V96: 0.8563154745 | W96: 0.05509593691 | Y96: =IF(ISBLANK(DataInput!A89),"",B96-$B$1*0.9999) -> 275.1664189 | AA96: =LN(IF(ISBLANK(DataInput!A89),1,EXPONDIST(B96-$AC$2,$AB$2,FALSE))) -> -6.879491461 | AB96: =IF(ISBLANK(DataInput!A89),0,EXPONDIST(B96-$AC$2,$AB$2,TRUE)) -> 0.8516761987 | AC96: 0.05973521274 | AF96: =LN(IF(ISBLANK(DataInput!A89),1,GPDpdf(B96,$AH$2,$AI$2,$B$1))) -> -7.824637047 | AG96: 96 | AH96: =IF(ISBLANK(DataInput!A89),0,GPDcdff(B96,$AH$2,$AI$2,$B$1*0.999)) -> 0.8764540297 | AI96: 0.03495738166
A97: =MAX(0,A96-1/COUNT($B$8:INDIRECT("B"&(DataInput!$C$2+AG95)))) -> 0.9104104104 | B97: =IF(ISBLANK(DataInput!A90),"",DataInput!A90) -> 122.8803024 | C97: =IF(ISBLANK(DataInput!A90),"",LN(B97-0.999*$B$1)) -> 4.809250385 | D97: =DataInput!A90/AVERAGE(DataInput!$A$1:$A$10000) -> 0.8507878753 | F97: =LN(IF(ISBLANK(DataInput!A90),1,GAMMADIST(B97,$G$2,$H$2,TRUE))) -> -1.482253358 | G97: =IF(ISBLANK(DataInput!A90),0,GAMMADIST(B97-$I$2,$G$2,$H$2,TRUE)) -> 0.2264957672 | H97: 0.6839146432 | K97: =LN(IF(ISBLANK(DataInput!A90),1,NORMDIST(C97,$C$2,$C$3,FALSE))) -> -1.720311268 | L97: =IF(ISBLANK(DataInput!A90),0,NORMDIST(C97,$C$2,$C$3,TRUE)) -> 0.7387297662 | M97: 0.1716806442 | P97: =LN(IF(ISBLANK(DataInput!A90),1,$Q$2/$R$2/((B97/$R$2)^($Q$2+1)))) -> -11.05556478 | Q97: =IF(ISBLANK(DataInput!A90),0,IF(B97<$R$2,0,1-(B97/$R$2)^(-$Q$2))) -> 0.9980618505 | R97: 0.2593320843 | U97: -6.323000066 | V97: 0.6949581884 | W97: 0.215452222 | Y97: =IF(ISBLANK(DataInput!A90),"",B97-$B$1*0.9999) -> 122.6394337 | AA97: =LN(IF(ISBLANK(DataInput!A90),1,EXPONDIST(B97-$AC$2,$AB$2,FALSE))) -> -5.821674176 | AB97: =IF(ISBLANK(DataInput!A90),0,EXPONDIST(B97-$AC$2,$AB$2,TRUE)) -> 0.5728159223 | AC97: 0.3375944881 | AF97: =LN(IF(ISBLANK(DataInput!A90),1,GPDpdf(B97,$AH$2,$AI$2,$B$1))) -> -6.491906917 | AG97: 97 | AH97: =IF(ISBLANK(DataInput!A90),0,GPDcdff(B97,$AH$2,$AI$2,$B$1*0.999)) -> 0.7576294443 | AI97: 0.1527809661
A98: =MAX(0,A97-1/COUNT($B$8:INDIRECT("B"&(DataInput!$C$2+AG96)))) -> 0.9094094094 | B98: =IF(ISBLANK(DataInput!A91),"",DataInput!A91) -> 1.898115039 | C98: =IF(ISBLANK(DataInput!A91),"",LN(B98-0.999*$B$1)) -> 0.5052882009 | D98: =DataInput!A91/AVERAGE(DataInput!$A$1:$A$10000) -> 0.01314200266 | F98: =LN(IF(ISBLANK(DataInput!A91),1,GAMMADIST(B98,$G$2,$H$2,TRUE))) -> -9.014492236 | G98: =IF(ISBLANK(DataInput!A91),0,GAMMADIST(B98-$I$2,$G$2,$H$2,TRUE)) -> 9.368814696e-05 | H98: 0.9093157213 | K98: =LN(IF(ISBLANK(DataInput!A91),1,NORMDIST(C98,$C$2,$C$3,FALSE))) -> -3.012118937 | L98: =IF(ISBLANK(DataInput!A91),0,NORMDIST(C98,$C$2,$C$3,TRUE)) -> 0.04182568571 | M98: 0.8675837237 | P98: =LN(IF(ISBLANK(DataInput!A91),1,$Q$2/$R$2/((B98/$R$2)^($Q$2+1)))) -> -2.707905689 | Q98: =IF(ISBLANK(DataInput!A91),0,IF(B98<$R$2,0,1-(B98/$R$2)^(-$Q$2))) -> 0.873651583 | R98: 0.8318258973 | U98: -3.533880171 | V98: 0.0831707672 | W98: 0.8262386422 | Y98: =IF(ISBLANK(DataInput!A91),"",B98-$B$1*0.9999) -> 1.65724633 | AA98: =LN(IF(ISBLANK(DataInput!A91),1,EXPONDIST(B98-$AC$2,$AB$2,FALSE))) -> -4.982628883 | AB98: =IF(ISBLANK(DataInput!A91),0,EXPONDIST(B98-$AC$2,$AB$2,TRUE)) -> 0.01142915547 | AC98: 0.8979802539 | AF98: =LN(IF(ISBLANK(DataInput!A91),1,GPDpdf(B98,$AH$2,$AI$2,$B$1))) -> -3.769168981 | AG98: 98 | AH98: =IF(ISBLANK(DataInput!A91),0,GPDcdff(B98,$AH$2,$AI$2,$B$1*0.999)) -> 0.0398066993 | AI98: 0.8696027101
A99: =MAX(0,A98-1/COUNT($B$8:INDIRECT("B"&(DataInput!$C$2+AG97)))) -> 0.9084084084 | B99: =IF(ISBLANK(DataInput!A92),"",DataInput!A92) -> 3.918333054 | C99: =IF(ISBLANK(DataInput!A92),"",LN(B99-0.999*$B$1)) -> 1.302282431 | D99: =DataInput!A92/AVERAGE(DataInput!$A$1:$A$10000) -> 0.0271294112 | F99: =LN(IF(ISBLANK(DataInput!A92),1,GAMMADIST(B99,$G$2,$H$2,TRUE))) -> -7.622220594 | G99: =IF(ISBLANK(DataInput!A92),0,GAMMADIST(B99-$I$2,$G$2,$H$2,TRUE)) -> 0.0004334722512 | H99: 0.9079749362 | K99: =LN(IF(ISBLANK(DataInput!A92),1,NORMDIST(C99,$C$2,$C$3,FALSE))) -> -2.34939364 | L99: =IF(ISBLANK(DataInput!A92),0,NORMDIST(C99,$C$2,$C$3,TRUE)) -> 0.09832767423 | M99: 0.8100807342 | P99: =LN(IF(ISBLANK(DataInput!A92),1,$Q$2/$R$2/((B99/$R$2)^($Q$2+1)))) -> -4.158725404 | Q99: =IF(ISBLANK(DataInput!A92),0,IF(B99<$R$2,0,1-(B99/$R$2)^(-$Q$2))) -> 0.9388684192 | R99: 0.840540745 | U99: -3.900705278 | V99: 0.1314602115 | W99: 0.7769481969 | Y99: =IF(ISBLANK(DataInput!A92),"",B99-$B$1*0.9999) -> 3.677464345 | AA99: =LN(IF(ISBLANK(DataInput!A92),1,EXPONDIST(B99-$AC$2,$AB$2,FALSE))) -> -4.996639659 | AB99: =IF(ISBLANK(DataInput!A92),0,EXPONDIST(B99-$AC$2,$AB$2,TRUE)) -> 0.02518322328 | AC99: 0.8832251851 | AF99: =LN(IF(ISBLANK(DataInput!A92),1,GPDpdf(B99,$AH$2,$AI$2,$B$1))) -> -3.862963055 | AG99: 99 | AH99: =IF(ISBLANK(DataInput!A92),0,GPDcdff(B99,$AH$2,$AI$2,$B$1*0.999)) -> 0.08427993783 | AI99: 0.8241284706
A100: =MAX(0,A99-1/COUNT($B$8:INDIRECT("B"&(DataInput!$C$2+AG98)))) -> 0.9074074074 | B100: =IF(ISBLANK(DataInput!A93),"",DataInput!A93) -> 438.7396851 | C100: =IF(ISBLANK(DataInput!A93),"",LN(B100-0.999*$B$1)) -> 6.083357607 | D100: =DataInput!A93/AVERAGE(DataInput!$A$1:$A$10000) -> 3.037707404 | F100: =LN(IF(ISBLANK(DataInput!A93),1,GAMMADIST(B100,$G$2,$H$2,TRUE))) -> -0.198704196 | G100: =IF(ISBLANK(DataInput!A93),0,GAMMADIST(B100-$I$2,$G$2,$H$2,TRUE)) -> 0.8195611534 | H100: 0.08784625401 | K100: =LN(IF(ISBLANK(DataInput!A93),1,NORMDIST(C100,$C$2,$C$3,FALSE))) -> -2.41478016 | L100: =IF(ISBLANK(DataInput!A93),0,NORMDIST(C100,$C$2,$C$3,TRUE)) -> 0.9100114992 | M100: 0.002604091753 | P100: =LN(IF(ISBLANK(DataInput!A93),1,$Q$2/$R$2/((B100/$R$2)^($Q$2+1)))) -> -13.60307996 | Q100: =IF(ISBLANK(DataInput!A93),0,IF(B100<$R$2,0,1-(B100/$R$2)^(-$Q$2))) -> 0.9994583233 | R100: 0.08944682417 | U100: -8.210747381 | V100: 0.9238595658 | W100: 0.01645215837 | Y100: =IF(ISBLANK(DataInput!A93),"",B100-$B$1*0.9999) -> 438.4988164 | AA100: =LN(IF(ISBLANK(DataInput!A93),1,EXPONDIST(B100-$AC$2,$AB$2,FALSE))) -> -8.012247301 | AB100: =IF(ISBLANK(DataInput!A93),0,EXPONDIST(B100-$AC$2,$AB$2,TRUE)) -> 0.9522183397 | AC100: 0.04481093227 | AF100: =LN(IF(ISBLANK(DataInput!A93),1,GPDpdf(B100,$AH$2,$AI$2,$B$1))) -> -8.667252203 | AG100: 100 | AH100: =IF(ISBLANK(DataInput!A93),0,GPDcdff(B100,$AH$2,$AI$2,$B$1*0.999)) -> 0.9193135713 | AI100: 0.01190616384
A101: =MAX(0,A100-1/COUNT($B$8:INDIRECT("B"&(DataInput!$C$2+AG99)))) -> 0.9064064064 | B101: =IF(ISBLANK(DataInput!A94),"",DataInput!A94) -> 1.579352975 | C101: =IF(ISBLANK(DataInput!A94),"",LN(B101-0.999*$B$1)) -> 0.2916997931 | D101: =DataInput!A94/AVERAGE(DataInput!$A$1:$A$10000) -> 0.0109349858 | F101: =LN(IF(ISBLANK(DataInput!A94),1,GAMMADIST(B101,$G$2,$H$2,TRUE))) -> -9.368523226 | G101: =IF(ISBLANK(DataInput!A94),0,GAMMADIST(B101-$I$2,$G$2,$H$2,TRUE)) -> 6.208042915e-05 | H101: 0.906344326 | K101: =LN(IF(ISBLANK(DataInput!A94),1,NORMDIST(C101,$C$2,$C$3,FALSE))) -> -3.222430382 | L101: =IF(ISBLANK(DataInput!A94),0,NORMDIST(C101,$C$2,$C$3,TRUE)) -> 0.03234013353 | M101: 0.8740662729 | P101: =LN(IF(ISBLANK(DataInput!A94),1,$Q$2/$R$2/((B101/$R$2)^($Q$2+1)))) -> -2.339906742 | Q101: =IF(ISBLANK(DataInput!A94),0,IF(B101<$R$2,0,1-(B101/$R$2)^(-$Q$2))) -> 0.8481039817 | R101: 0.8157638481 | U101: -3.439498742 | V101: 0.07342764639 | W101: 0.83297876 | Y101: =IF(ISBLANK(DataInput!A94),"",B101-$B$1*0.9999) -> 1.338484266 | AA101: =LN(IF(ISBLANK(DataInput!A94),1,EXPONDIST(B101-$AC$2,$AB$2,FALSE))) -> -4.980418179 | AB101: =IF(ISBLANK(DataInput!A94),0,EXPONDIST(B101-$AC$2,$AB$2,TRUE)) -> 0.00924130046 | AC101: 0.8971651059 | AF101: =LN(IF(ISBLANK(DataInput!A94),1,GPDpdf(B101,$AH$2,$AI$2,$B$1))) -> -3.753964098 | AG101: 101 | AH101: =IF(ISBLANK(DataInput!A94),0,GPDcdff(B101,$AH$2,$AI$2,$B$1*0.999)) -> 0.03239642822 | AI101: 0.8740099782
A102: =MAX(0,A101-1/COUNT($B$8:INDIRECT("B"&(DataInput!$C$2+AG100)))) -> 0.9054054054 | B102: =IF(ISBLANK(DataInput!A95),"",DataInput!A95) -> 6.886106014 | C102: =IF(ISBLANK(DataInput!A95),"",LN(B102-0.999*$B$1)) -> 1.893933028 | D102: =DataInput!A95/AVERAGE(DataInput!$A$1:$A$10000) -> 0.04767741769 | F102: =LN(IF(ISBLANK(DataInput!A95),1,GAMMADIST(B102,$G$2,$H$2,TRUE))) -> -6.54549709 | G102: =IF(ISBLANK(DataInput!A95),0,GAMMADIST(B102-$I$2,$G$2,$H$2,TRUE)) -> 0.001342548907 | H102: 0.9040628565 | K102: =LN(IF(ISBLANK(DataInput!A95),1,NORMDIST(C102,$C$2,$C$3,FALSE))) -> -1.981908248 | L102: =IF(ISBLANK(DataInput!A95),0,NORMDIST(C102,$C$2,$C$3,TRUE)) -> 0.1671627897 | M102: 0.7382426157 | P102: =LN(IF(ISBLANK(DataInput!A95),1,$Q$2/$R$2/((B102/$R$2)^($Q$2+1)))) -> -5.28734532 | Q102: =IF(ISBLANK(DataInput!A95),0,IF(B102<$R$2,0,1-(B102/$R$2)^(-$Q$2))) -> 0.9652476177 | R102: 0.798084828 | U102: -4.193822683 | V102: 0.1828425296 | W102: 0.7225628758 | Y102: =IF(ISBLANK(DataInput!A95),"",B102-$B$1*0.9999) -> 6.645237306 | AA102: =LN(IF(ISBLANK(DataInput!A95),1,EXPONDIST(B102-$AC$2,$AB$2,FALSE))) -> -5.017221995 | AB102: =IF(ISBLANK(DataInput!A95),0,EXPONDIST(B102-$AC$2,$AB$2,TRUE)) -> 0.04504215626 | AC102: 0.8603632491 | AF102: =LN(IF(ISBLANK(DataInput!A95),1,GPDpdf(B102,$AH$2,$AI$2,$B$1))) -> -3.993312465 | AG102: 102 | AH102: =IF(ISBLANK(DataInput!A95),0,GPDcdff(B102,$AH$2,$AI$2,$B$1*0.999)) -> 0.1426864104 | AI102: 0.762718995
A103: =MAX(0,A102-1/COUNT($B$8:INDIRECT("B"&(DataInput!$C$2+AG101)))) -> 0.9044044044 | B103: =IF(ISBLANK(DataInput!A96),"",DataInput!A96) -> 10.88910961 | C103: =IF(ISBLANK(DataInput!A96),"",LN(B103-0.999*$B$1)) -> 2.365415065 | D103: =DataInput!A96/AVERAGE(DataInput!$A$1:$A$10000) -> 0.07539306339 | F103: =LN(IF(ISBLANK(DataInput!A96),1,GAMMADIST(B103,$G$2,$H$2,TRUE))) -> -5.677606334 | G103: =IF(ISBLANK(DataInput!A96),0,GAMMADIST(B103-$I$2,$G$2,$H$2,TRUE)) -> 0.003280609854 | H103: 0.9011237946 | K103: =LN(IF(ISBLANK(DataInput!A96),1,NORMDIST(C103,$C$2,$C$3,FALSE))) -> -1.765012521 | L103: =IF(ISBLANK(DataInput!A96),0,NORMDIST(C103,$C$2,$C$3,TRUE)) -> 0.2401287169 | M103: 0.6642756875 | P103: =LN(IF(ISBLANK(DataInput!A96),1,$Q$2/$R$2/((B103/$R$2)^($Q$2+1)))) -> -6.204624968 | Q103: =IF(ISBLANK(DataInput!A96),0,IF(B103<$R$2,0,1-(B103/$R$2)^(-$Q$2))) -> 0.9780399281 | R103: 0.7379112112 | U103: -4.445799154 | V103: 0.2357925602 | W103: 0.6686118442 | Y103: =IF(ISBLANK(DataInput!A96),"",B103-$B$1*0.9999) -> 10.6482409 | AA103: =LN(IF(ISBLANK(DataInput!A96),1,EXPONDIST(B103-$AC$2,$AB$2,FALSE))) -> -5.044983944 | AB103: =IF(ISBLANK(DataInput!A96),0,EXPONDIST(B103-$AC$2,$AB$2,TRUE)) -> 0.07118902397 | AC103: 0.8332153804 | AF103: =LN(IF(ISBLANK(DataInput!A96),1,GPDpdf(B103,$AH$2,$AI$2,$B$1))) -> -4.156797226 | AG103: 103 | AH103: =IF(ISBLANK(DataInput!A96),0,GPDcdff(B103,$AH$2,$AI$2,$B$1*0.999)) -> 0.2107027578 | AI103: 0.6937016466
A104: =MAX(0,A103-1/COUNT($B$8:INDIRECT("B"&(DataInput!$C$2+AG102)))) -> 0.9034034034 | B104: =IF(ISBLANK(DataInput!A97),"",DataInput!A97) -> 4.743978977 | C104: =IF(ISBLANK(DataInput!A97),"",LN(B104-0.999*$B$1)) -> 1.504816473 | D104: =DataInput!A97/AVERAGE(DataInput!$A$1:$A$10000) -> 0.03284594613 | F104: =LN(IF(ISBLANK(DataInput!A97),1,GAMMADIST(B104,$G$2,$H$2,TRUE))) -> -7.256259533 | G104: =IF(ISBLANK(DataInput!A97),0,GAMMADIST(B104-$I$2,$G$2,$H$2,TRUE)) -> 0.000638859629 | H104: 0.9027645438 | K104: =LN(IF(ISBLANK(DataInput!A97),1,NORMDIST(C104,$C$2,$C$3,FALSE))) -> -2.211654465 | L104: =IF(ISBLANK(DataInput!A97),0,NORMDIST(C104,$C$2,$C$3,TRUE)) -> 0.1190706983 | M104: 0.7843327051 | P104: =LN(IF(ISBLANK(DataInput!A97),1,$Q$2/$R$2/((B104/$R$2)^($Q$2+1)))) -> -4.541464347 | Q104: =IF(ISBLANK(DataInput!A97),0,IF(B104<$R$2,0,1-(B104/$R$2)^(-$Q$2))) -> 0.9495239196 | R104: 0.8304532213 | U104: -3.998630542 | V104: 0.1473461548 | W104: 0.7560572486 | Y104: =IF(ISBLANK(DataInput!A97),"",B104-$B$1*0.9999) -> 4.503110269 | AA104: =LN(IF(ISBLANK(DataInput!A97),1,EXPONDIST(B104-$AC$2,$AB$2,FALSE))) -> -5.002365745 | AB104: =IF(ISBLANK(DataInput!A97),0,EXPONDIST(B104-$AC$2,$AB$2,TRUE)) -> 0.03074915659 | AC104: 0.8726542468 | AF104: =LN(IF(ISBLANK(DataInput!A97),1,GPDpdf(B104,$AH$2,$AI$2,$B$1))) -> -3.900078126 | AG104: 104 | AH104: =IF(ISBLANK(DataInput!A97),0,GPDcdff(B104,$AH$2,$AI$2,$B$1*0.999)) -> 0.1013041273 | AI104: 0.8020992761
A105: =MAX(0,A104-1/COUNT($B$8:INDIRECT("B"&(DataInput!$C$2+AG103)))) -> 0.9024024024 | B105: =IF(ISBLANK(DataInput!A98),"",DataInput!A98) -> 396.0672913 | C105: =IF(ISBLANK(DataInput!A98),"",LN(B105-0.999*$B$1)) -> 5.980976336 | D105: =DataInput!A98/AVERAGE(DataInput!$A$1:$A$10000) -> 2.742256021 | F105: =LN(IF(ISBLANK(DataInput!A98),1,GAMMADIST(B105,$G$2,$H$2,TRUE))) -> -0.2556823253 | G105: =IF(ISBLANK(DataInput!A98),0,GAMMADIST(B105-$I$2,$G$2,$H$2,TRUE)) -> 0.7741054328 | H105: 0.1282969696 | K105: =LN(IF(ISBLANK(DataInput!A98),1,NORMDIST(C105,$C$2,$C$3,FALSE))) -> -2.340798755 | L105: =IF(ISBLANK(DataInput!A98),0,NORMDIST(C105,$C$2,$C$3,TRUE)) -> 0.900510404 | M105: 0.001891998391 | P105: =LN(IF(ISBLANK(DataInput!A98),1,$Q$2/$R$2/((B105/$R$2)^($Q$2+1)))) -> -13.39826491 | Q105: =IF(ISBLANK(DataInput!A98),0,IF(B105<$R$2,0,1-(B105/$R$2)^(-$Q$2))) -> 0.9993998605 | R105: 0.09888945646 | U105: -8.015250724 | V105: 0.9110647756 | W105: 0.008662373191 | Y105: =IF(ISBLANK(DataInput!A98),"",B105-$B$1*0.9999) -> 395.8264226 | AA105: =LN(IF(ISBLANK(DataInput!A98),1,EXPONDIST(B105-$AC$2,$AB$2,FALSE))) -> -7.71630232 | AB105: =IF(ISBLANK(DataInput!A98),0,EXPONDIST(B105-$AC$2,$AB$2,TRUE)) -> 0.935762518 | AC105: 0.03336011562 | AF105: =LN(IF(ISBLANK(DataInput!A98),1,GPDpdf(B105,$AH$2,$AI$2,$B$1))) -> -8.478684085 | AG105: 105 | AH105: =IF(ISBLANK(DataInput!A98),0,GPDcdff(B105,$AH$2,$AI$2,$B$1*0.999)) -> 0.9112419455 | AI105: 0.008839543118
A106: =MAX(0,A105-1/COUNT($B$8:INDIRECT("B"&(DataInput!$C$2+AG104)))) -> 0.9014014014 | B106: =IF(ISBLANK(DataInput!A99),"",DataInput!A99) -> 3.184124947 | C106: =IF(ISBLANK(DataInput!A99),"",LN(B106-0.999*$B$1)) -> 1.079590191 | D106: =DataInput!A99/AVERAGE(DataInput!$A$1:$A$10000) -> 0.02204596542 | F106: =LN(IF(ISBLANK(DataInput!A99),1,GAMMADIST(B106,$G$2,$H$2,TRUE))) -> -8.020074022 | G106: =IF(ISBLANK(DataInput!A99),0,GAMMADIST(B106-$I$2,$G$2,$H$2,TRUE)) -> 0.0002827540228 | H106: 0.9011186474 | K106: =LN(IF(ISBLANK(DataInput!A99),1,NORMDIST(C106,$C$2,$C$3,FALSE))) -> -2.515190413 | L106: =IF(ISBLANK(DataInput!A99),0,NORMDIST(C106,$C$2,$C$3,TRUE)) -> 0.07872049539 | M106: 0.822680906 | P106: =LN(IF(ISBLANK(DataInput!A99),1,$Q$2/$R$2/((B106/$R$2)^($Q$2+1)))) -> -3.743401482 | Q106: =IF(ISBLANK(DataInput!A99),0,IF(B106<$R$2,0,1-(B106/$R$2)^(-$Q$2))) -> 0.9247464024 | R106: 0.846025907 | U106: -3.795489966 | V106: 0.1158268781 | W106: 0.7855745233 | Y106: =IF(ISBLANK(DataInput!A99),"",B106-$B$1*0.9999) -> 2.943256238 | AA106: =LN(IF(ISBLANK(DataInput!A99),1,EXPONDIST(B106-$AC$2,$AB$2,FALSE))) -> -4.991547721 | AB106: =IF(ISBLANK(DataInput!A99),0,EXPONDIST(B106-$AC$2,$AB$2,TRUE)) -> 0.02020685729 | AC106: 0.8811945441 | AF106: =LN(IF(ISBLANK(DataInput!A99),1,GPDpdf(B106,$AH$2,$AI$2,$B$1))) -> -3.829376396 | AG106: 106 | AH106: =IF(ISBLANK(DataInput!A99),0,GPDcdff(B106,$AH$2,$AI$2,$B$1*0.999)) -> 0.06859638935 | AI106: 0.832805012
A107: =MAX(0,A106-1/COUNT($B$8:INDIRECT("B"&(DataInput!$C$2+AG105)))) -> 0.9004004004 | B107: =IF(ISBLANK(DataInput!A100),"",DataInput!A100) -> 17.46740913 | C107: =IF(ISBLANK(DataInput!A100),"",LN(B107-0.999*$B$1)) -> 2.846463828 | D107: =DataInput!A100/AVERAGE(DataInput!$A$1:$A$10000) -> 0.1209393174 | F107: =LN(IF(ISBLANK(DataInput!A100),1,GAMMADIST(B107,$G$2,$H$2,TRUE))) -> -4.793646035 | G107: =IF(ISBLANK(DataInput!A100),0,GAMMADIST(B107-$I$2,$G$2,$H$2,TRUE)) -> 0.008071770238 | H107: 0.8923286302 | K107: =LN(IF(ISBLANK(DataInput!A100),1,NORMDIST(C107,$C$2,$C$3,FALSE))) -> -1.613145835 | L107: =IF(ISBLANK(DataInput!A100),0,NORMDIST(C107,$C$2,$C$3,TRUE)) -> 0.3295801091 | M107: 0.5708202913 | P107: =LN(IF(ISBLANK(DataInput!A100),1,$Q$2/$R$2/((B107/$R$2)^($Q$2+1)))) -> -7.150560962 | Q107: =IF(ISBLANK(DataInput!A100),0,IF(B107<$R$2,0,1-(B107/$R$2)^(-$Q$2))) -> 0.9863209764 | R107: 0.6567408674 | U107: -4.725840528 | V107: 0.3024784397 | W107: 0.5979219607 | Y107: =IF(ISBLANK(DataInput!A100),"",B107-$B$1*0.9999) -> 17.22654043 | AA107: =LN(IF(ISBLANK(DataInput!A100),1,EXPONDIST(B107-$AC$2,$AB$2,FALSE))) -> -5.09060629 | AB107: =IF(ISBLANK(DataInput!A100),0,EXPONDIST(B107-$AC$2,$AB$2,TRUE)) -> 0.1126114807 | AC107: 0.7877889197 | AF107: =LN(IF(ISBLANK(DataInput!A100),1,GPDpdf(B107,$AH$2,$AI$2,$B$1))) -> -4.399701441 | AG107: 107 | AH107: =IF(ISBLANK(DataInput!A100),0,GPDcdff(B107,$AH$2,$AI$2,$B$1*0.999)) -> 0.3019251993 | AI107: 0.5984752011
A108: =MAX(0,A107-1/COUNT($B$8:INDIRECT("B"&(DataInput!$C$2+AG106)))) -> 0.8993993994 | B108: =IF(ISBLANK(DataInput!A101),"",DataInput!A101) -> 113.9882965 | C108: =IF(ISBLANK(DataInput!A101),"",LN(B108-0.999*$B$1)) -> 4.733982351 | D108: =DataInput!A101/AVERAGE(DataInput!$A$1:$A$10000) -> 0.7892221835 | F108: =LN(IF(ISBLANK(DataInput!A101),1,GAMMADIST(B108,$G$2,$H$2,TRUE))) -> -1.589881592 | G108: =IF(ISBLANK(DataInput!A101),0,GAMMADIST(B108-$I$2,$G$2,$H$2,TRUE)) -> 0.2033255578 | H108: =ABS(G108-A108) -> 0.6960738416 | K108: =LN(IF(ISBLANK(DataInput!A101),1,NORMDIST(C108,$C$2,$C$3,FALSE))) -> -1.694674864 | L108: =IF(ISBLANK(DataInput!A101),0,NORMDIST(C108,$C$2,$C$3,TRUE)) -> 0.7250798563 | M108: =ABS(L108-$A108) -> 0.1743195431 | P108: =LN(IF(ISBLANK(DataInput!A101),1,$Q$2/$R$2/((B108/$R$2)^($Q$2+1)))) -> -10.90520952 | Q108: =IF(ISBLANK(DataInput!A101),0,IF(B108<$R$2,0,1-(B108/$R$2)^(-$Q$2))) -> 0.9979103973 | R108: =ABS(Q108-L108) -> 0.272830541 | U108: -6.240388081 | V108: 0.6783286192 | W108: =ABS(V108-$A108) -> 0.2210707801 | Y108: =IF(ISBLANK(DataInput!A101),"",B108-$B$1*0.9999) -> 113.7474278 | AA108: =LN(IF(ISBLANK(DataInput!A101),1,EXPONDIST(B108-$AC$2,$AB$2,FALSE))) -> -5.760005629 | AB108: =IF(ISBLANK(DataInput!A101),0,EXPONDIST(B108-$AC$2,$AB$2,TRUE)) -> 0.5456428501 | AC108: =ABS(AB108-$A108) -> 0.3537565493 | AF108: =LN(IF(ISBLANK(DataInput!A101),1,GPDpdf(B108,$AH$2,$AI$2,$B$1))) -> -6.378828881 | AG108: 108 | AH108: =IF(ISBLANK(DataInput!A101),0,GPDcdff(B108,$AH$2,$AI$2,$B$1*0.999)) -> 0.7433682386 | AI108: 0.1560311608
A109: =MAX(0,A108-1/COUNT($B$8:INDIRECT("B"&(DataInput!$C$2+AG107)))) -> 0.8983983984 | B109: =IF(ISBLANK(DataInput!A102),"",DataInput!A102) -> 5.512081146 | C109: =IF(ISBLANK(DataInput!A102),"",LN(B109-0.999*$B$1)) -> 1.662301529 | D109: =DataInput!A102/AVERAGE(DataInput!$A$1:$A$10000) -> 0.03816406466 | F109: =LN(IF(ISBLANK(DataInput!A102),1,GAMMADIST(B109,$G$2,$H$2,TRUE))) -> -6.969590654 | G109: =IF(ISBLANK(DataInput!A102),0,GAMMADIST(B109-$I$2,$G$2,$H$2,TRUE)) -> 0.0008632450825 | H109: =ABS(G109-A109) -> 0.8975351533 | K109: =LN(IF(ISBLANK(DataInput!A102),1,NORMDIST(C109,$C$2,$C$3,FALSE))) -> -2.113143172 | L109: =IF(ISBLANK(DataInput!A102),0,NORMDIST(C109,$C$2,$C$3,TRUE)) -> 0.1372078488 | M109: =ABS(L109-$A109) -> 0.7611905496 | P109: =LN(IF(ISBLANK(DataInput!A102),1,$Q$2/$R$2/((B109/$R$2)^($Q$2+1)))) -> -4.841846855 | Q109: =IF(ISBLANK(DataInput!A102),0,IF(B109<$R$2,0,1-(B109/$R$2)^(-$Q$2))) -> 0.9565685825 | R109: =ABS(Q109-L109) -> 0.8193607337 | U109: -4.076429202 | V109: 0.1608875578 | W109: =ABS(V109-$A109) -> 0.7375108406 | Y109: =IF(ISBLANK(DataInput!A102),"",B109-$B$1*0.9999) -> 5.271212438 | AA109: =LN(IF(ISBLANK(DataInput!A102),1,EXPONDIST(B109-$AC$2,$AB$2,FALSE))) -> -5.007692748 | AB109: =IF(ISBLANK(DataInput!A102),0,EXPONDIST(B109-$AC$2,$AB$2,TRUE)) -> 0.03589863121 | AC109: =ABS(AB109-$A109) -> 0.8624997672 | AF109: =LN(IF(ISBLANK(DataInput!A102),1,GPDpdf(B109,$AH$2,$AI$2,$B$1))) -> -3.934005466 | AG109: 109 | AH109: =IF(ISBLANK(DataInput!A102),0,GPDcdff(B109,$AH$2,$AI$2,$B$1*0.999)) -> 0.1165891106 | AI109: 0.7818092878
A110: =MAX(0,A109-1/COUNT($B$8:INDIRECT("B"&(DataInput!$C$2+AG108)))) -> 0.8973973974 | B110: =IF(ISBLANK(DataInput!A103),"",DataInput!A103) -> 75.3959198 | C110: =IF(ISBLANK(DataInput!A103),"",LN(B110-0.999*$B$1)) -> 4.319556212 | D110: =DataInput!A103/AVERAGE(DataInput!$A$1:$A$10000) -> 0.5220196658 | F110: =LN(IF(ISBLANK(DataInput!A103),1,GAMMADIST(B110,$G$2,$H$2,TRUE))) -> -2.22315035 | G110: =IF(ISBLANK(DataInput!A103),0,GAMMADIST(B110-$I$2,$G$2,$H$2,TRUE)) -> 0.1077131847 | H110: 0.7896842127 | K110: =LN(IF(ISBLANK(DataInput!A103),1,NORMDIST(C110,$C$2,$C$3,FALSE))) -> -1.584271141 | L110: =IF(ISBLANK(DataInput!A103),0,NORMDIST(C110,$C$2,$C$3,TRUE)) -> 0.6442563444 | M110: 0.253141053 | P110: =LN(IF(ISBLANK(DataInput!A103),1,$Q$2/$R$2/((B110/$R$2)^($Q$2+1)))) -> -10.07783441 | Q110: =IF(ISBLANK(DataInput!A103),0,IF(B110<$R$2,0,1-(B110/$R$2)^(-$Q$2))) -> 0.996838627 | R110: 0.3525822826 | U110: -5.825286614 | V110: 0.5859289864 | W110: 0.311468411 | Y110: =IF(ISBLANK(DataInput!A103),"",B110-$B$1*0.9999) -> 75.15505109 | AA110: =LN(IF(ISBLANK(DataInput!A103),1,EXPONDIST(B110-$AC$2,$AB$2,FALSE))) -> -5.492356707 | AB110: =IF(ISBLANK(DataInput!A103),0,EXPONDIST(B110-$AC$2,$AB$2,TRUE)) -> 0.4062059841 | AC110: 0.4911914133 | AF110: =LN(IF(ISBLANK(DataInput!A103),1,GPDpdf(B110,$AH$2,$AI$2,$B$1))) -> -5.798169637 | AG110: 110 | AH110: =IF(ISBLANK(DataInput!A103),0,GPDcdff(B110,$AH$2,$AI$2,$B$1*0.999)) -> 0.6557959335 | AI110: 0.2416014639
A111: =MAX(0,A110-1/COUNT($B$8:INDIRECT("B"&(DataInput!$C$2+AG109)))) -> 0.8963963964 | B111: =IF(ISBLANK(DataInput!A104),"",DataInput!A104) -> 88.87985229 | C111: =IF(ISBLANK(DataInput!A104),"",LN(B111-0.999*$B$1)) -> 4.484574202 | D111: =DataInput!A104/AVERAGE(DataInput!$A$1:$A$10000) -> 0.6153785366 | F111: =LN(IF(ISBLANK(DataInput!A104),1,GAMMADIST(B111,$G$2,$H$2,TRUE))) -> -1.963498903 | G111: =IF(ISBLANK(DataInput!A104),0,GAMMADIST(B111-$I$2,$G$2,$H$2,TRUE)) -> 0.1397776613 | H111: 0.7566187351 | K111: =LN(IF(ISBLANK(DataInput!A104),1,NORMDIST(C111,$C$2,$C$3,FALSE))) -> -1.621995957 | L111: =IF(ISBLANK(DataInput!A104),0,NORMDIST(C111,$C$2,$C$3,TRUE)) -> 0.6774934857 | M111: 0.2189029107 | P111: =LN(IF(ISBLANK(DataInput!A104),1,$Q$2/$R$2/((B111/$R$2)^($Q$2+1)))) -> -10.40717366 | Q111: =IF(ISBLANK(DataInput!A104),0,IF(B111<$R$2,0,1-(B111/$R$2)^(-$Q$2))) -> 0.9973189741 | R111: 0.3198254885 | U111: -5.983029101 | V111: 0.6227011495 | W111: 0.2736952468 | Y111: =IF(ISBLANK(DataInput!A104),"",B111-$B$1*0.9999) -> 88.63898359 | AA111: =LN(IF(ISBLANK(DataInput!A104),1,EXPONDIST(B111-$AC$2,$AB$2,FALSE))) -> -5.585871548 | AB111: =IF(ISBLANK(DataInput!A104),0,EXPONDIST(B111-$AC$2,$AB$2,TRUE)) -> 0.4592172414 | AC111: 0.437179155 | AF111: =LN(IF(ISBLANK(DataInput!A104),1,GPDpdf(B111,$AH$2,$AI$2,$B$1))) -> -6.020488828 | AG111: 111 | AH111: =IF(ISBLANK(DataInput!A104),0,GPDcdff(B111,$AH$2,$AI$2,$B$1*0.999)) -> 0.6923921186 | AI111: 0.2040042778
A112: =MAX(0,A111-1/COUNT($B$8:INDIRECT("B"&(DataInput!$C$2+AG110)))) -> 0.8953953954 | B112: =IF(ISBLANK(DataInput!A105),"",DataInput!A105) -> 478.9689026 | C112: =IF(ISBLANK(DataInput!A105),"",LN(B112-0.999*$B$1)) -> 6.17113311 | D112: =DataInput!A105/AVERAGE(DataInput!$A$1:$A$10000) -> 3.316242936 | F112: =LN(IF(ISBLANK(DataInput!A105),1,GAMMADIST(B112,$G$2,$H$2,TRUE))) -> -0.1568034098 | G112: =IF(ISBLANK(DataInput!A105),0,GAMMADIST(B112-$I$2,$G$2,$H$2,TRUE)) -> 0.854682255 | H112: 0.04071314042 | K112: =LN(IF(ISBLANK(DataInput!A105),1,NORMDIST(C112,$C$2,$C$3,FALSE))) -> -2.480736427 | L112: =IF(ISBLANK(DataInput!A105),0,NORMDIST(C112,$C$2,$C$3,TRUE)) -> 0.9176058144 | M112: 0.02221041901 | P112: =LN(IF(ISBLANK(DataInput!A105),1,$Q$2/$R$2/((B112/$R$2)^($Q$2+1)))) -> -13.7786852 | Q112: =IF(ISBLANK(DataInput!A105),0,IF(B112<$R$2,0,1-(B112/$R$2)^(-$Q$2))) -> 0.9995038921 | R112: 0.0818980777 | U112: -8.386268924 | V112: 0.9338784068 | W112: 0.03848301141 | Y112: =IF(ISBLANK(DataInput!A105),"",B112-$B$1*0.9999) -> 478.7280339 | AA112: =LN(IF(ISBLANK(DataInput!A105),1,EXPONDIST(B112-$AC$2,$AB$2,FALSE))) -> -8.291248171 | AB112: =IF(ISBLANK(DataInput!A105),0,EXPONDIST(B112-$AC$2,$AB$2,TRUE)) -> 0.9638512988 | AC112: 0.0684559034 | AF112: =LN(IF(ISBLANK(DataInput!A105),1,GPDpdf(B112,$AH$2,$AI$2,$B$1))) -> -8.830242475 | AG112: 112 | AH112: =IF(ISBLANK(DataInput!A105),0,GPDcdff(B112,$AH$2,$AI$2,$B$1*0.999)) -> 0.92569641 | AI112: 0.03030101458
A113: =MAX(0,A112-1/COUNT($B$8:INDIRECT("B"&(DataInput!$C$2+AG111)))) -> 0.8943943944 | B113: =IF(ISBLANK(DataInput!A106),"",DataInput!A106) -> 53.3273201 | C113: =IF(ISBLANK(DataInput!A106),"",LN(B113-0.999*$B$1)) -> 3.971925827 | D113: =DataInput!A106/AVERAGE(DataInput!$A$1:$A$10000) -> 0.3692230281 | F113: =LN(IF(ISBLANK(DataInput!A106),1,GAMMADIST(B113,$G$2,$H$2,TRUE))) -> -2.79589814 | G113: =IF(ISBLANK(DataInput!A106),0,GAMMADIST(B113-$I$2,$G$2,$H$2,TRUE)) -> 0.06059277205 | H113: 0.8338016223 | K113: =LN(IF(ISBLANK(DataInput!A106),1,NORMDIST(C113,$C$2,$C$3,FALSE))) -> -1.531802523 | L113: =IF(ISBLANK(DataInput!A106),0,NORMDIST(C113,$C$2,$C$3,TRUE)) -> 0.5708309155 | M113: 0.3235634789 | P113: =LN(IF(ISBLANK(DataInput!A106),1,$Q$2/$R$2/((B113/$R$2)^($Q$2+1)))) -> -9.384647662 | Q113: =IF(ISBLANK(DataInput!A106),0,IF(B113<$R$2,0,1-(B113/$R$2)^(-$Q$2))) -> 0.9955277627 | R113: 0.4246968472 | U113: -5.520999075 | V113: 0.5102295366 | W113: 0.3841648578 | Y113: =IF(ISBLANK(DataInput!A106),"",B113-$B$1*0.9999) -> 53.08645139 | AA113: =LN(IF(ISBLANK(DataInput!A106),1,EXPONDIST(B113-$AC$2,$AB$2,FALSE))) -> -5.339304798 | AB113: =IF(ISBLANK(DataInput!A106),0,EXPONDIST(B113-$AC$2,$AB$2,TRUE)) -> 0.3080010811 | AC113: 0.5863933133 | AF113: =LN(IF(ISBLANK(DataInput!A106),1,GPDpdf(B113,$AH$2,$AI$2,$B$1))) -> -5.371578537 | AG113: 113 | AH113: =IF(ISBLANK(DataInput!A106),0,GPDcdff(B113,$AH$2,$AI$2,$B$1*0.999)) -> 0.5729388337 | AI113: 0.3214555607
A114: =MAX(0,A113-1/COUNT($B$8:INDIRECT("B"&(DataInput!$C$2+AG112)))) -> 0.8933933934 | B114: =IF(ISBLANK(DataInput!A107),"",DataInput!A107) -> 53.28907013 | C114: =IF(ISBLANK(DataInput!A107),"",LN(B114-0.999*$B$1)) -> 3.971205048 | D114: =DataInput!A107/AVERAGE(DataInput!$A$1:$A$10000) -> 0.3689581964 | F114: =LN(IF(ISBLANK(DataInput!A107),1,GAMMADIST(B114,$G$2,$H$2,TRUE))) -> -2.797116436 | G114: =IF(ISBLANK(DataInput!A107),0,GAMMADIST(B114-$I$2,$G$2,$H$2,TRUE)) -> 0.06051861791 | H114: 0.8328747755 | K114: =LN(IF(ISBLANK(DataInput!A107),1,NORMDIST(C114,$C$2,$C$3,FALSE))) -> -1.531731779 | L114: =IF(ISBLANK(DataInput!A107),0,NORMDIST(C114,$C$2,$C$3,TRUE)) -> 0.5706751167 | M114: 0.3227182767 | P114: =LN(IF(ISBLANK(DataInput!A107),1,$Q$2/$R$2/((B114/$R$2)^($Q$2+1)))) -> -9.383211414 | Q114: =IF(ISBLANK(DataInput!A107),0,IF(B114<$R$2,0,1-(B114/$R$2)^(-$Q$2))) -> 0.9955245473 | R114: 0.4248494306 | U114: -5.520403707 | V114: 0.5100764204 | W114: 0.383316973 | Y114: =IF(ISBLANK(DataInput!A107),"",B114-$B$1*0.9999) -> 53.04820142 | AA114: =LN(IF(ISBLANK(DataInput!A107),1,EXPONDIST(B114-$AC$2,$AB$2,FALSE))) -> -5.339039524 | AB114: =IF(ISBLANK(DataInput!A107),0,EXPONDIST(B114-$AC$2,$AB$2,TRUE)) -> 0.3078174873 | AC114: 0.5855759061 | AF114: =LN(IF(ISBLANK(DataInput!A107),1,GPDpdf(B114,$AH$2,$AI$2,$B$1))) -> -5.370755239 | AG114: 114 | AH114: =IF(ISBLANK(DataInput!A107),0,GPDcdff(B114,$AH$2,$AI$2,$B$1*0.999)) -> 0.5727610218 | AI114: 0.3206323716
A115: =MAX(0,A114-1/COUNT($B$8:INDIRECT("B"&(DataInput!$C$2+AG113)))) -> 0.8923923924 | B115: =IF(ISBLANK(DataInput!A108),"",DataInput!A108) -> 944.0734253 | C115: =IF(ISBLANK(DataInput!A108),"",LN(B115-0.999*$B$1)) -> 6.849949004 | D115: =DataInput!A108/AVERAGE(DataInput!$A$1:$A$10000) -> 6.536492894 | F115: =LN(IF(ISBLANK(DataInput!A108),1,GAMMADIST(B115,$G$2,$H$2,TRUE))) -> -0.009760644433 | G115: =IF(ISBLANK(DataInput!A108),0,GAMMADIST(B115-$I$2,$G$2,$H$2,TRUE)) -> 0.9902726221 | H115: 0.09788022975 | K115: =LN(IF(ISBLANK(DataInput!A108),1,NORMDIST(C115,$C$2,$C$3,FALSE))) -> -3.069661059 | L115: =IF(ISBLANK(DataInput!A108),0,NORMDIST(C115,$C$2,$C$3,TRUE)) -> 0.961035564 | M115: 0.06864317166 | P115: =LN(IF(ISBLANK(DataInput!A108),1,$Q$2/$R$2/((B115/$R$2)^($Q$2+1)))) -> -15.13695426 | Q115: =IF(ISBLANK(DataInput!A108),0,IF(B115<$R$2,0,1-(B115/$R$2)^(-$Q$2))) -> 0.9997485881 | R115: 0.03871302405 | U115: -10.03945567 | V115: 0.9834790009 | W115: 0.0910866085 | Y115: =IF(ISBLANK(DataInput!A108),"",B115-$B$1*0.9999) -> 943.8325566 | AA115: =LN(IF(ISBLANK(DataInput!A108),1,EXPONDIST(B115-$AC$2,$AB$2,FALSE))) -> -11.51687807 | AB115: =IF(ISBLANK(DataInput!A108),0,EXPONDIST(B115-$AC$2,$AB$2,TRUE)) -> 0.9985637851 | AC115: 0.1061713927 | AF115: =LN(IF(ISBLANK(DataInput!A108),1,GPDpdf(B115,$AH$2,$AI$2,$B$1))) -> -10.12327587 | AG115: 115 | AH115: =IF(ISBLANK(DataInput!A108),0,GPDcdff(B115,$AH$2,$AI$2,$B$1*0.999)) -> 0.9613566088 | AI115: 0.0689642164
A116: =MAX(0,A115-1/COUNT($B$8:INDIRECT("B"&(DataInput!$C$2+AG114)))) -> 0.8913913914 | B116: =IF(ISBLANK(DataInput!A109),"",DataInput!A109) -> 33.80356979 | C116: =IF(ISBLANK(DataInput!A109),"",LN(B116-0.999*$B$1)) -> 3.513421823 | D116: =DataInput!A109/AVERAGE(DataInput!$A$1:$A$10000) -> 0.2340461958 | F116: =LN(IF(ISBLANK(DataInput!A109),1,GAMMADIST(B116,$G$2,$H$2,TRUE))) -> -3.590531409 | G116: =IF(ISBLANK(DataInput!A109),0,GAMMADIST(B116-$I$2,$G$2,$H$2,TRUE)) -> 0.02723455286 | H116: 0.8641568385 | K116: =LN(IF(ISBLANK(DataInput!A109),1,NORMDIST(C116,$C$2,$C$3,FALSE))) -> -1.518604884 | L116: =IF(ISBLANK(DataInput!A109),0,NORMDIST(C116,$C$2,$C$3,TRUE)) -> 0.4705390693 | M116: 0.4208523221 | P116: =LN(IF(ISBLANK(DataInput!A109),1,$Q$2/$R$2/((B116/$R$2)^($Q$2+1)))) -> -8.472122081 | Q116: =IF(ISBLANK(DataInput!A109),0,IF(B116<$R$2,0,1-(B116/$R$2)^(-$Q$2))) -> 0.992939386 | R116: 0.5224003167 | U116: -5.167530756 | V116: 0.4173906715 | W116: 0.4740007199 | Y116: =IF(ISBLANK(DataInput!A109),"",B116-$B$1*0.9999) -> 33.56270109 | AA116: =LN(IF(ISBLANK(DataInput!A109),1,EXPONDIST(B116-$AC$2,$AB$2,FALSE))) -> -5.203902131 | AB116: =IF(ISBLANK(DataInput!A109),0,EXPONDIST(B116-$AC$2,$AB$2,TRUE)) -> 0.207662799 | AC116: 0.6837285924 | AF116: =LN(IF(ISBLANK(DataInput!A109),1,GPDpdf(B116,$AH$2,$AI$2,$B$1))) -> -4.90062433 | AG116: 116 | AH116: =IF(ISBLANK(DataInput!A109),0,GPDcdff(B116,$AH$2,$AI$2,$B$1*0.999)) -> 0.4581167936 | AI116: 0.4332745978
A117: =MAX(0,A116-1/COUNT($B$8:INDIRECT("B"&(DataInput!$C$2+AG115)))) -> 0.8903903904 | B117: =IF(ISBLANK(DataInput!A110),"",DataInput!A110) -> 7.433546066 | C117: =IF(ISBLANK(DataInput!A110),"",LN(B117-0.999*$B$1)) -> 1.973093617 | D117: =DataInput!A110/AVERAGE(DataInput!$A$1:$A$10000) -> 0.05146773517 | F117: =LN(IF(ISBLANK(DataInput!A110),1,GAMMADIST(B117,$G$2,$H$2,TRUE))) -> -6.400072895 | G117: =IF(ISBLANK(DataInput!A110),0,GAMMADIST(B117-$I$2,$G$2,$H$2,TRUE)) -> 0.001560714407 | H117: 0.888829676 | K117: =LN(IF(ISBLANK(DataInput!A110),1,NORMDIST(C117,$C$2,$C$3,FALSE))) -> -1.940786264 | L117: =IF(ISBLANK(DataInput!A110),0,NORMDIST(C117,$C$2,$C$3,TRUE)) -> 0.1783007599 | M117: 0.7120896305 | P117: =LN(IF(ISBLANK(DataInput!A110),1,$Q$2/$R$2/((B117/$R$2)^($Q$2+1)))) -> -5.440467489 | Q117: =IF(ISBLANK(DataInput!A110),0,IF(B117<$R$2,0,1-(B117/$R$2)^(-$Q$2))) -> 0.9678110507 | R117: 0.7895102908 | U117: -4.234832029 | V117: 0.1909336325 | W117: 0.6994567579 | Y117: =IF(ISBLANK(DataInput!A110),"",B117-$B$1*0.9999) -> 7.192677358 | AA117: =LN(IF(ISBLANK(DataInput!A110),1,EXPONDIST(B117-$AC$2,$AB$2,FALSE))) -> -5.021018644 | AB117: =IF(ISBLANK(DataInput!A110),0,EXPONDIST(B117-$AC$2,$AB$2,TRUE)) -> 0.04866092283 | AC117: 0.8417294676 | AF117: =LN(IF(ISBLANK(DataInput!A110),1,GPDpdf(B117,$AH$2,$AI$2,$B$1))) -> -4.016465544 | AG117: 117 | AH117: =IF(ISBLANK(DataInput!A110),0,GPDcdff(B117,$AH$2,$AI$2,$B$1*0.999)) -> 0.1526641245 | AI117: 0.7377262659
A118: =MAX(0,A117-1/COUNT($B$8:INDIRECT("B"&(DataInput!$C$2+AG116)))) -> 0.8893893894 | B118: =IF(ISBLANK(DataInput!A111),"",DataInput!A111) -> 3.309555054 | C118: =IF(ISBLANK(DataInput!A111),"",LN(B118-0.999*$B$1)) -> 1.121320217 | D118: =DataInput!A111/AVERAGE(DataInput!$A$1:$A$10000) -> 0.02291440741 | F118: =LN(IF(ISBLANK(DataInput!A111),1,GAMMADIST(B118,$G$2,$H$2,TRUE))) -> -7.945938832 | G118: =IF(ISBLANK(DataInput!A111),0,GAMMADIST(B118-$I$2,$G$2,$H$2,TRUE)) -> 0.0003063396992 | H118: 0.8890830497 | K118: =LN(IF(ISBLANK(DataInput!A111),1,NORMDIST(C118,$C$2,$C$3,FALSE))) -> -2.482977722 | L118: =IF(ISBLANK(DataInput!A111),0,NORMDIST(C118,$C$2,$C$3,TRUE)) -> 0.08214934246 | M118: 0.8072400469 | P118: =LN(IF(ISBLANK(DataInput!A111),1,$Q$2/$R$2/((B118/$R$2)^($Q$2+1)))) -> -3.820738458 | Q118: =IF(ISBLANK(DataInput!A111),0,IF(B118<$R$2,0,1-(B118/$R$2)^(-$Q$2))) -> 0.9276031361 | R118: 0.8454537937 | U118: -3.815025074 | V118: 0.1186180061 | W118: 0.7707713833 | Y118: =IF(ISBLANK(DataInput!A111),"",B118-$B$1*0.9999) -> 3.068686345 | AA118: =LN(IF(ISBLANK(DataInput!A111),1,EXPONDIST(B118-$AC$2,$AB$2,FALSE))) -> -4.992417614 | AB118: =IF(ISBLANK(DataInput!A111),0,EXPONDIST(B118-$AC$2,$AB$2,TRUE)) -> 0.02105880175 | AC118: 0.8683305876 | AF118: =LN(IF(ISBLANK(DataInput!A111),1,GPDpdf(B118,$AH$2,$AI$2,$B$1))) -> -3.835153892 | AG118: 118 | AH118: =IF(ISBLANK(DataInput!A111),0,GPDcdff(B118,$AH$2,$AI$2,$B$1*0.999)) -> 0.07131323757 | AI118: 0.8180761518
A119: =MAX(0,A118-1/COUNT($B$8:INDIRECT("B"&(DataInput!$C$2+AG117)))) -> 0.8883883884 | B119: =IF(ISBLANK(DataInput!A112),"",DataInput!A112) -> 1.411631942 | C119: =IF(ISBLANK(DataInput!A112),"",LN(B119-0.999*$B$1)) -> 0.1578410365 | D119: =DataInput!A112/AVERAGE(DataInput!$A$1:$A$10000) -> 0.009773733598 | F119: =LN(IF(ISBLANK(DataInput!A112),1,GAMMADIST(B119,$G$2,$H$2,TRUE))) -> -9.584841341 | G119: =IF(ISBLANK(DataInput!A112),0,GAMMADIST(B119-$I$2,$G$2,$H$2,TRUE)) -> 4.795994826e-05 | H119: 0.8883404284 | K119: =LN(IF(ISBLANK(DataInput!A112),1,NORMDIST(C119,$C$2,$C$3,FALSE))) -> -3.361282591 | L119: =IF(ISBLANK(DataInput!A112),0,NORMDIST(C119,$C$2,$C$3,TRUE)) -> 0.02735637525 | M119: 0.8610320131 | P119: =LN(IF(ISBLANK(DataInput!A112),1,$Q$2/$R$2/((B119/$R$2)^($Q$2+1)))) -> -2.115181741 | Q119: =IF(ISBLANK(DataInput!A112),0,IF(B119<$R$2,0,1-(B119/$R$2)^(-$Q$2))) -> 0.8300248271 | R119: 0.8026684518 | U119: -3.381013367 | V119: 0.06788996145 | W119: 0.8204984269 | Y119: =IF(ISBLANK(DataInput!A112),"",B119-$B$1*0.9999) -> 1.170763233 | AA119: =LN(IF(ISBLANK(DataInput!A112),1,EXPONDIST(B119-$AC$2,$AB$2,FALSE))) -> -4.979254986 | AB119: =IF(ISBLANK(DataInput!A112),0,EXPONDIST(B119-$AC$2,$AB$2,TRUE)) -> 0.008088187097 | AC119: 0.8803002013 | AF119: =LN(IF(ISBLANK(DataInput!A112),1,GPDpdf(B119,$AH$2,$AI$2,$B$1))) -> -3.745917713 | AG119: 119 | AH119: =IF(ISBLANK(DataInput!A112),0,GPDcdff(B119,$AH$2,$AI$2,$B$1*0.999)) -> 0.02845181996 | AI119: 0.8599365684
A120: =MAX(0,A119-1/COUNT($B$8:INDIRECT("B"&(DataInput!$C$2+AG118)))) -> 0.8873873874 | B120: =IF(ISBLANK(DataInput!A113),"",DataInput!A113) -> 11.38206005 | C120: =IF(ISBLANK(DataInput!A113),"",LN(B120-0.999*$B$1)) -> 2.410668631 | D120: =DataInput!A113/AVERAGE(DataInput!$A$1:$A$10000) -> 0.07880611046 | F120: =LN(IF(ISBLANK(DataInput!A113),1,GAMMADIST(B120,$G$2,$H$2,TRUE))) -> -5.594233456 | G120: =IF(ISBLANK(DataInput!A113),0,GAMMADIST(B120-$I$2,$G$2,$H$2,TRUE)) -> 0.0035725997 | H120: 0.8838147877 | K120: =LN(IF(ISBLANK(DataInput!A113),1,NORMDIST(C120,$C$2,$C$3,FALSE))) -> -1.747737776 | L120: =IF(ISBLANK(DataInput!A113),0,NORMDIST(C120,$C$2,$C$3,TRUE)) -> 0.2479431347 | M120: 0.6394442526 | P120: =LN(IF(ISBLANK(DataInput!A113),1,$Q$2/$R$2/((B120/$R$2)^($Q$2+1)))) -> -6.293249392 | Q120: =IF(ISBLANK(DataInput!A113),0,IF(B120<$R$2,0,1-(B120/$R$2)^(-$Q$2))) -> 0.9789925586 | R120: 0.7310494238 | U120: -4.471051769 | V120: 0.2415009198 | W120: 0.6458864676 | Y120: =IF(ISBLANK(DataInput!A113),"",B120-$B$1*0.9999) -> 11.14119134 | AA120: =LN(IF(ISBLANK(DataInput!A113),1,EXPONDIST(B120-$AC$2,$AB$2,FALSE))) -> -5.048402693 | AB120: =IF(ISBLANK(DataInput!A113),0,EXPONDIST(B120-$AC$2,$AB$2,TRUE)) -> 0.07435897395 | AC120: 0.8130284134 | AF120: =LN(IF(ISBLANK(DataInput!A113),1,GPDpdf(B120,$AH$2,$AI$2,$B$1))) -> -4.176045603 | AG120: 120 | AH120: =IF(ISBLANK(DataInput!A113),0,GPDcdff(B120,$AH$2,$AI$2,$B$1*0.999)) -> 0.2183471933 | AI120: 0.6690401941
A121: =MAX(0,A120-1/COUNT($B$8:INDIRECT("B"&(DataInput!$C$2+AG119)))) -> 0.8863863864 | B121: =IF(ISBLANK(DataInput!A114),"",DataInput!A114) -> 394.6978149 | C121: =IF(ISBLANK(DataInput!A114),"",LN(B121-0.999*$B$1)) -> 5.977510549 | D121: =DataInput!A114/AVERAGE(DataInput!$A$1:$A$10000) -> 2.732774161 | F121: =LN(IF(ISBLANK(DataInput!A114),1,GAMMADIST(B121,$G$2,$H$2,TRUE))) -> -0.257765857 | G121: =IF(ISBLANK(DataInput!A114),0,GAMMADIST(B121-$I$2,$G$2,$H$2,TRUE)) -> 0.7724918758 | H121: 0.1138945106 | K121: =LN(IF(ISBLANK(DataInput!A114),1,NORMDIST(C121,$C$2,$C$3,FALSE))) -> -2.338349939 | L121: =IF(ISBLANK(DataInput!A114),0,NORMDIST(C121,$C$2,$C$3,TRUE)) -> 0.9001764106 | M121: 0.01379002422 | P121: =LN(IF(ISBLANK(DataInput!A114),1,$Q$2/$R$2/((B121/$R$2)^($Q$2+1)))) -> -13.39133177 | Q121: =IF(ISBLANK(DataInput!A114),0,IF(B121<$R$2,0,1-(B121/$R$2)^(-$Q$2))) -> 0.9993977747 | R121: 0.09922136408 | U121: -8.008800047 | V121: 0.9106108586 | W121: 0.02422447221 | Y121: =IF(ISBLANK(DataInput!A114),"",B121-$B$1*0.9999) -> 394.4569462 | AA121: =LN(IF(ISBLANK(DataInput!A114),1,EXPONDIST(B121-$AC$2,$AB$2,FALSE))) -> -7.706804618 | AB121: =IF(ISBLANK(DataInput!A114),0,EXPONDIST(B121-$AC$2,$AB$2,TRUE)) -> 0.9351495031 | AC121: 0.04876311672 | AF121: =LN(IF(ISBLANK(DataInput!A114),1,GPDpdf(B121,$AH$2,$AI$2,$B$1))) -> -8.472331387 | AG121: 121 | AH121: =IF(ISBLANK(DataInput!A114),0,GPDcdff(B121,$AH$2,$AI$2,$B$1*0.999)) -> 0.9109563918 | AI121: 0.02457000542
A122: =MAX(0,A121-1/COUNT($B$8:INDIRECT("B"&(DataInput!$C$2+AG120)))) -> 0.8853853854 | B122: =IF(ISBLANK(DataInput!A115),"",DataInput!A115) -> 32.02616882 | C122: =IF(ISBLANK(DataInput!A115),"",LN(B122-0.999*$B$1)) -> 3.459010743 | D122: =DataInput!A115/AVERAGE(DataInput!$A$1:$A$10000) -> 0.2217399826 | F122: =LN(IF(ISBLANK(DataInput!A115),1,GAMMADIST(B122,$G$2,$H$2,TRUE))) -> -3.687009797 | G122: =IF(ISBLANK(DataInput!A115),0,GAMMADIST(B122-$I$2,$G$2,$H$2,TRUE)) -> 0.02471078314 | H122: 0.8606746022 | K122: =LN(IF(ISBLANK(DataInput!A115),1,NORMDIST(C122,$C$2,$C$3,FALSE))) -> -1.521267458 | L122: =IF(ISBLANK(DataInput!A115),0,NORMDIST(C122,$C$2,$C$3,TRUE)) -> 0.4586370664 | M122: 0.426748319 | P122: =LN(IF(ISBLANK(DataInput!A115),1,$Q$2/$R$2/((B122/$R$2)^($Q$2+1)))) -> -8.364005798 | Q122: =IF(ISBLANK(DataInput!A115),0,IF(B122<$R$2,0,1-(B122/$R$2)^(-$Q$2))) -> 0.9925468614 | R122: 0.533909795 | U122: -5.1286129 | V122: 0.4070635801 | W122: 0.4783218053 | Y122: =IF(ISBLANK(DataInput!A115),"",B122-$B$1*0.9999) -> 31.78530011 | AA122: =LN(IF(ISBLANK(DataInput!A115),1,EXPONDIST(B122-$AC$2,$AB$2,FALSE))) -> -5.191575359 | AB122: =IF(ISBLANK(DataInput!A115),0,EXPONDIST(B122-$AC$2,$AB$2,TRUE)) -> 0.1978353928 | AC122: 0.6875499926 | AF122: =LN(IF(ISBLANK(DataInput!A115),1,GPDpdf(B122,$AH$2,$AI$2,$B$1))) -> -4.85176193 | AG122: 122 | AH122: =IF(ISBLANK(DataInput!A115),0,GPDcdff(B122,$AH$2,$AI$2,$B$1*0.999)) -> 0.4445624262 | AI122: 0.4408229592
A123: =MAX(0,A122-1/COUNT($B$8:INDIRECT("B"&(DataInput!$C$2+AG121)))) -> 0.8843843844 | B123: =IF(ISBLANK(DataInput!A116),"",DataInput!A116) -> 27.07584 | C123: =IF(ISBLANK(DataInput!A116),"",LN(B123-0.999*$B$1)) -> 3.289714015 | D123: =DataInput!A116/AVERAGE(DataInput!$A$1:$A$10000) -> 0.1874653295 | F123: =LN(IF(ISBLANK(DataInput!A116),1,GAMMADIST(B123,$G$2,$H$2,TRUE))) -> -3.989463369 | G123: =IF(ISBLANK(DataInput!A116),0,GAMMADIST(B123-$I$2,$G$2,$H$2,TRUE)) -> 0.01821255256 | H123: 0.8661718318 | K123: =LN(IF(ISBLANK(DataInput!A116),1,NORMDIST(C123,$C$2,$C$3,FALSE))) -> -1.535290532 | L123: =IF(ISBLANK(DataInput!A116),0,NORMDIST(C123,$C$2,$C$3,TRUE)) -> 0.4218882498 | M123: 0.4624961346 | P123: =LN(IF(ISBLANK(DataInput!A116),1,$Q$2/$R$2/((B123/$R$2)^($Q$2+1)))) -> -8.027902502 | Q123: =IF(ISBLANK(DataInput!A116),0,IF(B123<$R$2,0,1-(B123/$R$2)^(-$Q$2))) -> 0.9911817186 | R123: 0.5692934688 | U123: -5.01109448 | V123: 0.375979016 | W123: 0.5084053684 | Y123: =IF(ISBLANK(DataInput!A116),"",B123-$B$1*0.9999) -> 26.83497129 | AA123: =LN(IF(ISBLANK(DataInput!A116),1,EXPONDIST(B123-$AC$2,$AB$2,FALSE))) -> -5.157243444 | AB123: =IF(ISBLANK(DataInput!A116),0,EXPONDIST(B123-$AC$2,$AB$2,TRUE)) -> 0.1698173415 | AC123: 0.7145670429 | AF123: =LN(IF(ISBLANK(DataInput!A116),1,GPDpdf(B123,$AH$2,$AI$2,$B$1))) -> -4.709101144 | AG123: 123 | AH123: =IF(ISBLANK(DataInput!A116),0,GPDcdff(B123,$AH$2,$AI$2,$B$1*0.999)) -> 0.4030172953 | AI123: 0.4813670891
A124: =MAX(0,A123-1/COUNT($B$8:INDIRECT("B"&(DataInput!$C$2+AG122)))) -> 0.8833833834 | B124: =IF(ISBLANK(DataInput!A117),"",DataInput!A117) -> 30.53157997 | C124: =IF(ISBLANK(DataInput!A117),"",LN(B124-0.999*$B$1)) -> 3.410848264 | D124: =DataInput!A117/AVERAGE(DataInput!$A$1:$A$10000) -> 0.2113918792 | F124: =LN(IF(ISBLANK(DataInput!A117),1,GAMMADIST(B124,$G$2,$H$2,TRUE))) -> -3.772718601 | G124: =IF(ISBLANK(DataInput!A117),0,GAMMADIST(B124-$I$2,$G$2,$H$2,TRUE)) -> 0.02266484737 | H124: 0.860718536 | K124: =LN(IF(ISBLANK(DataInput!A117),1,NORMDIST(C124,$C$2,$C$3,FALSE))) -> -1.524372815 | L124: =IF(ISBLANK(DataInput!A117),0,NORMDIST(C124,$C$2,$C$3,TRUE)) -> 0.4481324047 | M124: 0.4352509786 | P124: =LN(IF(ISBLANK(DataInput!A117),1,$Q$2/$R$2/((B124/$R$2)^($Q$2+1)))) -> -8.268342459 | Q124: =IF(ISBLANK(DataInput!A117),0,IF(B124<$R$2,0,1-(B124/$R$2)^(-$Q$2))) -> 0.9921813901 | R124: 0.5440489853 | U124: -5.094641756 | V124: 0.3980572505 | W124: 0.4853261329 | Y124: =IF(ISBLANK(DataInput!A117),"",B124-$B$1*0.9999) -> 30.29071126 | AA124: =LN(IF(ISBLANK(DataInput!A117),1,EXPONDIST(B124-$AC$2,$AB$2,FALSE))) -> -5.181209967 | AB124: =IF(ISBLANK(DataInput!A117),0,EXPONDIST(B124-$AC$2,$AB$2,TRUE)) -> 0.1894774005 | AC124: 0.6939059829 | AF124: =LN(IF(ISBLANK(DataInput!A117),1,GPDpdf(B124,$AH$2,$AI$2,$B$1))) -> -4.809740528 | AG124: 124 | AH124: =IF(ISBLANK(DataInput!A117),0,GPDcdff(B124,$AH$2,$AI$2,$B$1*0.999)) -> 0.4326348952 | AI124: 0.4507484881
A125: =MAX(0,A124-1/COUNT($B$8:INDIRECT("B"&(DataInput!$C$2+AG123)))) -> 0.8823823824 | B125: =IF(ISBLANK(DataInput!A118),"",DataInput!A118) -> 47.59838867 | C125: =IF(ISBLANK(DataInput!A118),"",LN(B125-0.999*$B$1)) -> 3.857730202 | D125: =DataInput!A118/AVERAGE(DataInput!$A$1:$A$10000) -> 0.3295575545 | F125: =LN(IF(ISBLANK(DataInput!A118),1,GAMMADIST(B125,$G$2,$H$2,TRUE))) -> -2.990276086 | G125: =IF(ISBLANK(DataInput!A118),0,GAMMADIST(B125-$I$2,$G$2,$H$2,TRUE)) -> 0.04983643405 | H125: 0.8325459483 | K125: =LN(IF(ISBLANK(DataInput!A118),1,NORMDIST(C125,$C$2,$C$3,FALSE))) -> -1.522557834 | L125: =IF(ISBLANK(DataInput!A118),0,NORMDIST(C125,$C$2,$C$3,TRUE)) -> 0.5460254079 | M125: 0.3363569745 | P125: =LN(IF(ISBLANK(DataInput!A118),1,$Q$2/$R$2/((B125/$R$2)^($Q$2+1)))) -> -9.157158256 | Q125: =IF(ISBLANK(DataInput!A118),0,IF(B125<$R$2,0,1-(B125/$R$2)^(-$Q$2))) -> 0.9949885347 | R125: 0.4489631269 | U125: -5.428341513 | V125: 0.4862220252 | W125: 0.3961603572 | Y125: =IF(ISBLANK(DataInput!A118),"",B125-$B$1*0.9999) -> 47.35751996 | AA125: =LN(IF(ISBLANK(DataInput!A118),1,EXPONDIST(B125-$AC$2,$AB$2,FALSE))) -> -5.299573057 | AB125: =IF(ISBLANK(DataInput!A118),0,EXPONDIST(B125-$AC$2,$AB$2,TRUE)) -> 0.2799532543 | AC125: 0.6024291281 | AF125: =LN(IF(ISBLANK(DataInput!A118),1,GPDpdf(B125,$AH$2,$AI$2,$B$1))) -> -5.244376183 | AG125: 125 | AH125: =IF(ISBLANK(DataInput!A118),0,GPDcdff(B125,$AH$2,$AI$2,$B$1*0.999)) -> 0.5445694884 | AI125: 0.337812894
A126: =MAX(0,A125-1/COUNT($B$8:INDIRECT("B"&(DataInput!$C$2+AG124)))) -> 0.8813813814 | B126: =IF(ISBLANK(DataInput!A119),"",DataInput!A119) -> 6.290596008 | C126: =IF(ISBLANK(DataInput!A119),"",LN(B126-0.999*$B$1)) -> 1.800049033 | D126: =DataInput!A119/AVERAGE(DataInput!$A$1:$A$10000) -> 0.04355427767 | F126: =LN(IF(ISBLANK(DataInput!A119),1,GAMMADIST(B126,$G$2,$H$2,TRUE))) -> -6.717680621 | G126: =IF(ISBLANK(DataInput!A119),0,GAMMADIST(B126-$I$2,$G$2,$H$2,TRUE)) -> 0.001122711471 | H126: 0.8802586699 | K126: =LN(IF(ISBLANK(DataInput!A119),1,NORMDIST(C126,$C$2,$C$3,FALSE))) -> -2.033140345 | L126: =IF(ISBLANK(DataInput!A119),0,NORMDIST(C126,$C$2,$C$3,TRUE)) -> 0.1545480294 | M126: 0.726833352 | P126: =LN(IF(ISBLANK(DataInput!A119),1,$Q$2/$R$2/((B126/$R$2)^($Q$2+1)))) -> -5.106294482 | Q126: =IF(ISBLANK(DataInput!A119),0,IF(B126<$R$2,0,1-(B126/$R$2)^(-$Q$2))) -> 0.9619519809 | R126: 0.8074039514 | U126: -4.145789743 | V126: 0.1736408543 | W126: 0.7077405271 | Y126: =IF(ISBLANK(DataInput!A119),"",B126-$B$1*0.9999) -> 6.0497273 | AA126: =LN(IF(ISBLANK(DataInput!A119),1,EXPONDIST(B126-$AC$2,$AB$2,FALSE))) -> -5.013091966 | AB126: =IF(ISBLANK(DataInput!A119),0,EXPONDIST(B126-$AC$2,$AB$2,TRUE)) -> 0.04108999761 | AC126: 0.8402913838 | AF126: =LN(IF(ISBLANK(DataInput!A119),1,GPDpdf(B126,$AH$2,$AI$2,$B$1))) -> -3.967821703 | AG126: 126 | AH126: =IF(ISBLANK(DataInput!A119),0,GPDcdff(B126,$AH$2,$AI$2,$B$1*0.999)) -> 0.1315653449 | AI126: 0.7498160365
A127: =MAX(0,A126-1/COUNT($B$8:INDIRECT("B"&(DataInput!$C$2+AG125)))) -> 0.8803803804 | B127: =IF(ISBLANK(DataInput!A120),"",DataInput!A120) -> 0.5361623168 | C127: =IF(ISBLANK(DataInput!A120),"",LN(B127-0.999*$B$1)) -> -1.219051208 | D127: =DataInput!A120/AVERAGE(DataInput!$A$1:$A$10000) -> 0.003712233688 | F127: =LN(IF(ISBLANK(DataInput!A120),1,GAMMADIST(B127,$G$2,$H$2,TRUE))) -> -11.45270158 | G127: =IF(ISBLANK(DataInput!A120),0,GAMMADIST(B127-$I$2,$G$2,$H$2,TRUE)) -> 3.360177043e-06 | H127: 0.8803770202 | K127: =LN(IF(ISBLANK(DataInput!A120),1,NORMDIST(C127,$C$2,$C$3,FALSE))) -> -5.104727963 | L127: =IF(ISBLANK(DataInput!A120),0,NORMDIST(C127,$C$2,$C$3,TRUE)) -> 0.003690744093 | M127: 0.8766896363 | P127: =LN(IF(ISBLANK(DataInput!A120),1,$Q$2/$R$2/((B127/$R$2)^($Q$2+1)))) -> -0.1774365055 | Q127: =IF(ISBLANK(DataInput!A120),0,IF(B127<$R$2,0,1-(B127/$R$2)^(-$Q$2))) -> 0.5517581882 | R127: 0.5480674441 | U127: -2.800731711 | V127: 0.02998298746 | W127: 0.8503973929 | Y127: =IF(ISBLANK(DataInput!A120),"",B127-$B$1*0.9999) -> 0.2952936084 | AA127: =LN(IF(ISBLANK(DataInput!A120),1,EXPONDIST(B127-$AC$2,$AB$2,FALSE))) -> -4.97318336 | AB127: =IF(ISBLANK(DataInput!A120),0,EXPONDIST(B127-$AC$2,$AB$2,TRUE)) -> 0.002047348641 | AC127: 0.8783330317 | AF127: =LN(IF(ISBLANK(DataInput!A120),1,GPDpdf(B127,$AH$2,$AI$2,$B$1))) -> -3.703389614 | AG127: 127 | AH127: =IF(ISBLANK(DataInput!A120),0,GPDcdff(B127,$AH$2,$AI$2,$B$1*0.999)) -> 0.007334449694 | AI127: 0.8730459307
A128: =MAX(0,A127-1/COUNT($B$8:INDIRECT("B"&(DataInput!$C$2+AG126)))) -> 0.8793793794 | B128: =IF(ISBLANK(DataInput!A121),"",DataInput!A121) -> 2.664582968 | C128: =IF(ISBLANK(DataInput!A121),"",LN(B128-0.999*$B$1)) -> 0.8853906284 | D128: =DataInput!A121/AVERAGE(DataInput!$A$1:$A$10000) -> 0.01844880617 | F128: =LN(IF(ISBLANK(DataInput!A121),1,GAMMADIST(B128,$G$2,$H$2,TRUE))) -> -8.362137141 | G128: =IF(ISBLANK(DataInput!A121),0,GAMMADIST(B128-$I$2,$G$2,$H$2,TRUE)) -> 0.0001946965516 | H128: 0.8791846828 | K128: =LN(IF(ISBLANK(DataInput!A121),1,NORMDIST(C128,$C$2,$C$3,FALSE))) -> -2.672041431 | L128: =IF(ISBLANK(DataInput!A121),0,NORMDIST(C128,$C$2,$C$3,TRUE)) -> 0.06417549418 | M128: 0.8152038852 | P128: =LN(IF(ISBLANK(DataInput!A121),1,$Q$2/$R$2/((B128/$R$2)^($Q$2+1)))) -> -3.386844289 | Q128: =IF(ISBLANK(DataInput!A121),0,IF(B128<$R$2,0,1-(B128/$R$2)^(-$Q$2))) -> 0.9100466721 | R128: 0.8458711779 | U128: -3.705588672 | V128: 0.1036270088 | W128: 0.7757523706 | Y128: =IF(ISBLANK(DataInput!A121),"",B128-$B$1*0.9999) -> 2.423714259 | AA128: =LN(IF(ISBLANK(DataInput!A121),1,EXPONDIST(B128-$AC$2,$AB$2,FALSE))) -> -4.987944552 | AB128: =IF(ISBLANK(DataInput!A121),0,EXPONDIST(B128-$AC$2,$AB$2,TRUE)) -> 0.01667012925 | AC128: 0.8627092501 | AF128: =LN(IF(ISBLANK(DataInput!A121),1,GPDpdf(B128,$AH$2,$AI$2,$B$1))) -> -3.805268217 | AG128: 128 | AH128: =IF(ISBLANK(DataInput!A121),0,GPDcdff(B128,$AH$2,$AI$2,$B$1*0.999)) -> 0.0571735546 | AI128: 0.8222058248
A129: =MAX(0,A128-1/COUNT($B$8:INDIRECT("B"&(DataInput!$C$2+AG127)))) -> 0.8783783784 | B129: =IF(ISBLANK(DataInput!A122),"",DataInput!A122) -> 5.757586956 | C129: =IF(ISBLANK(DataInput!A122),"",LN(B129-0.999*$B$1)) -> 1.707822462 | D129: =DataInput!A122/AVERAGE(DataInput!$A$1:$A$10000) -> 0.03986387628 | F129: =LN(IF(ISBLANK(DataInput!A122),1,GAMMADIST(B129,$G$2,$H$2,TRUE))) -> -6.886449719 | G129: =IF(ISBLANK(DataInput!A122),0,GAMMADIST(B129-$I$2,$G$2,$H$2,TRUE)) -> 0.0009416180882 | H129: 0.8774367603 | K129: =LN(IF(ISBLANK(DataInput!A122),1,NORMDIST(C129,$C$2,$C$3,FALSE))) -> -2.086068789 | L129: =IF(ISBLANK(DataInput!A122),0,NORMDIST(C129,$C$2,$C$3,TRUE)) -> 0.1427848386 | M129: 0.7355935398 | P129: =LN(IF(ISBLANK(DataInput!A122),1,$Q$2/$R$2/((B129/$R$2)^($Q$2+1)))) -> -4.929071984 | Q129: =IF(ISBLANK(DataInput!A122),0,IF(B129<$R$2,0,1-(B129/$R$2)^(-$Q$2))) -> 0.9584235394 | R129: 0.8156387008 | U129: -4.099209439 | V129: 0.1650058882 | W129: 0.7133724902 | Y129: =IF(ISBLANK(DataInput!A122),"",B129-$B$1*0.9999) -> 5.516718248 | AA129: =LN(IF(ISBLANK(DataInput!A122),1,EXPONDIST(B129-$AC$2,$AB$2,FALSE))) -> -5.009395399 | AB129: =IF(ISBLANK(DataInput!A122),0,EXPONDIST(B129-$AC$2,$AB$2,TRUE)) -> 0.0375387631 | AC129: 0.8408396153 | AF129: =LN(IF(ISBLANK(DataInput!A122),1,GPDpdf(B129,$AH$2,$AI$2,$B$1))) -> -3.944730622 | AG129: 129 | AH129: =IF(ISBLANK(DataInput!A122),0,GPDcdff(B129,$AH$2,$AI$2,$B$1*0.999)) -> 0.1213667286 | AI129: 0.7570116498
A130: =MAX(0,A129-1/COUNT($B$8:INDIRECT("B"&(DataInput!$C$2+AG128)))) -> 0.8773773774 | B130: =IF(ISBLANK(DataInput!A123),"",DataInput!A123) -> 4.935586929 | C130: =IF(ISBLANK(DataInput!A123),"",LN(B130-0.999*$B$1)) -> 1.546484273 | D130: =DataInput!A123/AVERAGE(DataInput!$A$1:$A$10000) -> 0.03417258449 | F130: =LN(IF(ISBLANK(DataInput!A123),1,GAMMADIST(B130,$G$2,$H$2,TRUE))) -> -7.180570855 | G130: =IF(ISBLANK(DataInput!A123),0,GAMMADIST(B130-$I$2,$G$2,$H$2,TRUE)) -> 0.0006918578978 | H130: 0.8766855195 | K130: =LN(IF(ISBLANK(DataInput!A123),1,NORMDIST(C130,$C$2,$C$3,FALSE))) -> -2.184858866 | L130: =IF(ISBLANK(DataInput!A123),0,NORMDIST(C130,$C$2,$C$3,TRUE)) -> 0.1236960192 | M130: 0.7536813582 | P130: =LN(IF(ISBLANK(DataInput!A123),1,$Q$2/$R$2/((B130/$R$2)^($Q$2+1)))) -> -4.620721166 | Q130: =IF(ISBLANK(DataInput!A123),0,IF(B130<$R$2,0,1-(B130/$R$2)^(-$Q$2))) -> 0.9514866937 | R130: 0.8277906745 | U130: -4.019066849 | V130: 0.1508245038 | W130: 0.7265528736 | Y130: =IF(ISBLANK(DataInput!A123),"",B130-$B$1*0.9999) -> 4.694718221 | AA130: =LN(IF(ISBLANK(DataInput!A123),1,EXPONDIST(B130-$AC$2,$AB$2,FALSE))) -> -5.003694599 | AB130: =IF(ISBLANK(DataInput!A123),0,EXPONDIST(B130-$AC$2,$AB$2,TRUE)) -> 0.03203629475 | AC130: 0.8453410826 | AF130: =LN(IF(ISBLANK(DataInput!A123),1,GPDpdf(B130,$AH$2,$AI$2,$B$1))) -> -3.908594937 | AG130: 130 | AH130: =IF(ISBLANK(DataInput!A123),0,GPDcdff(B130,$AH$2,$AI$2,$B$1*0.999)) -> 0.1051658144 | AI130: 0.772211563
A131: =MAX(0,A130-1/COUNT($B$8:INDIRECT("B"&(DataInput!$C$2+AG129)))) -> 0.8763763764 | B131: =IF(ISBLANK(DataInput!A124),"",DataInput!A124) -> 533.1447144 | C131: =IF(ISBLANK(DataInput!A124),"",LN(B131-0.999*$B$1)) -> 6.278341413 | D131: =DataInput!A124/AVERAGE(DataInput!$A$1:$A$10000) -> 3.691340677 | F131: =LN(IF(ISBLANK(DataInput!A124),1,GAMMADIST(B131,$G$2,$H$2,TRUE))) -> -0.1140240881 | G131: =IF(ISBLANK(DataInput!A124),0,GAMMADIST(B131-$I$2,$G$2,$H$2,TRUE)) -> 0.8920923558 | H131: 0.01571597939 | K131: =LN(IF(ISBLANK(DataInput!A124),1,NORMDIST(C131,$C$2,$C$3,FALSE))) -> -2.564462312 | L131: =IF(ISBLANK(DataInput!A124),0,NORMDIST(C131,$C$2,$C$3,TRUE)) -> 0.9262143707 | M131: 0.0498379943 | P131: =LN(IF(ISBLANK(DataInput!A124),1,$Q$2/$R$2/((B131/$R$2)^($Q$2+1)))) -> -13.99317849 | Q131: =IF(ISBLANK(DataInput!A124),0,IF(B131<$R$2,0,1-(B131/$R$2)^(-$Q$2))) -> 0.9995543841 | R131: 0.07334001342 | U131: -8.611177232 | V131: 0.9449275994 | W131: 0.06855122304 | Y131: =IF(ISBLANK(DataInput!A124),"",B131-$B$1*0.9999) -> 532.9038456 | AA131: =LN(IF(ISBLANK(DataInput!A124),1,EXPONDIST(B131-$AC$2,$AB$2,FALSE))) -> -8.666972572 | AB131: =IF(ISBLANK(DataInput!A124),0,EXPONDIST(B131-$AC$2,$AB$2,TRUE)) -> 0.9751733762 | AC131: 0.09879699979 | AF131: =LN(IF(ISBLANK(DataInput!A124),1,GPDpdf(B131,$AH$2,$AI$2,$B$1))) -> -9.030843151 | AG131: 131 | AH131: =IF(ISBLANK(DataInput!A124),0,GPDcdff(B131,$AH$2,$AI$2,$B$1*0.999)) -> 0.9328632508 | AI131: 0.05648687443
A132: =MAX(0,A131-1/COUNT($B$8:INDIRECT("B"&(DataInput!$C$2+AG130)))) -> 0.8753753754 | B132: =IF(ISBLANK(DataInput!A125),"",DataInput!A125) -> 10.13893986 | C132: =IF(ISBLANK(DataInput!A125),"",LN(B132-0.999*$B$1)) -> 2.292361808 | D132: =DataInput!A125/AVERAGE(DataInput!$A$1:$A$10000) -> 0.07019910375 | F132: =LN(IF(ISBLANK(DataInput!A125),1,GAMMADIST(B132,$G$2,$H$2,TRUE))) -> -5.812219492 | G132: =IF(ISBLANK(DataInput!A125),0,GAMMADIST(B132-$I$2,$G$2,$H$2,TRUE)) -> 0.002858167623 | H132: 0.8725172078 | K132: =LN(IF(ISBLANK(DataInput!A125),1,NORMDIST(C132,$C$2,$C$3,FALSE))) -> -1.794208874 | L132: =IF(ISBLANK(DataInput!A125),0,NORMDIST(C132,$C$2,$C$3,TRUE)) -> 0.2278022551 | M132: 0.6475731203 | P132: =LN(IF(ISBLANK(DataInput!A125),1,$Q$2/$R$2/((B132/$R$2)^($Q$2+1)))) -> -6.061746377 | Q132: =IF(ISBLANK(DataInput!A125),0,IF(B132<$R$2,0,1-(B132/$R$2)^(-$Q$2))) -> 0.9764123151 | R132: 0.74861006 | U132: -4.40546033 | V132: 0.226816732 | W132: 0.6485586433 | Y132: =IF(ISBLANK(DataInput!A125),"",B132-$B$1*0.9999) -> 9.898071149 | AA132: =LN(IF(ISBLANK(DataInput!A125),1,EXPONDIST(B132-$AC$2,$AB$2,FALSE))) -> -5.039781307 | AB132: =IF(ISBLANK(DataInput!A125),0,EXPONDIST(B132-$AC$2,$AB$2,TRUE)) -> 0.06634416556 | AC132: 0.8090312098 | AF132: =LN(IF(ISBLANK(DataInput!A125),1,GPDpdf(B132,$AH$2,$AI$2,$B$1))) -> -4.127149092 | AG132: 132 | AH132: =IF(ISBLANK(DataInput!A125),0,GPDcdff(B132,$AH$2,$AI$2,$B$1*0.999)) -> 0.1987815706 | AI132: 0.6765938048
A133: =MAX(0,A132-1/COUNT($B$8:INDIRECT("B"&(DataInput!$C$2+AG131)))) -> 0.8743743744 | B133: =IF(ISBLANK(DataInput!A126),"",DataInput!A126) -> 46.44710922 | C133: =IF(ISBLANK(DataInput!A126),"",LN(B133-0.999*$B$1)) -> 3.833119557 | D133: =DataInput!A126/AVERAGE(DataInput!$A$1:$A$10000) -> 0.3215864267 | F133: =LN(IF(ISBLANK(DataInput!A126),1,GAMMADIST(B133,$G$2,$H$2,TRUE))) -> -3.03250893 | G133: =IF(ISBLANK(DataInput!A126),0,GAMMADIST(B133-$I$2,$G$2,$H$2,TRUE)) -> 0.04776392776 | H133: 0.8266104466 | K133: =LN(IF(ISBLANK(DataInput!A126),1,NORMDIST(C133,$C$2,$C$3,FALSE))) -> -1.521083104 | L133: =IF(ISBLANK(DataInput!A126),0,NORMDIST(C133,$C$2,$C$3,TRUE)) -> 0.5406524747 | M133: 0.3337218996 | P133: =LN(IF(ISBLANK(DataInput!A126),1,$Q$2/$R$2/((B133/$R$2)^($Q$2+1)))) -> -9.108148031 | Q133: =IF(ISBLANK(DataInput!A126),0,IF(B133<$R$2,0,1-(B133/$R$2)^(-$Q$2))) -> 0.9948641062 | R133: 0.4542116315 | U133: -5.408800394 | V133: 0.4811179138 | W133: 0.3932564605 | Y133: =IF(ISBLANK(DataInput!A126),"",B133-$B$1*0.9999) -> 46.20624051 | AA133: =LN(IF(ISBLANK(DataInput!A126),1,EXPONDIST(B133-$AC$2,$AB$2,FALSE))) -> -5.291588612 | AB133: =IF(ISBLANK(DataInput!A126),0,EXPONDIST(B133-$AC$2,$AB$2,TRUE)) -> 0.2741810676 | AC133: 0.6001933068 | AF133: =LN(IF(ISBLANK(DataInput!A126),1,GPDpdf(B133,$AH$2,$AI$2,$B$1))) -> -5.217819289 | AG133: 133 | AH133: =IF(ISBLANK(DataInput!A126),0,GPDcdff(B133,$AH$2,$AI$2,$B$1*0.999)) -> 0.538412879 | AI133: 0.3359614954
A134: =MAX(0,A133-1/COUNT($B$8:INDIRECT("B"&(DataInput!$C$2+AG132)))) -> 0.8733733734 | B134: =IF(ISBLANK(DataInput!A127),"",DataInput!A127) -> 3.702013016 | C134: =IF(ISBLANK(DataInput!A127),"",LN(B134-0.999*$B$1)) -> 1.241661896 | D134: =DataInput!A127/AVERAGE(DataInput!$A$1:$A$10000) -> 0.02563167347 | F134: =LN(IF(ISBLANK(DataInput!A127),1,GAMMADIST(B134,$G$2,$H$2,TRUE))) -> -7.73104295 | G134: =IF(ISBLANK(DataInput!A127),0,GAMMADIST(B134-$I$2,$G$2,$H$2,TRUE)) -> 0.0003859076231 | H134: 0.8729874658 | K134: =LN(IF(ISBLANK(DataInput!A127),1,NORMDIST(C134,$C$2,$C$3,FALSE))) -> -2.393037585 | L134: =IF(ISBLANK(DataInput!A127),0,NORMDIST(C134,$C$2,$C$3,TRUE)) -> 0.0926667326 | M134: 0.7807066408 | P134: =LN(IF(ISBLANK(DataInput!A127),1,$Q$2/$R$2/((B134/$R$2)^($Q$2+1)))) -> -4.045051439 | Q134: =IF(ISBLANK(DataInput!A127),0,IF(B134<$R$2,0,1-(B134/$R$2)^(-$Q$2))) -> 0.9352901794 | R134: 0.8426234468 | U134: -3.871822538 | V134: 0.1270213428 | W134: 0.7463520306 | Y134: =IF(ISBLANK(DataInput!A127),"",B134-$B$1*0.9999) -> 3.461144307 | AA134: =LN(IF(ISBLANK(DataInput!A127),1,EXPONDIST(B134-$AC$2,$AB$2,FALSE))) -> -4.995139419 | AB134: =IF(ISBLANK(DataInput!A127),0,EXPONDIST(B134-$AC$2,$AB$2,TRUE)) -> 0.02371966665 | AC134: 0.8496537067 | AF134: =LN(IF(ISBLANK(DataInput!A127),1,GPDpdf(B134,$AH$2,$AI$2,$B$1))) -> -3.853125222 | AG134: 134 | AH134: =IF(ISBLANK(DataInput!A127),0,GPDcdff(B134,$AH$2,$AI$2,$B$1*0.999)) -> 0.07971363477 | AI134: 0.7936597386
A135: =MAX(0,A134-1/COUNT($B$8:INDIRECT("B"&(DataInput!$C$2+AG133)))) -> 0.8723723724 | B135: =IF(ISBLANK(DataInput!A128),"",DataInput!A128) -> 1140.661011 | C135: =IF(ISBLANK(DataInput!A128),"",LN(B135-0.999*$B$1)) -> 7.039152209 | D135: =DataInput!A128/AVERAGE(DataInput!$A$1:$A$10000) -> 7.897608799 | F135: =LN(IF(ISBLANK(DataInput!A128),1,GAMMADIST(B135,$G$2,$H$2,TRUE))) -> -0.00290582893 | G135: =IF(ISBLANK(DataInput!A128),0,GAMMADIST(B135-$I$2,$G$2,$H$2,TRUE)) -> 0.9970940507 | H135: 0.1247216784 | K135: =LN(IF(ISBLANK(DataInput!A128),1,NORMDIST(C135,$C$2,$C$3,FALSE))) -> -3.258694249 | L135: =IF(ISBLANK(DataInput!A128),0,NORMDIST(C135,$C$2,$C$3,TRUE)) -> 0.9690483297 | M135: 0.09667595734 | P135: =LN(IF(ISBLANK(DataInput!A128),1,$Q$2/$R$2/((B135/$R$2)^($Q$2+1)))) -> -15.51558849 | Q135: =IF(ISBLANK(DataInput!A128),0,IF(B135<$R$2,0,1-(B135/$R$2)^(-$Q$2))) -> 0.9997919834 | R135: 0.03074365373 | U135: -10.61362012 | V135: 0.9899788393 | W135: 0.1176064669 | Y135: =IF(ISBLANK(DataInput!A128),"",B135-$B$1*0.9999) -> 1140.420142 | AA135: =LN(IF(ISBLANK(DataInput!A128),1,EXPONDIST(B135-$AC$2,$AB$2,FALSE))) -> -12.88026793 | AB135: =IF(ISBLANK(DataInput!A128),0,EXPONDIST(B135-$AC$2,$AB$2,TRUE)) -> 0.9996326274 | AC135: 0.127260255 | AF135: =LN(IF(ISBLANK(DataInput!A128),1,GPDpdf(B135,$AH$2,$AI$2,$B$1))) -> -10.49144709 | AG135: 135 | AH135: =IF(ISBLANK(DataInput!A128),0,GPDcdff(B135,$AH$2,$AI$2,$B$1*0.999)) -> 0.9679203769 | AI135: 0.09554800457
A136: =MAX(0,A135-1/COUNT($B$8:INDIRECT("B"&(DataInput!$C$2+AG134)))) -> 0.8713713714 | B136: =IF(ISBLANK(DataInput!A129),"",DataInput!A129) -> 21.63087082 | C136: =IF(ISBLANK(DataInput!A129),"",LN(B136-0.999*$B$1)) -> 3.062933757 | D136: =DataInput!A129/AVERAGE(DataInput!$A$1:$A$10000) -> 0.1497659288 | F136: =LN(IF(ISBLANK(DataInput!A129),1,GAMMADIST(B136,$G$2,$H$2,TRUE))) -> -4.399076282 | G136: =IF(ISBLANK(DataInput!A129),0,GAMMADIST(B136-$I$2,$G$2,$H$2,TRUE)) -> 0.01203876643 | H136: 0.8593326049 | K136: =LN(IF(ISBLANK(DataInput!A129),1,NORMDIST(C136,$C$2,$C$3,FALSE))) -> -1.567685228 | L136: =IF(ISBLANK(DataInput!A129),0,NORMDIST(C136,$C$2,$C$3,TRUE)) -> 0.3737615891 | M136: 0.4976097822 | P136: =LN(IF(ISBLANK(DataInput!A129),1,$Q$2/$R$2/((B136/$R$2)^($Q$2+1)))) -> -7.578487144 | Q136: =IF(ISBLANK(DataInput!A129),0,IF(B136<$R$2,0,1-(B136/$R$2)^(-$Q$2))) -> 0.9889578249 | R136: 0.6151962358 | U136: -4.861412639 | V136: 0.3369230157 | W136: 0.5344483557 | Y136: =IF(ISBLANK(DataInput!A129),"",B136-$B$1*0.9999) -> 21.39000211 | AA136: =LN(IF(ISBLANK(DataInput!A129),1,EXPONDIST(B136-$AC$2,$AB$2,FALSE))) -> -5.119481061 | AB136: =IF(ISBLANK(DataInput!A129),0,EXPONDIST(B136-$AC$2,$AB$2,TRUE)) -> 0.1378682246 | AC136: 0.7335031467 | AF136: =LN(IF(ISBLANK(DataInput!A129),1,GPDpdf(B136,$AH$2,$AI$2,$B$1))) -> -4.539613071 | AG136: 136 | AH136: =IF(ISBLANK(DataInput!A129),0,GPDcdff(B136,$AH$2,$AI$2,$B$1*0.999)) -> 0.3496020492 | AI136: 0.5217693221
A137: =MAX(0,A136-1/COUNT($B$8:INDIRECT("B"&(DataInput!$C$2+AG135)))) -> 0.8703703704 | B137: =IF(ISBLANK(DataInput!A130),"",DataInput!A130) -> 18.01285934 | C137: =IF(ISBLANK(DataInput!A130),"",LN(B137-0.999*$B$1)) -> 2.877635857 | D137: =DataInput!A130/AVERAGE(DataInput!$A$1:$A$10000) -> 0.1247158578 | F137: =LN(IF(ISBLANK(DataInput!A130),1,GAMMADIST(B137,$G$2,$H$2,TRUE))) -> -4.736655833 | G137: =IF(ISBLANK(DataInput!A130),0,GAMMADIST(B137-$I$2,$G$2,$H$2,TRUE)) -> 0.008552130491 | H137: 0.8618182399 | K137: =LN(IF(ISBLANK(DataInput!A130),1,NORMDIST(C137,$C$2,$C$3,FALSE))) -> -1.605724217 | L137: =IF(ISBLANK(DataInput!A130),0,NORMDIST(C137,$C$2,$C$3,TRUE)) -> 0.3358147002 | M137: 0.5345556701 | P137: =LN(IF(ISBLANK(DataInput!A130),1,$Q$2/$R$2/((B137/$R$2)^($Q$2+1)))) -> -7.212110485 | Q137: =IF(ISBLANK(DataInput!A130),0,IF(B137<$R$2,0,1-(B137/$R$2)^(-$Q$2))) -> 0.9867358738 | R137: 0.6509211736 | U137: =LN(IF(ISBLANK(B137),1,WEIBULL(Y137,$V$2,$W$2,FALSE))) -> -4.744959064 | V137: =WEIBULL(Y137,$V$2,$W$2,TRUE) -> 0.3072668006 | W137: 0.5631035697 | Y137: =IF(ISBLANK(DataInput!A130),"",B137-$B$1*0.9999) -> 17.77199064 | AA137: =LN(IF(ISBLANK(DataInput!A130),1,EXPONDIST(B137-$AC$2,$AB$2,FALSE))) -> -5.09438914 | AB137: =IF(ISBLANK(DataInput!A130),0,EXPONDIST(B137-$AC$2,$AB$2,TRUE)) -> 0.1159619968 | AC137: 0.7544083735 | AF137: =LN(IF(ISBLANK(DataInput!A130),1,GPDpdf(B137,$AH$2,$AI$2,$B$1))) -> -4.418591417 | AG137: 137 | AH137: =IF(ISBLANK(DataInput!A130),0,GPDcdff(B137,$AH$2,$AI$2,$B$1*0.999)) -> 0.3085608513 | AI137: =ABS(AH137-$A137) -> 0.5618095191
A138: =MAX(0,A137-1/COUNT($B$8:INDIRECT("B"&(DataInput!$C$2+AG136)))) -> 0.8693693694 | B138: =IF(ISBLANK(DataInput!A131),"",DataInput!A131) -> 79.9716568 | C138: =IF(ISBLANK(DataInput!A131),"",LN(B138-0.999*$B$1)) -> 4.37865853 | D138: =DataInput!A131/AVERAGE(DataInput!$A$1:$A$10000) -> 0.5537007529 | F138: =LN(IF(ISBLANK(DataInput!A131),1,GAMMADIST(B138,$G$2,$H$2,TRUE))) -> -2.129131824 | G138: =IF(ISBLANK(DataInput!A131),0,GAMMADIST(B138-$I$2,$G$2,$H$2,TRUE)) -> 0.1183731042 | H138: 0.7509962651 | K138: =LN(IF(ISBLANK(DataInput!A131),1,NORMDIST(C138,$C$2,$C$3,FALSE))) -> -1.596834027 | L138: =IF(ISBLANK(DataInput!A131),0,NORMDIST(C138,$C$2,$C$3,TRUE)) -> 0.6563033045 | M138: 0.2130660649 | P138: =LN(IF(ISBLANK(DataInput!A131),1,$Q$2/$R$2/((B138/$R$2)^($Q$2+1)))) -> -10.19577099 | Q138: =IF(ISBLANK(DataInput!A131),0,IF(B138<$R$2,0,1-(B138/$R$2)^(-$Q$2))) -> 0.9970198043 | R138: 0.3407164998 | U138: -5.880716564 | V138: 0.5990665159 | W138: 0.2703028535 | Y138: =IF(ISBLANK(DataInput!A131),"",B138-$B$1*0.9999) -> 79.73078809 | AA138: =LN(IF(ISBLANK(DataInput!A131),1,EXPONDIST(B138-$AC$2,$AB$2,FALSE))) -> -5.524090722 | AB138: =IF(ISBLANK(DataInput!A131),0,EXPONDIST(B138-$AC$2,$AB$2,TRUE)) -> 0.4247536009 | AC138: 0.4446157685 | AF138: =LN(IF(ISBLANK(DataInput!A131),1,GPDpdf(B138,$AH$2,$AI$2,$B$1))) -> -5.876383393 | AG138: 138 | AH138: =IF(ISBLANK(DataInput!A131),0,GPDcdff(B138,$AH$2,$AI$2,$B$1*0.999)) -> 0.6691423149 | AI138: 0.2002270545
A139: =MAX(0,A138-1/COUNT($B$8:INDIRECT("B"&(DataInput!$C$2+AG137)))) -> 0.8683683684 | B139: =IF(ISBLANK(DataInput!A132),"",DataInput!A132) -> 24.04589081 | C139: =IF(ISBLANK(DataInput!A132),"",LN(B139-0.999*$B$1)) -> 3.169905678 | D139: =DataInput!A132/AVERAGE(DataInput!$A$1:$A$10000) -> 0.1664868327 | F139: =LN(IF(ISBLANK(DataInput!A132),1,GAMMADIST(B139,$G$2,$H$2,TRUE))) -> -4.205304412 | G139: =IF(ISBLANK(DataInput!A132),0,GAMMADIST(B139-$I$2,$G$2,$H$2,TRUE)) -> 0.01464480762 | H139: 0.8537235608 | K139: =LN(IF(ISBLANK(DataInput!A132),1,NORMDIST(C139,$C$2,$C$3,FALSE))) -> -1.550462756 | L139: =IF(ISBLANK(DataInput!A132),0,NORMDIST(C139,$C$2,$C$3,TRUE)) -> 0.3962678545 | M139: 0.4721005138 | P139: =LN(IF(ISBLANK(DataInput!A132),1,$Q$2/$R$2/((B139/$R$2)^($Q$2+1)))) -> -7.79034904 | Q139: =IF(ISBLANK(DataInput!A132),0,IF(B139<$R$2,0,1-(B139/$R$2)^(-$Q$2))) -> 0.990068587 | R139: 0.5938007324 | U139: -4.930976765 | V139: 0.3549703713 | W139: 0.5133979971 | Y139: =IF(ISBLANK(DataInput!A132),"",B139-$B$1*0.9999) -> 23.8050221 | AA139: =LN(IF(ISBLANK(DataInput!A132),1,EXPONDIST(B139-$AC$2,$AB$2,FALSE))) -> -5.1362299 | AB139: =IF(ISBLANK(DataInput!A132),0,EXPONDIST(B139-$AC$2,$AB$2,TRUE)) -> 0.1521876789 | AC139: 0.7161806895 | AF139: =LN(IF(ISBLANK(DataInput!A132),1,GPDpdf(B139,$AH$2,$AI$2,$B$1))) -> -4.616544112 | AG139: 139 | AH139: =IF(ISBLANK(DataInput!A132),0,GPDcdff(B139,$AH$2,$AI$2,$B$1*0.999)) -> 0.374415338 | AI139: 0.4939530304
A140: =MAX(0,A139-1/COUNT($B$8:INDIRECT("B"&(DataInput!$C$2+AG138)))) -> 0.8673673674 | B140: =IF(ISBLANK(DataInput!A133),"",DataInput!A133) -> 1.853881001 | C140: =IF(ISBLANK(DataInput!A133),"",LN(B140-0.999*$B$1)) -> 0.4782378204 | D140: =DataInput!A133/AVERAGE(DataInput!$A$1:$A$10000) -> 0.0128357389 | F140: =LN(IF(ISBLANK(DataInput!A133),1,GAMMADIST(B140,$G$2,$H$2,TRUE))) -> -9.059884843 | G140: =IF(ISBLANK(DataInput!A133),0,GAMMADIST(B140-$I$2,$G$2,$H$2,TRUE)) -> 8.893171214e-05 | H140: 0.8672784357 | K140: =LN(IF(ISBLANK(DataInput!A133),1,NORMDIST(C140,$C$2,$C$3,FALSE))) -> -3.037989724 | L140: =IF(ISBLANK(DataInput!A133),0,NORMDIST(C140,$C$2,$C$3,TRUE)) -> 0.04051218863 | M140: 0.8268551787 | P140: =LN(IF(ISBLANK(DataInput!A133),1,$Q$2/$R$2/((B140/$R$2)^($Q$2+1)))) -> -2.660706277 | Q140: =IF(ISBLANK(DataInput!A133),0,IF(B140<$R$2,0,1-(B140/$R$2)^(-$Q$2))) -> 0.8706317889 | R140: 0.8301196002 | U140: -3.521850081 | V140: 0.081871747 | W140: 0.7854956204 | Y140: =IF(ISBLANK(DataInput!A133),"",B140-$B$1*0.9999) -> 1.613012293 | AA140: =LN(IF(ISBLANK(DataInput!A133),1,EXPONDIST(B140-$AC$2,$AB$2,FALSE))) -> -4.982322107 | AB140: =IF(ISBLANK(DataInput!A133),0,EXPONDIST(B140-$AC$2,$AB$2,TRUE)) -> 0.01112583972 | AC140: 0.8562415277 | AF140: =LN(IF(ISBLANK(DataInput!A133),1,GPDpdf(B140,$AH$2,$AI$2,$B$1))) -> -3.767065844 | AG140: 140 | AH140: =IF(ISBLANK(DataInput!A133),0,GPDcdff(B140,$AH$2,$AI$2,$B$1*0.999)) -> 0.03878510372 | AI140: 0.8285822637
A141: =MAX(0,A140-1/COUNT($B$8:INDIRECT("B"&(DataInput!$C$2+AG139)))) -> 0.8663663664 | B141: =IF(ISBLANK(DataInput!A134),"",DataInput!A134) -> 98.1829071 | C141: =IF(ISBLANK(DataInput!A134),"",LN(B141-0.999*$B$1)) -> 4.584378072 | D141: =DataInput!A134/AVERAGE(DataInput!$A$1:$A$10000) -> 0.6797902127 | F141: =LN(IF(ISBLANK(DataInput!A134),1,GAMMADIST(B141,$G$2,$H$2,TRUE))) -> -1.811057139 | G141: =IF(ISBLANK(DataInput!A134),0,GAMMADIST(B141-$I$2,$G$2,$H$2,TRUE)) -> 0.1628754076 | H141: 0.7034909588 | K141: =LN(IF(ISBLANK(DataInput!A134),1,NORMDIST(C141,$C$2,$C$3,FALSE))) -> -1.648816948 | L141: =IF(ISBLANK(DataInput!A134),0,NORMDIST(C141,$C$2,$C$3,TRUE)) -> 0.6969480563 | M141: 0.1694183101 | P141: =LN(IF(ISBLANK(DataInput!A134),1,$Q$2/$R$2/((B141/$R$2)^($Q$2+1)))) -> -10.60643311 | Q141: =IF(ISBLANK(DataInput!A134),0,IF(B141<$R$2,0,1-(B141/$R$2)^(-$Q$2))) -> 0.9975734107 | R141: 0.3006253544 | U141: -6.083129251 | V141: 0.6450084036 | W141: 0.2213579627 | Y141: =IF(ISBLANK(DataInput!A134),"",B141-$B$1*0.9999) -> 97.9420384 | AA141: =LN(IF(ISBLANK(DataInput!A134),1,EXPONDIST(B141-$AC$2,$AB$2,FALSE))) -> -5.650390834 | AB141: =IF(ISBLANK(DataInput!A134),0,EXPONDIST(B141-$AC$2,$AB$2,TRUE)) -> 0.4930064118 | AC141: 0.3733599546 | AF141: =LN(IF(ISBLANK(DataInput!A134),1,GPDpdf(B141,$AH$2,$AI$2,$B$1))) -> -6.160767443 | AG141: 141 | AH141: =IF(ISBLANK(DataInput!A134),0,GPDcdff(B141,$AH$2,$AI$2,$B$1*0.999)) -> 0.7134542255 | AI141: 0.1529121409
A142: =MAX(0,A141-1/COUNT($B$8:INDIRECT("B"&(DataInput!$C$2+AG140)))) -> 0.8653653654 | B142: =IF(ISBLANK(DataInput!A135),"",DataInput!A135) -> 110.3282013 | C142: =IF(ISBLANK(DataInput!A135),"",LN(B142-0.999*$B$1)) -> 4.701275953 | D142: =DataInput!A135/AVERAGE(DataInput!$A$1:$A$10000) -> 0.7638807368 | F142: =LN(IF(ISBLANK(DataInput!A135),1,GAMMADIST(B142,$G$2,$H$2,TRUE))) -> -1.637435716 | G142: =IF(ISBLANK(DataInput!A135),0,GAMMADIST(B142-$I$2,$G$2,$H$2,TRUE)) -> 0.1938570856 | H142: 0.6715082798 | K142: =LN(IF(ISBLANK(DataInput!A135),1,NORMDIST(C142,$C$2,$C$3,FALSE))) -> -1.684070114 | L142: =IF(ISBLANK(DataInput!A135),0,NORMDIST(C142,$C$2,$C$3,TRUE)) -> 0.7190409077 | M142: 0.1463244577 | P142: =LN(IF(ISBLANK(DataInput!A135),1,$Q$2/$R$2/((B142/$R$2)^($Q$2+1)))) -> -10.83988263 | Q142: =IF(ISBLANK(DataInput!A135),0,IF(B142<$R$2,0,1-(B142/$R$2)^(-$Q$2))) -> 0.997840958 | R142: 0.2788000503 | U142: -6.205236492 | V142: 0.6710682928 | W142: 0.1942970726 | Y142: =IF(ISBLANK(DataInput!A135),"",B142-$B$1*0.9999) -> 110.0873326 | AA142: =LN(IF(ISBLANK(DataInput!A135),1,EXPONDIST(B142-$AC$2,$AB$2,FALSE))) -> -5.734621845 | AB142: =IF(ISBLANK(DataInput!A135),0,EXPONDIST(B142-$AC$2,$AB$2,TRUE)) -> 0.5339619206 | AC142: 0.3314034448 | AF142: =LN(IF(ISBLANK(DataInput!A135),1,GPDpdf(B142,$AH$2,$AI$2,$B$1))) -> -6.330382963 | AG142: 142 | AH142: =IF(ISBLANK(DataInput!A135),0,GPDcdff(B142,$AH$2,$AI$2,$B$1*0.999)) -> 0.7370043702 | AI142: 0.1283609952
A143: =MAX(0,A142-1/COUNT($B$8:INDIRECT("B"&(DataInput!$C$2+AG141)))) -> 0.8643643644 | B143: =IF(ISBLANK(DataInput!A136),"",DataInput!A136) -> 8.408810616 | C143: =IF(ISBLANK(DataInput!A136),"",LN(B143-0.999*$B$1)) -> 2.100243511 | D143: =DataInput!A136/AVERAGE(DataInput!$A$1:$A$10000) -> 0.05822018644 | F143: =LN(IF(ISBLANK(DataInput!A136),1,GAMMADIST(B143,$G$2,$H$2,TRUE))) -> -6.166140015 | G143: =IF(ISBLANK(DataInput!A136),0,GAMMADIST(B143-$I$2,$G$2,$H$2,TRUE)) -> 0.001986877894 | H143: 0.8623774865 | K143: =LN(IF(ISBLANK(DataInput!A136),1,NORMDIST(C143,$C$2,$C$3,FALSE))) -> -1.878709822 | L143: =IF(ISBLANK(DataInput!A136),0,NORMDIST(C143,$C$2,$C$3,TRUE)) -> 0.1971446259 | M143: 0.6672197385 | P143: =LN(IF(ISBLANK(DataInput!A136),1,$Q$2/$R$2/((B143/$R$2)^($Q$2+1)))) -> -5.687227298 | Q143: =IF(ISBLANK(DataInput!A136),0,IF(B143<$R$2,0,1-(B143/$R$2)^(-$Q$2))) -> 0.9715502201 | R143: 0.7744055942 | U143: -4.301738744 | V143: 0.2045873334 | W143: 0.6597770309 | Y143: =IF(ISBLANK(DataInput!A136),"",B143-$B$1*0.9999) -> 8.167941907 | AA143: =LN(IF(ISBLANK(DataInput!A136),1,EXPONDIST(B143-$AC$2,$AB$2,FALSE))) -> -5.027782377 | AB143: =IF(ISBLANK(DataInput!A136),0,EXPONDIST(B143-$AC$2,$AB$2,TRUE)) -> 0.0550738137 | AC143: 0.8092905507 | AF143: =LN(IF(ISBLANK(DataInput!A136),1,GPDpdf(B143,$AH$2,$AI$2,$B$1))) -> -4.057067356 | AG143: 143 | AH143: =IF(ISBLANK(DataInput!A136),0,GPDcdff(B143,$AH$2,$AI$2,$B$1*0.999)) -> 0.1698817408 | AI143: 0.6944826236
A144: =MAX(0,A143-1/COUNT($B$8:INDIRECT("B"&(DataInput!$C$2+AG142)))) -> 0.8633633634 | B144: =IF(ISBLANK(DataInput!A137),"",DataInput!A137) -> 76.00048828 | C144: =IF(ISBLANK(DataInput!A137),"",LN(B144-0.999*$B$1)) -> 4.327568289 | D144: =DataInput!A137/AVERAGE(DataInput!$A$1:$A$10000) -> 0.5262055241 | F144: =LN(IF(ISBLANK(DataInput!A137),1,GAMMADIST(B144,$G$2,$H$2,TRUE))) -> -2.210341227 | G144: =IF(ISBLANK(DataInput!A137),0,GAMMADIST(B144-$I$2,$G$2,$H$2,TRUE)) -> 0.1091070978 | H144: 0.7542562655 | K144: =LN(IF(ISBLANK(DataInput!A137),1,NORMDIST(C144,$C$2,$C$3,FALSE))) -> -1.585912177 | L144: =IF(ISBLANK(DataInput!A137),0,NORMDIST(C144,$C$2,$C$3,TRUE)) -> 0.6458982542 | M144: 0.2174651091 | P144: =LN(IF(ISBLANK(DataInput!A137),1,$Q$2/$R$2/((B144/$R$2)^($Q$2+1)))) -> -10.09382095 | Q144: =IF(ISBLANK(DataInput!A137),0,IF(B144<$R$2,0,1-(B144/$R$2)^(-$Q$2))) -> 0.9968638169 | R144: 0.3509655626 | U144: -5.832733305 | V144: 0.587707013 | W144: 0.2756563504 | Y144: =IF(ISBLANK(DataInput!A137),"",B144-$B$1*0.9999) -> 75.75961957 | AA144: =LN(IF(ISBLANK(DataInput!A137),1,EXPONDIST(B144-$AC$2,$AB$2,FALSE))) -> -5.496549558 | AB144: =IF(ISBLANK(DataInput!A137),0,EXPONDIST(B144-$AC$2,$AB$2,TRUE)) -> 0.4086904621 | AC144: 0.4546729013 | AF144: =LN(IF(ISBLANK(DataInput!A137),1,GPDpdf(B144,$AH$2,$AI$2,$B$1))) -> -5.808678664 | AG144: 144 | AH144: =IF(ISBLANK(DataInput!A137),0,GPDcdff(B144,$AH$2,$AI$2,$B$1*0.999)) -> 0.6576200334 | AI144: 0.2057433299
A145: =MAX(0,A144-1/COUNT($B$8:INDIRECT("B"&(DataInput!$C$2+AG143)))) -> 0.8623623624 | B145: =IF(ISBLANK(DataInput!A138),"",DataInput!A138) -> 3.77206707 | C145: =IF(ISBLANK(DataInput!A138),"",LN(B145-0.999*$B$1)) -> 1.261698687 | D145: =DataInput!A138/AVERAGE(DataInput!$A$1:$A$10000) -> 0.0261167076 | F145: =LN(IF(ISBLANK(DataInput!A138),1,GAMMADIST(B145,$G$2,$H$2,TRUE))) -> -7.695114201 | G145: =IF(ISBLANK(DataInput!A138),0,GAMMADIST(B145-$I$2,$G$2,$H$2,TRUE)) -> 0.0004010242129 | H145: 0.8619613381 | K145: =LN(IF(ISBLANK(DataInput!A138),1,NORMDIST(C145,$C$2,$C$3,FALSE))) -> -2.37848882 | L145: =IF(ISBLANK(DataInput!A138),0,NORMDIST(C145,$C$2,$C$3,TRUE)) -> 0.09451052748 | M145: 0.7678518349 | P145: =LN(IF(ISBLANK(DataInput!A138),1,$Q$2/$R$2/((B145/$R$2)^($Q$2+1)))) -> -4.082575557 | Q145: =IF(ISBLANK(DataInput!A138),0,IF(B145<$R$2,0,1-(B145/$R$2)^(-$Q$2))) -> 0.9364939439 | R145: 0.8419834164 | U145: -3.881348373 | V145: 0.1284729498 | W145: 0.7338894125 | Y145: =IF(ISBLANK(DataInput!A138),"",B145-$B$1*0.9999) -> 3.531198362 | AA145: =LN(IF(ISBLANK(DataInput!A138),1,EXPONDIST(B145-$AC$2,$AB$2,FALSE))) -> -4.995625264 | AB145: =IF(ISBLANK(DataInput!A138),0,EXPONDIST(B145-$AC$2,$AB$2,TRUE)) -> 0.02419387183 | AC145: 0.8381684905 | AF145: =LN(IF(ISBLANK(DataInput!A138),1,GPDpdf(B145,$AH$2,$AI$2,$B$1))) -> -3.856316392 | AG145: 145 | AH145: =IF(ISBLANK(DataInput!A138),0,GPDcdff(B145,$AH$2,$AI$2,$B$1*0.999)) -> 0.08119732944 | AI145: 0.7811650329
A146: =MAX(0,A145-1/COUNT($B$8:INDIRECT("B"&(DataInput!$C$2+AG144)))) -> 0.8613613614 | B146: =IF(ISBLANK(DataInput!A139),"",DataInput!A139) -> 8.573877335 | C146: =IF(ISBLANK(DataInput!A139),"",LN(B146-0.999*$B$1)) -> 2.120250588 | D146: =DataInput!A139/AVERAGE(DataInput!$A$1:$A$10000) -> 0.05936306093 | F146: =LN(IF(ISBLANK(DataInput!A139),1,GAMMADIST(B146,$G$2,$H$2,TRUE))) -> -6.129301279 | G146: =IF(ISBLANK(DataInput!A139),0,GAMMADIST(B146-$I$2,$G$2,$H$2,TRUE)) -> 0.002063698159 | H146: 0.8592976632 | K146: =LN(IF(ISBLANK(DataInput!A139),1,NORMDIST(C146,$C$2,$C$3,FALSE))) -> -1.869388186 | L146: =IF(ISBLANK(DataInput!A139),0,NORMDIST(C146,$C$2,$C$3,TRUE)) -> 0.2002157718 | M146: 0.6611455896 | P146: =LN(IF(ISBLANK(DataInput!A139),1,$Q$2/$R$2/((B146/$R$2)^($Q$2+1)))) -> -5.726139788 | Q146: =IF(ISBLANK(DataInput!A139),0,IF(B146<$R$2,0,1-(B146/$R$2)^(-$Q$2))) -> 0.9720988486 | R146: 0.7718830768 | U146: -4.312388296 | V146: 0.2068112637 | W146: 0.6545500976 | Y146: =IF(ISBLANK(DataInput!A139),"",B146-$B$1*0.9999) -> 8.333008626 | AA146: =LN(IF(ISBLANK(DataInput!A139),1,EXPONDIST(B146-$AC$2,$AB$2,FALSE))) -> -5.028927161 | AB146: =IF(ISBLANK(DataInput!A139),0,EXPONDIST(B146-$AC$2,$AB$2,TRUE)) -> 0.05615493099 | AC146: 0.8052064304 | AF146: =LN(IF(ISBLANK(DataInput!A139),1,GPDpdf(B146,$AH$2,$AI$2,$B$1))) -> -4.063859418 | AG146: 146 | AH146: =IF(ISBLANK(DataInput!A139),0,GPDcdff(B146,$AH$2,$AI$2,$B$1*0.999)) -> 0.1727276325 | AI146: 0.6886337288
A147: =MAX(0,A146-1/COUNT($B$8:INDIRECT("B"&(DataInput!$C$2+AG145)))) -> 0.8603603604 | B147: =IF(ISBLANK(DataInput!A140),"",DataInput!A140) -> 46.13912964 | C147: =IF(ISBLANK(DataInput!A140),"",LN(B147-0.999*$B$1)) -> 3.826431952 | D147: =DataInput!A140/AVERAGE(DataInput!$A$1:$A$10000) -> 0.3194540646 | F147: =LN(IF(ISBLANK(DataInput!A140),1,GAMMADIST(B147,$G$2,$H$2,TRUE))) -> -3.044005045 | G147: =IF(ISBLANK(DataInput!A140),0,GAMMADIST(B147-$I$2,$G$2,$H$2,TRUE)) -> 0.04721480834 | H147: 0.813145552 | K147: =LN(IF(ISBLANK(DataInput!A140),1,NORMDIST(C147,$C$2,$C$3,FALSE))) -> -1.520714081 | L147: =IF(ISBLANK(DataInput!A140),0,NORMDIST(C147,$C$2,$C$3,TRUE)) -> 0.539191128 | M147: 0.3211692323 | P147: =LN(IF(ISBLANK(DataInput!A140),1,$Q$2/$R$2/((B147/$R$2)^($Q$2+1)))) -> -9.094831248 | Q147: =IF(ISBLANK(DataInput!A140),0,IF(B147<$R$2,0,1-(B147/$R$2)^(-$Q$2))) -> 0.9948297666 | R147: 0.4556386386 | U147: -5.403515808 | V147: 0.47973544 | W147: 0.3806249203 | Y147: =IF(ISBLANK(DataInput!A140),"",B147-$B$1*0.9999) -> 45.89826093 | AA147: =LN(IF(ISBLANK(DataInput!A140),1,EXPONDIST(B147-$AC$2,$AB$2,FALSE))) -> -5.289452688 | AB147: =IF(ISBLANK(DataInput!A140),0,EXPONDIST(B147-$AC$2,$AB$2,TRUE)) -> 0.2726291163 | AC147: 0.587731244 | AF147: =LN(IF(ISBLANK(DataInput!A140),1,GPDpdf(B147,$AH$2,$AI$2,$B$1))) -> -5.210655524 | AG147: 147 | AH147: =IF(ISBLANK(DataInput!A140),0,GPDcdff(B147,$AH$2,$AI$2,$B$1*0.999)) -> 0.536737917 | AI147: 0.3236224434
A148: =MAX(0,A147-1/COUNT($B$8:INDIRECT("B"&(DataInput!$C$2+AG146)))) -> 0.8593593594 | B148: =IF(ISBLANK(DataInput!A141),"",DataInput!A141) -> 356.2930908 | C148: =IF(ISBLANK(DataInput!A141),"",LN(B148-0.999*$B$1)) -> 5.87507802 | D148: =DataInput!A141/AVERAGE(DataInput!$A$1:$A$10000) -> 2.466870896 | F148: =LN(IF(ISBLANK(DataInput!A141),1,GAMMADIST(B148,$G$2,$H$2,TRUE))) -> -0.3239414486 | G148: =IF(ISBLANK(DataInput!A141),0,GAMMADIST(B148-$I$2,$G$2,$H$2,TRUE)) -> 0.7229553867 | H148: 0.1364039727 | K148: =LN(IF(ISBLANK(DataInput!A141),1,NORMDIST(C148,$C$2,$C$3,FALSE))) -> -2.267617975 | L148: =IF(ISBLANK(DataInput!A141),0,NORMDIST(C148,$C$2,$C$3,TRUE)) -> 0.8899323941 | M148: 0.03057303477 | P148: =LN(IF(ISBLANK(DataInput!A141),1,$Q$2/$R$2/((B148/$R$2)^($Q$2+1)))) -> -13.18642739 | Q148: =IF(ISBLANK(DataInput!A141),0,IF(B148<$R$2,0,1-(B148/$R$2)^(-$Q$2))) -> 0.999332747 | R148: 0.1094003529 | U148: -7.822888754 | V148: 0.8965878383 | W148: 0.03722847898 | Y148: =IF(ISBLANK(DataInput!A141),"",B148-$B$1*0.9999) -> 356.0522221 | AA148: =LN(IF(ISBLANK(DataInput!A141),1,EXPONDIST(B148-$AC$2,$AB$2,FALSE))) -> -7.44045712 | AB148: =IF(ISBLANK(DataInput!A141),0,EXPONDIST(B148-$AC$2,$AB$2,TRUE)) -> 0.9153578752 | AC148: 0.05599851585 | AF148: =LN(IF(ISBLANK(DataInput!A141),1,GPDpdf(B148,$AH$2,$AI$2,$B$1))) -> -8.285534579 | AG148: 148 | AH148: =IF(ISBLANK(DataInput!A141),0,GPDcdff(B148,$AH$2,$AI$2,$B$1*0.999)) -> 0.9021364265 | AI148: 0.04277706713
A149: =MAX(0,A148-1/COUNT($B$8:INDIRECT("B"&(DataInput!$C$2+AG147)))) -> 0.8583583584 | B149: =IF(ISBLANK(DataInput!A142),"",DataInput!A142) -> 2.910130978 | C149: =IF(ISBLANK(DataInput!A142),"",LN(B149-0.999*$B$1)) -> 0.9818833495 | D149: =DataInput!A142/AVERAGE(DataInput!$A$1:$A$10000) -> 0.02014890997 | F149: =LN(IF(ISBLANK(DataInput!A142),1,GAMMADIST(B149,$G$2,$H$2,TRUE))) -> -8.192808953 | G149: =IF(ISBLANK(DataInput!A142),0,GAMMADIST(B149-$I$2,$G$2,$H$2,TRUE)) -> 0.0002343699319 | H149: 0.8581239884 | K149: =LN(IF(ISBLANK(DataInput!A142),1,NORMDIST(C149,$C$2,$C$3,FALSE))) -> -2.592677671 | L149: =IF(ISBLANK(DataInput!A142),0,NORMDIST(C149,$C$2,$C$3,TRUE)) -> 0.07111760284 | M149: 0.7872407555 | P149: =LN(IF(ISBLANK(DataInput!A142),1,$Q$2/$R$2/((B149/$R$2)^($Q$2+1)))) -> -3.563292469 | Q149: =IF(ISBLANK(DataInput!A142),0,IF(B149<$R$2,0,1-(B149/$R$2)^(-$Q$2))) -> 0.9176487772 | R149: 0.8465311743 | U149: -3.750056399 | V149: 0.1095298102 | W149: 0.7488285481 | Y149: =IF(ISBLANK(DataInput!A142),"",B149-$B$1*0.9999) -> 2.669262269 | AA149: =LN(IF(ISBLANK(DataInput!A142),1,EXPONDIST(B149-$AC$2,$AB$2,FALSE))) -> -4.989647496 | AB149: =IF(ISBLANK(DataInput!A142),0,EXPONDIST(B149-$AC$2,$AB$2,TRUE)) -> 0.01834326002 | AC149: 0.8400150983 | AF149: =LN(IF(ISBLANK(DataInput!A142),1,GPDpdf(B149,$AH$2,$AI$2,$B$1))) -> -3.816698138 | AG149: 149 | AH149: =IF(ISBLANK(DataInput!A142),0,GPDcdff(B149,$AH$2,$AI$2,$B$1*0.999)) -> 0.06260659095 | AI149: 0.7957517674
A150: =MAX(0,A149-1/COUNT($B$8:INDIRECT("B"&(DataInput!$C$2+AG148)))) -> 0.8573573574 | B150: =IF(ISBLANK(DataInput!A143),"",DataInput!A143) -> 3.496187925 | C150: =IF(ISBLANK(DataInput!A143),"",LN(B150-0.999*$B$1)) -> 1.180356938 | D150: =DataInput!A143/AVERAGE(DataInput!$A$1:$A$10000) -> 0.02420659974 | F150: =LN(IF(ISBLANK(DataInput!A143),1,GAMMADIST(B150,$G$2,$H$2,TRUE))) -> -7.840713424 | G150: =IF(ISBLANK(DataInput!A143),0,GAMMADIST(B150-$I$2,$G$2,$H$2,TRUE)) -> 0.0003430914747 | H150: 0.8570142659 | K150: =LN(IF(ISBLANK(DataInput!A143),1,NORMDIST(C150,$C$2,$C$3,FALSE))) -> -2.438306864 | L150: =IF(ISBLANK(DataInput!A143),0,NORMDIST(C150,$C$2,$C$3,TRUE)) -> 0.08719076607 | M150: 0.7701665913 | P150: =LN(IF(ISBLANK(DataInput!A143),1,$Q$2/$R$2/((B150/$R$2)^($Q$2+1)))) -> -3.930548928 | Q150: =IF(ISBLANK(DataInput!A143),0,IF(B150<$R$2,0,1-(B150/$R$2)^(-$Q$2))) -> 0.9314740869 | R150: 0.8442833208 | U150: -3.84280108 | V150: 0.1226737723 | W150: 0.734683585 | Y150: =IF(ISBLANK(DataInput!A143),"",B150-$B$1*0.9999) -> 3.255319217 | AA150: =LN(IF(ISBLANK(DataInput!A143),1,EXPONDIST(B150-$AC$2,$AB$2,FALSE))) -> -4.993711965 | AB150: =IF(ISBLANK(DataInput!A143),0,EXPONDIST(B150-$AC$2,$AB$2,TRUE)) -> 0.02232507573 | AC150: 0.8350322816 | AF150: =LN(IF(ISBLANK(DataInput!A143),1,GPDpdf(B150,$AH$2,$AI$2,$B$1))) -> -3.843720049 | AG150: 150 | AH150: =IF(ISBLANK(DataInput!A143),0,GPDcdff(B150,$AH$2,$AI$2,$B$1*0.999)) -> 0.07532686505 | AI150: 0.7820304923
A151: =MAX(0,A150-1/COUNT($B$8:INDIRECT("B"&(DataInput!$C$2+AG149)))) -> 0.8563563564 | B151: =IF(ISBLANK(DataInput!A144),"",DataInput!A144) -> 226.6620941 | C151: =IF(ISBLANK(DataInput!A144),"",LN(B151-0.999*$B$1)) -> 5.422398051 | D151: =DataInput!A144/AVERAGE(DataInput!$A$1:$A$10000) -> 1.569343155 | F151: =LN(IF(ISBLANK(DataInput!A144),1,GAMMADIST(B151,$G$2,$H$2,TRUE))) -> -0.7195949985 | G151: =IF(ISBLANK(DataInput!A144),0,GAMMADIST(B151-$I$2,$G$2,$H$2,TRUE)) -> 0.4864063441 | H151: 0.3699500123 | K151: =LN(IF(ISBLANK(DataInput!A144),1,NORMDIST(C151,$C$2,$C$3,FALSE))) -> -1.993108289 | L151: =IF(ISBLANK(DataInput!A144),0,NORMDIST(C151,$C$2,$C$3,TRUE)) -> 0.8357079766 | M151: 0.02064837975 | P151: =LN(IF(ISBLANK(DataInput!A144),1,$Q$2/$R$2/((B151/$R$2)^($Q$2+1)))) -> -12.28108583 | Q151: =IF(ISBLANK(DataInput!A144),0,IF(B151<$R$2,0,1-(B151/$R$2)^(-$Q$2))) -> 0.9989503443 | R151: 0.1632423677 | U151: -7.099613448 | V151: 0.8215344923 | W151: 0.0348218641 | Y151: =IF(ISBLANK(DataInput!A144),"",B151-$B$1*0.9999) -> 226.4212254 | AA151: =LN(IF(ISBLANK(DataInput!A144),1,EXPONDIST(B151-$AC$2,$AB$2,FALSE))) -> -6.541429916 | AB151: =IF(ISBLANK(DataInput!A144),0,EXPONDIST(B151-$AC$2,$AB$2,TRUE)) -> 0.7920163906 | AC151: 0.06433996572 | AF151: =LN(IF(ISBLANK(DataInput!A144),1,GPDpdf(B151,$AH$2,$AI$2,$B$1))) -> -7.485835228 | AG151: 151 | AH151: =IF(ISBLANK(DataInput!A144),0,GPDcdff(B151,$AH$2,$AI$2,$B$1*0.999)) -> 0.8533691513 | AI151: 0.002987205063
A152: =MAX(0,A151-1/COUNT($B$8:INDIRECT("B"&(DataInput!$C$2+AG150)))) -> 0.8553553554 | B152: =IF(ISBLANK(DataInput!A145),"",DataInput!A145) -> 12.53318977 | C152: =IF(ISBLANK(DataInput!A145),"",LN(B152-0.999*$B$1)) -> 2.508992401 | D152: =DataInput!A145/AVERAGE(DataInput!$A$1:$A$10000) -> 0.08677620161 | F152: =LN(IF(ISBLANK(DataInput!A145),1,GAMMADIST(B152,$G$2,$H$2,TRUE))) -> -5.413169871 | G152: =IF(ISBLANK(DataInput!A145),0,GAMMADIST(B152-$I$2,$G$2,$H$2,TRUE)) -> 0.004298166658 | H152: 0.8510571887 | K152: =LN(IF(ISBLANK(DataInput!A145),1,NORMDIST(C152,$C$2,$C$3,FALSE))) -> -1.712343486 | L152: =IF(ISBLANK(DataInput!A145),0,NORMDIST(C152,$C$2,$C$3,TRUE)) -> 0.2653788642 | M152: 0.5899764911 | P152: =LN(IF(ISBLANK(DataInput!A145),1,$Q$2/$R$2/((B152/$R$2)^($Q$2+1)))) -> -6.486093927 | Q152: =IF(ISBLANK(DataInput!A145),0,IF(B152<$R$2,0,1-(B152/$R$2)^(-$Q$2))) -> 0.9809250861 | R152: 0.7155462219 | U152: -4.526647185 | V152: 0.2543004395 | W152: 0.6010549159 | Y152: =IF(ISBLANK(DataInput!A145),"",B152-$B$1*0.9999) -> 12.29232107 | AA152: =LN(IF(ISBLANK(DataInput!A145),1,EXPONDIST(B152-$AC$2,$AB$2,FALSE))) -> -5.056386099 | AB152: =IF(ISBLANK(DataInput!A145),0,EXPONDIST(B152-$AC$2,$AB$2,TRUE)) -> 0.08171932307 | AC152: 0.7736360323 | AF152: =LN(IF(ISBLANK(DataInput!A145),1,GPDpdf(B152,$AH$2,$AI$2,$B$1))) -> -4.220293394 | AG152: 152 | AH152: =IF(ISBLANK(DataInput!A145),0,GPDcdff(B152,$AH$2,$AI$2,$B$1*0.999)) -> 0.2356405299 | AI152: 0.6197148254
A153: =MAX(0,A152-1/COUNT($B$8:INDIRECT("B"&(DataInput!$C$2+AG151)))) -> 0.8543543544 | B153: =IF(ISBLANK(DataInput!A146),"",DataInput!A146) -> 30.69768906 | C153: =IF(ISBLANK(DataInput!A146),"",LN(B153-0.999*$B$1)) -> 3.416317073 | D153: =DataInput!A146/AVERAGE(DataInput!$A$1:$A$10000) -> 0.2125419708 | F153: =LN(IF(ISBLANK(DataInput!A146),1,GAMMADIST(B153,$G$2,$H$2,TRUE))) -> -3.762972341 | G153: =IF(ISBLANK(DataInput!A146),0,GAMMADIST(B153-$I$2,$G$2,$H$2,TRUE)) -> 0.02288872476 | H153: 0.8314656296 | K153: =LN(IF(ISBLANK(DataInput!A146),1,NORMDIST(C153,$C$2,$C$3,FALSE))) -> -1.523984826 | L153: =IF(ISBLANK(DataInput!A146),0,NORMDIST(C153,$C$2,$C$3,TRUE)) -> 0.4493235113 | M153: 0.4050308431 | P153: =LN(IF(ISBLANK(DataInput!A146),1,$Q$2/$R$2/((B153/$R$2)^($Q$2+1)))) -> -8.279203155 | Q153: =IF(ISBLANK(DataInput!A146),0,IF(B153<$R$2,0,1-(B153/$R$2)^(-$Q$2))) -> 0.992223768 | R153: 0.5429002567 | U153: -5.098477031 | V153: 0.3990734652 | W153: 0.4552808891 | Y153: =IF(ISBLANK(DataInput!A146),"",B153-$B$1*0.9999) -> 30.45682035 | AA153: =LN(IF(ISBLANK(DataInput!A146),1,EXPONDIST(B153-$AC$2,$AB$2,FALSE))) -> -5.18236198 | AB153: =IF(ISBLANK(DataInput!A146),0,EXPONDIST(B153-$AC$2,$AB$2,TRUE)) -> 0.1904105953 | AC153: 0.663943759 | AF153: =LN(IF(ISBLANK(DataInput!A146),1,GPDpdf(B153,$AH$2,$AI$2,$B$1))) -> -4.814454153 | AG153: 153 | AH153: =IF(ISBLANK(DataInput!A146),0,GPDcdff(B153,$AH$2,$AI$2,$B$1*0.999)) -> 0.4339854839 | AI153: 0.4203688705
A154: =MAX(0,A153-1/COUNT($B$8:INDIRECT("B"&(DataInput!$C$2+AG152)))) -> 0.8533533534 | B154: =IF(ISBLANK(DataInput!A147),"",DataInput!A147) -> 21.27154922 | C154: =IF(ISBLANK(DataInput!A147),"",LN(B154-0.999*$B$1)) -> 3.045992657 | D154: =DataInput!A147/AVERAGE(DataInput!$A$1:$A$10000) -> 0.1472780894 | F154: =LN(IF(ISBLANK(DataInput!A147),1,GAMMADIST(B154,$G$2,$H$2,TRUE))) -> -4.429845099 | G154: =IF(ISBLANK(DataInput!A147),0,GAMMADIST(B154-$I$2,$G$2,$H$2,TRUE)) -> 0.01166970181 | H154: 0.8416836515 | K154: =LN(IF(ISBLANK(DataInput!A147),1,NORMDIST(C154,$C$2,$C$3,FALSE))) -> -1.570730825 | L154: =IF(ISBLANK(DataInput!A147),0,NORMDIST(C154,$C$2,$C$3,TRUE)) -> 0.3702342555 | M154: 0.4831190978 | P154: =LN(IF(ISBLANK(DataInput!A147),1,$Q$2/$R$2/((B154/$R$2)^($Q$2+1)))) -> -7.544957115 | Q154: =IF(ISBLANK(DataInput!A147),0,IF(B154<$R$2,0,1-(B154/$R$2)^(-$Q$2))) -> 0.9887709852 | R154: 0.6185367297 | U154: -4.850557987 | V154: 0.3341269155 | W154: 0.5192264379 | Y154: =IF(ISBLANK(DataInput!A147),"",B154-$B$1*0.9999) -> 21.03068052 | AA154: =LN(IF(ISBLANK(DataInput!A147),1,EXPONDIST(B154-$AC$2,$AB$2,FALSE))) -> -5.116989065 | AB154: =IF(ISBLANK(DataInput!A147),0,EXPONDIST(B154-$AC$2,$AB$2,TRUE)) -> 0.1357171168 | AC154: 0.7176362366 | AF154: =LN(IF(ISBLANK(DataInput!A147),1,GPDpdf(B154,$AH$2,$AI$2,$B$1))) -> -4.527912564 | AG154: 154 | AH154: =IF(ISBLANK(DataInput!A147),0,GPDcdff(B154,$AH$2,$AI$2,$B$1*0.999)) -> 0.3457428983 | AI154: 0.5076104551
A155: =MAX(0,A154-1/COUNT($B$8:INDIRECT("B"&(DataInput!$C$2+AG153)))) -> 0.8523523524 | B155: =IF(ISBLANK(DataInput!A148),"",DataInput!A148) -> 13.83397961 | C155: =IF(ISBLANK(DataInput!A148),"",LN(B155-0.999*$B$1)) -> 2.609579062 | D155: =DataInput!A148/AVERAGE(DataInput!$A$1:$A$10000) -> 0.09578249633 | F155: =LN(IF(ISBLANK(DataInput!A148),1,GAMMADIST(B155,$G$2,$H$2,TRUE))) -> -5.228129399 | G155: =IF(ISBLANK(DataInput!A148),0,GAMMADIST(B155-$I$2,$G$2,$H$2,TRUE)) -> 0.005190262648 | H155: 0.8471620897 | K155: =LN(IF(ISBLANK(DataInput!A148),1,NORMDIST(C155,$C$2,$C$3,FALSE))) -> -1.679166244 | L155: =IF(ISBLANK(DataInput!A148),0,NORMDIST(C155,$C$2,$C$3,TRUE)) -> 0.2838381247 | M155: 0.5685142277 | P155: =LN(IF(ISBLANK(DataInput!A148),1,$Q$2/$R$2/((B155/$R$2)^($Q$2+1)))) -> -6.683753833 | Q155: =IF(ISBLANK(DataInput!A148),0,IF(B155<$R$2,0,1-(B155/$R$2)^(-$Q$2))) -> 0.9827215215 | R155: 0.6988833968 | U155: -4.584606813 | V155: 0.2679655826 | W155: 0.5843867697 | Y155: =IF(ISBLANK(DataInput!A148),"",B155-$B$1*0.9999) -> 13.5931109 | AA155: =LN(IF(ISBLANK(DataInput!A148),1,EXPONDIST(B155-$AC$2,$AB$2,FALSE))) -> -5.06540744 | AB155: =IF(ISBLANK(DataInput!A148),0,EXPONDIST(B155-$AC$2,$AB$2,TRUE)) -> 0.0899661915 | AC155: 0.7623861608 | AF155: =LN(IF(ISBLANK(DataInput!A148),1,GPDpdf(B155,$AH$2,$AI$2,$B$1))) -> -4.269156026 | AG155: 155 | AH155: =IF(ISBLANK(DataInput!A148),0,GPDcdff(B155,$AH$2,$AI$2,$B$1*0.999)) -> 0.2542932929 | AI155: 0.5980590595
A156: =MAX(0,A155-1/COUNT($B$8:INDIRECT("B"&(DataInput!$C$2+AG154)))) -> 0.8513513514 | B156: =IF(ISBLANK(DataInput!A149),"",DataInput!A149) -> 91.06329346 | C156: =IF(ISBLANK(DataInput!A149),"",LN(B156-0.999*$B$1)) -> 4.508908611 | D156: =DataInput!A149/AVERAGE(DataInput!$A$1:$A$10000) -> 0.6304960553 | F156: =LN(IF(ISBLANK(DataInput!A149),1,GAMMADIST(B156,$G$2,$H$2,TRUE))) -> -1.92599252 | G156: =IF(ISBLANK(DataInput!A149),0,GAMMADIST(B156-$I$2,$G$2,$H$2,TRUE)) -> 0.1451378138 | H156: 0.7062135376 | K156: =LN(IF(ISBLANK(DataInput!A149),1,NORMDIST(C156,$C$2,$C$3,FALSE))) -> -1.62825724 | L156: =IF(ISBLANK(DataInput!A149),0,NORMDIST(C156,$C$2,$C$3,TRUE)) -> 0.6822846878 | M156: 0.1690666636 | P156: =LN(IF(ISBLANK(DataInput!A149),1,$Q$2/$R$2/((B156/$R$2)^($Q$2+1)))) -> -10.4557528 | Q156: =IF(ISBLANK(DataInput!A149),0,IF(B156<$R$2,0,1-(B156/$R$2)^(-$Q$2))) -> 0.9973833636 | R156: 0.3150986758 | U156: -6.007096808 | V156: 0.6281401086 | W156: 0.2232112427 | Y156: =IF(ISBLANK(DataInput!A149),"",B156-$B$1*0.9999) -> 90.82242475 | AA156: =LN(IF(ISBLANK(DataInput!A149),1,EXPONDIST(B156-$AC$2,$AB$2,FALSE))) -> -5.601014323 | AB156: =IF(ISBLANK(DataInput!A149),0,EXPONDIST(B156-$AC$2,$AB$2,TRUE)) -> 0.467344503 | AC156: 0.3840068483 | AF156: =LN(IF(ISBLANK(DataInput!A149),1,GPDpdf(B156,$AH$2,$AI$2,$B$1))) -> -6.054296816 | AG156: 156 | AH156: =IF(ISBLANK(DataInput!A149),0,GPDcdff(B156,$AH$2,$AI$2,$B$1*0.999)) -> 0.6976056707 | AI156: 0.1537456807
A157: =MAX(0,A156-1/COUNT($B$8:INDIRECT("B"&(DataInput!$C$2+AG155)))) -> 0.8503503504 | B157: =IF(ISBLANK(DataInput!A150),"",DataInput!A150) -> 7.994650841 | C157: =IF(ISBLANK(DataInput!A150),"",LN(B157-0.999*$B$1)) -> 2.048208702 | D157: =DataInput!A150/AVERAGE(DataInput!$A$1:$A$10000) -> 0.05535266327 | F157: =LN(IF(ISBLANK(DataInput!A150),1,GAMMADIST(B157,$G$2,$H$2,TRUE))) -> -6.261917726 | G157: =IF(ISBLANK(DataInput!A150),0,GAMMADIST(B157-$I$2,$G$2,$H$2,TRUE)) -> 0.001800084473 | H157: 0.8485502659 | K157: =LN(IF(ISBLANK(DataInput!A150),1,NORMDIST(C157,$C$2,$C$3,FALSE))) -> -1.903521735 | L157: =IF(ISBLANK(DataInput!A150),0,NORMDIST(C157,$C$2,$C$3,TRUE)) -> 0.189291661 | M157: 0.6610586894 | P157: =LN(IF(ISBLANK(DataInput!A150),1,$Q$2/$R$2/((B157/$R$2)^($Q$2+1)))) -> -5.58612827 | Q157: =IF(ISBLANK(DataInput!A150),0,IF(B157<$R$2,0,1-(B157/$R$2)^(-$Q$2))) -> 0.9700738677 | R157: 0.7807822068 | U157: -4.274198556 | V157: 0.1989001556 | W157: 0.6514501947 | Y157: =IF(ISBLANK(DataInput!A150),"",B157-$B$1*0.9999) -> 7.753782132 | AA157: =LN(IF(ISBLANK(DataInput!A150),1,EXPONDIST(B157-$AC$2,$AB$2,FALSE))) -> -5.024910063 | AB157: =IF(ISBLANK(DataInput!A150),0,EXPONDIST(B157-$AC$2,$AB$2,TRUE)) -> 0.0523557875 | AC157: 0.7979945628 | AF157: =LN(IF(ISBLANK(DataInput!A150),1,GPDpdf(B157,$AH$2,$AI$2,$B$1))) -> -4.039924686 | AG157: 157 | AH157: =IF(ISBLANK(DataInput!A150),0,GPDcdff(B157,$AH$2,$AI$2,$B$1*0.999)) -> 0.1626553047 | AI157: 0.6876950456
A158: =MAX(0,A157-1/COUNT($B$8:INDIRECT("B"&(DataInput!$C$2+AG156)))) -> 0.8493493493 | B158: =IF(ISBLANK(DataInput!A151),"",DataInput!A151) -> 10.3847599 | C158: =IF(ISBLANK(DataInput!A151),"",LN(B158-0.999*$B$1)) -> 2.316893044 | D158: =DataInput!A151/AVERAGE(DataInput!$A$1:$A$10000) -> 0.07190109105 | F158: =LN(IF(ISBLANK(DataInput!A151),1,GAMMADIST(B158,$G$2,$H$2,TRUE))) -> -5.767014862 | G158: =IF(ISBLANK(DataInput!A151),0,GAMMADIST(B158-$I$2,$G$2,$H$2,TRUE)) -> 0.002993662873 | H158: 0.8463556865 | K158: =LN(IF(ISBLANK(DataInput!A151),1,NORMDIST(C158,$C$2,$C$3,FALSE))) -> -1.784224399 | L158: =IF(ISBLANK(DataInput!A151),0,NORMDIST(C158,$C$2,$C$3,TRUE)) -> 0.2319012834 | M158: 0.6174480659 | P158: =LN(IF(ISBLANK(DataInput!A151),1,$Q$2/$R$2/((B158/$R$2)^($Q$2+1)))) -> -6.10969815 | Q158: =IF(ISBLANK(DataInput!A151),0,IF(B158<$R$2,0,1-(B158/$R$2)^(-$Q$2))) -> 0.9769715854 | R158: 0.7450703019 | U158: -4.418948423 | V158: 0.2297980938 | W158: 0.6195512555 | Y158: =IF(ISBLANK(DataInput!A151),"",B158-$B$1*0.9999) -> 10.14389119 | AA158: =LN(IF(ISBLANK(DataInput!A151),1,EXPONDIST(B158-$AC$2,$AB$2,FALSE))) -> -5.041486137 | AB158: =IF(ISBLANK(DataInput!A151),0,EXPONDIST(B158-$AC$2,$AB$2,TRUE)) -> 0.06793453468 | AC158: 0.7814148147 | AF158: =LN(IF(ISBLANK(DataInput!A151),1,GPDpdf(B158,$AH$2,$AI$2,$B$1))) -> -4.136912316 | AG158: 158 | AH158: =IF(ISBLANK(DataInput!A151),0,GPDcdff(B158,$AH$2,$AI$2,$B$1*0.999)) -> 0.2027270068 | AI158: 0.6466223425
A159: =MAX(0,A158-1/COUNT($B$8:INDIRECT("B"&(DataInput!$C$2+AG157)))) -> 0.8483483483 | B159: =IF(ISBLANK(DataInput!A152),"",DataInput!A152) -> 22.42904091 | C159: =IF(ISBLANK(DataInput!A152),"",LN(B159-0.999*$B$1)) -> 3.099569134 | D159: =DataInput!A152/AVERAGE(DataInput!$A$1:$A$10000) -> 0.155292229 | F159: =LN(IF(ISBLANK(DataInput!A152),1,GAMMADIST(B159,$G$2,$H$2,TRUE))) -> -4.332611569 | G159: =IF(ISBLANK(DataInput!A152),0,GAMMADIST(B159-$I$2,$G$2,$H$2,TRUE)) -> 0.01287606491 | H159: 0.8354722834 | K159: =LN(IF(ISBLANK(DataInput!A152),1,NORMDIST(C159,$C$2,$C$3,FALSE))) -> -1.561396489 | L159: =IF(ISBLANK(DataInput!A152),0,NORMDIST(C159,$C$2,$C$3,TRUE)) -> 0.3814253975 | M159: 0.4669229509 | P159: =LN(IF(ISBLANK(DataInput!A152),1,$Q$2/$R$2/((B159/$R$2)^($Q$2+1)))) -> -7.651017799 | Q159: =IF(ISBLANK(DataInput!A152),0,IF(B159<$R$2,0,1-(B159/$R$2)^(-$Q$2))) -> 0.9893514208 | R159: 0.6079260233 | U159: -4.88503547 | V159: 0.3430277584 | W159: 0.50532059 | Y159: =IF(ISBLANK(DataInput!A152),"",B159-$B$1*0.9999) -> 22.1881722 | AA159: =LN(IF(ISBLANK(DataInput!A152),1,EXPONDIST(B159-$AC$2,$AB$2,FALSE))) -> -5.125016593 | AB159: =IF(ISBLANK(DataInput!A152),0,EXPONDIST(B159-$AC$2,$AB$2,TRUE)) -> 0.1426273988 | AC159: 0.7057209495 | AF159: =LN(IF(ISBLANK(DataInput!A152),1,GPDpdf(B159,$AH$2,$AI$2,$B$1))) -> -4.56536406 | AG159: 159 | AH159: =IF(ISBLANK(DataInput!A152),0,GPDcdff(B159,$AH$2,$AI$2,$B$1*0.999)) -> 0.3580154494 | AI159: 0.490332899
A160: =MAX(0,A159-1/COUNT($B$8:INDIRECT("B"&(DataInput!$C$2+AG158)))) -> 0.8473473473 | B160: =IF(ISBLANK(DataInput!A153),"",DataInput!A153) -> 14.95411968 | C160: =IF(ISBLANK(DataInput!A153),"",LN(B160-0.999*$B$1)) -> 2.68876325 | D160: =DataInput!A153/AVERAGE(DataInput!$A$1:$A$10000) -> 0.1035380241 | F160: =LN(IF(ISBLANK(DataInput!A153),1,GAMMADIST(B160,$G$2,$H$2,TRUE))) -> -5.082656313 | G160: =IF(ISBLANK(DataInput!A153),0,GAMMADIST(B160-$I$2,$G$2,$H$2,TRUE)) -> 0.006018385848 | H160: 0.8413289615 | K160: =LN(IF(ISBLANK(DataInput!A153),1,NORMDIST(C160,$C$2,$C$3,FALSE))) -> -1.655205273 | L160: =IF(ISBLANK(DataInput!A153),0,NORMDIST(C160,$C$2,$C$3,TRUE)) -> 0.2987890492 | M160: 0.5485582982 | P160: =LN(IF(ISBLANK(DataInput!A153),1,$Q$2/$R$2/((B160/$R$2)^($Q$2+1)))) -> -6.839601718 | Q160: =IF(ISBLANK(DataInput!A153),0,IF(B160<$R$2,0,1-(B160/$R$2)^(-$Q$2))) -> 0.9840178449 | R160: 0.6852287958 | U160: -4.631050417 | V160: 0.2791355142 | W160: 0.5682118332 | Y160: =IF(ISBLANK(DataInput!A153),"",B160-$B$1*0.9999) -> 14.71325097 | AA160: =LN(IF(ISBLANK(DataInput!A153),1,EXPONDIST(B160-$AC$2,$AB$2,FALSE))) -> -5.073175925 | AB160: =IF(ISBLANK(DataInput!A153),0,EXPONDIST(B160-$AC$2,$AB$2,TRUE)) -> 0.09700838611 | AC160: 0.7503389612 | AF160: =LN(IF(ISBLANK(DataInput!A153),1,GPDpdf(B160,$AH$2,$AI$2,$B$1))) -> -4.310307166 | AG160: 160 | AH160: =IF(ISBLANK(DataInput!A153),0,GPDcdff(B160,$AH$2,$AI$2,$B$1*0.999)) -> 0.2696487261 | AI160: 0.5776986212
A161: =MAX(0,A160-1/COUNT($B$8:INDIRECT("B"&(DataInput!$C$2+AG159)))) -> 0.8463463463 | B161: =IF(ISBLANK(DataInput!A154),"",DataInput!A154) -> 56.95888901 | C161: =IF(ISBLANK(DataInput!A154),"",LN(B161-0.999*$B$1)) -> 4.038095801 | D161: =DataInput!A154/AVERAGE(DataInput!$A$1:$A$10000) -> 0.3943669669 | F161: =LN(IF(ISBLANK(DataInput!A154),1,GAMMADIST(B161,$G$2,$H$2,TRUE))) -> -2.684547437 | G161: =IF(ISBLANK(DataInput!A154),0,GAMMADIST(B161-$I$2,$G$2,$H$2,TRUE)) -> 0.06776749035 | H161: 0.778578856 | K161: =LN(IF(ISBLANK(DataInput!A154),1,NORMDIST(C161,$C$2,$C$3,FALSE))) -> -1.5389677 | L161: =IF(ISBLANK(DataInput!A154),0,NORMDIST(C161,$C$2,$C$3,TRUE)) -> 0.58508373 | M161: 0.2612626163 | P161: =LN(IF(ISBLANK(DataInput!A154),1,$Q$2/$R$2/((B161/$R$2)^($Q$2+1)))) -> -9.516519596 | Q161: =IF(ISBLANK(DataInput!A154),0,IF(B161<$R$2,0,1-(B161/$R$2)^(-$Q$2))) -> 0.9958133627 | R161: 0.4107296327 | U161: -5.576247007 | V161: 0.5243654367 | W161: 0.3219809096 | Y161: =IF(ISBLANK(DataInput!A154),"",B161-$B$1*0.9999) -> 56.7180203 | AA161: =LN(IF(ISBLANK(DataInput!A154),1,EXPONDIST(B161-$AC$2,$AB$2,FALSE))) -> -5.364490744 | AB161: =IF(ISBLANK(DataInput!A154),0,EXPONDIST(B161-$AC$2,$AB$2,TRUE)) -> 0.3252120808 | AC161: 0.5211342655 | AF161: =LN(IF(ISBLANK(DataInput!A154),1,GPDpdf(B161,$AH$2,$AI$2,$B$1))) -> -5.448257122 | AG161: 161 | AH161: =IF(ISBLANK(DataInput!A154),0,GPDcdff(B161,$AH$2,$AI$2,$B$1*0.999)) -> 0.5891791998 | AI161: 0.2571671466
A162: =MAX(0,A161-1/COUNT($B$8:INDIRECT("B"&(DataInput!$C$2+AG160)))) -> 0.8453453453 | B162: =IF(ISBLANK(DataInput!A155),"",DataInput!A155) -> 1.483343959 | C162: =IF(ISBLANK(DataInput!A155),"",LN(B162-0.999*$B$1)) -> 0.2172800376 | D162: =DataInput!A155/AVERAGE(DataInput!$A$1:$A$10000) -> 0.01027024698 | F162: =LN(IF(ISBLANK(DataInput!A155),1,GAMMADIST(B162,$G$2,$H$2,TRUE))) -> -9.489353592 | G162: =IF(ISBLANK(DataInput!A155),0,GAMMADIST(B162-$I$2,$G$2,$H$2,TRUE)) -> 5.37837046e-05 | H162: 0.8452915616 | K162: =LN(IF(ISBLANK(DataInput!A155),1,NORMDIST(C162,$C$2,$C$3,FALSE))) -> -3.298956031 | L162: =IF(ISBLANK(DataInput!A155),0,NORMDIST(C162,$C$2,$C$3,TRUE)) -> 0.029484162 | M162: 0.8158611833 | P162: =LN(IF(ISBLANK(DataInput!A155),1,$Q$2/$R$2/((B162/$R$2)^($Q$2+1)))) -> -2.214369503 | Q162: =IF(ISBLANK(DataInput!A155),0,IF(B162<$R$2,0,1-(B162/$R$2)^(-$Q$2))) -> 0.8382556258 | R162: 0.8087714638 | U162: -3.406923799 | V162: 0.0702974814 | W162: 0.7750478639 | Y162: =IF(ISBLANK(DataInput!A155),"",B162-$B$1*0.9999) -> 1.24247525 | AA162: =LN(IF(ISBLANK(DataInput!A155),1,EXPONDIST(B162-$AC$2,$AB$2,FALSE))) -> -4.979752329 | AB162: =IF(ISBLANK(DataInput!A155),0,EXPONDIST(B162-$AC$2,$AB$2,TRUE)) -> 0.008581384728 | AC162: 0.8367639606 | AF162: =LN(IF(ISBLANK(DataInput!A155),1,GPDpdf(B162,$AH$2,$AI$2,$B$1))) -> -3.749362002 | AG162: 162 | AH162: =IF(ISBLANK(DataInput!A155),0,GPDcdff(B162,$AH$2,$AI$2,$B$1*0.999)) -> 0.0301422905 | AI162: 0.8152030548
A163: =MAX(0,A162-1/COUNT($B$8:INDIRECT("B"&(DataInput!$C$2+AG161)))) -> 0.8443443443 | B163: =IF(ISBLANK(DataInput!A156),"",DataInput!A156) -> 7.605913162 | C163: =IF(ISBLANK(DataInput!A156),"",LN(B163-0.999*$B$1)) -> 1.996774522 | D163: =DataInput!A156/AVERAGE(DataInput!$A$1:$A$10000) -> 0.05266115538 | F163: =LN(IF(ISBLANK(DataInput!A156),1,GAMMADIST(B163,$G$2,$H$2,TRUE))) -> -6.356533133 | G163: =IF(ISBLANK(DataInput!A156),0,GAMMADIST(B163-$I$2,$G$2,$H$2,TRUE)) -> 0.001632559194 | H163: 0.8427117852 | K163: =LN(IF(ISBLANK(DataInput!A156),1,NORMDIST(C163,$C$2,$C$3,FALSE))) -> -1.92885363 | L163: =IF(ISBLANK(DataInput!A156),0,NORMDIST(C163,$C$2,$C$3,TRUE)) -> 0.1817215419 | M163: 0.6626228024 | P163: =LN(IF(ISBLANK(DataInput!A156),1,$Q$2/$R$2/((B163/$R$2)^($Q$2+1)))) -> -5.486351715 | Q163: =IF(ISBLANK(DataInput!A156),0,IF(B163<$R$2,0,1-(B163/$R$2)^(-$Q$2))) -> 0.9685417282 | R163: 0.7868201863 | U163: -4.247194181 | V163: 0.193414477 | W163: 0.6509298674 | Y163: =IF(ISBLANK(DataInput!A156),"",B163-$B$1*0.9999) -> 7.365044454 | AA163: =LN(IF(ISBLANK(DataInput!A156),1,EXPONDIST(B163-$AC$2,$AB$2,FALSE))) -> -5.022214058 | AB163: =IF(ISBLANK(DataInput!A156),0,EXPONDIST(B163-$AC$2,$AB$2,TRUE)) -> 0.04979748741 | AC163: 0.7945468569 | AF163: =LN(IF(ISBLANK(DataInput!A156),1,GPDpdf(B163,$AH$2,$AI$2,$B$1))) -> -4.023701008 | AG163: 163 | AH163: =IF(ISBLANK(DataInput!A156),0,GPDcdff(B163,$AH$2,$AI$2,$B$1*0.999)) -> 0.155758336 | AI163: 0.6885860083
A164: =MAX(0,A163-1/COUNT($B$8:INDIRECT("B"&(DataInput!$C$2+AG162)))) -> 0.8433433433 | B164: =IF(ISBLANK(DataInput!A157),"",DataInput!A157) -> 3.00709796 | C164: =IF(ISBLANK(DataInput!A157),"",LN(B164-0.999*$B$1)) -> 1.017563484 | D164: =DataInput!A157/AVERAGE(DataInput!$A$1:$A$10000) -> 0.02082028147 | F164: =LN(IF(ISBLANK(DataInput!A157),1,GAMMADIST(B164,$G$2,$H$2,TRUE))) -> -8.129872725 | G164: =IF(ISBLANK(DataInput!A157),0,GAMMADIST(B164-$I$2,$G$2,$H$2,TRUE)) -> 0.0002509991895 | H164: 0.8430923442 | K164: =LN(IF(ISBLANK(DataInput!A157),1,NORMDIST(C164,$C$2,$C$3,FALSE))) -> -2.564045892 | L164: =IF(ISBLANK(DataInput!A157),0,NORMDIST(C164,$C$2,$C$3,TRUE)) -> 0.07382584179 | M164: 0.7695175016 | P164: =LN(IF(ISBLANK(DataInput!A157),1,$Q$2/$R$2/((B164/$R$2)^($Q$2+1)))) -> -3.628901956 | Q164: =IF(ISBLANK(DataInput!A157),0,IF(B164<$R$2,0,1-(B164/$R$2)^(-$Q$2))) -> 0.9203086371 | R164: 0.8464827953 | U164: -3.76659895 | V164: 0.1117912681 | W164: 0.7315520753 | Y164: =IF(ISBLANK(DataInput!A157),"",B164-$B$1*0.9999) -> 2.766229251 | AA164: =LN(IF(ISBLANK(DataInput!A157),1,EXPONDIST(B164-$AC$2,$AB$2,FALSE))) -> -4.990319989 | AB164: =IF(ISBLANK(DataInput!A157),0,EXPONDIST(B164-$AC$2,$AB$2,TRUE)) -> 0.01900319551 | AC164: 0.8243401478 | AF164: =LN(IF(ISBLANK(DataInput!A157),1,GPDpdf(B164,$AH$2,$AI$2,$B$1))) -> -3.821194088 | AG164: 164 | AH164: =IF(ISBLANK(DataInput!A157),0,GPDcdff(B164,$AH$2,$AI$2,$B$1*0.999)) -> 0.0647350819 | AI164: 0.7786082614
A165: =MAX(0,A164-1/COUNT($B$8:INDIRECT("B"&(DataInput!$C$2+AG163)))) -> 0.8423423423 | B165: =IF(ISBLANK(DataInput!A158),"",DataInput!A158) -> 14.75677967 | C165: =IF(ISBLANK(DataInput!A158),"",LN(B165-0.999*$B$1)) -> 2.675260291 | D165: =DataInput!A158/AVERAGE(DataInput!$A$1:$A$10000) -> 0.1021716986 | F165: =LN(IF(ISBLANK(DataInput!A158),1,GAMMADIST(B165,$G$2,$H$2,TRUE))) -> -5.107448822 | G165: =IF(ISBLANK(DataInput!A158),0,GAMMADIST(B165-$I$2,$G$2,$H$2,TRUE)) -> 0.005868527419 | H165: 0.8364738149 | K165: =LN(IF(ISBLANK(DataInput!A158),1,NORMDIST(C165,$C$2,$C$3,FALSE))) -> -1.659156856 | L165: =IF(ISBLANK(DataInput!A158),0,NORMDIST(C165,$C$2,$C$3,TRUE)) -> 0.2962143492 | M165: 0.5461279932 | P165: =LN(IF(ISBLANK(DataInput!A158),1,$Q$2/$R$2/((B165/$R$2)^($Q$2+1)))) -> -6.813011127 | Q165: =IF(ISBLANK(DataInput!A158),0,IF(B165<$R$2,0,1-(B165/$R$2)^(-$Q$2))) -> 0.9838037591 | R165: 0.6875894099 | U165: -4.623077979 | V165: 0.2772048588 | W165: 0.5651374835 | Y165: =IF(ISBLANK(DataInput!A158),"",B165-$B$1*0.9999) -> 14.51591096 | AA165: =LN(IF(ISBLANK(DataInput!A158),1,EXPONDIST(B165-$AC$2,$AB$2,FALSE))) -> -5.071807317 | AB165: =IF(ISBLANK(DataInput!A158),0,EXPONDIST(B165-$AC$2,$AB$2,TRUE)) -> 0.09577169835 | AC165: 0.746570644 | AF165: =LN(IF(ISBLANK(DataInput!A158),1,GPDpdf(B165,$AH$2,$AI$2,$B$1))) -> -4.303117875 | AG165: 165 | AH165: =IF(ISBLANK(DataInput!A158),0,GPDcdff(B165,$AH$2,$AI$2,$B$1*0.999)) -> 0.2669890432 | AI165: 0.5753532991
A166: =MAX(0,A165-1/COUNT($B$8:INDIRECT("B"&(DataInput!$C$2+AG164)))) -> 0.8413413413 | B166: =IF(ISBLANK(DataInput!A159),"",DataInput!A159) -> 102.8475037 | C166: =IF(ISBLANK(DataInput!A159),"",LN(B166-0.999*$B$1)) -> 4.630904712 | D166: =DataInput!A159/AVERAGE(DataInput!$A$1:$A$10000) -> 0.7120865378 | F166: =LN(IF(ISBLANK(DataInput!A159),1,GAMMADIST(B166,$G$2,$H$2,TRUE))) -> -1.741289465 | G166: =IF(ISBLANK(DataInput!A159),0,GAMMADIST(B166-$I$2,$G$2,$H$2,TRUE)) -> 0.1746816812 | H166: 0.6666596602 | K166: =LN(IF(ISBLANK(DataInput!A159),1,NORMDIST(C166,$C$2,$C$3,FALSE))) -> -1.662351987 | L166: =IF(ISBLANK(DataInput!A159),0,NORMDIST(C166,$C$2,$C$3,TRUE)) -> 0.7058342862 | M166: 0.1355070552 | P166: =LN(IF(ISBLANK(DataInput!A159),1,$Q$2/$R$2/((B166/$R$2)^($Q$2+1)))) -> -10.69934099 | Q166: =IF(ISBLANK(DataInput!A159),0,IF(B166<$R$2,0,1-(B166/$R$2)^(-$Q$2))) -> 0.9976836468 | R166: 0.2918493607 | U166: -6.131082079 | V166: 0.655396191 | W166: 0.1859451504 | Y166: =IF(ISBLANK(DataInput!A159),"",B166-$B$1*0.9999) -> 102.606635 | AA166: =LN(IF(ISBLANK(DataInput!A159),1,EXPONDIST(B166-$AC$2,$AB$2,FALSE))) -> -5.682741116 | AB166: =IF(ISBLANK(DataInput!A159),0,EXPONDIST(B166-$AC$2,$AB$2,TRUE)) -> 0.5091453401 | AC166: 0.3321960013 | AF166: =LN(IF(ISBLANK(DataInput!A159),1,GPDpdf(B166,$AH$2,$AI$2,$B$1))) -> -6.227603802 | AG166: 166 | AH166: =IF(ISBLANK(DataInput!A159),0,GPDcdff(B166,$AH$2,$AI$2,$B$1*0.999)) -> 0.7229758897 | AI166: 0.1183654517
A167: =MAX(0,A166-1/COUNT($B$8:INDIRECT("B"&(DataInput!$C$2+AG165)))) -> 0.8403403403 | B167: =IF(ISBLANK(DataInput!A160),"",DataInput!A160) -> 101.8957977 | C167: =IF(ISBLANK(DataInput!A160),"",LN(B167-0.999*$B$1)) -> 4.621586162 | D167: =DataInput!A160/AVERAGE(DataInput!$A$1:$A$10000) -> 0.7054971996 | F167: =LN(IF(ISBLANK(DataInput!A160),1,GAMMADIST(B167,$G$2,$H$2,TRUE))) -> -1.755194067 | G167: =IF(ISBLANK(DataInput!A160),0,GAMMADIST(B167-$I$2,$G$2,$H$2,TRUE)) -> 0.1722624305 | H167: 0.6680779099 | K167: =LN(IF(ISBLANK(DataInput!A160),1,NORMDIST(C167,$C$2,$C$3,FALSE))) -> -1.659588596 | L167: =IF(ISBLANK(DataInput!A160),0,NORMDIST(C167,$C$2,$C$3,TRUE)) -> 0.7040641805 | M167: 0.1362761599 | P167: =LN(IF(ISBLANK(DataInput!A160),1,$Q$2/$R$2/((B167/$R$2)^($Q$2+1)))) -> -10.68073219 | Q167: =IF(ISBLANK(DataInput!A160),0,IF(B167<$R$2,0,1-(B167/$R$2)^(-$Q$2))) -> 0.9976619758 | R167: 0.2935977954 | U167: -6.121410453 | V167: 0.6533169372 | W167: 0.1870234031 | Y167: =IF(ISBLANK(DataInput!A160),"",B167-$B$1*0.9999) -> 101.654929 | AA167: =LN(IF(ISBLANK(DataInput!A160),1,EXPONDIST(B167-$AC$2,$AB$2,FALSE))) -> -5.676140769 | AB167: =IF(ISBLANK(DataInput!A160),0,EXPONDIST(B167-$AC$2,$AB$2,TRUE)) -> 0.5058948136 | AC167: 0.3344455267 | AF167: =LN(IF(ISBLANK(DataInput!A160),1,GPDpdf(B167,$AH$2,$AI$2,$B$1))) -> -6.214145505 | AG167: 167 | AH167: =IF(ISBLANK(DataInput!A160),0,GPDcdff(B167,$AH$2,$AI$2,$B$1*0.999)) -> 0.7210843746 | AI167: 0.1192559657
A168: =MAX(0,A167-1/COUNT($B$8:INDIRECT("B"&(DataInput!$C$2+AG166)))) -> 0.8393393393 | B168: =IF(ISBLANK(DataInput!A161),"",DataInput!A161) -> 21.13928986 | C168: =IF(ISBLANK(DataInput!A161),"",LN(B168-0.999*$B$1)) -> 3.039683987 | D168: =DataInput!A161/AVERAGE(DataInput!$A$1:$A$10000) -> 0.1463623636 | F168: =LN(IF(ISBLANK(DataInput!A161),1,GAMMADIST(B168,$G$2,$H$2,TRUE))) -> -4.441308364 | G168: =IF(ISBLANK(DataInput!A161),0,GAMMADIST(B168-$I$2,$G$2,$H$2,TRUE)) -> 0.01153509679 | H168: 0.8278042426 | K168: =LN(IF(ISBLANK(DataInput!A161),1,NORMDIST(C168,$C$2,$C$3,FALSE))) -> -1.571887195 | L168: =IF(ISBLANK(DataInput!A161),0,NORMDIST(C168,$C$2,$C$3,TRUE)) -> 0.3689234826 | M168: 0.4704158567 | P168: =LN(IF(ISBLANK(DataInput!A161),1,$Q$2/$R$2/((B168/$R$2)^($Q$2+1)))) -> -7.532472555 | Q168: =IF(ISBLANK(DataInput!A161),0,IF(B168<$R$2,0,1-(B168/$R$2)^(-$Q$2))) -> 0.9887006125 | R168: 0.6197771299 | U168: -4.846526876 | V168: 0.3330900299 | W168: 0.5062493094 | Y168: =IF(ISBLANK(DataInput!A161),"",B168-$B$1*0.9999) -> 20.89842115 | AA168: =LN(IF(ISBLANK(DataInput!A161),1,EXPONDIST(B168-$AC$2,$AB$2,FALSE))) -> -5.116071809 | AB168: =IF(ISBLANK(DataInput!A161),0,EXPONDIST(B168-$AC$2,$AB$2,TRUE)) -> 0.1349239847 | AC168: 0.7044153547 | AF168: =LN(IF(ISBLANK(DataInput!A161),1,GPDpdf(B168,$AH$2,$AI$2,$B$1))) -> -4.523588735 | AG168: 168 | AH168: =IF(ISBLANK(DataInput!A161),0,GPDcdff(B168,$AH$2,$AI$2,$B$1*0.999)) -> 0.3443109923 | AI168: 0.495028347
A169: =MAX(0,A168-1/COUNT($B$8:INDIRECT("B"&(DataInput!$C$2+AG167)))) -> 0.8383383383 | B169: =IF(ISBLANK(DataInput!A162),"",DataInput!A162) -> 20.44492912 | C169: =IF(ISBLANK(DataInput!A162),"",LN(B169-0.999*$B$1)) -> 3.005894325 | D169: =DataInput!A162/AVERAGE(DataInput!$A$1:$A$10000) -> 0.1415548096 | F169: =LN(IF(ISBLANK(DataInput!A162),1,GAMMADIST(B169,$G$2,$H$2,TRUE))) -> -4.502754005 | G169: =IF(ISBLANK(DataInput!A162),0,GAMMADIST(B169-$I$2,$G$2,$H$2,TRUE)) -> 0.0108394554 | H169: 0.8274988829 | K169: =LN(IF(ISBLANK(DataInput!A162),1,NORMDIST(C169,$C$2,$C$3,FALSE))) -> -1.57828609 | L169: =IF(ISBLANK(DataInput!A162),0,NORMDIST(C169,$C$2,$C$3,TRUE)) -> 0.3619291599 | M169: 0.4764091785 | P169: =LN(IF(ISBLANK(DataInput!A162),1,$Q$2/$R$2/((B169/$R$2)^($Q$2+1)))) -> -7.465619812 | Q169: =IF(ISBLANK(DataInput!A162),0,IF(B169<$R$2,0,1-(B169/$R$2)^(-$Q$2))) -> 0.9883162059 | R169: 0.6263870461 | U169: -4.825036747 | V169: 0.3275766237 | W169: 0.5107617146 | Y169: =IF(ISBLANK(DataInput!A162),"",B169-$B$1*0.9999) -> 20.20406041 | AA169: =LN(IF(ISBLANK(DataInput!A162),1,EXPONDIST(B169-$AC$2,$AB$2,FALSE))) -> -5.111256224 | AB169: =IF(ISBLANK(DataInput!A162),0,EXPONDIST(B169-$AC$2,$AB$2,TRUE)) -> 0.1307480903 | AC169: 0.7075902481 | AF169: =LN(IF(ISBLANK(DataInput!A162),1,GPDpdf(B169,$AH$2,$AI$2,$B$1))) -> -4.500735769 | AG169: 169 | AH169: =IF(ISBLANK(DataInput!A162),0,GPDcdff(B169,$AH$2,$AI$2,$B$1*0.999)) -> 0.3366906471 | AI169: 0.5016476913
A170: =MAX(0,A169-1/COUNT($B$8:INDIRECT("B"&(DataInput!$C$2+AG168)))) -> 0.8373373373 | B170: =IF(ISBLANK(DataInput!A163),"",DataInput!A163) -> 3.015436888 | C170: =IF(ISBLANK(DataInput!A163),"",LN(B170-0.999*$B$1)) -> 1.020573261 | D170: =DataInput!A163/AVERAGE(DataInput!$A$1:$A$10000) -> 0.02087801781 | F170: =LN(IF(ISBLANK(DataInput!A163),1,GAMMADIST(B170,$G$2,$H$2,TRUE))) -> -8.124556137 | G170: =IF(ISBLANK(DataInput!A163),0,GAMMADIST(B170-$I$2,$G$2,$H$2,TRUE)) -> 0.0002524545896 | H170: 0.8370848827 | K170: =LN(IF(ISBLANK(DataInput!A163),1,NORMDIST(C170,$C$2,$C$3,FALSE))) -> -2.56164832 | L170: =IF(ISBLANK(DataInput!A163),0,NORMDIST(C170,$C$2,$C$3,TRUE)) -> 0.07405785043 | M170: 0.7632794869 | P170: =LN(IF(ISBLANK(DataInput!A163),1,$Q$2/$R$2/((B170/$R$2)^($Q$2+1)))) -> -3.634445065 | Q170: =IF(ISBLANK(DataInput!A163),0,IF(B170<$R$2,0,1-(B170/$R$2)^(-$Q$2))) -> 0.9205293839 | R170: 0.8464715335 | U170: -3.767996917 | V170: 0.1119840176 | W170: 0.7253533197 | Y170: =IF(ISBLANK(DataInput!A163),"",B170-$B$1*0.9999) -> 2.774568179 | AA170: =LN(IF(ISBLANK(DataInput!A163),1,EXPONDIST(B170-$AC$2,$AB$2,FALSE))) -> -4.990377822 | AB170: =IF(ISBLANK(DataInput!A163),0,EXPONDIST(B170-$AC$2,$AB$2,TRUE)) -> 0.01905992766 | AC170: 0.8182774097 | AF170: =LN(IF(ISBLANK(DataInput!A163),1,GPDpdf(B170,$AH$2,$AI$2,$B$1))) -> -3.821580263 | AG170: 170 | AH170: =IF(ISBLANK(DataInput!A163),0,GPDcdff(B170,$AH$2,$AI$2,$B$1*0.999)) -> 0.06491768074 | AI170: 0.7724196566
A171: =MAX(0,A170-1/COUNT($B$8:INDIRECT("B"&(DataInput!$C$2+AG169)))) -> 0.8363363363 | B171: =IF(ISBLANK(DataInput!A164),"",DataInput!A164) -> 140.7263947 | C171: =IF(ISBLANK(DataInput!A164),"",LN(B171-0.999*$B$1)) -> 4.945106009 | D171: =DataInput!A164/AVERAGE(DataInput!$A$1:$A$10000) -> 0.9743490855 | F171: =LN(IF(ISBLANK(DataInput!A164),1,GAMMADIST(B171,$G$2,$H$2,TRUE))) -> -1.294817122 | G171: =IF(ISBLANK(DataInput!A164),0,GAMMADIST(B171-$I$2,$G$2,$H$2,TRUE)) -> 0.2733165478 | H171: 0.5630197886 | K171: =LN(IF(ISBLANK(DataInput!A164),1,NORMDIST(C171,$C$2,$C$3,FALSE))) -> -1.770929934 | L171: =IF(ISBLANK(DataInput!A164),0,NORMDIST(C171,$C$2,$C$3,TRUE)) -> 0.7624551375 | M171: 0.07388119884 | P171: =LN(IF(ISBLANK(DataInput!A164),1,$Q$2/$R$2/((B171/$R$2)^($Q$2+1)))) -> -11.32700473 | Q171: =IF(ISBLANK(DataInput!A164),0,IF(B171<$R$2,0,1-(B171/$R$2)^(-$Q$2))) -> 0.9983080182 | R171: 0.2358528807 | U171: -6.478478549 | V171: 0.7245870975 | W171: 0.1117492388 | Y171: =IF(ISBLANK(DataInput!A164),"",B171-$B$1*0.9999) -> 140.4855259 | AA171: =LN(IF(ISBLANK(DataInput!A164),1,EXPONDIST(B171-$AC$2,$AB$2,FALSE))) -> -5.945441815 | AB171: =IF(ISBLANK(DataInput!A164),0,EXPONDIST(B171-$AC$2,$AB$2,TRUE)) -> 0.6225465021 | AC171: 0.2137898342 | AF171: =LN(IF(ISBLANK(DataInput!A164),1,GPDpdf(B171,$AH$2,$AI$2,$B$1))) -> -6.701393299 | AG171: 171 | AH171: =IF(ISBLANK(DataInput!A164),0,GPDcdff(B171,$AH$2,$AI$2,$B$1*0.999)) -> 0.7819885919 | AI171: 0.05434774448
A172: =MAX(0,A171-1/COUNT($B$8:INDIRECT("B"&(DataInput!$C$2+AG170)))) -> 0.8353353353 | B172: =IF(ISBLANK(DataInput!A165),"",DataInput!A165) -> 47.13999939 | C172: =IF(ISBLANK(DataInput!A165),"",LN(B172-0.999*$B$1)) -> 3.848003762 | D172: =DataInput!A165/AVERAGE(DataInput!$A$1:$A$10000) -> 0.3263837989 | F172: =LN(IF(ISBLANK(DataInput!A165),1,GAMMADIST(B172,$G$2,$H$2,TRUE))) -> -3.006953162 | G172: =IF(ISBLANK(DataInput!A165),0,GAMMADIST(B172-$I$2,$G$2,$H$2,TRUE)) -> 0.04900753266 | H172: 0.7863278027 | K172: =LN(IF(ISBLANK(DataInput!A165),1,NORMDIST(C172,$C$2,$C$3,FALSE))) -> -1.521953066 | L172: =IF(ISBLANK(DataInput!A165),0,NORMDIST(C172,$C$2,$C$3,TRUE)) -> 0.5439029075 | M172: 0.2914324278 | P172: =LN(IF(ISBLANK(DataInput!A165),1,$Q$2/$R$2/((B172/$R$2)^($Q$2+1)))) -> -9.137788056 | Q172: =IF(ISBLANK(DataInput!A165),0,IF(B172<$R$2,0,1-(B172/$R$2)^(-$Q$2))) -> 0.9949397215 | R172: 0.451036814 | U172: -5.420600938 | V172: 0.4842017258 | W172: 0.3511336095 | Y172: =IF(ISBLANK(DataInput!A165),"",B172-$B$1*0.9999) -> 46.89913068 | AA172: =LN(IF(ISBLANK(DataInput!A165),1,EXPONDIST(B172-$AC$2,$AB$2,FALSE))) -> -5.296393999 | AB172: =IF(ISBLANK(DataInput!A165),0,EXPONDIST(B172-$AC$2,$AB$2,TRUE)) -> 0.2776605417 | AC172: 0.5576747937 | AF172: =LN(IF(ISBLANK(DataInput!A165),1,GPDpdf(B172,$AH$2,$AI$2,$B$1))) -> -5.233844124 | AG172: 172 | AH172: =IF(ISBLANK(DataInput!A165),0,GPDcdff(B172,$AH$2,$AI$2,$B$1*0.999)) -> 0.5421377579 | AI172: 0.2931975774
A173: =MAX(0,A172-1/COUNT($B$8:INDIRECT("B"&(DataInput!$C$2+AG171)))) -> 0.8343343343 | B173: =IF(ISBLANK(DataInput!A166),"",DataInput!A166) -> 22.07209969 | C173: =IF(ISBLANK(DataInput!A166),"",LN(B173-0.999*$B$1)) -> 3.083351489 | D173: =DataInput!A166/AVERAGE(DataInput!$A$1:$A$10000) -> 0.1528208706 | F173: =LN(IF(ISBLANK(DataInput!A166),1,GAMMADIST(B173,$G$2,$H$2,TRUE))) -> -4.362021379 | G173: =IF(ISBLANK(DataInput!A166),0,GAMMADIST(B173-$I$2,$G$2,$H$2,TRUE)) -> 0.01249865965 | H173: =ABS(G173-A173) -> 0.8218356747 | K173: =LN(IF(ISBLANK(DataInput!A166),1,NORMDIST(C173,$C$2,$C$3,FALSE))) -> -1.564130197 | L173: =IF(ISBLANK(DataInput!A166),0,NORMDIST(C173,$C$2,$C$3,TRUE)) -> 0.3780268659 | M173: =ABS(L173-$A173) -> 0.4563074685 | P173: =LN(IF(ISBLANK(DataInput!A166),1,$Q$2/$R$2/((B173/$R$2)^($Q$2+1)))) -> -7.618906555 | Q173: =IF(ISBLANK(DataInput!A166),0,IF(B173<$R$2,0,1-(B173/$R$2)^(-$Q$2))) -> 0.9891789265 | R173: =ABS(Q173-L173) -> 0.6111520606 | U173: -4.874552772 | V173: 0.3403155294 | W173: =ABS(V173-$A173) -> 0.4940188049 | Y173: =IF(ISBLANK(DataInput!A166),"",B173-$B$1*0.9999) -> 21.83123098 | AA173: =LN(IF(ISBLANK(DataInput!A166),1,EXPONDIST(B173-$AC$2,$AB$2,FALSE))) -> -5.122541106 | AB173: =IF(ISBLANK(DataInput!A166),0,EXPONDIST(B173-$AC$2,$AB$2,TRUE)) -> 0.1405023548 | AC173: =ABS(AB173-$A173) -> 0.6938319795 | AF173: =LN(IF(ISBLANK(DataInput!A166),1,GPDpdf(B173,$AH$2,$AI$2,$B$1))) -> -4.553888735 | AG173: 173 | AH173: =IF(ISBLANK(DataInput!A166),0,GPDcdff(B173,$AH$2,$AI$2,$B$1*0.999)) -> 0.3542797426 | AI173: 0.4800545918
A174: =MAX(0,A173-1/COUNT($B$8:INDIRECT("B"&(DataInput!$C$2+AG172)))) -> 0.8333333333 | B174: =IF(ISBLANK(DataInput!A167),"",DataInput!A167) -> 48.06378937 | C174: =IF(ISBLANK(DataInput!A167),"",LN(B174-0.999*$B$1)) -> 3.86750957 | D174: =DataInput!A167/AVERAGE(DataInput!$A$1:$A$10000) -> 0.3327798551 | F174: =LN(IF(ISBLANK(DataInput!A167),1,GAMMADIST(B174,$G$2,$H$2,TRUE))) -> -2.973526762 | G174: =IF(ISBLANK(DataInput!A167),0,GAMMADIST(B174-$I$2,$G$2,$H$2,TRUE)) -> 0.0506829959 | H174: 0.7826503374 | K174: =LN(IF(ISBLANK(DataInput!A167),1,NORMDIST(C174,$C$2,$C$3,FALSE))) -> -1.523194797 | L174: =IF(ISBLANK(DataInput!A167),0,NORMDIST(C174,$C$2,$C$3,TRUE)) -> 0.5481581339 | M174: 0.2851751994 | P174: =LN(IF(ISBLANK(DataInput!A167),1,$Q$2/$R$2/((B174/$R$2)^($Q$2+1)))) -> -9.176634825 | Q174: =IF(ISBLANK(DataInput!A167),0,IF(B174<$R$2,0,1-(B174/$R$2)^(-$Q$2))) -> 0.9950371413 | R174: 0.4468790073 | U174: -5.436147665 | V174: 0.4882573437 | W174: 0.3450759897 | Y174: =IF(ISBLANK(DataInput!A167),"",B174-$B$1*0.9999) -> 47.82292066 | AA174: =LN(IF(ISBLANK(DataInput!A167),1,EXPONDIST(B174-$AC$2,$AB$2,FALSE))) -> -5.302800741 | AB174: =IF(ISBLANK(DataInput!A167),0,EXPONDIST(B174-$AC$2,$AB$2,TRUE)) -> 0.282273591 | AC174: 0.5510597424 | AF174: =LN(IF(ISBLANK(DataInput!A167),1,GPDpdf(B174,$AH$2,$AI$2,$B$1))) -> -5.255013528 | AG174: 174 | AH174: =IF(ISBLANK(DataInput!A167),0,GPDcdff(B174,$AH$2,$AI$2,$B$1*0.999)) -> 0.5470124191 | AI174: 0.2863209142
A175: =MAX(0,A174-1/COUNT($B$8:INDIRECT("B"&(DataInput!$C$2+AG173)))) -> 0.8323323323 | B175: =IF(ISBLANK(DataInput!A168),"",DataInput!A168) -> 1105.405029 | C175: =IF(ISBLANK(DataInput!A168),"",LN(B175-0.999*$B$1)) -> 7.007749361 | D175: =DataInput!A168/AVERAGE(DataInput!$A$1:$A$10000) -> 7.653506523 | F175: =LN(IF(ISBLANK(DataInput!A168),1,GAMMADIST(B175,$G$2,$H$2,TRUE))) -> -0.003616792905 | G175: =IF(ISBLANK(DataInput!A168),0,GAMMADIST(B175-$I$2,$G$2,$H$2,TRUE)) -> 0.99638436 | H175: 0.1640520277 | K175: =LN(IF(ISBLANK(DataInput!A168),1,NORMDIST(C175,$C$2,$C$3,FALSE))) -> -3.226568764 | L175: =IF(ISBLANK(DataInput!A168),0,NORMDIST(C175,$C$2,$C$3,TRUE)) -> 0.9678216207 | M175: 0.1354892883 | P175: =LN(IF(ISBLANK(DataInput!A168),1,$Q$2/$R$2/((B175/$R$2)^($Q$2+1)))) -> -15.45274386 | Q175: =IF(ISBLANK(DataInput!A168),0,IF(B175<$R$2,0,1-(B175/$R$2)^(-$Q$2))) -> 0.9997853377 | R175: 0.031963717 | U175: -10.51429506 | V175: 0.9890678987 | W175: 0.1567355664 | Y175: =IF(ISBLANK(DataInput!A168),"",B175-$B$1*0.9999) -> 1105.164161 | AA175: =LN(IF(ISBLANK(DataInput!A168),1,EXPONDIST(B175-$AC$2,$AB$2,FALSE))) -> -12.63575785 | AB175: =IF(ISBLANK(DataInput!A168),0,EXPONDIST(B175-$AC$2,$AB$2,TRUE)) -> 0.9995308669 | AC175: 0.1671985345 | AF175: =LN(IF(ISBLANK(DataInput!A168),1,GPDpdf(B175,$AH$2,$AI$2,$B$1))) -> -10.43016067 | AG175: 175 | AH175: =IF(ISBLANK(DataInput!A168),0,GPDcdff(B175,$AH$2,$AI$2,$B$1*0.999)) -> 0.9669107429 | AI175: 0.1345784106
A176: =MAX(0,A175-1/COUNT($B$8:INDIRECT("B"&(DataInput!$C$2+AG174)))) -> 0.8313313313 | B176: =IF(ISBLANK(DataInput!A169),"",DataInput!A169) -> 158.3963928 | C176: =IF(ISBLANK(DataInput!A169),"",LN(B176-0.999*$B$1)) -> 5.06358025 | D176: =DataInput!A169/AVERAGE(DataInput!$A$1:$A$10000) -> 1.096691071 | F176: =LN(IF(ISBLANK(DataInput!A169),1,GAMMADIST(B176,$G$2,$H$2,TRUE))) -> -1.139189134 | G176: =IF(ISBLANK(DataInput!A169),0,GAMMADIST(B176-$I$2,$G$2,$H$2,TRUE)) -> 0.3194545948 | H176: 0.5118767366 | K176: =LN(IF(ISBLANK(DataInput!A169),1,NORMDIST(C176,$C$2,$C$3,FALSE))) -> -1.81963807 | L176: =IF(ISBLANK(DataInput!A169),0,NORMDIST(C176,$C$2,$C$3,TRUE)) -> 0.782140294 | M176: 0.04919103728 | P176: =LN(IF(ISBLANK(DataInput!A169),1,$Q$2/$R$2/((B176/$R$2)^($Q$2+1)))) -> -11.56376847 | Q176: =IF(ISBLANK(DataInput!A169),0,IF(B176<$R$2,0,1-(B176/$R$2)^(-$Q$2))) -> 0.9984970649 | R176: 0.2163567709 | U176: -6.621217007 | V176: 0.7498615192 | W176: 0.08146981208 | Y176: =IF(ISBLANK(DataInput!A169),"",B176-$B$1*0.9999) -> 158.1555241 | AA176: =LN(IF(ISBLANK(DataInput!A169),1,EXPONDIST(B176-$AC$2,$AB$2,FALSE))) -> -6.067988192 | AB176: =IF(ISBLANK(DataInput!A169),0,EXPONDIST(B176-$AC$2,$AB$2,TRUE)) -> 0.6660801483 | AC176: 0.1652511831 | AF176: =LN(IF(ISBLANK(DataInput!A169),1,GPDpdf(B176,$AH$2,$AI$2,$B$1))) -> -6.889417128 | AG176: 176 | AH176: =IF(ISBLANK(DataInput!A169),0,GPDcdff(B176,$AH$2,$AI$2,$B$1*0.999)) -> 0.8017599086 | AI176: 0.02957142277
A177: =MAX(0,A176-1/COUNT($B$8:INDIRECT("B"&(DataInput!$C$2+AG175)))) -> 0.8303303303 | B177: =IF(ISBLANK(DataInput!A170),"",DataInput!A170) -> 14.98861027 | C177: =IF(ISBLANK(DataInput!A170),"",LN(B177-0.999*$B$1)) -> 2.691104657 | D177: =DataInput!A170/AVERAGE(DataInput!$A$1:$A$10000) -> 0.103776827 | F177: =LN(IF(ISBLANK(DataInput!A170),1,GAMMADIST(B177,$G$2,$H$2,TRUE))) -> -5.078357953 | G177: =IF(ISBLANK(DataInput!A170),0,GAMMADIST(B177-$I$2,$G$2,$H$2,TRUE)) -> 0.006044750458 | H177: 0.8242855799 | K177: =LN(IF(ISBLANK(DataInput!A170),1,NORMDIST(C177,$C$2,$C$3,FALSE))) -> -1.654525691 | L177: =IF(ISBLANK(DataInput!A170),0,NORMDIST(C177,$C$2,$C$3,TRUE)) -> 0.2992365338 | M177: 0.5310937966 | P177: =LN(IF(ISBLANK(DataInput!A170),1,$Q$2/$R$2/((B177/$R$2)^($Q$2+1)))) -> -6.844213105 | Q177: =IF(ISBLANK(DataInput!A170),0,IF(B177<$R$2,0,1-(B177/$R$2)^(-$Q$2))) -> 0.9840546831 | R177: 0.6848181493 | U177: -4.632435071 | V177: 0.2794713756 | W177: 0.5508589547 | Y177: =IF(ISBLANK(DataInput!A170),"",B177-$B$1*0.9999) -> 14.74774156 | AA177: =LN(IF(ISBLANK(DataInput!A170),1,EXPONDIST(B177-$AC$2,$AB$2,FALSE))) -> -5.073415127 | AB177: =IF(ISBLANK(DataInput!A170),0,EXPONDIST(B177-$AC$2,$AB$2,TRUE)) -> 0.09722435755 | AC177: 0.7331059728 | AF177: =LN(IF(ISBLANK(DataInput!A170),1,GPDpdf(B177,$AH$2,$AI$2,$B$1))) -> -4.311561072 | AG177: 177 | AH177: =IF(ISBLANK(DataInput!A170),0,GPDcdff(B177,$AH$2,$AI$2,$B$1*0.999)) -> 0.2701116205 | AI177: 0.5602187099
A178: =MAX(0,A177-1/COUNT($B$8:INDIRECT("B"&(DataInput!$C$2+AG176)))) -> 0.8293293293 | B178: =IF(ISBLANK(DataInput!A171),"",DataInput!A171) -> 8.16672039 | C178: =IF(ISBLANK(DataInput!A171),"",LN(B178-0.999*$B$1)) -> 2.070157135 | D178: =DataInput!A171/AVERAGE(DataInput!$A$1:$A$10000) -> 0.05654402334 | F178: =LN(IF(ISBLANK(DataInput!A171),1,GAMMADIST(B178,$G$2,$H$2,TRUE))) -> -6.221524744 | G178: =IF(ISBLANK(DataInput!A171),0,GAMMADIST(B178-$I$2,$G$2,$H$2,TRUE)) -> 0.001876654106 | H178: 0.8274526752 | K178: =LN(IF(ISBLANK(DataInput!A171),1,NORMDIST(C178,$C$2,$C$3,FALSE))) -> -1.89295594 | L178: =IF(ISBLANK(DataInput!A171),0,NORMDIST(C178,$C$2,$C$3,TRUE)) -> 0.1925802998 | M178: 0.6367490296 | P178: =LN(IF(ISBLANK(DataInput!A171),1,$Q$2/$R$2/((B178/$R$2)^($Q$2+1)))) -> -5.628753279 | Q178: =IF(ISBLANK(DataInput!A171),0,IF(B178<$R$2,0,1-(B178/$R$2)^(-$Q$2))) -> 0.9707054406 | R178: 0.7781251408 | U178: -4.285787644 | V178: 0.2012820434 | W178: 0.6280472859 | Y178: =IF(ISBLANK(DataInput!A171),"",B178-$B$1*0.9999) -> 7.925851682 | AA178: =LN(IF(ISBLANK(DataInput!A171),1,EXPONDIST(B178-$AC$2,$AB$2,FALSE))) -> -5.026103413 | AB178: =IF(ISBLANK(DataInput!A171),0,EXPONDIST(B178-$AC$2,$AB$2,TRUE)) -> 0.05348598464 | AC178: 0.7758433447 | AF178: =LN(IF(ISBLANK(DataInput!A171),1,GPDpdf(B178,$AH$2,$AI$2,$B$1))) -> -4.047064542 | AG178: 178 | AH178: =IF(ISBLANK(DataInput!A171),0,GPDcdff(B178,$AH$2,$AI$2,$B$1*0.999)) -> 0.1656727006 | AI178: 0.6636566287
A179: =MAX(0,A178-1/COUNT($B$8:INDIRECT("B"&(DataInput!$C$2+AG177)))) -> 0.8283283283 | B179: =IF(ISBLANK(DataInput!A172),"",DataInput!A172) -> 753.8677979 | C179: =IF(ISBLANK(DataInput!A172),"",LN(B179-0.999*$B$1)) -> 6.624897744 | D179: =DataInput!A172/AVERAGE(DataInput!$A$1:$A$10000) -> 5.21956383 | F179: =LN(IF(ISBLANK(DataInput!A172),1,GAMMADIST(B179,$G$2,$H$2,TRUE))) -> -0.03082752413 | G179: =IF(ISBLANK(DataInput!A172),0,GAMMADIST(B179-$I$2,$G$2,$H$2,TRUE)) -> 0.9695997095 | H179: 0.1412713812 | K179: =LN(IF(ISBLANK(DataInput!A172),1,NORMDIST(C179,$C$2,$C$3,FALSE))) -> -2.858938308 | L179: =IF(ISBLANK(DataInput!A172),0,NORMDIST(C179,$C$2,$C$3,TRUE)) -> 0.9493873103 | M179: 0.121058982 | P179: =LN(IF(ISBLANK(DataInput!A172),1,$Q$2/$R$2/((B179/$R$2)^($Q$2+1)))) -> -14.68660491 | Q179: =IF(ISBLANK(DataInput!A172),0,IF(B179<$R$2,0,1-(B179/$R$2)^(-$Q$2))) -> 0.999685037 | R179: 0.05029772673 | U179: -9.426712272 | V179: 0.9720873489 | W179: 0.1437590205 | Y179: =IF(ISBLANK(DataInput!A172),"",B179-$B$1*0.9999) -> 753.6269291 | AA179: =LN(IF(ISBLANK(DataInput!A172),1,EXPONDIST(B179-$AC$2,$AB$2,FALSE))) -> -10.19774886 | AB179: =IF(ISBLANK(DataInput!A172),0,EXPONDIST(B179-$AC$2,$AB$2,TRUE)) -> 0.9946283221 | AC179: 0.1662999937 | AF179: =LN(IF(ISBLANK(DataInput!A172),1,GPDpdf(B179,$AH$2,$AI$2,$B$1))) -> -9.689153645 | AG179: 179 | AH179: =IF(ISBLANK(DataInput!A172),0,GPDcdff(B179,$AH$2,$AI$2,$B$1*0.999)) -> 0.9518713973 | AI179: 0.123543069
A180: =MAX(0,A179-1/COUNT($B$8:INDIRECT("B"&(DataInput!$C$2+AG178)))) -> 0.8273273273 | B180: =IF(ISBLANK(DataInput!A173),"",DataInput!A173) -> 14.02159023 | C180: =IF(ISBLANK(DataInput!A173),"",LN(B180-0.999*$B$1)) -> 2.623286357 | D180: =DataInput!A173/AVERAGE(DataInput!$A$1:$A$10000) -> 0.09708145835 | F180: =LN(IF(ISBLANK(DataInput!A173),1,GAMMADIST(B180,$G$2,$H$2,TRUE))) -> -5.202933193 | G180: =IF(ISBLANK(DataInput!A173),0,GAMMADIST(B180-$I$2,$G$2,$H$2,TRUE)) -> 0.005325136562 | H180: 0.8220021908 | K180: =LN(IF(ISBLANK(DataInput!A173),1,NORMDIST(C180,$C$2,$C$3,FALSE))) -> -1.674882452 | L180: =IF(ISBLANK(DataInput!A173),0,NORMDIST(C180,$C$2,$C$3,TRUE)) -> 0.286400435 | M180: 0.5409268924 | P180: =LN(IF(ISBLANK(DataInput!A173),1,$Q$2/$R$2/((B180/$R$2)^($Q$2+1)))) -> -6.710717205 | Q180: =IF(ISBLANK(DataInput!A173),0,IF(B180<$R$2,0,1-(B180/$R$2)^(-$Q$2))) -> 0.982953093 | R180: 0.696552658 | U180: -4.59259383 | V180: 0.2698730258 | W180: 0.5574543015 | Y180: =IF(ISBLANK(DataInput!A173),"",B180-$B$1*0.9999) -> 13.78072152 | AA180: =LN(IF(ISBLANK(DataInput!A173),1,EXPONDIST(B180-$AC$2,$AB$2,FALSE))) -> -5.066708572 | AB180: =IF(ISBLANK(DataInput!A173),0,EXPONDIST(B180-$AC$2,$AB$2,TRUE)) -> 0.09114949576 | AC180: 0.7361778316 | AF180: =LN(IF(ISBLANK(DataInput!A173),1,GPDpdf(B180,$AH$2,$AI$2,$B$1))) -> -4.276107002 | AG180: 180 | AH180: =IF(ISBLANK(DataInput!A173),0,GPDcdff(B180,$AH$2,$AI$2,$B$1*0.999)) -> 0.2569095069 | AI180: 0.5704178204
A181: =MAX(0,A180-1/COUNT($B$8:INDIRECT("B"&(DataInput!$C$2+AG179)))) -> 0.8263263263 | B181: =IF(ISBLANK(DataInput!A174),"",DataInput!A174) -> 62.79175949 | C181: =IF(ISBLANK(DataInput!A174),"",LN(B181-0.999*$B$1)) -> 4.135983944 | D181: =DataInput!A174/AVERAGE(DataInput!$A$1:$A$10000) -> 0.4347520846 | F181: =LN(IF(ISBLANK(DataInput!A174),1,GAMMADIST(B181,$G$2,$H$2,TRUE))) -> -2.521711041 | G181: =IF(ISBLANK(DataInput!A174),0,GAMMADIST(B181-$I$2,$G$2,$H$2,TRUE)) -> 0.07981224105 | H181: 0.7465140853 | K181: =LN(IF(ISBLANK(DataInput!A174),1,NORMDIST(C181,$C$2,$C$3,FALSE))) -> -1.552000823 | L181: =IF(ISBLANK(DataInput!A174),0,NORMDIST(C181,$C$2,$C$3,TRUE)) -> 0.6059595225 | M181: 0.2203668038 | P181: =LN(IF(ISBLANK(DataInput!A174),1,$Q$2/$R$2/((B181/$R$2)^($Q$2+1)))) -> -9.711670481 | Q181: =IF(ISBLANK(DataInput!A174),0,IF(B181<$R$2,0,1-(B181/$R$2)^(-$Q$2))) -> 0.996202887 | R181: 0.3902433644 | U181: -5.660195666 | V181: 0.5455416346 | W181: 0.2807846917 | Y181: =IF(ISBLANK(DataInput!A174),"",B181-$B$1*0.9999) -> 62.55089078 | AA181: =LN(IF(ISBLANK(DataInput!A174),1,EXPONDIST(B181-$AC$2,$AB$2,FALSE))) -> -5.404943331 | AB181: =IF(ISBLANK(DataInput!A174),0,EXPONDIST(B181-$AC$2,$AB$2,TRUE)) -> 0.3519642529 | AC181: 0.4743620734 | AF181: =LN(IF(ISBLANK(DataInput!A174),1,GPDpdf(B181,$AH$2,$AI$2,$B$1))) -> -5.565637197 | AG181: 181 | AH181: =IF(ISBLANK(DataInput!A174),0,GPDcdff(B181,$AH$2,$AI$2,$B$1*0.999)) -> 0.6128518164 | AI181: 0.2134745099
A182: =MAX(0,A181-1/COUNT($B$8:INDIRECT("B"&(DataInput!$C$2+AG180)))) -> 0.8253253253 | B182: =IF(ISBLANK(DataInput!A175),"",DataInput!A175) -> 3.837862015 | C182: =IF(ISBLANK(DataInput!A175),"",LN(B182-0.999*$B$1)) -> 1.280158576 | D182: =DataInput!A175/AVERAGE(DataInput!$A$1:$A$10000) -> 0.02657225287 | F182: =LN(IF(ISBLANK(DataInput!A175),1,GAMMADIST(B182,$G$2,$H$2,TRUE))) -> -7.66197771 | G182: =IF(ISBLANK(DataInput!A175),0,GAMMADIST(B182-$I$2,$G$2,$H$2,TRUE)) -> 0.000415472288 | H182: 0.824909853 | K182: =LN(IF(ISBLANK(DataInput!A175),1,NORMDIST(C182,$C$2,$C$3,FALSE))) -> -2.365192728 | L182: =IF(ISBLANK(DataInput!A175),0,NORMDIST(C182,$C$2,$C$3,TRUE)) -> 0.09623302516 | M182: 0.7290923002 | P182: =LN(IF(ISBLANK(DataInput!A175),1,$Q$2/$R$2/((B182/$R$2)^($Q$2+1)))) -> -4.117189016 | Q182: =IF(ISBLANK(DataInput!A175),0,IF(B182<$R$2,0,1-(B182/$R$2)^(-$Q$2))) -> 0.9375844706 | R182: 0.8413514454 | U182: -3.89014255 | V182: 0.1298238737 | W182: 0.6955014516 | Y182: =IF(ISBLANK(DataInput!A175),"",B182-$B$1*0.9999) -> 3.596993306 | AA182: =LN(IF(ISBLANK(DataInput!A175),1,EXPONDIST(B182-$AC$2,$AB$2,FALSE))) -> -4.99608157 | AB182: =IF(ISBLANK(DataInput!A175),0,EXPONDIST(B182-$AC$2,$AB$2,TRUE)) -> 0.02463903677 | AC182: 0.8006862886 | AF182: =LN(IF(ISBLANK(DataInput!A175),1,GPDpdf(B182,$AH$2,$AI$2,$B$1))) -> -3.859308968 | AG182: 182 | AH182: =IF(ISBLANK(DataInput!A175),0,GPDcdff(B182,$AH$2,$AI$2,$B$1*0.999)) -> 0.0825865174 | AI182: 0.7427388079
A183: =MAX(0,A182-1/COUNT($B$8:INDIRECT("B"&(DataInput!$C$2+AG181)))) -> 0.8243243243 | B183: =IF(ISBLANK(DataInput!A176),"",DataInput!A176) -> 16.18387985 | C183: =IF(ISBLANK(DataInput!A176),"",LN(B183-0.999*$B$1)) -> 2.769034159 | D183: =DataInput!A176/AVERAGE(DataInput!$A$1:$A$10000) -> 0.1120525298 | F183: =LN(IF(ISBLANK(DataInput!A176),1,GAMMADIST(B183,$G$2,$H$2,TRUE))) -> -4.93541385 | G183: =IF(ISBLANK(DataInput!A176),0,GAMMADIST(B183-$I$2,$G$2,$H$2,TRUE)) -> 0.006989873012 | H183: 0.8173344513 | K183: =LN(IF(ISBLANK(DataInput!A176),1,NORMDIST(C183,$C$2,$C$3,FALSE))) -> -1.632854899 | L183: =IF(ISBLANK(DataInput!A176),0,NORMDIST(C183,$C$2,$C$3,TRUE)) -> 0.3143002241 | M183: 0.5100241002 | P183: =LN(IF(ISBLANK(DataInput!A176),1,$Q$2/$R$2/((B183/$R$2)^($Q$2+1)))) -> -6.997791316 | Q183: =IF(ISBLANK(DataInput!A176),0,IF(B183<$R$2,0,1-(B183/$R$2)^(-$Q$2))) -> 0.9852342244 | R183: 0.6709340002 | U183: -4.678905174 | V183: 0.290833755 | W183: 0.5334905694 | Y183: =IF(ISBLANK(DataInput!A176),"",B183-$B$1*0.9999) -> 15.94301114 | AA183: =LN(IF(ISBLANK(DataInput!A176),1,EXPONDIST(B183-$AC$2,$AB$2,FALSE))) -> -5.081704656 | AB183: =IF(ISBLANK(DataInput!A176),0,EXPONDIST(B183-$AC$2,$AB$2,TRUE)) -> 0.10467701 | AC183: 0.7196473143 | AF183: =LN(IF(ISBLANK(DataInput!A176),1,GPDpdf(B183,$AH$2,$AI$2,$B$1))) -> -4.35454179 | AG183: 183 | AH183: =IF(ISBLANK(DataInput!A176),0,GPDcdff(B183,$AH$2,$AI$2,$B$1*0.999)) -> 0.2858023146 | AI183: 0.5385220098
A184: =MAX(0,A183-1/COUNT($B$8:INDIRECT("B"&(DataInput!$C$2+AG182)))) -> 0.8233233233 | B184: =IF(ISBLANK(DataInput!A177),"",DataInput!A177) -> 35.36199188 | C184: =IF(ISBLANK(DataInput!A177),"",LN(B184-0.999*$B$1)) -> 3.558808922 | D184: =DataInput!A177/AVERAGE(DataInput!$A$1:$A$10000) -> 0.2448362622 | F184: =LN(IF(ISBLANK(DataInput!A177),1,GAMMADIST(B184,$G$2,$H$2,TRUE))) -> -3.510354923 | G184: =IF(ISBLANK(DataInput!A177),0,GAMMADIST(B184-$I$2,$G$2,$H$2,TRUE)) -> 0.02952604717 | H184: 0.7937972762 | K184: =LN(IF(ISBLANK(DataInput!A177),1,NORMDIST(C184,$C$2,$C$3,FALSE))) -> -1.517070225 | L184: =IF(ISBLANK(DataInput!A177),0,NORMDIST(C184,$C$2,$C$3,TRUE)) -> 0.4804877751 | M184: 0.3428355482 | P184: =LN(IF(ISBLANK(DataInput!A177),1,$Q$2/$R$2/((B184/$R$2)^($Q$2+1)))) -> -8.562339615 | Q184: =IF(ISBLANK(DataInput!A177),0,IF(B184<$R$2,0,1-(B184/$R$2)^(-$Q$2))) -> 0.9932510588 | R184: 0.5127632837 | U184: -5.200445152 | V184: 0.4261261832 | W184: 0.3971971401 | Y184: =IF(ISBLANK(DataInput!A177),"",B184-$B$1*0.9999) -> 35.12112317 | AA184: =LN(IF(ISBLANK(DataInput!A177),1,EXPONDIST(B184-$AC$2,$AB$2,FALSE))) -> -5.214710224 | AB184: =IF(ISBLANK(DataInput!A177),0,EXPONDIST(B184-$AC$2,$AB$2,TRUE)) -> 0.2161803409 | AC184: 0.6071429824 | AF184: =LN(IF(ISBLANK(DataInput!A177),1,GPDpdf(B184,$AH$2,$AI$2,$B$1))) -> -4.942516655 | AG184: 184 | AH184: =IF(ISBLANK(DataInput!A177),0,GPDcdff(B184,$AH$2,$AI$2,$B$1*0.999)) -> 0.4694740056 | AI184: 0.3538493177
A185: =MAX(0,A184-1/COUNT($B$8:INDIRECT("B"&(DataInput!$C$2+AG183)))) -> 0.8223223223 | B185: =IF(ISBLANK(DataInput!A178),"",DataInput!A178) -> 84.35051727 | C185: =IF(ISBLANK(DataInput!A178),"",LN(B185-0.999*$B$1)) -> 4.432123865 | D185: =DataInput!A178/AVERAGE(DataInput!$A$1:$A$10000) -> 0.5840187235 | F185: =LN(IF(ISBLANK(DataInput!A178),1,GAMMADIST(B185,$G$2,$H$2,TRUE))) -> -2.04504782 | G185: =IF(ISBLANK(DataInput!A178),0,GAMMADIST(B185-$I$2,$G$2,$H$2,TRUE)) -> 0.1287954391 | H185: 0.6935268832 | K185: =LN(IF(ISBLANK(DataInput!A178),1,NORMDIST(C185,$C$2,$C$3,FALSE))) -> -1.609110644 | L185: =IF(ISBLANK(DataInput!A178),0,NORMDIST(C185,$C$2,$C$3,TRUE)) -> 0.6670665769 | M185: 0.1552557454 | P185: =LN(IF(ISBLANK(DataInput!A178),1,$Q$2/$R$2/((B185/$R$2)^($Q$2+1)))) -> -10.30247728 | Q185: =IF(ISBLANK(DataInput!A178),0,IF(B185<$R$2,0,1-(B185/$R$2)^(-$Q$2))) -> 0.9971747656 | R185: 0.3301081887 | U185: -5.9318743 | V185: 0.6109864389 | W185: 0.2113358834 | Y185: =IF(ISBLANK(DataInput!A178),"",B185-$B$1*0.9999) -> 84.10964856 | AA185: =LN(IF(ISBLANK(DataInput!A178),1,EXPONDIST(B185-$AC$2,$AB$2,FALSE))) -> -5.554459344 | AB185: =IF(ISBLANK(DataInput!A178),0,EXPONDIST(B185-$AC$2,$AB$2,TRUE)) -> 0.4419604446 | AC185: 0.3803618777 | AF185: =LN(IF(ISBLANK(DataInput!A178),1,GPDpdf(B185,$AH$2,$AI$2,$B$1))) -> -5.948502205 | AG185: 185 | AH185: =IF(ISBLANK(DataInput!A178),0,GPDcdff(B185,$AH$2,$AI$2,$B$1*0.999)) -> 0.6809896087 | AI185: 0.1413327136
A186: =MAX(0,A185-1/COUNT($B$8:INDIRECT("B"&(DataInput!$C$2+AG184)))) -> 0.8213213213 | B186: =IF(ISBLANK(DataInput!A179),"",DataInput!A179) -> 17.01582909 | C186: =IF(ISBLANK(DataInput!A179),"",LN(B186-0.999*$B$1)) -> 2.819900245 | D186: =DataInput!A179/AVERAGE(DataInput!$A$1:$A$10000) -> 0.1178127071 | F186: =LN(IF(ISBLANK(DataInput!A179),1,GAMMADIST(B186,$G$2,$H$2,TRUE))) -> -4.842249941 | G186: =IF(ISBLANK(DataInput!A179),0,GAMMADIST(B186-$I$2,$G$2,$H$2,TRUE)) -> 0.007683323646 | H186: 0.8136379977 | K186: =LN(IF(ISBLANK(DataInput!A179),1,NORMDIST(C186,$C$2,$C$3,FALSE))) -> -1.619702633 | L186: =IF(ISBLANK(DataInput!A179),0,NORMDIST(C186,$C$2,$C$3,TRUE)) -> 0.324304276 | M186: 0.4970170453 | P186: =LN(IF(ISBLANK(DataInput!A179),1,$Q$2/$R$2/((B186/$R$2)^($Q$2+1)))) -> -7.098131695 | Q186: =IF(ISBLANK(DataInput!A179),0,IF(B186<$R$2,0,1-(B186/$R$2)^(-$Q$2))) -> 0.9859573374 | R186: 0.6616530614 | U186: -4.709650554 | V186: 0.2984435057 | W186: 0.5228778157 | Y186: =IF(ISBLANK(DataInput!A179),"",B186-$B$1*0.9999) -> 16.77496038 | AA186: =LN(IF(ISBLANK(DataInput!A179),1,EXPONDIST(B186-$AC$2,$AB$2,FALSE))) -> -5.087474456 | AB186: =IF(ISBLANK(DataInput!A179),0,EXPONDIST(B186-$AC$2,$AB$2,TRUE)) -> 0.1098279708 | AC186: 0.7114933505 | AF186: =LN(IF(ISBLANK(DataInput!A179),1,GPDpdf(B186,$AH$2,$AI$2,$B$1))) -> -4.38392777 | AG186: 186 | AH186: =IF(ISBLANK(DataInput!A179),0,GPDcdff(B186,$AH$2,$AI$2,$B$1*0.999)) -> 0.2963354763 | AI186: 0.5249858451
A187: =MAX(0,A186-1/COUNT($B$8:INDIRECT("B"&(DataInput!$C$2+AG185)))) -> 0.8203203203 | B187: =IF(ISBLANK(DataInput!A180),"",DataInput!A180) -> 93.66705322 | C187: =IF(ISBLANK(DataInput!A180),"",LN(B187-0.999*$B$1)) -> 4.537173975 | D187: =DataInput!A180/AVERAGE(DataInput!$A$1:$A$10000) -> 0.6485237391 | F187: =LN(IF(ISBLANK(DataInput!A180),1,GAMMADIST(B187,$G$2,$H$2,TRUE))) -> -1.882696953 | G187: =IF(ISBLANK(DataInput!A180),0,GAMMADIST(B187-$I$2,$G$2,$H$2,TRUE)) -> 0.1515809593 | H187: 0.6687393611 | K187: =LN(IF(ISBLANK(DataInput!A180),1,NORMDIST(C187,$C$2,$C$3,FALSE))) -> -1.635755241 | L187: =IF(ISBLANK(DataInput!A180),0,NORMDIST(C187,$C$2,$C$3,TRUE)) -> 0.6878117335 | M187: 0.1325085869 | P187: =LN(IF(ISBLANK(DataInput!A180),1,$Q$2/$R$2/((B187/$R$2)^($Q$2+1)))) -> -10.51218327 | Q187: =IF(ISBLANK(DataInput!A180),0,IF(B187<$R$2,0,1-(B187/$R$2)^(-$Q$2))) -> 0.9974562206 | R187: 0.3096444872 | U187: -6.035324151 | V187: 0.634458676 | W187: 0.1858616443 | Y187: =IF(ISBLANK(DataInput!A180),"",B187-$B$1*0.9999) -> 93.42618451 | AA187: =LN(IF(ISBLANK(DataInput!A180),1,EXPONDIST(B187-$AC$2,$AB$2,FALSE))) -> -5.619072125 | AB187: =IF(ISBLANK(DataInput!A180),0,EXPONDIST(B187-$AC$2,$AB$2,TRUE)) -> 0.4768767656 | AC187: 0.3434435547 | AF187: =LN(IF(ISBLANK(DataInput!A180),1,GPDpdf(B187,$AH$2,$AI$2,$B$1))) -> -6.093887885 | AG187: 187 | AH187: =IF(ISBLANK(DataInput!A180),0,GPDcdff(B187,$AH$2,$AI$2,$B$1*0.999)) -> 0.7035988166 | AI187: 0.1167215038
A188: =MAX(0,A187-1/COUNT($B$8:INDIRECT("B"&(DataInput!$C$2+AG186)))) -> 0.8193193193 | B188: =IF(ISBLANK(DataInput!A181),"",DataInput!A181) -> 158.2644958 | C188: =IF(ISBLANK(DataInput!A181),"",LN(B188-0.999*$B$1)) -> 5.062745933 | D188: =DataInput!A181/AVERAGE(DataInput!$A$1:$A$10000) -> 1.095777855 | F188: =LN(IF(ISBLANK(DataInput!A181),1,GAMMADIST(B188,$G$2,$H$2,TRUE))) -> -1.140257907 | G188: =IF(ISBLANK(DataInput!A181),0,GAMMADIST(B188-$I$2,$G$2,$H$2,TRUE)) -> 0.3191126011 | H188: 0.5002067182 | K188: =LN(IF(ISBLANK(DataInput!A181),1,NORMDIST(C188,$C$2,$C$3,FALSE))) -> -1.819280186 | L188: =IF(ISBLANK(DataInput!A181),0,NORMDIST(C188,$C$2,$C$3,TRUE)) -> 0.7820050401 | M188: 0.03731427923 | P188: =LN(IF(ISBLANK(DataInput!A181),1,$Q$2/$R$2/((B188/$R$2)^($Q$2+1)))) -> -11.56210099 | Q188: =IF(ISBLANK(DataInput!A181),0,IF(B188<$R$2,0,1-(B188/$R$2)^(-$Q$2))) -> 0.9984958103 | R188: 0.2164907702 | U188: -6.620187302 | V188: 0.7496857672 | W188: 0.06963355213 | Y188: =IF(ISBLANK(DataInput!A181),"",B188-$B$1*0.9999) -> 158.0236271 | AA188: =LN(IF(ISBLANK(DataInput!A181),1,EXPONDIST(B188-$AC$2,$AB$2,FALSE))) -> -6.06707345 | AB188: =IF(ISBLANK(DataInput!A181),0,EXPONDIST(B188-$AC$2,$AB$2,TRUE)) -> 0.6657745579 | AC188: 0.1535447614 | AF188: =LN(IF(ISBLANK(DataInput!A181),1,GPDpdf(B188,$AH$2,$AI$2,$B$1))) -> -6.888076444 | AG188: 188 | AH188: =IF(ISBLANK(DataInput!A181),0,GPDcdff(B188,$AH$2,$AI$2,$B$1*0.999)) -> 0.8016254808 | AI188: 0.01769383855
A189: =MAX(0,A188-1/COUNT($B$8:INDIRECT("B"&(DataInput!$C$2+AG187)))) -> 0.8183183183 | B189: =IF(ISBLANK(DataInput!A182),"",DataInput!A182) -> 374.2319031 | C189: =IF(ISBLANK(DataInput!A182),"",LN(B189-0.999*$B$1)) -> 5.924232405 | D189: =DataInput!A182/AVERAGE(DataInput!$A$1:$A$10000) -> 2.591074073 | F189: =LN(IF(ISBLANK(DataInput!A182),1,GAMMADIST(B189,$G$2,$H$2,TRUE))) -> -0.2910761121 | G189: =IF(ISBLANK(DataInput!A182),0,GAMMADIST(B189-$I$2,$G$2,$H$2,TRUE)) -> 0.74714705 | H189: 0.07117126834 | K189: =LN(IF(ISBLANK(DataInput!A182),1,NORMDIST(C189,$C$2,$C$3,FALSE))) -> -2.301163365 | L189: =IF(ISBLANK(DataInput!A182),0,NORMDIST(C189,$C$2,$C$3,TRUE)) -> 0.8949386248 | M189: 0.07662030652 | P189: =LN(IF(ISBLANK(DataInput!A182),1,$Q$2/$R$2/((B189/$R$2)^($Q$2+1)))) -> -13.28475335 | Q189: =IF(ISBLANK(DataInput!A182),0,IF(B189<$R$2,0,1-(B189/$R$2)^(-$Q$2))) -> 0.9993647839 | R189: 0.104426159 | U189: -7.910970754 | V189: 0.9034630737 | W189: 0.08514475538 | Y189: =IF(ISBLANK(DataInput!A182),"",B189-$B$1*0.9999) -> 373.9910344 | AA189: =LN(IF(ISBLANK(DataInput!A182),1,EXPONDIST(B189-$AC$2,$AB$2,FALSE))) -> -7.564867798 | AB189: =IF(ISBLANK(DataInput!A182),0,EXPONDIST(B189-$AC$2,$AB$2,TRUE)) -> 0.9252595538 | AC189: 0.1069412355 | AF189: =LN(IF(ISBLANK(DataInput!A182),1,GPDpdf(B189,$AH$2,$AI$2,$B$1))) -> -8.374937759 | AG189: 189 | AH189: =IF(ISBLANK(DataInput!A182),0,GPDcdff(B189,$AH$2,$AI$2,$B$1*0.999)) -> 0.9064617559 | AI189: 0.08814343757
A190: =MAX(0,A189-1/COUNT($B$8:INDIRECT("B"&(DataInput!$C$2+AG188)))) -> 0.8173173173 | B190: =IF(ISBLANK(DataInput!A183),"",DataInput!A183) -> 20.86455917 | C190: =IF(ISBLANK(DataInput!A183),"",LN(B190-0.999*$B$1)) -> 3.02645095 | D190: =DataInput!A183/AVERAGE(DataInput!$A$1:$A$10000) -> 0.1444602073 | F190: =LN(IF(ISBLANK(DataInput!A183),1,GAMMADIST(B190,$G$2,$H$2,TRUE))) -> -4.465362842 | G190: =IF(ISBLANK(DataInput!A183),0,GAMMADIST(B190-$I$2,$G$2,$H$2,TRUE)) -> 0.01125763747 | H190: 0.8060596799 | K190: =LN(IF(ISBLANK(DataInput!A183),1,NORMDIST(C190,$C$2,$C$3,FALSE))) -> -1.574351974 | L190: =IF(ISBLANK(DataInput!A183),0,NORMDIST(C190,$C$2,$C$3,TRUE)) -> 0.3661789752 | M190: 0.4511383421 | P190: =LN(IF(ISBLANK(DataInput!A183),1,$Q$2/$R$2/((B190/$R$2)^($Q$2+1)))) -> -7.50628792 | Q190: =IF(ISBLANK(DataInput!A183),0,IF(B190<$R$2,0,1-(B190/$R$2)^(-$Q$2))) -> 0.9885515797 | R190: 0.6223726046 | U190: -4.83809055 | V190: 0.3309227381 | W190: 0.4863945793 | Y190: =IF(ISBLANK(DataInput!A183),"",B190-$B$1*0.9999) -> 20.62369047 | AA190: =LN(IF(ISBLANK(DataInput!A183),1,EXPONDIST(B190-$AC$2,$AB$2,FALSE))) -> -5.114166475 | AB190: =IF(ISBLANK(DataInput!A183),0,EXPONDIST(B190-$AC$2,$AB$2,TRUE)) -> 0.1332741546 | AC190: 0.6840431627 | AF190: =LN(IF(ISBLANK(DataInput!A183),1,GPDpdf(B190,$AH$2,$AI$2,$B$1))) -> -4.514577578 | AG190: 190 | AH190: =IF(ISBLANK(DataInput!A183),0,GPDcdff(B190,$AH$2,$AI$2,$B$1*0.999)) -> 0.3413167229 | AI190: 0.4760005944
A191: =MAX(0,A190-1/COUNT($B$8:INDIRECT("B"&(DataInput!$C$2+AG189)))) -> 0.8163163163 | B191: =IF(ISBLANK(DataInput!A184),"",DataInput!A184) -> 2.690839052 | C191: =IF(ISBLANK(DataInput!A184),"",LN(B191-0.999*$B$1)) -> 0.8961644083 | D191: =DataInput!A184/AVERAGE(DataInput!$A$1:$A$10000) -> 0.01863059575 | F191: =LN(IF(ISBLANK(DataInput!A184),1,GAMMADIST(B191,$G$2,$H$2,TRUE))) -> -8.343296955 | G191: =IF(ISBLANK(DataInput!A184),0,GAMMADIST(B191-$I$2,$G$2,$H$2,TRUE)) -> 0.0001987712457 | H191: 0.8161175451 | K191: =LN(IF(ISBLANK(DataInput!A184),1,NORMDIST(C191,$C$2,$C$3,FALSE))) -> -2.66304023 | L191: =IF(ISBLANK(DataInput!A184),0,NORMDIST(C191,$C$2,$C$3,TRUE)) -> 0.06492344419 | M191: 0.7513928721 | P191: =LN(IF(ISBLANK(DataInput!A184),1,$Q$2/$R$2/((B191/$R$2)^($Q$2+1)))) -> -3.406471653 | Q191: =IF(ISBLANK(DataInput!A184),0,IF(B191<$R$2,0,1-(B191/$R$2)^(-$Q$2))) -> 0.9109258569 | R191: 0.8460024127 | U191: -3.710534614 | V191: 0.1042709377 | W191: 0.7120453786 | Y191: =IF(ISBLANK(DataInput!A184),"",B191-$B$1*0.9999) -> 2.449970344 | AA191: =LN(IF(ISBLANK(DataInput!A184),1,EXPONDIST(B191-$AC$2,$AB$2,FALSE))) -> -4.988126645 | AB191: =IF(ISBLANK(DataInput!A184),0,EXPONDIST(B191-$AC$2,$AB$2,TRUE)) -> 0.01684917071 | AC191: 0.7994671456 | AF191: =LN(IF(ISBLANK(DataInput!A184),1,GPDpdf(B191,$AH$2,$AI$2,$B$1))) -> -3.80649349 | AG191: 191 | AH191: =IF(ISBLANK(DataInput!A184),0,GPDcdff(B191,$AH$2,$AI$2,$B$1*0.999)) -> 0.05775747282 | AI191: 0.7585588435
A192: =MAX(0,A191-1/COUNT($B$8:INDIRECT("B"&(DataInput!$C$2+AG190)))) -> 0.8153153153 | B192: =IF(ISBLANK(DataInput!A185),"",DataInput!A185) -> 13.52019978 | C192: =IF(ISBLANK(DataInput!A185),"",LN(B192-0.999*$B$1)) -> 2.586225098 | D192: =DataInput!A185/AVERAGE(DataInput!$A$1:$A$10000) -> 0.09360997502 | F192: =LN(IF(ISBLANK(DataInput!A185),1,GAMMADIST(B192,$G$2,$H$2,TRUE))) -> -5.271069743 | G192: =IF(ISBLANK(DataInput!A185),0,GAMMADIST(B192-$I$2,$G$2,$H$2,TRUE)) -> 0.00496815995 | H192: 0.8103471554 | K192: =LN(IF(ISBLANK(DataInput!A185),1,NORMDIST(C192,$C$2,$C$3,FALSE))) -> -1.686595954 | L192: =IF(ISBLANK(DataInput!A185),0,NORMDIST(C192,$C$2,$C$3,TRUE)) -> 0.2794980058 | M192: 0.5358173095 | P192: =LN(IF(ISBLANK(DataInput!A185),1,$Q$2/$R$2/((B192/$R$2)^($Q$2+1)))) -> -6.637829523 | Q192: =IF(ISBLANK(DataInput!A185),0,IF(B192<$R$2,0,1-(B192/$R$2)^(-$Q$2))) -> 0.9823198417 | R192: 0.7028218359 | U192: -4.571048585 | V192: 0.2647408491 | W192: 0.5505744662 | Y192: =IF(ISBLANK(DataInput!A185),"",B192-$B$1*0.9999) -> 13.27933107 | AA192: =LN(IF(ISBLANK(DataInput!A185),1,EXPONDIST(B192-$AC$2,$AB$2,FALSE))) -> -5.06323129 | AB192: =IF(ISBLANK(DataInput!A185),0,EXPONDIST(B192-$AC$2,$AB$2,TRUE)) -> 0.0879836643 | AC192: 0.727331651 | AF192: =LN(IF(ISBLANK(DataInput!A185),1,GPDpdf(B192,$AH$2,$AI$2,$B$1))) -> -4.257476831 | AG192: 192 | AH192: =IF(ISBLANK(DataInput!A185),0,GPDcdff(B192,$AH$2,$AI$2,$B$1*0.999)) -> 0.2498767102 | AI192: 0.5654386051
A193: =MAX(0,A192-1/COUNT($B$8:INDIRECT("B"&(DataInput!$C$2+AG191)))) -> 0.8143143143 | B193: =IF(ISBLANK(DataInput!A186),"",DataInput!A186) -> 11.12314034 | C193: =IF(ISBLANK(DataInput!A186),"",LN(B193-0.999*$B$1)) -> 2.387154931 | D193: =DataInput!A186/AVERAGE(DataInput!$A$1:$A$10000) -> 0.07701342481 | F193: =LN(IF(ISBLANK(DataInput!A186),1,GAMMADIST(B193,$G$2,$H$2,TRUE))) -> -5.637551808 | G193: =IF(ISBLANK(DataInput!A186),0,GAMMADIST(B193-$I$2,$G$2,$H$2,TRUE)) -> 0.003417819975 | H193: 0.8108964943 | K193: =LN(IF(ISBLANK(DataInput!A186),1,NORMDIST(C193,$C$2,$C$3,FALSE))) -> -1.756636257 | L193: =IF(ISBLANK(DataInput!A186),0,NORMDIST(C193,$C$2,$C$3,TRUE)) -> 0.2438659226 | M193: 0.5704483917 | P193: =LN(IF(ISBLANK(DataInput!A186),1,$Q$2/$R$2/((B193/$R$2)^($Q$2+1)))) -> -6.247189421 | Q193: =IF(ISBLANK(DataInput!A186),0,IF(B193<$R$2,0,1-(B193/$R$2)^(-$Q$2))) -> 0.9785027307 | R193: 0.7346368081 | U193: -4.457904815 | V193: 0.2385206142 | W193: 0.5757937001 | Y193: =IF(ISBLANK(DataInput!A186),"",B193-$B$1*0.9999) -> 10.88227163 | AA193: =LN(IF(ISBLANK(DataInput!A186),1,EXPONDIST(B193-$AC$2,$AB$2,FALSE))) -> -5.046607012 | AB193: =IF(ISBLANK(DataInput!A186),0,EXPONDIST(B193-$AC$2,$AB$2,TRUE)) -> 0.07269532506 | AC193: 0.7416189893 | AF193: =LN(IF(ISBLANK(DataInput!A186),1,GPDpdf(B193,$AH$2,$AI$2,$B$1))) -> -4.165958332 | AG193: 193 | AH193: =IF(ISBLANK(DataInput!A186),0,GPDcdff(B193,$AH$2,$AI$2,$B$1*0.999)) -> 0.2143503425 | AI193: 0.5999639718
A194: =MAX(0,A193-1/COUNT($B$8:INDIRECT("B"&(DataInput!$C$2+AG192)))) -> 0.8133133133 | B194: =IF(ISBLANK(DataInput!A187),"",DataInput!A187) -> 21.74021912 | C194: =IF(ISBLANK(DataInput!A187),"",LN(B194-0.999*$B$1)) -> 3.068032805 | D194: =DataInput!A187/AVERAGE(DataInput!$A$1:$A$10000) -> 0.150523025 | F194: =LN(IF(ISBLANK(DataInput!A187),1,GAMMADIST(B194,$G$2,$H$2,TRUE))) -> -4.389819404 | G194: =IF(ISBLANK(DataInput!A187),0,GAMMADIST(B194-$I$2,$G$2,$H$2,TRUE)) -> 0.01215205388 | H194: 0.8011612594 | K194: =LN(IF(ISBLANK(DataInput!A187),1,NORMDIST(C194,$C$2,$C$3,FALSE))) -> -1.566785572 | L194: =IF(ISBLANK(DataInput!A187),0,NORMDIST(C194,$C$2,$C$3,TRUE)) -> 0.374825359 | M194: 0.4384879543 | P194: =LN(IF(ISBLANK(DataInput!A187),1,$Q$2/$R$2/((B194/$R$2)^($Q$2+1)))) -> -7.588580484 | Q194: =IF(ISBLANK(DataInput!A187),0,IF(B194<$R$2,0,1-(B194/$R$2)^(-$Q$2))) -> 0.989013457 | R194: 0.614188098 | U194: -4.864688251 | V194: 0.3377679361 | W194: 0.4755453772 | Y194: =IF(ISBLANK(DataInput!A187),"",B194-$B$1*0.9999) -> 21.49935041 | AA194: =LN(IF(ISBLANK(DataInput!A187),1,EXPONDIST(B194-$AC$2,$AB$2,FALSE))) -> -5.120239422 | AB194: =IF(ISBLANK(DataInput!A187),0,EXPONDIST(B194-$AC$2,$AB$2,TRUE)) -> 0.1385217839 | AC194: 0.6747915294 | AF194: =LN(IF(ISBLANK(DataInput!A187),1,GPDpdf(B194,$AH$2,$AI$2,$B$1))) -> -4.543160363 | AG194: 194 | AH194: =IF(ISBLANK(DataInput!A187),0,GPDcdff(B194,$AH$2,$AI$2,$B$1*0.999)) -> 0.3507675416 | AI194: 0.4625457717
A195: =MAX(0,A194-1/COUNT($B$8:INDIRECT("B"&(DataInput!$C$2+AG193)))) -> 0.8123123123 | B195: =IF(ISBLANK(DataInput!A188),"",DataInput!A188) -> 17.65856934 | C195: =IF(ISBLANK(DataInput!A188),"",LN(B195-0.999*$B$1)) -> 2.857499414 | D195: =DataInput!A188/AVERAGE(DataInput!$A$1:$A$10000) -> 0.1222628557 | F195: =LN(IF(ISBLANK(DataInput!A188),1,GAMMADIST(B195,$G$2,$H$2,TRUE))) -> -4.773464442 | G195: =IF(ISBLANK(DataInput!A188),0,GAMMADIST(B195-$I$2,$G$2,$H$2,TRUE)) -> 0.008238733856 | H195: 0.8040735785 | K195: =LN(IF(ISBLANK(DataInput!A188),1,NORMDIST(C195,$C$2,$C$3,FALSE))) -> -1.610484748 | L195: =IF(ISBLANK(DataInput!A188),0,NORMDIST(C195,$C$2,$C$3,TRUE)) -> 0.3317819927 | M195: 0.4805303196 | P195: =LN(IF(ISBLANK(DataInput!A188),1,$Q$2/$R$2/((B195/$R$2)^($Q$2+1)))) -> -7.17234787 | Q195: =IF(ISBLANK(DataInput!A188),0,IF(B195<$R$2,0,1-(B195/$R$2)^(-$Q$2))) -> 0.9864693025 | R195: 0.6546873097 | U195: -4.732594006 | V195: 0.3041670259 | W195: 0.5081452864 | Y195: =IF(ISBLANK(DataInput!A188),"",B195-$B$1*0.9999) -> 17.41770063 | AA195: =LN(IF(ISBLANK(DataInput!A188),1,EXPONDIST(B195-$AC$2,$AB$2,FALSE))) -> -5.091932039 | AB195: =IF(ISBLANK(DataInput!A188),0,EXPONDIST(B195-$AC$2,$AB$2,TRUE)) -> 0.113787156 | AC195: 0.6985251563 | AF195: =LN(IF(ISBLANK(DataInput!A188),1,GPDpdf(B195,$AH$2,$AI$2,$B$1))) -> -4.406341779 | AG195: 195 | AH195: =IF(ISBLANK(DataInput!A188),0,GPDcdff(B195,$AH$2,$AI$2,$B$1*0.999)) -> 0.3042650377 | AI195: 0.5080472746
A196: =MAX(0,A195-1/COUNT($B$8:INDIRECT("B"&(DataInput!$C$2+AG194)))) -> 0.8113113113 | B196: =IF(ISBLANK(DataInput!A189),"",DataInput!A189) -> 1.193717957 | C196: =IF(ISBLANK(DataInput!A189),"",LN(B196-0.999*$B$1)) -> -0.04807106857 | D196: =DataInput!A189/AVERAGE(DataInput!$A$1:$A$10000) -> 0.008264959834 | F196: =LN(IF(ISBLANK(DataInput!A189),1,GAMMADIST(B196,$G$2,$H$2,TRUE))) -> -9.908061499 | G196: =IF(ISBLANK(DataInput!A189),0,GAMMADIST(B196-$I$2,$G$2,$H$2,TRUE)) -> 3.224000313e-05 | H196: 0.8112790713 | K196: =LN(IF(ISBLANK(DataInput!A189),1,NORMDIST(C196,$C$2,$C$3,FALSE))) -> -3.585477027 | L196: =IF(ISBLANK(DataInput!A189),0,NORMDIST(C196,$C$2,$C$3,TRUE)) -> 0.02095038844 | M196: 0.7903609229 | P196: =LN(IF(ISBLANK(DataInput!A189),1,$Q$2/$R$2/((B196/$R$2)^($Q$2+1)))) -> -1.779554554 | Q196: =IF(ISBLANK(DataInput!A189),0,IF(B196<$R$2,0,1-(B196/$R$2)^(-$Q$2))) -> 0.7989394914 | R196: 0.777989103 | U196: -3.291939773 | V196: 0.06014910392 | W196: 0.7511622074 | Y196: =IF(ISBLANK(DataInput!A189),"",B196-$B$1*0.9999) -> 0.9528492481 | AA196: =LN(IF(ISBLANK(DataInput!A189),1,EXPONDIST(B196-$AC$2,$AB$2,FALSE))) -> -4.977743692 | AB196: =IF(ISBLANK(DataInput!A189),0,EXPONDIST(B196-$AC$2,$AB$2,TRUE)) -> 0.006587982979 | AC196: 0.8047233283 | AF196: =LN(IF(ISBLANK(DataInput!A189),1,GPDpdf(B196,$AH$2,$AI$2,$B$1))) -> -3.735415292 | AG196: 196 | AH196: =IF(ISBLANK(DataInput!A189),0,GPDcdff(B196,$AH$2,$AI$2,$B$1*0.999)) -> 0.02327897737 | AI196: 0.7880323339
A197: =MAX(0,A196-1/COUNT($B$8:INDIRECT("B"&(DataInput!$C$2+AG195)))) -> 0.8103103103 | B197: =IF(ISBLANK(DataInput!A190),"",DataInput!A190) -> 16.03689957 | C197: =IF(ISBLANK(DataInput!A190),"",LN(B197-0.999*$B$1)) -> 2.759772422 | D197: =DataInput!A190/AVERAGE(DataInput!$A$1:$A$10000) -> 0.1110348806 | F197: =LN(IF(ISBLANK(DataInput!A190),1,GAMMADIST(B197,$G$2,$H$2,TRUE))) -> -4.952389597 | G197: =IF(ISBLANK(DataInput!A190),0,GAMMADIST(B197-$I$2,$G$2,$H$2,TRUE)) -> 0.006870378672 | H197: 0.8034399316 | K197: =LN(IF(ISBLANK(DataInput!A190),1,NORMDIST(C197,$C$2,$C$3,FALSE))) -> -1.635334055 | L197: =IF(ISBLANK(DataInput!A190),0,NORMDIST(C197,$C$2,$C$3,TRUE)) -> 0.3124929864 | M197: 0.4978173239 | P197: =LN(IF(ISBLANK(DataInput!A190),1,$Q$2/$R$2/((B197/$R$2)^($Q$2+1)))) -> -6.979529317 | Q197: =IF(ISBLANK(DataInput!A190),0,IF(B197<$R$2,0,1-(B197/$R$2)^(-$Q$2))) -> 0.9850986672 | R197: 0.6726056808 | U197: -4.673342665 | V197: 0.2894646292 | W197: 0.5208456812 | Y197: =IF(ISBLANK(DataInput!A190),"",B197-$B$1*0.9999) -> 15.79603086 | AA197: =LN(IF(ISBLANK(DataInput!A190),1,EXPONDIST(B197-$AC$2,$AB$2,FALSE))) -> -5.080685306 | AB197: =IF(ISBLANK(DataInput!A190),0,EXPONDIST(B197-$AC$2,$AB$2,TRUE)) -> 0.1037638978 | AC197: 0.7065464125 | AF197: =LN(IF(ISBLANK(DataInput!A190),1,GPDpdf(B197,$AH$2,$AI$2,$B$1))) -> -4.349305509 | AG197: 197 | AH197: =IF(ISBLANK(DataInput!A190),0,GPDcdff(B197,$AH$2,$AI$2,$B$1*0.999)) -> 0.2839089295 | AI197: 0.5264013808
A198: =MAX(0,A197-1/COUNT($B$8:INDIRECT("B"&(DataInput!$C$2+AG196)))) -> 0.8093093093 | B198: =IF(ISBLANK(DataInput!A191),"",DataInput!A191) -> 1528.334961 | C198: =IF(ISBLANK(DataInput!A191),"",LN(B198-0.999*$B$1)) -> 7.331776688 | D198: =DataInput!A191/AVERAGE(DataInput!$A$1:$A$10000) -> 10.58175174 | F198: =LN(IF(ISBLANK(DataInput!A191),1,GAMMADIST(B198,$G$2,$H$2,TRUE))) -> -0.0002523589406 | G198: =IF(ISBLANK(DataInput!A191),0,GAMMADIST(B198-$I$2,$G$2,$H$2,TRUE)) -> 0.9997472854 | H198: 0.1904379761 | K198: =LN(IF(ISBLANK(DataInput!A191),1,NORMDIST(C198,$C$2,$C$3,FALSE))) -> -3.57241973 | L198: =IF(ISBLANK(DataInput!A191),0,NORMDIST(C198,$C$2,$C$3,TRUE)) -> 0.9787237645 | M198: 0.1694144552 | P198: =LN(IF(ISBLANK(DataInput!A191),1,$Q$2/$R$2/((B198/$R$2)^($Q$2+1)))) -> -16.1012187 | Q198: =IF(ISBLANK(DataInput!A191),0,IF(B198<$R$2,0,1-(B198/$R$2)^(-$Q$2))) -> 0.9998448242 | R198: 0.02112105971 | U198: -11.62421569 | V198: 0.9959085054 | W198: 0.1865991961 | Y198: =IF(ISBLANK(DataInput!A191),"",B198-$B$1*0.9999) -> 1528.094092 | AA198: =LN(IF(ISBLANK(DataInput!A191),1,EXPONDIST(B198-$AC$2,$AB$2,FALSE))) -> -15.56889516 | AB198: =IF(ISBLANK(DataInput!A191),0,EXPONDIST(B198-$AC$2,$AB$2,TRUE)) -> 0.9999750281 | AC198: 0.1906657188 | AF198: =LN(IF(ISBLANK(DataInput!A191),1,GPDpdf(B198,$AH$2,$AI$2,$B$1))) -> -11.06550056 | AG198: 198 | AH198: =IF(ISBLANK(DataInput!A191),0,GPDcdff(B198,$AH$2,$AI$2,$B$1*0.999)) -> 0.9760020577 | AI198: 0.1666927484
A199: =MAX(0,A198-1/COUNT($B$8:INDIRECT("B"&(DataInput!$C$2+AG197)))) -> 0.8083083083 | B199: =IF(ISBLANK(DataInput!A192),"",DataInput!A192) -> 13.58664036 | C199: =IF(ISBLANK(DataInput!A192),"",LN(B199-0.999*$B$1)) -> 2.591215849 | D199: =DataInput!A192/AVERAGE(DataInput!$A$1:$A$10000) -> 0.0940699905 | F199: =LN(IF(ISBLANK(DataInput!A192),1,GAMMADIST(B199,$G$2,$H$2,TRUE))) -> -5.261892147 | G199: =IF(ISBLANK(DataInput!A192),0,GAMMADIST(B199-$I$2,$G$2,$H$2,TRUE)) -> 0.005014824566 | H199: 0.8032934837 | K199: =LN(IF(ISBLANK(DataInput!A192),1,NORMDIST(C199,$C$2,$C$3,FALSE))) -> -1.684994336 | L199: =IF(ISBLANK(DataInput!A192),0,NORMDIST(C199,$C$2,$C$3,TRUE)) -> 0.280422778 | M199: 0.5278855303 | P199: =LN(IF(ISBLANK(DataInput!A192),1,$Q$2/$R$2/((B199/$R$2)^($Q$2+1)))) -> -6.647641977 | Q199: =IF(ISBLANK(DataInput!A192),0,IF(B199<$R$2,0,1-(B199/$R$2)^(-$Q$2))) -> 0.9824064441 | R199: 0.7019836661 | U199: -4.57394075 | V199: 0.2654273229 | W199: 0.5428809855 | Y199: =IF(ISBLANK(DataInput!A192),"",B199-$B$1*0.9999) -> 13.34577165 | AA199: =LN(IF(ISBLANK(DataInput!A192),1,EXPONDIST(B199-$AC$2,$AB$2,FALSE))) -> -5.063692074 | AB199: =IF(ISBLANK(DataInput!A192),0,EXPONDIST(B199-$AC$2,$AB$2,TRUE)) -> 0.08840381004 | AC199: 0.7199044983 | AF199: =LN(IF(ISBLANK(DataInput!A192),1,GPDpdf(B199,$AH$2,$AI$2,$B$1))) -> -4.259955449 | AG199: 199 | AH199: =IF(ISBLANK(DataInput!A192),0,GPDcdff(B199,$AH$2,$AI$2,$B$1*0.999)) -> 0.2508162012 | AI199: 0.5574921071
A200: =MAX(0,A199-1/COUNT($B$8:INDIRECT("B"&(DataInput!$C$2+AG198)))) -> 0.8073073073 | B200: =IF(ISBLANK(DataInput!A193),"",DataInput!A193) -> 78.49986267 | C200: =IF(ISBLANK(DataInput!A193),"",LN(B200-0.999*$B$1)) -> 4.360026532 | D200: =DataInput!A193/AVERAGE(DataInput!$A$1:$A$10000) -> 0.5435104736 | F200: =LN(IF(ISBLANK(DataInput!A193),1,GAMMADIST(B200,$G$2,$H$2,TRUE))) -> -2.15865262 | G200: =IF(ISBLANK(DataInput!A193),0,GAMMADIST(B200-$I$2,$G$2,$H$2,TRUE)) -> 0.1149172553 | H200: 0.692390052 | K200: =LN(IF(ISBLANK(DataInput!A193),1,NORMDIST(C200,$C$2,$C$3,FALSE))) -> -1.592759323 | L200: =IF(ISBLANK(DataInput!A193),0,NORMDIST(C200,$C$2,$C$3,TRUE)) -> 0.6525219086 | M200: 0.1547853987 | P200: =LN(IF(ISBLANK(DataInput!A193),1,$Q$2/$R$2/((B200/$R$2)^($Q$2+1)))) -> -10.15858918 | Q200: =IF(ISBLANK(DataInput!A193),0,IF(B200<$R$2,0,1-(B200/$R$2)^(-$Q$2))) -> 0.9969638345 | R200: 0.3444419259 | U200: -5.863117025 | V200: 0.5949198031 | W200: 0.2123875042 | Y200: =IF(ISBLANK(DataInput!A193),"",B200-$B$1*0.9999) -> 78.25899396 | AA200: =LN(IF(ISBLANK(DataInput!A193),1,EXPONDIST(B200-$AC$2,$AB$2,FALSE))) -> -5.513883418 | AB200: =IF(ISBLANK(DataInput!A193),0,EXPONDIST(B200-$AC$2,$AB$2,TRUE)) -> 0.4188518167 | AC200: 0.3884554906 | AF200: =LN(IF(ISBLANK(DataInput!A193),1,GPDpdf(B200,$AH$2,$AI$2,$B$1))) -> -5.851554208 | AG200: 200 | AH200: =IF(ISBLANK(DataInput!A193),0,GPDcdff(B200,$AH$2,$AI$2,$B$1*0.999)) -> 0.6649625088 | AI200: 0.1423447985
A201: =MAX(0,A200-1/COUNT($B$8:INDIRECT("B"&(DataInput!$C$2+AG199)))) -> 0.8063063063 | B201: =IF(ISBLANK(DataInput!A194),"",DataInput!A194) -> 13.02132988 | C201: =IF(ISBLANK(DataInput!A194),"",LN(B201-0.999*$B$1)) -> 2.547934497 | D201: =DataInput!A194/AVERAGE(DataInput!$A$1:$A$10000) -> 0.09015594333 | F201: =LN(IF(ISBLANK(DataInput!A194),1,GAMMADIST(B201,$G$2,$H$2,TRUE))) -> -5.341503751 | G201: =IF(ISBLANK(DataInput!A194),0,GAMMADIST(B201-$I$2,$G$2,$H$2,TRUE)) -> 0.004624059147 | H201: 0.8016822472 | K201: =LN(IF(ISBLANK(DataInput!A194),1,NORMDIST(C201,$C$2,$C$3,FALSE))) -> -1.699135185 | L201: =IF(ISBLANK(DataInput!A194),0,NORMDIST(C201,$C$2,$C$3,TRUE)) -> 0.2724525528 | M201: 0.5338537535 | P201: =LN(IF(ISBLANK(DataInput!A194),1,$Q$2/$R$2/((B201/$R$2)^($Q$2+1)))) -> -6.562574628 | Q201: =IF(ISBLANK(DataInput!A194),0,IF(B201<$R$2,0,1-(B201/$R$2)^(-$Q$2))) -> 0.9816413321 | R201: 0.7091887793 | U201: =LN(IF(ISBLANK(B201),1,WEIBULL(Y201,$V$2,$W$2,FALSE))) -> -4.548952453 | V201: =WEIBULL(Y201,$V$2,$W$2,TRUE) -> 0.2595218357 | W201: 0.5467844706 | Y201: =IF(ISBLANK(DataInput!A194),"",B201-$B$1*0.9999) -> 12.78046117 | AA201: =LN(IF(ISBLANK(DataInput!A194),1,EXPONDIST(B201-$AC$2,$AB$2,FALSE))) -> -5.059771487 | AB201: =IF(ISBLANK(DataInput!A194),0,EXPONDIST(B201-$AC$2,$AB$2,TRUE)) -> 0.08482280335 | AC201: 0.721483503 | AF201: =LN(IF(ISBLANK(DataInput!A194),1,GPDpdf(B201,$AH$2,$AI$2,$B$1))) -> -4.238768438 | AG201: 201 | AH201: =IF(ISBLANK(DataInput!A194),0,GPDcdff(B201,$AH$2,$AI$2,$B$1*0.999)) -> 0.2427474047 | AI201: =ABS(AH201-$A201) -> 0.5635589016
... 2049 more rows

Sheet Distribution Choices
A1: Distribution Choices
A3: Distribution | B3: Kolmogorov Smirnov Score | C3: Anderson Darling Score
A4: Gamma | B4: ='distribution choices (hide me)'!H7 -> 0.9983098874 | C4: ='distribution choices (hide me)'!I7 -> 4.114392589
A5: Log Normal | B5: ='distribution choices (hide me)'!M7 -> 0.9904904905 | C5: ='distribution choices (hide me)'!N7 -> 1.922386636
A6: Pareto 1 | B6: ='distribution choices (hide me)'!R7 -> 0.8465339347 | C6: ='distribution choices (hide me)'!S7 -> 5.080669664
A7: Weibull | B7: ='distribution choices (hide me)'!W7 -> 0.9903907084 | C7: ='distribution choices (hide me)'!X7 -> 1.885219291
A8: Exponential | B8: ='distribution choices (hide me)'!AC7 -> 0.9979328263 | C8: ='distribution choices (hide me)'!AD7 -> 2.57740911
A9: Generalized Pareto | B9: ='distribution choices (hide me)'!AI7 -> 0.990484468 | C9: ='distribution choices (hide me)'!AJ7 -> 1.954946712
